Workbook

Sheet Range names (hidden)
A1: Range Name | B1: RefersTo | C1: Scope | D1: Parent
A2: asset_class_list | B2: =OFFSET('IPP&E Reconciliation'!$A$5,0,0,COUNTA('IPP&E Reconciliation'!$A$5:$A$35)-COUNTBLANK('IPP&E Reconciliation'!$A$5:$A$35),1) ->  | C2: Workbook | D2: LTFP_Consolidated_Workfile.xlsm
A3: balance_sheet_consolidated_general | B3: ='Balance Sheet - General'!$A$3 -> BALANCE SHEET - GENERAL FUND | C3: Workbook | D3: LTFP_Consolidated_Workfile.xlsm
A4: balance_sheet_consolidated_main | B4: ='Balance Sheet'!$A$3 -> BALANCE SHEET - CONSOLIDATED | C4: Workbook | D4: LTFP_Consolidated_Workfile.xlsm
A5: balance_sheet_consolidated_other1 | B5: ='Balance Sheet - Other 1'!$A$3 -> BALANCE SHEET - OTHER 1 FUND | C5: Workbook | D5: LTFP_Consolidated_Workfile.xlsm
A6: balance_sheet_consolidated_other2 | B6: ='Balance Sheet - Other 2'!$A$3 -> BALANCE SHEET - OTHER 2 FUND | C6: Workbook | D6: LTFP_Consolidated_Workfile.xlsm
A7: balance_sheet_consolidated_other3 | B7: ='Balance Sheet - Other 3'!$A$3 -> BALANCE SHEET - OTHER 3 FUND | C7: Workbook | D7: LTFP_Consolidated_Workfile.xlsm
A8: balance_sheet_consolidated_sewer | B8: ='Balance Sheet - Sewer'!$A$3 -> BALANCE SHEET - SEWER FUND | C8: Workbook | D8: LTFP_Consolidated_Workfile.xlsm
A9: balance_sheet_consolidated_water | B9: ='Balance Sheet - Water'!$A$3 -> BALANCE SHEET - WATER FUND | C9: Workbook | D9: LTFP_Consolidated_Workfile.xlsm
A10: balance_sheet_list | B10: ='IS-BS table'!$R$5:$R$21 -> Infrastructure, Property, Plant & Equipment | C10: Workbook | D10: LTFP_Consolidated_Workfile.xlsm
A11: balance_sheet_list_2 | B11: ='IS-BS table'!$S$5:$S$21 -> Assets | C11: Workbook | D11: LTFP_Consolidated_Workfile.xlsm
A12: BS_area_1_consol | B12: ='Balance Sheet'!$6:$80 -> 0 | C12: Workbook | D12: LTFP_Consolidated_Workfile.xlsm
A13: BS_area_1_general | B13: ='Balance Sheet - General'!$6:$143 -> 0 | C13: Workbook | D13: LTFP_Consolidated_Workfile.xlsm
A14: BS_area_1_other1 | B14: ='Balance Sheet - Other 1'!$6:$143 -> 0 | C14: Workbook | D14: LTFP_Consolidated_Workfile.xlsm
A15: BS_area_1_other2 | B15: ='Balance Sheet - Other 2'!$6:$143 -> 0 | C15: Workbook | D15: LTFP_Consolidated_Workfile.xlsm
A16: BS_area_1_other3 | B16: ='Balance Sheet - Other 3'!$6:$143 -> 0 | C16: Workbook | D16: LTFP_Consolidated_Workfile.xlsm
A17: BS_area_1_sewer | B17: ='Balance Sheet - Sewer'!$6:$151 -> 0 | C17: Workbook | D17: LTFP_Consolidated_Workfile.xlsm
A18: BS_area_1_water | B18: ='Balance Sheet - Water'!$6:$151 -> 0 | C18: Workbook | D18: LTFP_Consolidated_Workfile.xlsm
A19: BU_summary_stat_area_1 | B19: ='Budget Summary 1'!$J$8:$AB$678 ->  | C19: Workbook | D19: LTFP_Consolidated_Workfile.xlsm
A20: BU_summary_stat_consolidated_main | B20: ='Budget Summary 1'!$D$4 -> SUMMARY OF ALL CENTRES/UNITS - ALL FUNDS (CONSOLIDATED) | C20: Workbook | D20: LTFP_Consolidated_Workfile.xlsm
A21: budget_rec_consol_range | B21: ='Budget Reconciliation'!$C$6:$N$94 ->  | C21: Workbook | D21: LTFP_Consolidated_Workfile.xlsm
A22: budget_reconciliation_consolidated | B22: ='Budget Reconciliation'!$A$3 -> BUDGET RECONCILIATION - CONSOLIDATED | C22: Workbook | D22: LTFP_Consolidated_Workfile.xlsm
A23: budget_sum_consol_range | B23: ='Budget Summary 2'!$C$6:$N$65 ->  | C23: Workbook | D23: LTFP_Consolidated_Workfile.xlsm
A24: budget_summary_consolidated | B24: ='Budget Summary 2'!$A$3 -> BUDGET SUMMARY - CONSOLIDATED | C24: Workbook | D24: LTFP_Consolidated_Workfile.xlsm
A25: BUStatutory_CapitalExpenditure | B25: ='Budget Summary 1'!$D$105 -> Capital Expenditure | C25: Workbook | D25: LTFP_Consolidated_Workfile.xlsm
A26: BUStatutory_CapitalIncome | B26: ='Budget Summary 1'!$D$79 -> Capital Income | C26: Workbook | D26: LTFP_Consolidated_Workfile.xlsm
A27: BUStatutory_InternalExpenditure | B27: ='Budget Summary 1'!$D$158 -> Internal Expenditure | C27: Workbook | D27: LTFP_Consolidated_Workfile.xlsm
A28: BUStatutory_InternalIncome | B28: ='Budget Summary 1'!$D$144 -> Internal Income | C28: Workbook | D28: LTFP_Consolidated_Workfile.xlsm
A29: BUStatutory_OperatingExpenditure | B29: ='Budget Summary 1'!$D$36 -> Operating Expenditure | C29: Workbook | D29: LTFP_Consolidated_Workfile.xlsm
A30: BUStatutory_OperatingIncome | B30: ='Budget Summary 1'!$D$8 -> Operating Income | C30: Workbook | D30: LTFP_Consolidated_Workfile.xlsm
A31: BUStatutory_ReservesExpenditure | B31: ='Budget Summary 1'!$D$137 -> Transfer to Reserves (Expenditure) | C31: Workbook | D31: LTFP_Consolidated_Workfile.xlsm
A32: BUStatutory_ReservesIncome | B32: ='Budget Summary 1'!$D$133 -> Transfer from Reserves (Income) | C32: Workbook | D32: LTFP_Consolidated_Workfile.xlsm
A33: BUStatutory_TotalCapitalExpenditure | B33: ='Budget Summary 1'!$D$128 -> Total Capital Expenditure | C33: Workbook | D33: LTFP_Consolidated_Workfile.xlsm
A34: BUStatutory_TotalCapitalIncome | B34: ='Budget Summary 1'!$D$103 -> Total Capital Income | C34: Workbook | D34: LTFP_Consolidated_Workfile.xlsm
A35: BUStatutory_TotalInternalExpenditure | B35: ='Budget Summary 1'!$D$172 -> Total Internal Expenditure | C35: Workbook | D35: LTFP_Consolidated_Workfile.xlsm
A36: BUStatutory_TotalInternalIncome | B36: ='Budget Summary 1'!$D$156 -> Total Internal Income | C36: Workbook | D36: LTFP_Consolidated_Workfile.xlsm
A37: BUStatutory_TotalOperatingExpenditure | B37: ='Budget Summary 1'!$D$74 -> Total Operating Expenditure | C37: Workbook | D37: LTFP_Consolidated_Workfile.xlsm
A38: BUStatutory_TotalOperatingIncome | B38: ='Budget Summary 1'!$D$34 -> Total Operating Income | C38: Workbook | D38: LTFP_Consolidated_Workfile.xlsm
A39: BUStatutory_TotalReservesExpenditure | B39: ='Budget Summary 1'!$D$139 -> Total Transfer to Reserves (Expenditure) | C39: Workbook | D39: LTFP_Consolidated_Workfile.xlsm
A40: BUStatutory_TotalReservesIncome | B40: ='Budget Summary 1'!$D$135 -> Total Transfer from Reserves (Income) | C40: Workbook | D40: LTFP_Consolidated_Workfile.xlsm
A41: cap_exp_consol_range | B41: ='Cap Exp Summary'!$C$6:$N$223 ->  | C41: Workbook | D41: LTFP_Consolidated_Workfile.xlsm
A42: cap_exp_summary_consolidated | B42: ='Cap Exp Summary'!$A$3 -> CAPITAL EXPENDITURE SUMMARY - CONSOLIDATED | C42: Workbook | D42: LTFP_Consolidated_Workfile.xlsm
A43: CAPEX_summary | B43: ='CAPEX - Summary'!$A$3 -> CAPITAL WORKS - ALL FUNDS (CONSOLIDATED) | C43: Workbook | D43: LTFP_Consolidated_Workfile.xlsm
A44: CAPEX_summary_consolidated_main | B44: ='CAPEX - Summary'!$C$5 -> 0 | C44: Workbook | D44: LTFP_Consolidated_Workfile.xlsm
A45: capital_expenses_budget_list | B45: ='Budget Summary 1'!$D$106:$D$127 ->  | C45: Workbook | D45: LTFP_Consolidated_Workfile.xlsm
A46: capital_expenses_budget_list_dropdown | B46: =OFFSET('Budget Summary 1'!$D$106,0,0,COUNTA('Budget Summary 1'!$D$106:$D$126),1) ->  | C46: Workbook | D46: LTFP_Consolidated_Workfile.xlsm
A47: capital_income_budget_list | B47: ='Budget Summary 1'!$D$80:$D$102 ->  | C47: Workbook | D47: LTFP_Consolidated_Workfile.xlsm
A48: capital_income_budget_list_dropdown | B48: =OFFSET('Budget Summary 1'!$D$80,0,0,COUNTA('Budget Summary 1'!$D$80:$D$99),1) ->  | C48: Workbook | D48: LTFP_Consolidated_Workfile.xlsm
A49: cash_flow_consolidated_general | B49: ='Cash Flow - General'!$A$3 -> CASH FLOW STATEMENT - GENERAL FUND | C49: Workbook | D49: LTFP_Consolidated_Workfile.xlsm
A50: cash_flow_consolidated_main | B50: ='Cash Flow'!$A$3 -> CASH FLOW STATEMENT - CONSOLIDATED | C50: Workbook | D50: LTFP_Consolidated_Workfile.xlsm
A51: cash_flow_consolidated_other1 | B51: ='Cash Flow - Other 1'!$A$3 -> CASH FLOW STATEMENT - OTHER 1 FUND | C51: Workbook | D51: LTFP_Consolidated_Workfile.xlsm
A52: cash_flow_consolidated_other2 | B52: ='Cash Flow - Other 2'!$A$3 -> CASH FLOW STATEMENT - OTHER 2 FUND | C52: Workbook | D52: LTFP_Consolidated_Workfile.xlsm
A53: cash_flow_consolidated_other3 | B53: ='Cash Flow - Other 3'!$A$3 -> CASH FLOW STATEMENT - OTHER 3 FUND | C53: Workbook | D53: LTFP_Consolidated_Workfile.xlsm
A54: cash_flow_consolidated_sewer | B54: ='Cash Flow - Sewer'!$A$3 -> CASH FLOW STATEMENT - SEWER FUND | C54: Workbook | D54: LTFP_Consolidated_Workfile.xlsm
A55: cash_flow_consolidated_water | B55: ='Cash Flow - Water'!$A$3 -> CASH FLOW STATEMENT - WATER FUND | C55: Workbook | D55: LTFP_Consolidated_Workfile.xlsm
A56: CF_area_1_consol | B56: ='Cash Flow'!$A$6:$P$96 -> 0 | C56: Workbook | D56: LTFP_Consolidated_Workfile.xlsm
A57: CF_area_1_general | B57: ='Cash Flow - General'!$A$6:$P$112 -> 0 | C57: Workbook | D57: LTFP_Consolidated_Workfile.xlsm
A58: CF_area_1_other1 | B58: ='Cash Flow - Other 1'!$A$6:$P$112 -> 0 | C58: Workbook | D58: LTFP_Consolidated_Workfile.xlsm
A59: CF_area_1_other2 | B59: ='Cash Flow - Other 2'!$A$6:$P$112 -> 0 | C59: Workbook | D59: LTFP_Consolidated_Workfile.xlsm
A60: CF_area_1_other3 | B60: ='Cash Flow - Other 3'!$A$6:$P$112 -> 0 | C60: Workbook | D60: LTFP_Consolidated_Workfile.xlsm
A61: CF_area_1_sewer | B61: ='Cash Flow - Sewer'!$A$6:$P$112 -> 0 | C61: Workbook | D61: LTFP_Consolidated_Workfile.xlsm
A62: CF_area_1_water | B62: ='Cash Flow - Water'!$A$6:$P$112 -> 0 | C62: Workbook | D62: LTFP_Consolidated_Workfile.xlsm
A63: chart_1_1_y_max | B63: ='Chart Data'!$AC$9 -> 41000000 | C63: Workbook | D63: LTFP_Consolidated_Workfile.xlsm
A64: chart_1_1_y_min | B64: ='Chart Data'!$AD$9 -> 20000000 | C64: Workbook | D64: LTFP_Consolidated_Workfile.xlsm
A65: chart_1_2_y_max | B65: ='Chart Data'!$AF$11 -> 0 | C65: Workbook | D65: LTFP_Consolidated_Workfile.xlsm
A66: chart_1_2_y_min | B66: ='Chart Data'!$AG$11 -> 0 | C66: Workbook | D66: LTFP_Consolidated_Workfile.xlsm
A67: chart_1_3_y_max | B67: ='Chart Data'!$AI$13 -> 0 | C67: Workbook | D67: LTFP_Consolidated_Workfile.xlsm
A68: chart_1_3_y_min | B68: ='Chart Data'!$AJ$13 -> 0 | C68: Workbook | D68: LTFP_Consolidated_Workfile.xlsm
A69: chart_2_1 | B69: =chart_2_1_cy_10_years ->  | C69: Workbook | D69: LTFP_Consolidated_Workfile.xlsm
A70: chart_2_1_cy_10_years | B70: ='Chart Data'!$G$30:$Q$30 ->  | C70: Workbook | D70: LTFP_Consolidated_Workfile.xlsm
A71: chart_2_1_y_max | B71: ='Chart Data'!$AC$30 -> 36000000 | C71: Workbook | D71: LTFP_Consolidated_Workfile.xlsm
A72: chart_2_1_y_min | B72: ='Chart Data'!$AD$30 -> 20000000 | C72: Workbook | D72: LTFP_Consolidated_Workfile.xlsm
A73: chart_2_10_years | B73: =IF(chart_2_show_actuals,IF(chart_2_show_predictions,chart_2_10_years_all,chart_2_10_years_actuals),IF(chart_2_show_predictions,chart_2_10_years_predictions,chart_2_10_years_10_years)) ->  | C73: Workbook | D73: LTFP_Consolidated_Workfile.xlsm
A74: chart_2_10_years_10_years | B74: ='Chart Data'!$G$40:$Q$40 ->  | C74: Workbook | D74: LTFP_Consolidated_Workfile.xlsm
A75: chart_2_10_years_actuals | B75: ='Chart Data'!$C$40:$Q$40 ->  | C75: Workbook | D75: LTFP_Consolidated_Workfile.xlsm
A76: chart_2_10_years_all | B76: ='Chart Data'!$C$40:$AA$40 ->  | C76: Workbook | D76: LTFP_Consolidated_Workfile.xlsm
A77: chart_2_10_years_predictions | B77: ='Chart Data'!$G$40:$AA$40 ->  | C77: Workbook | D77: LTFP_Consolidated_Workfile.xlsm
A78: chart_2_2 | B78: =chart_2_2_cy_10_years ->  | C78: Workbook | D78: LTFP_Consolidated_Workfile.xlsm
A79: chart_2_2_cy_10_years | B79: ='Chart Data'!$G$32:$Q$32 ->  | C79: Workbook | D79: LTFP_Consolidated_Workfile.xlsm
A80: chart_2_2_y_max | B80: ='Chart Data'!$AF$32 -> 0 | C80: Workbook | D80: LTFP_Consolidated_Workfile.xlsm
A81: chart_2_2_y_min | B81: ='Chart Data'!$AG$32 -> 0 | C81: Workbook | D81: LTFP_Consolidated_Workfile.xlsm
A82: chart_2_3 | B82: =chart_2_3_cy_10_years ->  | C82: Workbook | D82: LTFP_Consolidated_Workfile.xlsm
A83: chart_2_3_cy_10_years | B83: ='Chart Data'!$G$34:$Q$34 ->  | C83: Workbook | D83: LTFP_Consolidated_Workfile.xlsm
A84: chart_2_3_y_max | B84: ='Chart Data'!$AI$34 -> 0 | C84: Workbook | D84: LTFP_Consolidated_Workfile.xlsm
A85: chart_2_3_y_min | B85: ='Chart Data'!$AJ$34 -> 0 | C85: Workbook | D85: LTFP_Consolidated_Workfile.xlsm
A86: chart_2_actuals | B86: =IF(chart_2_show_actuals,IF(chart_2_show_predictions,chart_2_actuals_all,chart_2_actuals_actuals),IF(chart_2_show_predictions,chart_2_actuals_predictions,chart_2_actuals_10_years)) ->  | C86: Workbook | D86: LTFP_Consolidated_Workfile.xlsm
A87: chart_2_actuals_10_years | B87: ='Chart Data'!$G$36:$Q$36 ->  | C87: Workbook | D87: LTFP_Consolidated_Workfile.xlsm
A88: chart_2_actuals_actuals | B88: ='Chart Data'!$C$36:$Q$36 ->  | C88: Workbook | D88: LTFP_Consolidated_Workfile.xlsm
A89: chart_2_actuals_all | B89: ='Chart Data'!$C$36:$AA$36 ->  | C89: Workbook | D89: LTFP_Consolidated_Workfile.xlsm
A90: chart_2_actuals_predictions | B90: ='Chart Data'!$G$36:$AA$36 ->  | C90: Workbook | D90: LTFP_Consolidated_Workfile.xlsm
A91: chart_2_blank_cy_10_years | B91: ='Chart Data'!$G$46:$Q$46 ->  | C91: Workbook | D91: LTFP_Consolidated_Workfile.xlsm
A92: chart_2_budget | B92: =IF(chart_2_show_actuals,IF(chart_2_show_predictions,chart_2_budget_all,chart_2_budget_actuals),IF(chart_2_show_predictions,chart_2_budget_predictions,chart_2_budget_10_years)) ->  | C92: Workbook | D92: LTFP_Consolidated_Workfile.xlsm
A93: chart_2_budget_10_years | B93: ='Chart Data'!$G$37:$Q$37 ->  | C93: Workbook | D93: LTFP_Consolidated_Workfile.xlsm
A94: chart_2_budget_actuals | B94: ='Chart Data'!$C$37:$Q$37 ->  | C94: Workbook | D94: LTFP_Consolidated_Workfile.xlsm
A95: chart_2_budget_all | B95: ='Chart Data'!$C$37:$AA$37 ->  | C95: Workbook | D95: LTFP_Consolidated_Workfile.xlsm
A96: chart_2_budget_predictions | B96: ='Chart Data'!$G$37:$AA$37 ->  | C96: Workbook | D96: LTFP_Consolidated_Workfile.xlsm
A97: chart_2_predictions | B97: =IF(chart_2_show_actuals,IF(chart_2_show_predictions,chart_2_predictions_all,chart_2_predictions_actuals),IF(chart_2_show_predictions,chart_2_predictions_predictions,chart_2_predictions_10_years)) ->  | C97: Workbook | D97: LTFP_Consolidated_Workfile.xlsm
A98: chart_2_predictions_10_years | B98: ='Chart Data'!$G$43:$Q$43 ->  | C98: Workbook | D98: LTFP_Consolidated_Workfile.xlsm
A99: chart_2_predictions_actuals | B99: ='Chart Data'!$C$43:$Q$43 ->  | C99: Workbook | D99: LTFP_Consolidated_Workfile.xlsm
A100: chart_2_predictions_all | B100: ='Chart Data'!$C$43:$AA$43 ->  | C100: Workbook | D100: LTFP_Consolidated_Workfile.xlsm
A101: chart_2_predictions_predictions | B101: ='Chart Data'!$G$43:$AA$43 ->  | C101: Workbook | D101: LTFP_Consolidated_Workfile.xlsm
A102: chart_2_series_1_all | B102: ='Chart Data'!$C$30:$AA$30 ->  | C102: Workbook | D102: LTFP_Consolidated_Workfile.xlsm
A103: chart_2_series_2_all | B103: ='Chart Data'!$C$31:$AA$31 ->  | C103: Workbook | D103: LTFP_Consolidated_Workfile.xlsm
A104: chart_2_show_actuals | B104: ='Chart 2'!$P$2 -> TRUE | C104: Workbook | D104: LTFP_Consolidated_Workfile.xlsm
A105: chart_2_show_predictions | B105: ='Chart 2'!$Q$2 -> FALSE | C105: Workbook | D105: LTFP_Consolidated_Workfile.xlsm
A106: chart_2_years | B106: =IF(chart_2_show_actuals,IF(chart_2_show_predictions,chart_2_years_all,chart_2_years_actuals),IF(chart_2_show_predictions,chart_2_years_predictions,chart_2_years_10_years)) ->  | C106: Workbook | D106: LTFP_Consolidated_Workfile.xlsm
A107: chart_2_years_10_years | B107: ='Chart Data'!$G$29:$Q$29 ->  | C107: Workbook | D107: LTFP_Consolidated_Workfile.xlsm
A108: chart_2_years_actuals | B108: ='Chart Data'!$C$29:$Q$29 ->  | C108: Workbook | D108: LTFP_Consolidated_Workfile.xlsm
A109: chart_2_years_all | B109: ='Chart Data'!$C$29:$AA$29 ->  | C109: Workbook | D109: LTFP_Consolidated_Workfile.xlsm
A110: chart_2_years_predictions | B110: ='Chart Data'!$G$29:$AA$29 ->  | C110: Workbook | D110: LTFP_Consolidated_Workfile.xlsm
A111: chart_3_1_y_max | B111: ='Chart Data'!$AC$51 -> 11000000 | C111: Workbook | D111: LTFP_Consolidated_Workfile.xlsm
A112: chart_3_1_y_min | B112: ='Chart Data'!$AD$51 -> -2000000 | C112: Workbook | D112: LTFP_Consolidated_Workfile.xlsm
A113: chart_3_2_y_max | B113: ='Chart Data'!$AF$53 -> 0 | C113: Workbook | D113: LTFP_Consolidated_Workfile.xlsm
A114: chart_3_2_y_min | B114: ='Chart Data'!$AG$53 -> 0 | C114: Workbook | D114: LTFP_Consolidated_Workfile.xlsm
A115: chart_3_3_y_max | B115: ='Chart Data'!$AI$55 -> 0 | C115: Workbook | D115: LTFP_Consolidated_Workfile.xlsm
A116: chart_3_3_y_min | B116: ='Chart Data'!$AJ$55 -> 0 | C116: Workbook | D116: LTFP_Consolidated_Workfile.xlsm
A117: chart_4_1_y_max | B117: ='Chart Data'!$AC$72 -> 1800000 | C117: Workbook | D117: LTFP_Consolidated_Workfile.xlsm
A118: chart_4_1_y_min | B118: ='Chart Data'!$AD$72 -> -4000000 | C118: Workbook | D118: LTFP_Consolidated_Workfile.xlsm
A119: chart_4_2_y_max | B119: ='Chart Data'!$AF$74 -> 0 | C119: Workbook | D119: LTFP_Consolidated_Workfile.xlsm
A120: chart_4_2_y_min | B120: ='Chart Data'!$AG$74 -> 0 | C120: Workbook | D120: LTFP_Consolidated_Workfile.xlsm
A121: chart_4_3_y_max | B121: ='Chart Data'!$AI$76 -> 0 | C121: Workbook | D121: LTFP_Consolidated_Workfile.xlsm
A122: chart_4_3_y_min | B122: ='Chart Data'!$AJ$76 -> 0 | C122: Workbook | D122: LTFP_Consolidated_Workfile.xlsm
A123: chart_5_1_y_max | B123: ='Chart Data'!$AC$662 -> 2 | C123: Workbook | D123: LTFP_Consolidated_Workfile.xlsm
A124: chart_5_1_y_min | B124: ='Chart Data'!$AD$662 -> 0.05 | C124: Workbook | D124: LTFP_Consolidated_Workfile.xlsm
A125: chart_5_2_y_max | B125: ='Chart Data'!$AF$664 -> 0 | C125: Workbook | D125: LTFP_Consolidated_Workfile.xlsm
A126: chart_5_2_y_min | B126: ='Chart Data'!$AG$664 -> 0 | C126: Workbook | D126: LTFP_Consolidated_Workfile.xlsm
A127: chart_5_3_y_max | B127: ='Chart Data'!$AI$666 -> 0 | C127: Workbook | D127: LTFP_Consolidated_Workfile.xlsm
A128: chart_5_3_y_min | B128: ='Chart Data'!$AJ$666 -> 0 | C128: Workbook | D128: LTFP_Consolidated_Workfile.xlsm
A129: chart_6_1_y_max | B129: ='Chart Data'!$AC$692 -> 0.054 | C129: Workbook | D129: LTFP_Consolidated_Workfile.xlsm
A130: chart_6_1_y_min | B130: ='Chart Data'!$AD$692 -> 0.03 | C130: Workbook | D130: LTFP_Consolidated_Workfile.xlsm
A131: chart_6_2_y_max | B131: ='Chart Data'!$AF$694 -> 0 | C131: Workbook | D131: LTFP_Consolidated_Workfile.xlsm
A132: chart_6_2_y_min | B132: ='Chart Data'!$AG$694 -> 0 | C132: Workbook | D132: LTFP_Consolidated_Workfile.xlsm
A133: chart_6_3_y_max | B133: ='Chart Data'!$AI$696 -> 0 | C133: Workbook | D133: LTFP_Consolidated_Workfile.xlsm
A134: chart_6_3_y_min | B134: ='Chart Data'!$AJ$696 -> 0 | C134: Workbook | D134: LTFP_Consolidated_Workfile.xlsm
A135: chart_7_1_y_max | B135: ='Chart Data'!$AC$722 -> 0.51 | C135: Workbook | D135: LTFP_Consolidated_Workfile.xlsm
A136: chart_7_1_y_min | B136: ='Chart Data'!$AD$722 -> 0.3 | C136: Workbook | D136: LTFP_Consolidated_Workfile.xlsm
A137: chart_7_2_y_max | B137: ='Chart Data'!$AF$724 -> 0 | C137: Workbook | D137: LTFP_Consolidated_Workfile.xlsm
A138: chart_7_2_y_min | B138: ='Chart Data'!$AG$724 -> 0 | C138: Workbook | D138: LTFP_Consolidated_Workfile.xlsm
A139: chart_7_3_y_max | B139: ='Chart Data'!$AI$726 -> 0 | C139: Workbook | D139: LTFP_Consolidated_Workfile.xlsm
A140: chart_7_3_y_min | B140: ='Chart Data'!$AJ$726 -> 0 | C140: Workbook | D140: LTFP_Consolidated_Workfile.xlsm
A141: chart_8_1_y_max | B141: ='Chart Data'!$AC$752 -> 0.089 | C141: Workbook | D141: LTFP_Consolidated_Workfile.xlsm
A142: chart_8_1_y_min | B142: ='Chart Data'!$AD$752 -> 0.08 | C142: Workbook | D142: LTFP_Consolidated_Workfile.xlsm
A143: chart_8_2_y_max | B143: ='Chart Data'!$AF$754 -> 0 | C143: Workbook | D143: LTFP_Consolidated_Workfile.xlsm
A144: chart_8_2_y_min | B144: ='Chart Data'!$AG$754 -> 0 | C144: Workbook | D144: LTFP_Consolidated_Workfile.xlsm
A145: chart_8_3_y_max | B145: ='Chart Data'!$AI$756 -> 0 | C145: Workbook | D145: LTFP_Consolidated_Workfile.xlsm
A146: chart_8_3_y_min | B146: ='Chart Data'!$AJ$756 -> 0 | C146: Workbook | D146: LTFP_Consolidated_Workfile.xlsm
A147: chart_9_1_y_max | B147: ='Chart Data'!$AC$782 -> 0.032 | C147: Workbook | D147: LTFP_Consolidated_Workfile.xlsm
A148: chart_9_1_y_min | B148: ='Chart Data'!$AD$782 -> 0 | C148: Workbook | D148: LTFP_Consolidated_Workfile.xlsm
A149: chart_9_2_y_max | B149: ='Chart Data'!$AF$784 -> 0 | C149: Workbook | D149: LTFP_Consolidated_Workfile.xlsm
A150: chart_9_2_y_min | B150: ='Chart Data'!$AG$784 -> 0 | C150: Workbook | D150: LTFP_Consolidated_Workfile.xlsm
A151: chart_9_3_y_max | B151: ='Chart Data'!$AI$786 -> 0 | C151: Workbook | D151: LTFP_Consolidated_Workfile.xlsm
A152: chart_9_3_y_min | B152: ='Chart Data'!$AJ$786 -> 0 | C152: Workbook | D152: LTFP_Consolidated_Workfile.xlsm
A153: charts_consolidated | B153: =Charts!$B$4 -> 0 | C153: Workbook | D153: LTFP_Consolidated_Workfile.xlsm
A154: charts_y_axis | B154: =Charts!$Y$2 -> TRUE | C154: Workbook | D154: LTFP_Consolidated_Workfile.xlsm
A155: checklist_consolidated_main | B155: =Checklist!$A$1 -> 0 | C155: Workbook | D155: LTFP_Consolidated_Workfile.xlsm
A156: consol_calculate_database | B156: ='Cover Page'!$K$85 -> 0 | C156: Workbook | D156: LTFP_Consolidated_Workfile.xlsm
A157: consol_checklist_other1_area1 | B157: =Checklist!$106:$133 ->  | C157: Workbook | D157: LTFP_Consolidated_Workfile.xlsm
A158: consol_checklist_other1_area10 | B158: =Checklist!$367:$367 -> Other 1 Fund | C158: Workbook | D158: LTFP_Consolidated_Workfile.xlsm
A159: consol_checklist_other1_area11 | B159: =Checklist!$391:$391 -> Other 1 Fund | C159: Workbook | D159: LTFP_Consolidated_Workfile.xlsm
A160: consol_checklist_other1_area2 | B160: =Checklist!$229:$238 ->  | C160: Workbook | D160: LTFP_Consolidated_Workfile.xlsm
A161: consol_checklist_other1_area3 | B161: =Checklist!$16:$16 -> Other 1 Fund | C161: Workbook | D161: LTFP_Consolidated_Workfile.xlsm
A162: consol_checklist_other1_area4 | B162: =Checklist!$267:$267 -> Net Assets balance to Equity - Other 1 Fund | C162: Workbook | D162: LTFP_Consolidated_Workfile.xlsm
A163: consol_checklist_other1_area5 | B163: =Checklist!$275:$275 -> No Bank Overdraft amount in Balance Sheet - Other 1 Fund | C163: Workbook | D163: LTFP_Consolidated_Workfile.xlsm
A164: consol_checklist_other1_area6 | B164: =Checklist!$309:$309 -> No negative amounts in Balance Sheet - Other 1 Fund | C164: Workbook | D164: LTFP_Consolidated_Workfile.xlsm
A165: consol_checklist_other1_area7 | B165: =Checklist!$336:$336 -> No negative amounts in Income Statement - Other 1 Fund | C165: Workbook | D165: LTFP_Consolidated_Workfile.xlsm
A166: consol_checklist_other1_area8 | B166: =Checklist!$347:$347 -> Other 1 Fund | C166: Workbook | D166: LTFP_Consolidated_Workfile.xlsm
A167: consol_checklist_other1_area9 | B167: =Checklist!$358:$358 -> Other 1 Fund | C167: Workbook | D167: LTFP_Consolidated_Workfile.xlsm
A168: consol_checklist_other2_area1 | B168: =Checklist!$134:$161 ->  | C168: Workbook | D168: LTFP_Consolidated_Workfile.xlsm
A169: consol_checklist_other2_area10 | B169: =Checklist!$368:$368 -> Other 2 Fund | C169: Workbook | D169: LTFP_Consolidated_Workfile.xlsm
A170: consol_checklist_other2_area11 | B170: =Checklist!$392:$392 -> Other 2 Fund | C170: Workbook | D170: LTFP_Consolidated_Workfile.xlsm
A171: consol_checklist_other2_area2 | B171: =Checklist!$239:$248 ->  | C171: Workbook | D171: LTFP_Consolidated_Workfile.xlsm
A172: consol_checklist_other2_area3 | B172: =Checklist!$17:$17 -> Other 2 Fund | C172: Workbook | D172: LTFP_Consolidated_Workfile.xlsm
A173: consol_checklist_other2_area4 | B173: =Checklist!$268:$268 -> Net Assets balance to Equity - Other 2 Fund | C173: Workbook | D173: LTFP_Consolidated_Workfile.xlsm
A174: consol_checklist_other2_area5 | B174: =Checklist!$276:$276 -> No Bank Overdraft amount in Balance Sheet - Other 2 Fund | C174: Workbook | D174: LTFP_Consolidated_Workfile.xlsm
A175: consol_checklist_other2_area6 | B175: =Checklist!$310:$310 -> No negative amounts in Balance Sheet - Other 2 Fund | C175: Workbook | D175: LTFP_Consolidated_Workfile.xlsm
A176: consol_checklist_other2_area7 | B176: =Checklist!$337:$337 -> No negative amounts in Income Statement - Other 2 Fund | C176: Workbook | D176: LTFP_Consolidated_Workfile.xlsm
A177: consol_checklist_other2_area8 | B177: =Checklist!$348:$348 -> Other 2 Fund | C177: Workbook | D177: LTFP_Consolidated_Workfile.xlsm
A178: consol_checklist_other2_area9 | B178: =Checklist!$359:$359 -> Other 2 Fund | C178: Workbook | D178: LTFP_Consolidated_Workfile.xlsm
A179: consol_checklist_other3_area1 | B179: =Checklist!$162:$189 -> 0 | C179: Workbook | D179: LTFP_Consolidated_Workfile.xlsm
A180: consol_checklist_other3_area10 | B180: =Checklist!$369:$369 -> Other 3 Fund | C180: Workbook | D180: LTFP_Consolidated_Workfile.xlsm
A181: consol_checklist_other3_area11 | B181: =Checklist!$393:$393 -> Other 3 Fund | C181: Workbook | D181: LTFP_Consolidated_Workfile.xlsm
A182: consol_checklist_other3_area2 | B182: =Checklist!$249:$258 ->  | C182: Workbook | D182: LTFP_Consolidated_Workfile.xlsm
A183: consol_checklist_other3_area3 | B183: =Checklist!$18:$18 -> Other 3 Fund | C183: Workbook | D183: LTFP_Consolidated_Workfile.xlsm
A184: consol_checklist_other3_area4 | B184: =Checklist!$269:$269 -> Net Assets balance to Equity - Other 3 Fund | C184: Workbook | D184: LTFP_Consolidated_Workfile.xlsm
A185: consol_checklist_other3_area5 | B185: =Checklist!$277:$277 -> No Bank Overdraft amount in Balance Sheet - Other 3 Fund | C185: Workbook | D185: LTFP_Consolidated_Workfile.xlsm
A186: consol_checklist_other3_area6 | B186: =Checklist!$311:$311 -> No negative amounts in Balance Sheet - Other 3 Fund | C186: Workbook | D186: LTFP_Consolidated_Workfile.xlsm
A187: consol_checklist_other3_area7 | B187: =Checklist!$338:$338 -> No negative amounts in Income Statement - Other 3 Fund | C187: Workbook | D187: LTFP_Consolidated_Workfile.xlsm
A188: consol_checklist_other3_area8 | B188: =Checklist!$349:$349 -> Other 3 Fund | C188: Workbook | D188: LTFP_Consolidated_Workfile.xlsm
A189: consol_checklist_other3_area9 | B189: =Checklist!$360:$360 -> Other 3 Fund | C189: Workbook | D189: LTFP_Consolidated_Workfile.xlsm
A190: consol_checklist_sewer_area1 | B190: =Checklist!$78:$105 ->  | C190: Workbook | D190: LTFP_Consolidated_Workfile.xlsm
A191: consol_checklist_sewer_area10 | B191: =Checklist!$366:$366 -> Sewer Fund | C191: Workbook | D191: LTFP_Consolidated_Workfile.xlsm
A192: consol_checklist_sewer_area11 | B192: =Checklist!$390:$390 -> Sewer Fund | C192: Workbook | D192: LTFP_Consolidated_Workfile.xlsm
A193: consol_checklist_sewer_area2 | B193: =Checklist!$219:$228 ->  | C193: Workbook | D193: LTFP_Consolidated_Workfile.xlsm
A194: consol_checklist_sewer_area3 | B194: =Checklist!$15:$15 -> Sewer Fund | C194: Workbook | D194: LTFP_Consolidated_Workfile.xlsm
A195: consol_checklist_sewer_area4 | B195: =Checklist!$266:$266 -> Net Assets balance to Equity - Sewer Fund | C195: Workbook | D195: LTFP_Consolidated_Workfile.xlsm
A196: consol_checklist_sewer_area5 | B196: =Checklist!$274:$274 -> No Bank Overdraft amount in Balance Sheet - Sewer Fund | C196: Workbook | D196: LTFP_Consolidated_Workfile.xlsm
A197: consol_checklist_sewer_area6 | B197: =Checklist!$308:$308 -> No negative amounts in Balance Sheet - Sewer Fund | C197: Workbook | D197: LTFP_Consolidated_Workfile.xlsm
A198: consol_checklist_sewer_area7 | B198: =Checklist!$335:$335 -> No negative amounts in Income Statement - Sewer Fund | C198: Workbook | D198: LTFP_Consolidated_Workfile.xlsm
A199: consol_checklist_sewer_area8 | B199: =Checklist!$346:$346 -> Sewer Fund | C199: Workbook | D199: LTFP_Consolidated_Workfile.xlsm
A200: consol_checklist_sewer_area9 | B200: =Checklist!$357:$357 -> Sewer Fund | C200: Workbook | D200: LTFP_Consolidated_Workfile.xlsm
... 185 more rows

Sheet Check Range names (hidden)

Sheet Cover Page
A3: Bellingen Shire Council
A5: ="10 Year Financial Plan for the Years ending 30 June "&'Chart Data'!Q8 -> 10 Year Financial Plan for the Years ending 30 June 2026
C11: Scenario Name: | G11: Model 1 - Service Levels Maintained
C13: General Fund | G13: =""&PROPER([1]!general_scenario_name) -> Model 1 - Service Levels Maintained
C14: Water Fund | G14: =IF(water_fund_included=TRUE,PROPER([2]!water_scenario_name),"< Fund not included >") -> < Enter Scenario Name On Cover Sheet >
C15: Sewer Fund | G15: =IF(Sewer_fund_included=TRUE,PROPER([3]!sewer_scenario_name),"< Fund not included >") -> < Enter Scenario Name On Cover Sheet >
C16: Other 1 Fund | G16: < Fund not included >
C17: Other 2 Fund | G17: < Fund not included >
C18: Other 3 Fund | G18: < Fund not included >
K73: hide this column
K75: =IF(K76=2,TRUE,FALSE) -> FALSE
K76: 1
K78: FALSE
C138: Select what Funds are included in Consolidated Fund:
K140: TRUE
K143: TRUE | M143: Select if the Other Funds are externally restricted in Consolidated Fund:
G145: =consol_Other1_name -> Other 1 Fund | R145: =consol_Other1_name -> Other 1 Fund
K146: FALSE | V146: FALSE
G148: =consol_Other2_name -> Other 2 Fund | R148: =consol_Other2_name -> Other 2 Fund
K149: FALSE | V149: FALSE
G151: =consol_Other3_name -> Other 3 Fund | R151: =consol_Other3_name -> Other 3 Fund
K152: FALSE | V152: FALSE

Sheet year (hidden)
B4: Starting Year: | D4: 2016

Sheet Checklist
C1: Overall | D1: =Starting_year-1&"/"&RIGHT(Starting_year,2) -> 2015/16 | E1: =Starting_year&"/"&RIGHT(Starting_year+1,2) -> 2016/17 | F1: =Starting_year+1&"/"&RIGHT(Starting_year+2,2) -> 2017/18 | G1: =Starting_year+2&"/"&RIGHT(Starting_year+3,2) -> 2018/19 | H1: =Starting_year+3&"/"&RIGHT(Starting_year+4,2) -> 2019/20 | I1: =Starting_year+4&"/"&RIGHT(Starting_year+5,2) -> 2020/21 | J1: =Starting_year+5&"/"&RIGHT(Starting_year+6,2) -> 2021/22 | K1: =Starting_year+6&"/"&RIGHT(Starting_year+7,2) -> 2022/23 | L1: =Starting_year+7&"/"&RIGHT(Starting_year+8,2) -> 2023/24 | M1: =Starting_year+8&"/"&RIGHT(Starting_year+9,2) -> 2024/25 | N1: =Starting_year+9&"/"&RIGHT(Starting_year+10,2) -> 2025/26 | BA1: =(consol_GF_name) -> General Fund | CA1: =(consol_WF_name) -> Water Fund | DA1: =(consol_SF_name) -> Sewer Fund
A3: This workfile - Consolidated Workfile - Reserve Schedules
A5: Consolidated Workfile | B5: Reserve Schedules have been updated | C5: =IF(OR(internal_reserve_schedule_update_consol<>"",external_reserve_schedule_update_consol<>""),-2,1) -> 1 | D5: =IF(C5=1,"","Changes have been made to the Reserve Schedules in the Consolidated") -> 
D6: =IF(C5=1,"","working file but the Schedules have not been updated in this file.") -> 
D7: =IF(C5=1,"","To update the Schedules click on the button ""Update Reserve Schedules"".") -> 
A10: Database calculation
E11: Rounded | F11: Rounded | G11: Rounded
B12: The setting for the database calculation for each fund is as following: | C12: Cents | D12: Full $ | E12: 10 | F12: 100 | G12: 1000
B13: =""&PROPER(consol_GF_name) -> General Fund | C13: =IF([1]!general_calculate_database=1,1,"") -> 1 | D13: =IF([1]!general_calculate_database=2,1,"") ->  | E13: =IF([1]!general_calculate_database=3,1,"") ->  | F13: =IF([1]!general_calculate_database=4,1,"") ->  | G13: =IF([1]!general_calculate_database=5,1,"") ->  | I13: =IF(H19>1,"Ensure the setting for the database calculation is the same in each fund.","") -> 
B14: =""&PROPER(consol_WF_name) -> Water Fund | C14: =IF(water_fund_included=FALSE,"",IF([2]!water_calculate_database=1,1,"")) -> 1 | D14: =IF(water_fund_included=FALSE,"",IF([2]!water_calculate_database=2,1,"")) ->  | E14: =IF(water_fund_included=FALSE,"",IF([2]!water_calculate_database=3,1,"")) ->  | F14: =IF(water_fund_included=FALSE,"",IF([2]!water_calculate_database=4,1,"")) ->  | G14: =IF(water_fund_included=FALSE,"",IF([2]!water_calculate_database=5,1,"")) -> 
B15: =""&PROPER(consol_SF_name) -> Sewer Fund | C15: =IF(Sewer_fund_included=FALSE,"",IF([3]!sewer_calculate_database=1,1,"")) -> 1 | D15: =IF(Sewer_fund_included=FALSE,"",IF([3]!sewer_calculate_database=2,1,"")) ->  | E15: =IF(Sewer_fund_included=FALSE,"",IF([3]!sewer_calculate_database=3,1,"")) ->  | F15: =IF(Sewer_fund_included=FALSE,"",IF([3]!sewer_calculate_database=4,1,"")) ->  | G15: =IF(Sewer_fund_included=FALSE,"",IF([3]!sewer_calculate_database=5,1,"")) -> 
B16: =""&PROPER(consol_Other1_name) -> Other 1 Fund
B17: =""&PROPER(consol_Other2_name) -> Other 2 Fund
B18: =""&PROPER(consol_Other3_name) -> Other 3 Fund
C19: =IF(COUNTIF(C13:C18,1)>0,"x","") -> x | D19: =IF(COUNTIF(D13:D18,1)>0,"x","") ->  | H19: =COUNTIF(C19:G19,"x") -> 1
A22: Database updated & Data Integrity
A24: =PROPER(consol_GF_name)&" workfile" -> General Fund workfile | B24: =[1]Checklist!$B5 -> General Fund Database has been updated | C24: =[1]Checklist!$C5 -> 1 | D24: =[1]Checklist!$D5 -> 
D25: =[1]Checklist!$D6 -> 
D26: =[1]Checklist!$D7 -> 
A28: =PROPER(consol_GF_name)&" workfile" -> General Fund workfile | B28: =[1]Checklist!$B9 -> Integrity Check has been run | C28: =[1]Checklist!$C9 -> 1 | D28: =[1]Checklist!$D9 -> 
D29: =[1]Checklist!$D10 -> 
D30: =[1]Checklist!$D11 -> 
A32: =PROPER(consol_GF_name)&" workfile" -> General Fund workfile | B32: =[1]Checklist!$B13 -> G/L Table has been updated | C32: =[1]Checklist!$C13 -> 1 | D32: =[1]Checklist!$D13 -> 
D33: =[1]Checklist!$D14 -> 
D34: =[1]Checklist!$D15 -> 
A36: =PROPER(consol_GF_name)&" workfile" -> General Fund workfile | B36: =[1]Checklist!$B17 -> COA Tables have been updated | C36: =[1]Checklist!$C17 -> 1 | D36: =[1]Checklist!$D17 -> 
D37: =[1]Checklist!$D18 -> 
D38: =[1]Checklist!$D19 -> 
A40: =PROPER(consol_GF_name)&" workfile" -> General Fund workfile | B40: =[1]Checklist!$B21 -> Reserve Schedules have been updated | C40: =[1]Checklist!$C21 -> 1 | D40: =[1]Checklist!$D21 -> 
D41: =[1]Checklist!$D22 -> 
D42: =[1]Checklist!$D23 -> 
A44: =PROPER(consol_GF_name)&" workfile" -> General Fund workfile | B44: =[1]Checklist!$B$25 -> Global changes % in matrix agree to database (i.e. database has been updated for global changes %). | C44: =[1]Checklist!$C$25 -> 1 | D44: =[1]Checklist!$D25 -> 
D45: =[1]Checklist!$D26 -> 
A47: =PROPER(consol_GF_name)&" workfile" -> General Fund workfile | B47: =[1]Checklist!$B$28 -> Population changes % in matrix agree to database (i.e. database has been updated for population changes %). | C47: =[1]Checklist!$C$28 -> 1 | D47: =[1]Checklist!$D28 -> 
D48: =[1]Checklist!$D29 -> 
A52: =PROPER(consol_WF_name)&" workfile" -> Water Fund workfile | B52: =[2]Checklist!$B5 -> Water Fund Database has been updated | C52: =[2]Checklist!$C5 -> 1 | D52: =[2]Checklist!$D5 -> 
D53: =[2]Checklist!$D6 -> 
D54: =[2]Checklist!$D7 -> 
A56: =PROPER(consol_WF_name)&" workfile" -> Water Fund workfile | B56: =[2]Checklist!$B9 -> Integrity Check has been run | C56: =[2]Checklist!$C9 -> 1 | D56: =[2]Checklist!$D9 -> 
D57: =[2]Checklist!$D10 -> 
D58: =[2]Checklist!$D11 -> 
A60: =PROPER(consol_WF_name)&" workfile" -> Water Fund workfile | B60: =[2]Checklist!$B13 -> G/L Table has been updated | C60: =[2]Checklist!$C13 -> 1 | D60: =[2]Checklist!$D13 -> 
D61: =[2]Checklist!$D14 -> 
D62: =[2]Checklist!$D15 -> 
A64: =PROPER(consol_WF_name)&" workfile" -> Water Fund workfile | B64: =[2]Checklist!$B17 -> COA Tables have been updated | C64: =[2]Checklist!$C17 -> 1 | D64: =[2]Checklist!$D17 -> 
D65: =[2]Checklist!$D18 -> 
D66: =[2]Checklist!$D19 -> 
A68: =PROPER(consol_WF_name)&" workfile" -> Water Fund workfile | B68: =[2]Checklist!$B21 -> Reserve Schedules have been updated | C68: =[2]Checklist!$C21 -> 1 | D68: =[2]Checklist!$D21 -> 
D69: =[2]Checklist!$D22 -> 
D70: =[2]Checklist!$D23 -> 
A72: =PROPER(consol_WF_name)&" workfile" -> Water Fund workfile | B72: =[2]Checklist!$B25 -> Global changes % in matrix agree to database (i.e. database has been updated for global changes %). | C72: =[2]Checklist!$C25 -> 1 | D72: =[2]Checklist!$D25 -> 
D73: =[2]Checklist!$D26 -> 
A75: =PROPER(consol_WF_name)&" workfile" -> Water Fund workfile | B75: =[2]Checklist!$B28 -> Population changes % in matrix agree to database (i.e. database has been updated for population changes %). | C75: =[2]Checklist!$C28 -> 1 | D75: =[2]Checklist!$D28 -> 
D76: =[2]Checklist!$D29 -> 
A80: =PROPER(consol_SF_name)&" workfile" -> Sewer Fund workfile | B80: =[3]Checklist!$B5 -> Sewer Fund Database has been updated | C80: =[3]Checklist!$C5 -> 1 | D80: =[3]Checklist!$D5 -> 
D81: =[3]Checklist!$D6 -> 
D82: =[3]Checklist!$D7 -> 
A84: =PROPER(consol_SF_name)&" workfile" -> Sewer Fund workfile | B84: =[3]Checklist!$B9 -> Integrity Check has been run | C84: =[3]Checklist!$C9 -> 1 | D84: =[3]Checklist!$D9 -> 
D85: =[3]Checklist!$D10 -> 
D86: =[3]Checklist!$D11 -> 
A88: =PROPER(consol_SF_name)&" workfile" -> Sewer Fund workfile | B88: =[3]Checklist!$B13 -> G/L Table has been updated | C88: =[3]Checklist!$C13 -> 1 | D88: =[3]Checklist!$D13 -> 
D89: =[3]Checklist!$D14 -> 
D90: =[3]Checklist!$D15 -> 
A92: =PROPER(consol_SF_name)&" workfile" -> Sewer Fund workfile | B92: =[3]Checklist!$B17 -> COA Tables have been updated | C92: =[3]Checklist!$C17 -> 1 | D92: =[3]Checklist!$D17 -> 
D93: =[3]Checklist!$D18 -> 
D94: =[3]Checklist!$D19 -> 
A96: =PROPER(consol_SF_name)&" workfile" -> Sewer Fund workfile | B96: =[3]Checklist!$B21 -> Reserve Schedules have been updated | C96: =[3]Checklist!$C21 -> 1 | D96: =[3]Checklist!$D21 -> 
D97: =[3]Checklist!$D22 -> 
D98: =[3]Checklist!$D23 -> 
A100: =PROPER(consol_SF_name)&" workfile" -> Sewer Fund workfile | B100: =[3]Checklist!$B25 -> Global changes % in matrix agree to database (i.e. database has been updated for global changes %). | C100: =[3]Checklist!$C25 -> 1 | D100: =[3]Checklist!$D25 -> 
D101: =[3]Checklist!$D26 -> 
A103: =PROPER(consol_SF_name)&" workfile" -> Sewer Fund workfile | B103: =[3]Checklist!$B28 -> Population changes % in matrix agree to database (i.e. database has been updated for population changes %). | C103: =[3]Checklist!$C28 -> 1 | D103: =[3]Checklist!$D28 -> 
D104: =[3]Checklist!$D29 -> 
A108: =PROPER(consol_Other1_name)&" workfile" -> Other 1 Fund workfile | B108: Other 1 Fund Database has been updated | C108: 1
A112: =PROPER(consol_Other1_name)&" workfile" -> Other 1 Fund workfile | B112: Integrity Check has been run | C112: 1
A116: =PROPER(consol_Other1_name)&" workfile" -> Other 1 Fund workfile | B116: G/L Table has been updated | C116: 1
A120: =PROPER(consol_Other1_name)&" workfile" -> Other 1 Fund workfile | B120: COA Tables have been updated | C120: 1
A124: =PROPER(consol_Other1_name)&" workfile" -> Other 1 Fund workfile | B124: Reserve Schedules have been updated | C124: 1
A128: =PROPER(consol_Other1_name)&" workfile" -> Other 1 Fund workfile | B128: Global changes % in matrix agree to database (i.e. database has been updated for global changes %). | C128: 1
A131: =PROPER(consol_Other1_name)&" workfile" -> Other 1 Fund workfile | B131: Population changes % in matrix agree to database (i.e. database has been updated for population changes %). | C131: 1
A136: =PROPER(consol_Other2_name)&" workfile" -> Other 2 Fund workfile | B136: Other 2 Fund Database has been updated | C136: 1
A140: =PROPER(consol_Other2_name)&" workfile" -> Other 2 Fund workfile | B140: Integrity Check has been run | C140: 1
A144: =PROPER(consol_Other2_name)&" workfile" -> Other 2 Fund workfile | B144: G/L Table has been updated | C144: 1
A148: =PROPER(consol_Other2_name)&" workfile" -> Other 2 Fund workfile | B148: COA Tables have been updated | C148: 1
A152: =PROPER(consol_Other2_name)&" workfile" -> Other 2 Fund workfile | B152: Reserve Schedules have been updated | C152: 1
A156: =PROPER(consol_Other2_name)&" workfile" -> Other 2 Fund workfile | B156: Global changes % in matrix agree to database (i.e. database has been updated for global changes %). | C156: 1
A159: =PROPER(consol_Other2_name)&" workfile" -> Other 2 Fund workfile | B159: Population changes % in matrix agree to database (i.e. database has been updated for population changes %). | C159: 1
A164: =PROPER(consol_Other3_name)&" workfile" -> Other 3 Fund workfile | B164: Other 3 Fund Database has been updated | C164: 1
A168: =PROPER(consol_Other3_name)&" workfile" -> Other 3 Fund workfile | B168: Integrity Check has been run | C168: 1
A172: =PROPER(consol_Other3_name)&" workfile" -> Other 3 Fund workfile | B172: G/L Table has been updated | C172: 1
A176: =PROPER(consol_Other3_name)&" workfile" -> Other 3 Fund workfile | B176: COA Tables have been updated | C176: 1
A180: =PROPER(consol_Other3_name)&" workfile" -> Other 3 Fund workfile | B180: Reserve Schedules have been updated | C180: 1
A184: =PROPER(consol_Other3_name)&" workfile" -> Other 3 Fund workfile | B184: Global changes % in matrix agree to database (i.e. database has been updated for global changes %). | C184: 1
A187: =PROPER(consol_Other3_name)&" workfile" -> Other 3 Fund workfile | B187: Population changes % in matrix agree to database (i.e. database has been updated for population changes %). | C187: 1
A192: This workfile - Consolidated Workfile - Base data
A194: Consolidated Workfile | B194: Global changes have been entered | C194: =IF('Global Indexation'!L174=0,"NO","YES") -> YES | E194: =IF('Global Indexation'!B174=0,"NO",0) -> 0 | F194: =IF('Global Indexation'!C174=0,"NO",0) -> 0 | G194: =IF('Global Indexation'!D174=0,"NO",0) -> 0 | H194: =IF('Global Indexation'!E174=0,"NO",0) -> 0 | I194: =IF('Global Indexation'!F174=0,"NO",0) -> 0 | J194: =IF('Global Indexation'!G174=0,"NO",0) -> 0 | K194: =IF('Global Indexation'!H174=0,"NO",0) -> 0 | L194: =IF('Global Indexation'!I174=0,"NO",0) -> 0 | M194: =IF('Global Indexation'!J174=0,"NO",0) -> 0 | N194: =IF('Global Indexation'!K174=0,"NO",0) -> 0
D195: =IF(C194="NO","","Global changes have been entered. To ensure this is correct, go to worksheet """&IF(ISERROR(sheetname_consol(global_changes_consolidated))=TRUE,"<activate macros>",sheetname_consol(global_changes_consolidated))&""".") -> Global changes have been entered. To ensure this is correct, go to worksheet "Global Indexation".
A197: Consolidated Workfile | B197: Population changes have been entered | C197: =IF(AND('Population Indexation'!L174=0,'Population Indexation'!L175=0),"NO",IF(OR(AND('Population Indexation'!L174<>0,'Population Indexation'!L175=0),AND('Population Indexation'!L174=0,'Population Indexation'!L175<>0)),-2,"YES")) -> NO | E197: =IF(AND('Population Indexation'!B174=0,'Population Indexation'!B175=0),"NO",IF(OR(AND('Population Indexation'!B174<>0,'Population Indexation'!B175=0),AND('Population Indexation'!B174=0,'Population Indexation'!B175<>0)),-2,0)) -> NO | F197: =IF(AND('Population Indexation'!C174=0,'Population Indexation'!C175=0),"NO",IF(OR(AND('Population Indexation'!C174<>0,'Population Indexation'!C175=0),AND('Population Indexation'!C174=0,'Population Indexation'!C175<>0)),-2,0)) -> NO | G197: =IF(AND('Population Indexation'!D174=0,'Population Indexation'!D175=0),"NO",IF(OR(AND('Population Indexation'!D174<>0,'Population Indexation'!D175=0),AND('Population Indexation'!D174=0,'Population Indexation'!D175<>0)),-2,0)) -> NO | H197: =IF(AND('Population Indexation'!E174=0,'Population Indexation'!E175=0),"NO",IF(OR(AND('Population Indexation'!E174<>0,'Population Indexation'!E175=0),AND('Population Indexation'!E174=0,'Population Indexation'!E175<>0)),-2,0)) -> NO | I197: =IF(AND('Population Indexation'!F174=0,'Population Indexation'!F175=0),"NO",IF(OR(AND('Population Indexation'!F174<>0,'Population Indexation'!F175=0),AND('Population Indexation'!F174=0,'Population Indexation'!F175<>0)),-2,0)) -> NO | J197: =IF(AND('Population Indexation'!G174=0,'Population Indexation'!G175=0),"NO",IF(OR(AND('Population Indexation'!G174<>0,'Population Indexation'!G175=0),AND('Population Indexation'!G174=0,'Population Indexation'!G175<>0)),-2,0)) -> NO | K197: =IF(AND('Population Indexation'!H174=0,'Population Indexation'!H175=0),"NO",IF(OR(AND('Population Indexation'!H174<>0,'Population Indexation'!H175=0),AND('Population Indexation'!H174=0,'Population Indexation'!H175<>0)),-2,0)) -> NO | L197: =IF(AND('Population Indexation'!I174=0,'Population Indexation'!I175=0),"NO",IF(OR(AND('Population Indexation'!I174<>0,'Population Indexation'!I175=0),AND('Population Indexation'!I174=0,'Population Indexation'!I175<>0)),-2,0)) -> NO | M197: =IF(AND('Population Indexation'!J174=0,'Population Indexation'!J175=0),"NO",IF(OR(AND('Population Indexation'!J174<>0,'Population Indexation'!J175=0),AND('Population Indexation'!J174=0,'Population Indexation'!J175<>0)),-2,0)) -> NO | N197: =IF(AND('Population Indexation'!K174=0,'Population Indexation'!K175=0),"NO",IF(OR(AND('Population Indexation'!K174<>0,'Population Indexation'!K175=0),AND('Population Indexation'!K174=0,'Population Indexation'!K175<>0)),-2,0)) -> NO
D198: =IF(C197="NO","",IF(C197=0,"To ensure this is correct, go to the worksheet """&IF(ISERROR(sheetname_consol(population_changes_consolidated))=TRUE,"<activate macros>",sheetname_consol(population_changes_consolidated))&""".",IF(AND('Population Indexation'!L174<>0,'Population Indexation'!L175=0),"Go to the worksheet """&IF(ISERROR(sheetname_consol(population_changes_consolidated))=TRUE,"<activate macros>",sheetname_consol(population_changes_consolidated))&""" and enter actual changes in population or delete impacts on income and expenditure.","Go to the worksheet """&IF(ISERROR(sheetname_consol(population_changes_consolidated))=TRUE,"<activate macros>",sheetname_consol(population_changes_consolidated))&""" and enter impacts on income and expenditure or delete actual changes in population."))) -> 
A201: =PROPER(consol_GF_name)&" workfile" -> General Fund workfile
A203: =PROPER(consol_GF_name)&" workfile" -> General Fund workfile | B203: =[1]Checklist!$B45 -> Individual changes have been entered in the database | D203: =[1]Checklist!D45 -> Indiv %: | E203: =[1]Checklist!E45 -> 1 | F203: =[1]Checklist!F45 -> 1 | G203: =[1]Checklist!G45 -> 1 | H203: =[1]Checklist!H45 -> 1 | I203: =[1]Checklist!I45 -> 1 | J203: =[1]Checklist!J45 -> 1 | K203: =[1]Checklist!K45 -> 1 | L203: =[1]Checklist!L45 -> 1 | M203: =[1]Checklist!M45 -> 1 | N203: =[1]Checklist!N45 -> 1
D204: =[1]Checklist!D46 -> $ recurrent: | E204: =[1]Checklist!E46 -> 1 | F204: =[1]Checklist!F46 -> 1 | G204: =[1]Checklist!G46 -> 1 | H204: =[1]Checklist!H46 -> 1 | I204: =[1]Checklist!I46 -> 1 | J204: =[1]Checklist!J46 -> 1 | K204: =[1]Checklist!K46 -> 1 | L204: =[1]Checklist!L46 -> 1 | M204: =[1]Checklist!M46 -> 1 | N204: =[1]Checklist!N46 -> NO
D205: =[1]Checklist!D47 -> $ one-off: | E205: =[1]Checklist!E47 -> 1 | F205: =[1]Checklist!F47 -> 1 | G205: =[1]Checklist!G47 -> 1 | H205: =[1]Checklist!H47 -> 1 | I205: =[1]Checklist!I47 -> 1 | J205: =[1]Checklist!J47 -> 1 | K205: =[1]Checklist!K47 -> 1 | L205: =[1]Checklist!L47 -> 1 | M205: =[1]Checklist!M47 -> 1 | N205: =[1]Checklist!N47 -> 1
A207: =PROPER(consol_GF_name)&" workfile" -> General Fund workfile | B207: =[1]Checklist!$B49 -> Global changes have been entered | E207: =[1]Checklist!E49 -> NO | F207: =[1]Checklist!F49 -> NO | G207: =[1]Checklist!G49 -> NO | H207: =[1]Checklist!H49 -> NO | I207: =[1]Checklist!I49 -> NO | J207: =[1]Checklist!J49 -> NO | K207: =[1]Checklist!K49 -> NO | L207: =[1]Checklist!L49 -> NO | M207: =[1]Checklist!M49 -> NO | N207: =[1]Checklist!N49 -> NO
A211: =PROPER(consol_WF_name)&" workfile" -> Water Fund workfile
A213: =PROPER(consol_WF_name)&" workfile" -> Water Fund workfile | B213: =[2]Checklist!$B45 -> Individual changes have been entered in the database | D213: =[2]Checklist!D45 -> Indiv %: | E213: =[2]Checklist!E45 -> 1 | F213: =[2]Checklist!F45 -> 1 | G213: =[2]Checklist!G45 -> 1 | H213: =[2]Checklist!H45 -> 1 | I213: =[2]Checklist!I45 -> 1 | J213: =[2]Checklist!J45 -> 1 | K213: =[2]Checklist!K45 -> 1 | L213: =[2]Checklist!L45 -> 1 | M213: =[2]Checklist!M45 -> 1 | N213: =[2]Checklist!N45 -> NO
D214: =[2]Checklist!D46 -> $ recurrent: | E214: =[2]Checklist!E46 -> 1 | F214: =[2]Checklist!F46 -> 1 | G214: =[2]Checklist!G46 -> 1 | H214: =[2]Checklist!H46 -> 1 | I214: =[2]Checklist!I46 -> 1 | J214: =[2]Checklist!J46 -> 1 | K214: =[2]Checklist!K46 -> 1 | L214: =[2]Checklist!L46 -> 1 | M214: =[2]Checklist!M46 -> 1 | N214: =[2]Checklist!N46 -> NO
D215: =[2]Checklist!D47 -> $ one-off: | E215: =[2]Checklist!E47 -> 1 | F215: =[2]Checklist!F47 -> 1 | G215: =[2]Checklist!G47 -> 1 | H215: =[2]Checklist!H47 -> 1 | I215: =[2]Checklist!I47 -> 1 | J215: =[2]Checklist!J47 -> 1 | K215: =[2]Checklist!K47 -> 1 | L215: =[2]Checklist!L47 -> 1 | M215: =[2]Checklist!M47 -> 1 | N215: =[2]Checklist!N47 -> 1
A217: =PROPER(consol_WF_name)&" workfile" -> Water Fund workfile | B217: =[2]Checklist!$B49 -> Global changes have been entered | E217: =[2]Checklist!E49 -> YES | F217: =[2]Checklist!F49 -> YES | G217: =[2]Checklist!G49 -> YES | H217: =[2]Checklist!H49 -> YES | I217: =[2]Checklist!I49 -> YES | J217: =[2]Checklist!J49 -> YES | K217: =[2]Checklist!K49 -> YES | L217: =[2]Checklist!L49 -> YES | M217: =[2]Checklist!M49 -> YES | N217: =[2]Checklist!N49 -> YES
A221: =PROPER(consol_SF_name)&" workfile" -> Sewer Fund workfile
A223: =PROPER(consol_SF_name)&" workfile" -> Sewer Fund workfile | B223: =[3]Checklist!$B45 -> Individual changes have been entered in the database | D223: =[3]Checklist!D45 -> Indiv %: | E223: =[3]Checklist!E45 -> 1 | F223: =[3]Checklist!F45 -> 1 | G223: =[3]Checklist!G45 -> 1 | H223: =[3]Checklist!H45 -> 1 | I223: =[3]Checklist!I45 -> 1 | J223: =[3]Checklist!J45 -> 1 | K223: =[3]Checklist!K45 -> 1 | L223: =[3]Checklist!L45 -> 1 | M223: =[3]Checklist!M45 -> 1 | N223: =[3]Checklist!N45 -> NO
D224: =[3]Checklist!D46 -> $ recurrent: | E224: =[3]Checklist!E46 -> 1 | F224: =[3]Checklist!F46 -> 1 | G224: =[3]Checklist!G46 -> 1 | H224: =[3]Checklist!H46 -> 1 | I224: =[3]Checklist!I46 -> 1 | J224: =[3]Checklist!J46 -> 1 | K224: =[3]Checklist!K46 -> 1 | L224: =[3]Checklist!L46 -> 1 | M224: =[3]Checklist!M46 -> 1 | N224: =[3]Checklist!N46 -> 1
D225: =[3]Checklist!D47 -> $ one-off: | E225: =[3]Checklist!E47 -> 1 | F225: =[3]Checklist!F47 -> 1 | G225: =[3]Checklist!G47 -> 1 | H225: =[3]Checklist!H47 -> 1 | I225: =[3]Checklist!I47 -> 1 | J225: =[3]Checklist!J47 -> 1 | K225: =[3]Checklist!K47 -> 1 | L225: =[3]Checklist!L47 -> 1 | M225: =[3]Checklist!M47 -> 1 | N225: =[3]Checklist!N47 -> 1
A227: =PROPER(consol_SF_name)&" workfile" -> Sewer Fund workfile | B227: =[3]Checklist!$B49 -> Global changes have been entered | E227: =[3]Checklist!E49 -> YES | F227: =[3]Checklist!F49 -> YES | G227: =[3]Checklist!G49 -> YES | H227: =[3]Checklist!H49 -> YES | I227: =[3]Checklist!I49 -> YES | J227: =[3]Checklist!J49 -> YES | K227: =[3]Checklist!K49 -> YES | L227: =[3]Checklist!L49 -> YES | M227: =[3]Checklist!M49 -> YES | N227: =[3]Checklist!N49 -> YES
A231: =PROPER(consol_Other1_name)&" workfile" -> Other 1 Fund workfile
A233: =PROPER(consol_Other1_name)&" workfile" -> Other 1 Fund workfile | B233: Individual changes have been entered in the database | D233: Indiv %: | E233: NO | F233: NO | G233: NO | H233: NO | I233: NO | J233: NO | K233: NO | L233: NO | M233: NO | N233: NO
D234: $ recurrent: | E234: NO | F234: NO | G234: NO | H234: NO | I234: NO | J234: NO | K234: NO | L234: NO | M234: NO | N234: NO
D235: $ one-off: | E235: NO | F235: NO | G235: NO | H235: NO | I235: NO | J235: NO | K235: NO | L235: NO | M235: NO | N235: NO
A237: =PROPER(consol_Other1_name)&" workfile" -> Other 1 Fund workfile | B237: Global changes have been entered | E237: NO | F237: NO | G237: NO | H237: NO | I237: NO | J237: NO | K237: NO | L237: NO | M237: NO | N237: NO
A241: =PROPER(consol_Other2_name)&" workfile" -> Other 2 Fund workfile
A243: =PROPER(consol_Other2_name)&" workfile" -> Other 2 Fund workfile | B243: Individual changes have been entered in the database | D243: Indiv %: | E243: NO | F243: NO | G243: NO | H243: NO | I243: NO | J243: NO | K243: NO | L243: NO | M243: NO | N243: NO
D244: $ recurrent: | E244: NO | F244: NO | G244: NO | H244: NO | I244: NO | J244: NO | K244: NO | L244: NO | M244: NO | N244: NO
D245: $ one-off: | E245: NO | F245: NO | G245: NO | H245: NO | I245: NO | J245: NO | K245: NO | L245: NO | M245: NO | N245: NO
A247: =PROPER(consol_Other2_name)&" workfile" -> Other 2 Fund workfile | B247: Global changes have been entered | E247: NO | F247: NO | G247: NO | H247: NO | I247: NO | J247: NO | K247: NO | L247: NO | M247: NO | N247: NO
A251: =PROPER(consol_Other3_name)&" workfile" -> Other 3 Fund workfile
A253: =PROPER(consol_Other3_name)&" workfile" -> Other 3 Fund workfile | B253: Individual changes have been entered in the database | D253: Indiv %: | E253: NO | F253: NO | G253: NO | H253: NO | I253: NO | J253: NO | K253: NO | L253: NO | M253: NO | N253: NO
D254: $ recurrent: | E254: NO | F254: NO | G254: NO | H254: NO | I254: NO | J254: NO | K254: NO | L254: NO | M254: NO | N254: NO
D255: $ one-off: | E255: NO | F255: NO | G255: NO | H255: NO | I255: NO | J255: NO | K255: NO | L255: NO | M255: NO | N255: NO
A257: =PROPER(consol_Other3_name)&" workfile" -> Other 3 Fund workfile | B257: Global changes have been entered | E257: NO | F257: NO | G257: NO | H257: NO | I257: NO | J257: NO | K257: NO | L257: NO | M257: NO | N257: NO
A261: This workfile - Consolidated Workfile
A263: Balance Sheet | B263: Net Assets balance to Equity - Consolidated | D263: =IF('Balance Sheet'!E$57=0,1,-2) -> 1 | E263: =IF('Balance Sheet'!G$57=0,1,-2) -> 1 | F263: =IF('Balance Sheet'!H$57=0,1,-2) -> 1 | G263: =IF('Balance Sheet'!I$57=0,1,-2) -> 1 | H263: =IF('Balance Sheet'!J$57=0,1,-2) -> 1 | I263: =IF('Balance Sheet'!K$57=0,1,-2) -> 1 | J263: =IF('Balance Sheet'!L$57=0,1,-2) -> 1 | K263: =IF('Balance Sheet'!M$57=0,1,-2) -> 1 | L263: =IF('Balance Sheet'!N$57=0,1,-2) -> 1 | M263: =IF('Balance Sheet'!O$57=0,1,-2) -> 1 | N263: =IF('Balance Sheet'!P$57=0,1,-2) -> 1
B264: ="Net Assets balance to Equity - "&PROPER(consol_GF_name) -> Net Assets balance to Equity - General Fund | D264: =IF('Balance Sheet - General'!E$57=0,1,-2) -> 1 | E264: =IF('Balance Sheet - General'!G$57=0,1,-2) -> 1 | F264: =IF('Balance Sheet - General'!H$57=0,1,-2) -> 1 | G264: =IF('Balance Sheet - General'!I$57=0,1,-2) -> 1 | H264: =IF('Balance Sheet - General'!J$57=0,1,-2) -> 1 | I264: =IF('Balance Sheet - General'!K$57=0,1,-2) -> 1 | J264: =IF('Balance Sheet - General'!L$57=0,1,-2) -> 1 | K264: =IF('Balance Sheet - General'!M$57=0,1,-2) -> 1 | L264: =IF('Balance Sheet - General'!N$57=0,1,-2) -> 1 | M264: =IF('Balance Sheet - General'!O$57=0,1,-2) -> 1 | N264: =IF('Balance Sheet - General'!P$57=0,1,-2) -> 1
B265: ="Net Assets balance to Equity - "&PROPER(consol_WF_name) -> Net Assets balance to Equity - Water Fund | D265: =IF('Balance Sheet - Water'!E$57=0,1,-2) -> 1 | E265: =IF('Balance Sheet - Water'!G$57=0,1,-2) -> 1 | F265: =IF('Balance Sheet - Water'!H$57=0,1,-2) -> 1 | G265: =IF('Balance Sheet - Water'!I$57=0,1,-2) -> 1 | H265: =IF('Balance Sheet - Water'!J$57=0,1,-2) -> 1 | I265: =IF('Balance Sheet - Water'!K$57=0,1,-2) -> 1 | J265: =IF('Balance Sheet - Water'!L$57=0,1,-2) -> 1 | K265: =IF('Balance Sheet - Water'!M$57=0,1,-2) -> 1 | L265: =IF('Balance Sheet - Water'!N$57=0,1,-2) -> 1 | M265: =IF('Balance Sheet - Water'!O$57=0,1,-2) -> 1 | N265: =IF('Balance Sheet - Water'!P$57=0,1,-2) -> 1
B266: ="Net Assets balance to Equity - "&PROPER(consol_SF_name) -> Net Assets balance to Equity - Sewer Fund | D266: =IF('Balance Sheet - Sewer'!E$57=0,1,-2) -> 1 | E266: =IF('Balance Sheet - Sewer'!G$57=0,1,-2) -> 1 | F266: =IF('Balance Sheet - Sewer'!H$57=0,1,-2) -> 1 | G266: =IF('Balance Sheet - Sewer'!I$57=0,1,-2) -> 1 | H266: =IF('Balance Sheet - Sewer'!J$57=0,1,-2) -> 1 | I266: =IF('Balance Sheet - Sewer'!K$57=0,1,-2) -> 1 | J266: =IF('Balance Sheet - Sewer'!L$57=0,1,-2) -> 1 | K266: =IF('Balance Sheet - Sewer'!M$57=0,1,-2) -> 1 | L266: =IF('Balance Sheet - Sewer'!N$57=0,1,-2) -> 1 | M266: =IF('Balance Sheet - Sewer'!O$57=0,1,-2) -> 1 | N266: =IF('Balance Sheet - Sewer'!P$57=0,1,-2) -> 1
B267: ="Net Assets balance to Equity - "&PROPER(consol_Other1_name) -> Net Assets balance to Equity - Other 1 Fund | D267: =IF('Balance Sheet - Other 1'!E$57=0,1,-2) -> 1 | E267: =IF('Balance Sheet - Other 1'!G$57=0,1,-2) -> 1 | F267: =IF('Balance Sheet - Other 1'!H$57=0,1,-2) -> 1 | G267: =IF('Balance Sheet - Other 1'!I$57=0,1,-2) -> 1 | H267: =IF('Balance Sheet - Other 1'!J$57=0,1,-2) -> 1 | I267: =IF('Balance Sheet - Other 1'!K$57=0,1,-2) -> 1 | J267: =IF('Balance Sheet - Other 1'!L$57=0,1,-2) -> 1 | K267: =IF('Balance Sheet - Other 1'!M$57=0,1,-2) -> 1 | L267: =IF('Balance Sheet - Other 1'!N$57=0,1,-2) -> 1 | M267: =IF('Balance Sheet - Other 1'!O$57=0,1,-2) -> 1 | N267: =IF('Balance Sheet - Other 1'!P$57=0,1,-2) -> 1
B268: ="Net Assets balance to Equity - "&PROPER(consol_Other2_name) -> Net Assets balance to Equity - Other 2 Fund | D268: =IF('Balance Sheet - Other 2'!E$57=0,1,-2) -> 1 | E268: =IF('Balance Sheet - Other 2'!G$57=0,1,-2) -> 1 | F268: =IF('Balance Sheet - Other 2'!H$57=0,1,-2) -> 1 | G268: =IF('Balance Sheet - Other 2'!I$57=0,1,-2) -> 1 | H268: =IF('Balance Sheet - Other 2'!J$57=0,1,-2) -> 1 | I268: =IF('Balance Sheet - Other 2'!K$57=0,1,-2) -> 1 | J268: =IF('Balance Sheet - Other 2'!L$57=0,1,-2) -> 1 | K268: =IF('Balance Sheet - Other 2'!M$57=0,1,-2) -> 1 | L268: =IF('Balance Sheet - Other 2'!N$57=0,1,-2) -> 1 | M268: =IF('Balance Sheet - Other 2'!O$57=0,1,-2) -> 1 | N268: =IF('Balance Sheet - Other 2'!P$57=0,1,-2) -> 1
B269: ="Net Assets balance to Equity - "&PROPER(consol_Other3_name) -> Net Assets balance to Equity - Other 3 Fund | D269: =IF('Balance Sheet - Other 3'!E$57=0,1,-2) -> 1 | E269: =IF('Balance Sheet - Other 3'!G$57=0,1,-2) -> 1 | F269: =IF('Balance Sheet - Other 3'!H$57=0,1,-2) -> 1 | G269: =IF('Balance Sheet - Other 3'!I$57=0,1,-2) -> 1 | H269: =IF('Balance Sheet - Other 3'!J$57=0,1,-2) -> 1 | I269: =IF('Balance Sheet - Other 3'!K$57=0,1,-2) -> 1 | J269: =IF('Balance Sheet - Other 3'!L$57=0,1,-2) -> 1 | K269: =IF('Balance Sheet - Other 3'!M$57=0,1,-2) -> 1 | L269: =IF('Balance Sheet - Other 3'!N$57=0,1,-2) -> 1 | M269: =IF('Balance Sheet - Other 3'!O$57=0,1,-2) -> 1 | N269: =IF('Balance Sheet - Other 3'!P$57=0,1,-2) -> 1
B271: No Bank Overdraft amount in Balance Sheet - Consolidated | D271: =IF('Balance Sheet'!E$32=0,1,-2) -> 1 | E271: =IF('Balance Sheet'!G$32=0,1,-2) -> 1 | F271: =IF('Balance Sheet'!H$32=0,1,-2) -> 1 | G271: =IF('Balance Sheet'!I$32=0,1,-2) -> 1 | H271: =IF('Balance Sheet'!J$32=0,1,-2) -> 1 | I271: =IF('Balance Sheet'!K$32=0,1,-2) -> 1 | J271: =IF('Balance Sheet'!L$32=0,1,-2) -> 1 | K271: =IF('Balance Sheet'!M$32=0,1,-2) -> 1 | L271: =IF('Balance Sheet'!N$32=0,1,-2) -> 1 | M271: =IF('Balance Sheet'!O$32=0,1,-2) -> 1 | N271: =IF('Balance Sheet'!P$32=0,1,-2) -> 1
B272: ="No Bank Overdraft amount in Balance Sheet - "&PROPER(consol_GF_name) -> No Bank Overdraft amount in Balance Sheet - General Fund | D272: =IF('Balance Sheet - General'!E$32=0,1,-2) -> 1 | E272: =IF('Balance Sheet - General'!G$32=0,1,-2) -> 1 | F272: =IF('Balance Sheet - General'!H$32=0,1,-2) -> 1 | G272: =IF('Balance Sheet - General'!I$32=0,1,-2) -> 1 | H272: =IF('Balance Sheet - General'!J$32=0,1,-2) -> 1 | I272: =IF('Balance Sheet - General'!K$32=0,1,-2) -> 1 | J272: =IF('Balance Sheet - General'!L$32=0,1,-2) -> 1 | K272: =IF('Balance Sheet - General'!M$32=0,1,-2) -> 1 | L272: =IF('Balance Sheet - General'!N$32=0,1,-2) -> 1 | M272: =IF('Balance Sheet - General'!O$32=0,1,-2) -> 1 | N272: =IF('Balance Sheet - General'!P$32=0,1,-2) -> 1
B273: ="No Bank Overdraft amount in Balance Sheet - "&PROPER(consol_WF_name) -> No Bank Overdraft amount in Balance Sheet - Water Fund | D273: =IF('Balance Sheet - Water'!E$32=0,1,-2) -> 1 | E273: =IF('Balance Sheet - Water'!G$32=0,1,-2) -> 1 | F273: =IF('Balance Sheet - Water'!H$32=0,1,-2) -> 1 | G273: =IF('Balance Sheet - Water'!I$32=0,1,-2) -> 1 | H273: =IF('Balance Sheet - Water'!J$32=0,1,-2) -> 1 | I273: =IF('Balance Sheet - Water'!K$32=0,1,-2) -> 1 | J273: =IF('Balance Sheet - Water'!L$32=0,1,-2) -> 1 | K273: =IF('Balance Sheet - Water'!M$32=0,1,-2) -> 1 | L273: =IF('Balance Sheet - Water'!N$32=0,1,-2) -> 1 | M273: =IF('Balance Sheet - Water'!O$32=0,1,-2) -> 1 | N273: =IF('Balance Sheet - Water'!P$32=0,1,-2) -> 1
B274: ="No Bank Overdraft amount in Balance Sheet - "&PROPER(consol_SF_name) -> No Bank Overdraft amount in Balance Sheet - Sewer Fund | D274: =IF('Balance Sheet - Sewer'!E$32=0,1,-2) -> 1 | E274: =IF('Balance Sheet - Sewer'!G$32=0,1,-2) -> 1 | F274: =IF('Balance Sheet - Sewer'!H$32=0,1,-2) -> 1 | G274: =IF('Balance Sheet - Sewer'!I$32=0,1,-2) -> 1 | H274: =IF('Balance Sheet - Sewer'!J$32=0,1,-2) -> 1 | I274: =IF('Balance Sheet - Sewer'!K$32=0,1,-2) -> 1 | J274: =IF('Balance Sheet - Sewer'!L$32=0,1,-2) -> 1 | K274: =IF('Balance Sheet - Sewer'!M$32=0,1,-2) -> 1 | L274: =IF('Balance Sheet - Sewer'!N$32=0,1,-2) -> 1 | M274: =IF('Balance Sheet - Sewer'!O$32=0,1,-2) -> -2 | N274: =IF('Balance Sheet - Sewer'!P$32=0,1,-2) -> 1
B275: ="No Bank Overdraft amount in Balance Sheet - "&PROPER(consol_Other1_name) -> No Bank Overdraft amount in Balance Sheet - Other 1 Fund | D275: =IF('Balance Sheet - Other 1'!E$32=0,1,-2) -> 1 | E275: =IF('Balance Sheet - Other 1'!G$32=0,1,-2) -> 1 | F275: =IF('Balance Sheet - Other 1'!H$32=0,1,-2) -> 1 | G275: =IF('Balance Sheet - Other 1'!I$32=0,1,-2) -> 1 | H275: =IF('Balance Sheet - Other 1'!J$32=0,1,-2) -> 1 | I275: =IF('Balance Sheet - Other 1'!K$32=0,1,-2) -> 1 | J275: =IF('Balance Sheet - Other 1'!L$32=0,1,-2) -> 1 | K275: =IF('Balance Sheet - Other 1'!M$32=0,1,-2) -> 1 | L275: =IF('Balance Sheet - Other 1'!N$32=0,1,-2) -> 1 | M275: =IF('Balance Sheet - Other 1'!O$32=0,1,-2) -> 1 | N275: =IF('Balance Sheet - Other 1'!P$32=0,1,-2) -> 1
B276: ="No Bank Overdraft amount in Balance Sheet - "&PROPER(consol_Other2_name) -> No Bank Overdraft amount in Balance Sheet - Other 2 Fund | D276: =IF('Balance Sheet - Other 2'!E$32=0,1,-2) -> 1 | E276: =IF('Balance Sheet - Other 2'!G$32=0,1,-2) -> 1 | F276: =IF('Balance Sheet - Other 2'!H$32=0,1,-2) -> 1 | G276: =IF('Balance Sheet - Other 2'!I$32=0,1,-2) -> 1 | H276: =IF('Balance Sheet - Other 2'!J$32=0,1,-2) -> 1 | I276: =IF('Balance Sheet - Other 2'!K$32=0,1,-2) -> 1 | J276: =IF('Balance Sheet - Other 2'!L$32=0,1,-2) -> 1 | K276: =IF('Balance Sheet - Other 2'!M$32=0,1,-2) -> 1 | L276: =IF('Balance Sheet - Other 2'!N$32=0,1,-2) -> 1 | M276: =IF('Balance Sheet - Other 2'!O$32=0,1,-2) -> 1 | N276: =IF('Balance Sheet - Other 2'!P$32=0,1,-2) -> 1
B277: ="No Bank Overdraft amount in Balance Sheet - "&PROPER(consol_Other3_name) -> No Bank Overdraft amount in Balance Sheet - Other 3 Fund | D277: =IF('Balance Sheet - Other 3'!E$32=0,1,-2) -> 1 | E277: =IF('Balance Sheet - Other 3'!G$32=0,1,-2) -> 1 | F277: =IF('Balance Sheet - Other 3'!H$32=0,1,-2) -> 1 | G277: =IF('Balance Sheet - Other 3'!I$32=0,1,-2) -> 1 | H277: =IF('Balance Sheet - Other 3'!J$32=0,1,-2) -> 1 | I277: =IF('Balance Sheet - Other 3'!K$32=0,1,-2) -> 1 | J277: =IF('Balance Sheet - Other 3'!L$32=0,1,-2) -> 1 | K277: =IF('Balance Sheet - Other 3'!M$32=0,1,-2) -> 1 | L277: =IF('Balance Sheet - Other 3'!N$32=0,1,-2) -> 1 | M277: =IF('Balance Sheet - Other 3'!O$32=0,1,-2) -> 1 | N277: =IF('Balance Sheet - Other 3'!P$32=0,1,-2) -> 1
B279: Ensure no Balance Sheet amounts are negative:
B280: Cash & Cash Equivalents - current | D280: =IF('Balance Sheet'!E8<0,-2,1) -> 1 | E280: =IF('Balance Sheet'!G8<0,-2,1) -> 1 | F280: =IF('Balance Sheet'!H8<0,-2,1) -> 1 | G280: =IF('Balance Sheet'!I8<0,-2,1) -> 1 | H280: =IF('Balance Sheet'!J8<0,-2,1) -> 1 | I280: =IF('Balance Sheet'!K8<0,-2,1) -> 1 | J280: =IF('Balance Sheet'!L8<0,-2,1) -> 1 | K280: =IF('Balance Sheet'!M8<0,-2,1) -> 1 | L280: =IF('Balance Sheet'!N8<0,-2,1) -> 1 | M280: =IF('Balance Sheet'!O8<0,-2,1) -> 1 | N280: =IF('Balance Sheet'!P8<0,-2,1) -> 1
B281: Investments - current | D281: =IF('Balance Sheet'!E9<0,-2,1) -> 1 | E281: =IF('Balance Sheet'!G9<0,-2,1) -> 1 | F281: =IF('Balance Sheet'!H9<0,-2,1) -> 1 | G281: =IF('Balance Sheet'!I9<0,-2,1) -> 1 | H281: =IF('Balance Sheet'!J9<0,-2,1) -> 1 | I281: =IF('Balance Sheet'!K9<0,-2,1) -> 1 | J281: =IF('Balance Sheet'!L9<0,-2,1) -> 1 | K281: =IF('Balance Sheet'!M9<0,-2,1) -> 1 | L281: =IF('Balance Sheet'!N9<0,-2,1) -> 1 | M281: =IF('Balance Sheet'!O9<0,-2,1) -> 1 | N281: =IF('Balance Sheet'!P9<0,-2,1) -> 1
B282: Receivables - current | D282: =IF('Balance Sheet'!E10<0,-2,1) -> 1 | E282: =IF('Balance Sheet'!G10<0,-2,1) -> 1 | F282: =IF('Balance Sheet'!H10<0,-2,1) -> 1 | G282: =IF('Balance Sheet'!I10<0,-2,1) -> 1 | H282: =IF('Balance Sheet'!J10<0,-2,1) -> 1 | I282: =IF('Balance Sheet'!K10<0,-2,1) -> 1 | J282: =IF('Balance Sheet'!L10<0,-2,1) -> 1 | K282: =IF('Balance Sheet'!M10<0,-2,1) -> 1 | L282: =IF('Balance Sheet'!N10<0,-2,1) -> 1 | M282: =IF('Balance Sheet'!O10<0,-2,1) -> 1 | N282: =IF('Balance Sheet'!P10<0,-2,1) -> 1
B283: Inventories - current | D283: =IF('Balance Sheet'!E11<0,-2,1) -> 1 | E283: =IF('Balance Sheet'!G11<0,-2,1) -> 1 | F283: =IF('Balance Sheet'!H11<0,-2,1) -> 1 | G283: =IF('Balance Sheet'!I11<0,-2,1) -> 1 | H283: =IF('Balance Sheet'!J11<0,-2,1) -> 1 | I283: =IF('Balance Sheet'!K11<0,-2,1) -> 1 | J283: =IF('Balance Sheet'!L11<0,-2,1) -> 1 | K283: =IF('Balance Sheet'!M11<0,-2,1) -> 1 | L283: =IF('Balance Sheet'!N11<0,-2,1) -> 1 | M283: =IF('Balance Sheet'!O11<0,-2,1) -> 1 | N283: =IF('Balance Sheet'!P11<0,-2,1) -> 1
B284: Other - current | D284: =IF('Balance Sheet'!E12<0,-2,1) -> 1 | E284: =IF('Balance Sheet'!G12<0,-2,1) -> 1 | F284: =IF('Balance Sheet'!H12<0,-2,1) -> 1 | G284: =IF('Balance Sheet'!I12<0,-2,1) -> 1 | H284: =IF('Balance Sheet'!J12<0,-2,1) -> 1 | I284: =IF('Balance Sheet'!K12<0,-2,1) -> 1 | J284: =IF('Balance Sheet'!L12<0,-2,1) -> 1 | K284: =IF('Balance Sheet'!M12<0,-2,1) -> 1 | L284: =IF('Balance Sheet'!N12<0,-2,1) -> 1 | M284: =IF('Balance Sheet'!O12<0,-2,1) -> 1 | N284: =IF('Balance Sheet'!P12<0,-2,1) -> 1
B285: Non-current assets classified as "held for sale" - current | D285: =IF('Balance Sheet'!E13<0,-2,1) -> 1 | E285: =IF('Balance Sheet'!G13<0,-2,1) -> 1 | F285: =IF('Balance Sheet'!H13<0,-2,1) -> 1 | G285: =IF('Balance Sheet'!I13<0,-2,1) -> 1 | H285: =IF('Balance Sheet'!J13<0,-2,1) -> 1 | I285: =IF('Balance Sheet'!K13<0,-2,1) -> 1 | J285: =IF('Balance Sheet'!L13<0,-2,1) -> 1 | K285: =IF('Balance Sheet'!M13<0,-2,1) -> 1 | L285: =IF('Balance Sheet'!N13<0,-2,1) -> 1 | M285: =IF('Balance Sheet'!O13<0,-2,1) -> 1 | N285: =IF('Balance Sheet'!P13<0,-2,1) -> 1
B286: Investments - non-current | D286: =IF('Balance Sheet'!E18<0,-2,1) -> 1 | E286: =IF('Balance Sheet'!G18<0,-2,1) -> 1 | F286: =IF('Balance Sheet'!H18<0,-2,1) -> 1 | G286: =IF('Balance Sheet'!I18<0,-2,1) -> 1 | H286: =IF('Balance Sheet'!J18<0,-2,1) -> 1 | I286: =IF('Balance Sheet'!K18<0,-2,1) -> 1 | J286: =IF('Balance Sheet'!L18<0,-2,1) -> 1 | K286: =IF('Balance Sheet'!M18<0,-2,1) -> 1 | L286: =IF('Balance Sheet'!N18<0,-2,1) -> 1 | M286: =IF('Balance Sheet'!O18<0,-2,1) -> 1 | N286: =IF('Balance Sheet'!P18<0,-2,1) -> 1
B287: Receivables - non-current | D287: =IF('Balance Sheet'!E19<0,-2,1) -> 1 | E287: =IF('Balance Sheet'!G19<0,-2,1) -> 1 | F287: =IF('Balance Sheet'!H19<0,-2,1) -> 1 | G287: =IF('Balance Sheet'!I19<0,-2,1) -> 1 | H287: =IF('Balance Sheet'!J19<0,-2,1) -> 1 | I287: =IF('Balance Sheet'!K19<0,-2,1) -> 1 | J287: =IF('Balance Sheet'!L19<0,-2,1) -> 1 | K287: =IF('Balance Sheet'!M19<0,-2,1) -> 1 | L287: =IF('Balance Sheet'!N19<0,-2,1) -> 1 | M287: =IF('Balance Sheet'!O19<0,-2,1) -> 1 | N287: =IF('Balance Sheet'!P19<0,-2,1) -> 1
B288: Inventories - non-current | D288: =IF('Balance Sheet'!E20<0,-2,1) -> 1 | E288: =IF('Balance Sheet'!G20<0,-2,1) -> 1 | F288: =IF('Balance Sheet'!H20<0,-2,1) -> 1 | G288: =IF('Balance Sheet'!I20<0,-2,1) -> 1 | H288: =IF('Balance Sheet'!J20<0,-2,1) -> 1 | I288: =IF('Balance Sheet'!K20<0,-2,1) -> 1 | J288: =IF('Balance Sheet'!L20<0,-2,1) -> 1 | K288: =IF('Balance Sheet'!M20<0,-2,1) -> 1 | L288: =IF('Balance Sheet'!N20<0,-2,1) -> 1 | M288: =IF('Balance Sheet'!O20<0,-2,1) -> 1 | N288: =IF('Balance Sheet'!P20<0,-2,1) -> 1
B289: Infrastructure, Property, Plant & Equipment - non-current | D289: =IF('Balance Sheet'!E21<0,-2,1) -> 1 | E289: =IF('Balance Sheet'!G21<0,-2,1) -> 1 | F289: =IF('Balance Sheet'!H21<0,-2,1) -> 1 | G289: =IF('Balance Sheet'!I21<0,-2,1) -> 1 | H289: =IF('Balance Sheet'!J21<0,-2,1) -> 1 | I289: =IF('Balance Sheet'!K21<0,-2,1) -> 1 | J289: =IF('Balance Sheet'!L21<0,-2,1) -> 1 | K289: =IF('Balance Sheet'!M21<0,-2,1) -> 1 | L289: =IF('Balance Sheet'!N21<0,-2,1) -> 1 | M289: =IF('Balance Sheet'!O21<0,-2,1) -> 1 | N289: =IF('Balance Sheet'!P21<0,-2,1) -> 1
B290: Investments Accounted for using the equity method - non-current | D290: =IF('Balance Sheet'!E22<0,-2,1) -> 1 | E290: =IF('Balance Sheet'!G22<0,-2,1) -> 1 | F290: =IF('Balance Sheet'!H22<0,-2,1) -> 1 | G290: =IF('Balance Sheet'!I22<0,-2,1) -> 1 | H290: =IF('Balance Sheet'!J22<0,-2,1) -> 1 | I290: =IF('Balance Sheet'!K22<0,-2,1) -> 1 | J290: =IF('Balance Sheet'!L22<0,-2,1) -> 1 | K290: =IF('Balance Sheet'!M22<0,-2,1) -> 1 | L290: =IF('Balance Sheet'!N22<0,-2,1) -> 1 | M290: =IF('Balance Sheet'!O22<0,-2,1) -> 1 | N290: =IF('Balance Sheet'!P22<0,-2,1) -> 1
B291: Investment Property - non-current | D291: =IF('Balance Sheet'!E23<0,-2,1) -> 1 | E291: =IF('Balance Sheet'!G23<0,-2,1) -> 1 | F291: =IF('Balance Sheet'!H23<0,-2,1) -> 1 | G291: =IF('Balance Sheet'!I23<0,-2,1) -> 1 | H291: =IF('Balance Sheet'!J23<0,-2,1) -> 1 | I291: =IF('Balance Sheet'!K23<0,-2,1) -> 1 | J291: =IF('Balance Sheet'!L23<0,-2,1) -> 1 | K291: =IF('Balance Sheet'!M23<0,-2,1) -> 1 | L291: =IF('Balance Sheet'!N23<0,-2,1) -> 1 | M291: =IF('Balance Sheet'!O23<0,-2,1) -> 1 | N291: =IF('Balance Sheet'!P23<0,-2,1) -> 1
B292: Intangible Assets - non-current | D292: =IF('Balance Sheet'!E24<0,-2,1) -> 1 | E292: =IF('Balance Sheet'!G24<0,-2,1) -> 1 | F292: =IF('Balance Sheet'!H24<0,-2,1) -> 1 | G292: =IF('Balance Sheet'!I24<0,-2,1) -> 1 | H292: =IF('Balance Sheet'!J24<0,-2,1) -> 1 | I292: =IF('Balance Sheet'!K24<0,-2,1) -> 1 | J292: =IF('Balance Sheet'!L24<0,-2,1) -> 1 | K292: =IF('Balance Sheet'!M24<0,-2,1) -> 1 | L292: =IF('Balance Sheet'!N24<0,-2,1) -> 1 | M292: =IF('Balance Sheet'!O24<0,-2,1) -> 1 | N292: =IF('Balance Sheet'!P24<0,-2,1) -> 1
B293: Non-current assets classified as "held for sale" - non-current | D293: =IF('Balance Sheet'!E25<0,-2,1) -> 1 | E293: =IF('Balance Sheet'!G25<0,-2,1) -> 1 | F293: =IF('Balance Sheet'!H25<0,-2,1) -> 1 | G293: =IF('Balance Sheet'!I25<0,-2,1) -> 1 | H293: =IF('Balance Sheet'!J25<0,-2,1) -> 1 | I293: =IF('Balance Sheet'!K25<0,-2,1) -> 1 | J293: =IF('Balance Sheet'!L25<0,-2,1) -> 1 | K293: =IF('Balance Sheet'!M25<0,-2,1) -> 1 | L293: =IF('Balance Sheet'!N25<0,-2,1) -> 1 | M293: =IF('Balance Sheet'!O25<0,-2,1) -> 1 | N293: =IF('Balance Sheet'!P25<0,-2,1) -> 1
B294: Other - non-current | D294: =IF('Balance Sheet'!E26<0,-2,1) -> 1 | E294: =IF('Balance Sheet'!G26<0,-2,1) -> 1 | F294: =IF('Balance Sheet'!H26<0,-2,1) -> 1 | G294: =IF('Balance Sheet'!I26<0,-2,1) -> 1 | H294: =IF('Balance Sheet'!J26<0,-2,1) -> 1 | I294: =IF('Balance Sheet'!K26<0,-2,1) -> 1 | J294: =IF('Balance Sheet'!L26<0,-2,1) -> 1 | K294: =IF('Balance Sheet'!M26<0,-2,1) -> 1 | L294: =IF('Balance Sheet'!N26<0,-2,1) -> 1 | M294: =IF('Balance Sheet'!O26<0,-2,1) -> 1 | N294: =IF('Balance Sheet'!P26<0,-2,1) -> 1
B295: Bank Overdraft - current | D295: =IF('Balance Sheet'!E32<0,-2,1) -> 1 | E295: =IF('Balance Sheet'!G32<0,-2,1) -> 1 | F295: =IF('Balance Sheet'!H32<0,-2,1) -> 1 | G295: =IF('Balance Sheet'!I32<0,-2,1) -> 1 | H295: =IF('Balance Sheet'!J32<0,-2,1) -> 1 | I295: =IF('Balance Sheet'!K32<0,-2,1) -> 1 | J295: =IF('Balance Sheet'!L32<0,-2,1) -> 1 | K295: =IF('Balance Sheet'!M32<0,-2,1) -> 1 | L295: =IF('Balance Sheet'!N32<0,-2,1) -> 1 | M295: =IF('Balance Sheet'!O32<0,-2,1) -> 1 | N295: =IF('Balance Sheet'!P32<0,-2,1) -> 1
B296: Payables - current | D296: =IF('Balance Sheet'!E33<0,-2,1) -> 1 | E296: =IF('Balance Sheet'!G33<0,-2,1) -> 1 | F296: =IF('Balance Sheet'!H33<0,-2,1) -> 1 | G296: =IF('Balance Sheet'!I33<0,-2,1) -> 1 | H296: =IF('Balance Sheet'!J33<0,-2,1) -> 1 | I296: =IF('Balance Sheet'!K33<0,-2,1) -> 1 | J296: =IF('Balance Sheet'!L33<0,-2,1) -> 1 | K296: =IF('Balance Sheet'!M33<0,-2,1) -> 1 | L296: =IF('Balance Sheet'!N33<0,-2,1) -> 1 | M296: =IF('Balance Sheet'!O33<0,-2,1) -> 1 | N296: =IF('Balance Sheet'!P33<0,-2,1) -> 1
B297: Borrowings - current | D297: =IF('Balance Sheet'!E34<0,-2,1) -> 1 | E297: =IF('Balance Sheet'!G34<0,-2,1) -> 1 | F297: =IF('Balance Sheet'!H34<0,-2,1) -> 1 | G297: =IF('Balance Sheet'!I34<0,-2,1) -> 1 | H297: =IF('Balance Sheet'!J34<0,-2,1) -> 1 | I297: =IF('Balance Sheet'!K34<0,-2,1) -> 1 | J297: =IF('Balance Sheet'!L34<0,-2,1) -> 1 | K297: =IF('Balance Sheet'!M34<0,-2,1) -> 1 | L297: =IF('Balance Sheet'!N34<0,-2,1) -> 1 | M297: =IF('Balance Sheet'!O34<0,-2,1) -> 1 | N297: =IF('Balance Sheet'!P34<0,-2,1) -> 1
B298: Provisions - current | D298: =IF('Balance Sheet'!E35<0,-2,1) -> 1 | E298: =IF('Balance Sheet'!G35<0,-2,1) -> 1 | F298: =IF('Balance Sheet'!H35<0,-2,1) -> 1 | G298: =IF('Balance Sheet'!I35<0,-2,1) -> 1 | H298: =IF('Balance Sheet'!J35<0,-2,1) -> 1 | I298: =IF('Balance Sheet'!K35<0,-2,1) -> 1 | J298: =IF('Balance Sheet'!L35<0,-2,1) -> 1 | K298: =IF('Balance Sheet'!M35<0,-2,1) -> 1 | L298: =IF('Balance Sheet'!N35<0,-2,1) -> 1 | M298: =IF('Balance Sheet'!O35<0,-2,1) -> 1 | N298: =IF('Balance Sheet'!P35<0,-2,1) -> 1
B299: Liabilities associated with assets classified as "held for sale" - current | D299: =IF('Balance Sheet'!E36<0,-2,1) -> 1 | E299: =IF('Balance Sheet'!G36<0,-2,1) -> 1 | F299: =IF('Balance Sheet'!H36<0,-2,1) -> 1 | G299: =IF('Balance Sheet'!I36<0,-2,1) -> 1 | H299: =IF('Balance Sheet'!J36<0,-2,1) -> 1 | I299: =IF('Balance Sheet'!K36<0,-2,1) -> 1 | J299: =IF('Balance Sheet'!L36<0,-2,1) -> 1 | K299: =IF('Balance Sheet'!M36<0,-2,1) -> 1 | L299: =IF('Balance Sheet'!N36<0,-2,1) -> 1 | M299: =IF('Balance Sheet'!O36<0,-2,1) -> 1 | N299: =IF('Balance Sheet'!P36<0,-2,1) -> 1
B300: Payables - non-current | D300: =IF('Balance Sheet'!E40<0,-2,1) -> 1 | E300: =IF('Balance Sheet'!G40<0,-2,1) -> 1 | F300: =IF('Balance Sheet'!H40<0,-2,1) -> 1 | G300: =IF('Balance Sheet'!I40<0,-2,1) -> 1 | H300: =IF('Balance Sheet'!J40<0,-2,1) -> 1 | I300: =IF('Balance Sheet'!K40<0,-2,1) -> 1 | J300: =IF('Balance Sheet'!L40<0,-2,1) -> 1 | K300: =IF('Balance Sheet'!M40<0,-2,1) -> 1 | L300: =IF('Balance Sheet'!N40<0,-2,1) -> 1 | M300: =IF('Balance Sheet'!O40<0,-2,1) -> 1 | N300: =IF('Balance Sheet'!P40<0,-2,1) -> 1
B301: Borrowings - non-current | D301: =IF('Balance Sheet'!E41<0,-2,1) -> 1 | E301: =IF('Balance Sheet'!G41<0,-2,1) -> 1 | F301: =IF('Balance Sheet'!H41<0,-2,1) -> 1 | G301: =IF('Balance Sheet'!I41<0,-2,1) -> 1 | H301: =IF('Balance Sheet'!J41<0,-2,1) -> 1 | I301: =IF('Balance Sheet'!K41<0,-2,1) -> 1 | J301: =IF('Balance Sheet'!L41<0,-2,1) -> 1 | K301: =IF('Balance Sheet'!M41<0,-2,1) -> 1 | L301: =IF('Balance Sheet'!N41<0,-2,1) -> 1 | M301: =IF('Balance Sheet'!O41<0,-2,1) -> 1 | N301: =IF('Balance Sheet'!P41<0,-2,1) -> 1
B302: Provisions - non-current | D302: =IF('Balance Sheet'!E42<0,-2,1) -> 1 | E302: =IF('Balance Sheet'!G42<0,-2,1) -> 1 | F302: =IF('Balance Sheet'!H42<0,-2,1) -> 1 | G302: =IF('Balance Sheet'!I42<0,-2,1) -> 1 | H302: =IF('Balance Sheet'!J42<0,-2,1) -> 1 | I302: =IF('Balance Sheet'!K42<0,-2,1) -> 1 | J302: =IF('Balance Sheet'!L42<0,-2,1) -> 1 | K302: =IF('Balance Sheet'!M42<0,-2,1) -> 1 | L302: =IF('Balance Sheet'!N42<0,-2,1) -> 1 | M302: =IF('Balance Sheet'!O42<0,-2,1) -> 1 | N302: =IF('Balance Sheet'!P42<0,-2,1) -> 1
B303: Investments Accounted for using the equity method - non-current | D303: =IF('Balance Sheet'!E43<0,-2,1) -> 1 | E303: =IF('Balance Sheet'!G43<0,-2,1) -> 1 | F303: =IF('Balance Sheet'!H43<0,-2,1) -> 1 | G303: =IF('Balance Sheet'!I43<0,-2,1) -> 1 | H303: =IF('Balance Sheet'!J43<0,-2,1) -> 1 | I303: =IF('Balance Sheet'!K43<0,-2,1) -> 1 | J303: =IF('Balance Sheet'!L43<0,-2,1) -> 1 | K303: =IF('Balance Sheet'!M43<0,-2,1) -> 1 | L303: =IF('Balance Sheet'!N43<0,-2,1) -> 1 | M303: =IF('Balance Sheet'!O43<0,-2,1) -> 1 | N303: =IF('Balance Sheet'!P43<0,-2,1) -> 1
B304: Liabilities associated with assets classified as "held for sale" - non-current | D304: =IF('Balance Sheet'!E44<0,-2,1) -> 1 | E304: =IF('Balance Sheet'!G44<0,-2,1) -> 1 | F304: =IF('Balance Sheet'!H44<0,-2,1) -> 1 | G304: =IF('Balance Sheet'!I44<0,-2,1) -> 1 | H304: =IF('Balance Sheet'!J44<0,-2,1) -> 1 | I304: =IF('Balance Sheet'!K44<0,-2,1) -> 1 | J304: =IF('Balance Sheet'!L44<0,-2,1) -> 1 | K304: =IF('Balance Sheet'!M44<0,-2,1) -> 1 | L304: =IF('Balance Sheet'!N44<0,-2,1) -> 1 | M304: =IF('Balance Sheet'!O44<0,-2,1) -> 1 | N304: =IF('Balance Sheet'!P44<0,-2,1) -> 1
B306: ="No negative amounts in Balance Sheet - "&PROPER(consol_GF_name) -> No negative amounts in Balance Sheet - General Fund | D306: =[1]Checklist!D$87 -> 1 | E306: =[1]Checklist!E$87 -> 1 | F306: =[1]Checklist!F$87 -> 1 | G306: =[1]Checklist!G$87 -> 1 | H306: =[1]Checklist!H$87 -> 1 | I306: =[1]Checklist!I$87 -> 1 | J306: =[1]Checklist!J$87 -> 1 | K306: =[1]Checklist!K$87 -> 1 | L306: =[1]Checklist!L$87 -> 1 | M306: =[1]Checklist!M$87 -> 1 | N306: =[1]Checklist!N$87 -> 1
B307: ="No negative amounts in Balance Sheet - "&PROPER(consol_WF_name) -> No negative amounts in Balance Sheet - Water Fund | D307: =[2]Checklist!D$87 -> 1 | E307: =[2]Checklist!E$87 -> 1 | F307: =[2]Checklist!F$87 -> 1 | G307: =[2]Checklist!G$87 -> 1 | H307: =[2]Checklist!H$87 -> 1 | I307: =[2]Checklist!I$87 -> 1 | J307: =[2]Checklist!J$87 -> 1 | K307: =[2]Checklist!K$87 -> 1 | L307: =[2]Checklist!L$87 -> 1 | M307: =[2]Checklist!M$87 -> 1 | N307: =[2]Checklist!N$87 -> 1
B308: ="No negative amounts in Balance Sheet - "&PROPER(consol_SF_name) -> No negative amounts in Balance Sheet - Sewer Fund | D308: =[3]Checklist!D$87 -> 1 | E308: =[3]Checklist!E$87 -> 1 | F308: =[3]Checklist!F$87 -> 1 | G308: =[3]Checklist!G$87 -> 1 | H308: =[3]Checklist!H$87 -> 1 | I308: =[3]Checklist!I$87 -> 1 | J308: =[3]Checklist!J$87 -> 1 | K308: =[3]Checklist!K$87 -> 1 | L308: =[3]Checklist!L$87 -> 1 | M308: =[3]Checklist!M$87 -> 1 | N308: =[3]Checklist!N$87 -> 1
B309: ="No negative amounts in Balance Sheet - "&PROPER(consol_Other1_name) -> No negative amounts in Balance Sheet - Other 1 Fund | D309: 1 | E309: 1 | F309: 1 | G309: 1 | H309: 1 | I309: 1 | J309: 1 | K309: 1 | L309: 1 | M309: 1 | N309: 1
B310: ="No negative amounts in Balance Sheet - "&PROPER(consol_Other2_name) -> No negative amounts in Balance Sheet - Other 2 Fund | D310: 1 | E310: 1 | F310: 1 | G310: 1 | H310: 1 | I310: 1 | J310: 1 | K310: 1 | L310: 1 | M310: 1 | N310: 1
B311: ="No negative amounts in Balance Sheet - "&PROPER(consol_Other3_name) -> No negative amounts in Balance Sheet - Other 3 Fund | D311: 1 | E311: 1 | F311: 1 | G311: 1 | H311: 1 | I311: 1 | J311: 1 | K311: 1 | L311: 1 | M311: 1 | N311: 1
A314: Income Statement | B314: Ensure no Income Statement amounts are negative:
B315: Rates & Annual Charges | D315: =IF('Income Statement'!F8<0,-2,1) -> 1 | E315: =IF('Income Statement'!H8<0,-2,1) -> 1 | F315: =IF('Income Statement'!I8<0,-2,1) -> 1 | G315: =IF('Income Statement'!J8<0,-2,1) -> 1 | H315: =IF('Income Statement'!K8<0,-2,1) -> 1 | I315: =IF('Income Statement'!L8<0,-2,1) -> 1 | J315: =IF('Income Statement'!M8<0,-2,1) -> 1 | K315: =IF('Income Statement'!N8<0,-2,1) -> 1 | L315: =IF('Income Statement'!O8<0,-2,1) -> 1 | M315: =IF('Income Statement'!P8<0,-2,1) -> 1 | N315: =IF('Income Statement'!Q8<0,-2,1) -> 1
B316: User Charges & Fees | D316: =IF('Income Statement'!F9<0,-2,1) -> 1 | E316: =IF('Income Statement'!H9<0,-2,1) -> 1 | F316: =IF('Income Statement'!I9<0,-2,1) -> 1 | G316: =IF('Income Statement'!J9<0,-2,1) -> 1 | H316: =IF('Income Statement'!K9<0,-2,1) -> 1 | I316: =IF('Income Statement'!L9<0,-2,1) -> 1 | J316: =IF('Income Statement'!M9<0,-2,1) -> 1 | K316: =IF('Income Statement'!N9<0,-2,1) -> 1 | L316: =IF('Income Statement'!O9<0,-2,1) -> 1 | M316: =IF('Income Statement'!P9<0,-2,1) -> 1 | N316: =IF('Income Statement'!Q9<0,-2,1) -> 1
B317: Interest & Investment Revenue | D317: =IF('Income Statement'!F10<0,-2,1) -> 1 | E317: =IF('Income Statement'!H10<0,-2,1) -> 1 | F317: =IF('Income Statement'!I10<0,-2,1) -> 1 | G317: =IF('Income Statement'!J10<0,-2,1) -> 1 | H317: =IF('Income Statement'!K10<0,-2,1) -> 1 | I317: =IF('Income Statement'!L10<0,-2,1) -> 1 | J317: =IF('Income Statement'!M10<0,-2,1) -> 1 | K317: =IF('Income Statement'!N10<0,-2,1) -> 1 | L317: =IF('Income Statement'!O10<0,-2,1) -> 1 | M317: =IF('Income Statement'!P10<0,-2,1) -> 1 | N317: =IF('Income Statement'!Q10<0,-2,1) -> 1
B318: Other Revenues | D318: =IF('Income Statement'!F11<0,-2,1) -> 1 | E318: =IF('Income Statement'!H11<0,-2,1) -> 1 | F318: =IF('Income Statement'!I11<0,-2,1) -> 1 | G318: =IF('Income Statement'!J11<0,-2,1) -> 1 | H318: =IF('Income Statement'!K11<0,-2,1) -> 1 | I318: =IF('Income Statement'!L11<0,-2,1) -> 1 | J318: =IF('Income Statement'!M11<0,-2,1) -> 1 | K318: =IF('Income Statement'!N11<0,-2,1) -> 1 | L318: =IF('Income Statement'!O11<0,-2,1) -> 1 | M318: =IF('Income Statement'!P11<0,-2,1) -> 1 | N318: =IF('Income Statement'!Q11<0,-2,1) -> 1
B319: Grants & Contributions provided for Operating Purposes | D319: =IF('Income Statement'!F12<0,-2,1) -> 1 | E319: =IF('Income Statement'!H12<0,-2,1) -> 1 | F319: =IF('Income Statement'!I12<0,-2,1) -> 1 | G319: =IF('Income Statement'!J12<0,-2,1) -> 1 | H319: =IF('Income Statement'!K12<0,-2,1) -> 1 | I319: =IF('Income Statement'!L12<0,-2,1) -> 1 | J319: =IF('Income Statement'!M12<0,-2,1) -> 1 | K319: =IF('Income Statement'!N12<0,-2,1) -> 1 | L319: =IF('Income Statement'!O12<0,-2,1) -> 1 | M319: =IF('Income Statement'!P12<0,-2,1) -> 1 | N319: =IF('Income Statement'!Q12<0,-2,1) -> 1
B320: Grants & Contributions provided for Capital Purposes | D320: =IF('Income Statement'!F13<0,-2,1) -> 1 | E320: =IF('Income Statement'!H13<0,-2,1) -> 1 | F320: =IF('Income Statement'!I13<0,-2,1) -> 1 | G320: =IF('Income Statement'!J13<0,-2,1) -> 1 | H320: =IF('Income Statement'!K13<0,-2,1) -> 1 | I320: =IF('Income Statement'!L13<0,-2,1) -> 1 | J320: =IF('Income Statement'!M13<0,-2,1) -> 1 | K320: =IF('Income Statement'!N13<0,-2,1) -> 1 | L320: =IF('Income Statement'!O13<0,-2,1) -> 1 | M320: =IF('Income Statement'!P13<0,-2,1) -> 1 | N320: =IF('Income Statement'!Q13<0,-2,1) -> 1
B321: Net gains from the disposal of assets | D321: =IF('Income Statement'!F15<0,-2,1) -> 1 | E321: =IF('Income Statement'!H15<0,-2,1) -> 1 | F321: =IF('Income Statement'!I15<0,-2,1) -> 1 | G321: =IF('Income Statement'!J15<0,-2,1) -> 1 | H321: =IF('Income Statement'!K15<0,-2,1) -> 1 | I321: =IF('Income Statement'!L15<0,-2,1) -> 1 | J321: =IF('Income Statement'!M15<0,-2,1) -> 1 | K321: =IF('Income Statement'!N15<0,-2,1) -> 1 | L321: =IF('Income Statement'!O15<0,-2,1) -> 1 | M321: =IF('Income Statement'!P15<0,-2,1) -> 1 | N321: =IF('Income Statement'!Q15<0,-2,1) -> 1
B322: Joint Ventures & Associated Entities | D322: =IF('Income Statement'!F16<0,-2,1) -> 1 | E322: =IF('Income Statement'!H16<0,-2,1) -> 1 | F322: =IF('Income Statement'!I16<0,-2,1) -> 1 | G322: =IF('Income Statement'!J16<0,-2,1) -> 1 | H322: =IF('Income Statement'!K16<0,-2,1) -> 1 | I322: =IF('Income Statement'!L16<0,-2,1) -> 1 | J322: =IF('Income Statement'!M16<0,-2,1) -> 1 | K322: =IF('Income Statement'!N16<0,-2,1) -> 1 | L322: =IF('Income Statement'!O16<0,-2,1) -> 1 | M322: =IF('Income Statement'!P16<0,-2,1) -> 1 | N322: =IF('Income Statement'!Q16<0,-2,1) -> 1
B323: Employee Benefits & On-Costs | D323: =IF('Income Statement'!F20<0,-2,1) -> 1 | E323: =IF('Income Statement'!H20<0,-2,1) -> 1 | F323: =IF('Income Statement'!I20<0,-2,1) -> 1 | G323: =IF('Income Statement'!J20<0,-2,1) -> 1 | H323: =IF('Income Statement'!K20<0,-2,1) -> 1 | I323: =IF('Income Statement'!L20<0,-2,1) -> 1 | J323: =IF('Income Statement'!M20<0,-2,1) -> 1 | K323: =IF('Income Statement'!N20<0,-2,1) -> 1 | L323: =IF('Income Statement'!O20<0,-2,1) -> 1 | M323: =IF('Income Statement'!P20<0,-2,1) -> 1 | N323: =IF('Income Statement'!Q20<0,-2,1) -> 1
B324: Borrowing Costs | D324: =IF('Income Statement'!F21<0,-2,1) -> 1 | E324: =IF('Income Statement'!H21<0,-2,1) -> 1 | F324: =IF('Income Statement'!I21<0,-2,1) -> 1 | G324: =IF('Income Statement'!J21<0,-2,1) -> 1 | H324: =IF('Income Statement'!K21<0,-2,1) -> 1 | I324: =IF('Income Statement'!L21<0,-2,1) -> 1 | J324: =IF('Income Statement'!M21<0,-2,1) -> 1 | K324: =IF('Income Statement'!N21<0,-2,1) -> 1 | L324: =IF('Income Statement'!O21<0,-2,1) -> 1 | M324: =IF('Income Statement'!P21<0,-2,1) -> 1 | N324: =IF('Income Statement'!Q21<0,-2,1) -> 1
B325: Materials & Contracts | D325: =IF('Income Statement'!F22<0,-2,1) -> 1 | E325: =IF('Income Statement'!H22<0,-2,1) -> 1 | F325: =IF('Income Statement'!I22<0,-2,1) -> 1 | G325: =IF('Income Statement'!J22<0,-2,1) -> 1 | H325: =IF('Income Statement'!K22<0,-2,1) -> 1 | I325: =IF('Income Statement'!L22<0,-2,1) -> 1 | J325: =IF('Income Statement'!M22<0,-2,1) -> 1 | K325: =IF('Income Statement'!N22<0,-2,1) -> 1 | L325: =IF('Income Statement'!O22<0,-2,1) -> 1 | M325: =IF('Income Statement'!P22<0,-2,1) -> 1 | N325: =IF('Income Statement'!Q22<0,-2,1) -> 1
B326: Depreciation & Amortisation | D326: =IF('Income Statement'!F23<0,-2,1) -> 1 | E326: =IF('Income Statement'!H23<0,-2,1) -> 1 | F326: =IF('Income Statement'!I23<0,-2,1) -> 1 | G326: =IF('Income Statement'!J23<0,-2,1) -> 1 | H326: =IF('Income Statement'!K23<0,-2,1) -> 1 | I326: =IF('Income Statement'!L23<0,-2,1) -> 1 | J326: =IF('Income Statement'!M23<0,-2,1) -> 1 | K326: =IF('Income Statement'!N23<0,-2,1) -> 1 | L326: =IF('Income Statement'!O23<0,-2,1) -> 1 | M326: =IF('Income Statement'!P23<0,-2,1) -> 1 | N326: =IF('Income Statement'!Q23<0,-2,1) -> 1
B327: Impairment | D327: =IF('Income Statement'!F24<0,-2,1) -> 1 | E327: =IF('Income Statement'!H24<0,-2,1) -> 1 | F327: =IF('Income Statement'!I24<0,-2,1) -> 1 | G327: =IF('Income Statement'!J24<0,-2,1) -> 1 | H327: =IF('Income Statement'!K24<0,-2,1) -> 1 | I327: =IF('Income Statement'!L24<0,-2,1) -> 1 | J327: =IF('Income Statement'!M24<0,-2,1) -> 1 | K327: =IF('Income Statement'!N24<0,-2,1) -> 1 | L327: =IF('Income Statement'!O24<0,-2,1) -> 1 | M327: =IF('Income Statement'!P24<0,-2,1) -> 1 | N327: =IF('Income Statement'!Q24<0,-2,1) -> 1
B328: Other Expenses | D328: =IF('Income Statement'!F25<0,-2,1) -> 1 | E328: =IF('Income Statement'!H25<0,-2,1) -> 1 | F328: =IF('Income Statement'!I25<0,-2,1) -> 1 | G328: =IF('Income Statement'!J25<0,-2,1) -> 1 | H328: =IF('Income Statement'!K25<0,-2,1) -> 1 | I328: =IF('Income Statement'!L25<0,-2,1) -> 1 | J328: =IF('Income Statement'!M25<0,-2,1) -> 1 | K328: =IF('Income Statement'!N25<0,-2,1) -> 1 | L328: =IF('Income Statement'!O25<0,-2,1) -> 1 | M328: =IF('Income Statement'!P25<0,-2,1) -> 1 | N328: =IF('Income Statement'!Q25<0,-2,1) -> 1
B329: Interest & Investment Losses | D329: =IF('Income Statement'!F26<0,-2,1) -> 1 | E329: =IF('Income Statement'!H26<0,-2,1) -> 1 | F329: =IF('Income Statement'!I26<0,-2,1) -> 1 | G329: =IF('Income Statement'!J26<0,-2,1) -> 1 | H329: =IF('Income Statement'!K26<0,-2,1) -> 1 | I329: =IF('Income Statement'!L26<0,-2,1) -> 1 | J329: =IF('Income Statement'!M26<0,-2,1) -> 1 | K329: =IF('Income Statement'!N26<0,-2,1) -> 1 | L329: =IF('Income Statement'!O26<0,-2,1) -> 1 | M329: =IF('Income Statement'!P26<0,-2,1) -> 1 | N329: =IF('Income Statement'!Q26<0,-2,1) -> 1
B330: Net Losses from the Disposal of Assets | D330: =IF('Income Statement'!F27<0,-2,1) -> 1 | E330: =IF('Income Statement'!H27<0,-2,1) -> 1 | F330: =IF('Income Statement'!I27<0,-2,1) -> 1 | G330: =IF('Income Statement'!J27<0,-2,1) -> 1 | H330: =IF('Income Statement'!K27<0,-2,1) -> 1 | I330: =IF('Income Statement'!L27<0,-2,1) -> 1 | J330: =IF('Income Statement'!M27<0,-2,1) -> 1 | K330: =IF('Income Statement'!N27<0,-2,1) -> 1 | L330: =IF('Income Statement'!O27<0,-2,1) -> 1 | M330: =IF('Income Statement'!P27<0,-2,1) -> 1 | N330: =IF('Income Statement'!Q27<0,-2,1) -> 1
B331: Joint Ventures & Associated Entities | D331: =IF('Income Statement'!F28<0,-2,1) -> 1 | E331: =IF('Income Statement'!H28<0,-2,1) -> 1 | F331: =IF('Income Statement'!I28<0,-2,1) -> 1 | G331: =IF('Income Statement'!J28<0,-2,1) -> 1 | H331: =IF('Income Statement'!K28<0,-2,1) -> 1 | I331: =IF('Income Statement'!L28<0,-2,1) -> 1 | J331: =IF('Income Statement'!M28<0,-2,1) -> 1 | K331: =IF('Income Statement'!N28<0,-2,1) -> 1 | L331: =IF('Income Statement'!O28<0,-2,1) -> 1 | M331: =IF('Income Statement'!P28<0,-2,1) -> 1 | N331: =IF('Income Statement'!Q28<0,-2,1) -> 1
B333: ="No negative amounts in Income Statement - "&PROPER(consol_GF_name) -> No negative amounts in Income Statement - General Fund | D333: =[1]Checklist!D$108 -> 1 | E333: =[1]Checklist!E$108 -> 1 | F333: =[1]Checklist!F$108 -> 1 | G333: =[1]Checklist!G$108 -> 1 | H333: =[1]Checklist!H$108 -> 1 | I333: =[1]Checklist!I$108 -> 1 | J333: =[1]Checklist!J$108 -> 1 | K333: =[1]Checklist!K$108 -> 1 | L333: =[1]Checklist!L$108 -> 1 | M333: =[1]Checklist!M$108 -> 1 | N333: =[1]Checklist!N$108 -> 1
B334: ="No negative amounts in Income Statement - "&PROPER(consol_WF_name) -> No negative amounts in Income Statement - Water Fund | D334: =[2]Checklist!D$108 -> 1 | E334: =[2]Checklist!E$108 -> 1 | F334: =[2]Checklist!F$108 -> 1 | G334: =[2]Checklist!G$108 -> 1 | H334: =[2]Checklist!H$108 -> 1 | I334: =[2]Checklist!I$108 -> 1 | J334: =[2]Checklist!J$108 -> 1 | K334: =[2]Checklist!K$108 -> 1 | L334: =[2]Checklist!L$108 -> 1 | M334: =[2]Checklist!M$108 -> 1 | N334: =[2]Checklist!N$108 -> 1
B335: ="No negative amounts in Income Statement - "&PROPER(consol_SF_name) -> No negative amounts in Income Statement - Sewer Fund | D335: =[3]Checklist!D$108 -> 1 | E335: =[3]Checklist!E$108 -> 1 | F335: =[3]Checklist!F$108 -> 1 | G335: =[3]Checklist!G$108 -> 1 | H335: =[3]Checklist!H$108 -> 1 | I335: =[3]Checklist!I$108 -> 1 | J335: =[3]Checklist!J$108 -> 1 | K335: =[3]Checklist!K$108 -> 1 | L335: =[3]Checklist!L$108 -> 1 | M335: =[3]Checklist!M$108 -> 1 | N335: =[3]Checklist!N$108 -> 1
B336: ="No negative amounts in Income Statement - "&PROPER(consol_Other1_name) -> No negative amounts in Income Statement - Other 1 Fund | D336: 1 | E336: 1 | F336: 1 | G336: 1 | H336: 1 | I336: 1 | J336: 1 | K336: 1 | L336: 1 | M336: 1 | N336: 1
B337: ="No negative amounts in Income Statement - "&PROPER(consol_Other2_name) -> No negative amounts in Income Statement - Other 2 Fund | D337: 1 | E337: 1 | F337: 1 | G337: 1 | H337: 1 | I337: 1 | J337: 1 | K337: 1 | L337: 1 | M337: 1 | N337: 1
B338: ="No negative amounts in Income Statement - "&PROPER(consol_Other3_name) -> No negative amounts in Income Statement - Other 3 Fund | D338: 1 | E338: 1 | F338: 1 | G338: 1 | H338: 1 | I338: 1 | J338: 1 | K338: 1 | L338: 1 | M338: 1 | N338: 1
... 58 more rows

Sheet General Model Assumptions

Sheet Income Statement
B1: ='Cover Page'!$A$3 -> Bellingen Shire Council
B2: ='Cover Page'!$A$5 -> 10 Year Financial Plan for the Years ending 30 June 2026
B3: INCOME STATEMENT - CONSOLIDATED | D3: Actuals | F3: Current Year | H3: Projected Years
B4: ="Scenario: "&consol_scenario_name -> Scenario: Model 1 - Service Levels Maintained | D4: =Starting_year-2&"/"&RIGHT(Starting_year-1,2) -> 2014/15 | F4: =Starting_year-1&"/"&RIGHT(Starting_year,2) -> 2015/16 | H4: =Starting_year&"/"&RIGHT(Starting_year+1,2) -> 2016/17 | I4: =Starting_year+1&"/"&RIGHT(Starting_year+2,2) -> 2017/18 | J4: =Starting_year+2&"/"&RIGHT(Starting_year+3,2) -> 2018/19 | K4: =Starting_year+3&"/"&RIGHT(Starting_year+4,2) -> 2019/20 | L4: =Starting_year+4&"/"&RIGHT(Starting_year+5,2) -> 2020/21 | M4: =Starting_year+5&"/"&RIGHT(Starting_year+6,2) -> 2021/22 | N4: =Starting_year+6&"/"&RIGHT(Starting_year+7,2) -> 2022/23 | O4: =Starting_year+7&"/"&RIGHT(Starting_year+8,2) -> 2023/24 | P4: =Starting_year+8&"/"&RIGHT(Starting_year+9,2) -> 2024/25 | Q4: =Starting_year+9&"/"&RIGHT(Starting_year+10,2) -> 2025/26
D5: =IF('Cover Page'!$K$75=TRUE,"$","$'000") -> $'000 | F5: =IF('Cover Page'!$K$75=TRUE,"$","$'000") -> $'000 | H5: =IF('Cover Page'!$K$75=TRUE,"$","$'000") -> $'000 | I5: =IF('Cover Page'!$K$75=TRUE,"$","$'000") -> $'000 | J5: =IF('Cover Page'!$K$75=TRUE,"$","$'000") -> $'000 | K5: =IF('Cover Page'!$K$75=TRUE,"$","$'000") -> $'000 | L5: =IF('Cover Page'!$K$75=TRUE,"$","$'000") -> $'000 | M5: =IF('Cover Page'!$K$75=TRUE,"$","$'000") -> $'000 | N5: =IF('Cover Page'!$K$75=TRUE,"$","$'000") -> $'000 | O5: =IF('Cover Page'!$K$75=TRUE,"$","$'000") -> $'000 | P5: =IF('Cover Page'!$K$75=TRUE,"$","$'000") -> $'000 | Q5: =IF('Cover Page'!$K$75=TRUE,"$","$'000") -> $'000
B6: Income from Continuing Operations
A7: Code | B7: Revenue:
A8: =B8 -> Rates & Annual Charges | B8: Rates & Annual Charges | D8: ='Income Statement - General'!D8+'Income Statement - Water'!D8+'Income Statement - Sewer'!D8+'Income Statement - Other 1'!D8+'Income Statement - Other 2'!D8+'Income Statement - Other 3'!D8 -> 12244000 | F8: ='Income Statement - General'!F8+'Income Statement - Water'!F8+'Income Statement - Sewer'!F8+'Income Statement - Other 1'!F8+'Income Statement - Other 2'!F8+'Income Statement - Other 3'!F8-'Budget Summary 1'!J149 -> 12856267.52 | H8: ='Income Statement - General'!H8+'Income Statement - Water'!H8+'Income Statement - Sewer'!H8+'Income Statement - Other 1'!H8+'Income Statement - Other 2'!H8+'Income Statement - Other 3'!H8-'Budget Summary 1'!L149 -> 13224752.77 | I8: ='Income Statement - General'!I8+'Income Statement - Water'!I8+'Income Statement - Sewer'!I8+'Income Statement - Other 1'!I8+'Income Statement - Other 2'!I8+'Income Statement - Other 3'!I8-'Budget Summary 1'!M149 -> 13847552.45 | J8: ='Income Statement - General'!J8+'Income Statement - Water'!J8+'Income Statement - Sewer'!J8+'Income Statement - Other 1'!J8+'Income Statement - Other 2'!J8+'Income Statement - Other 3'!J8-'Budget Summary 1'!N149 -> 14516451.36 | K8: ='Income Statement - General'!K8+'Income Statement - Water'!K8+'Income Statement - Sewer'!K8+'Income Statement - Other 1'!K8+'Income Statement - Other 2'!K8+'Income Statement - Other 3'!K8-'Budget Summary 1'!O149 -> 15219761.35 | L8: ='Income Statement - General'!L8+'Income Statement - Water'!L8+'Income Statement - Sewer'!L8+'Income Statement - Other 1'!L8+'Income Statement - Other 2'!L8+'Income Statement - Other 3'!L8-'Budget Summary 1'!P149 -> 15959345.11 | M8: ='Income Statement - General'!M8+'Income Statement - Water'!M8+'Income Statement - Sewer'!M8+'Income Statement - Other 1'!M8+'Income Statement - Other 2'!M8+'Income Statement - Other 3'!M8-'Budget Summary 1'!Q149 -> 16737170.03 | N8: ='Income Statement - General'!N8+'Income Statement - Water'!N8+'Income Statement - Sewer'!N8+'Income Statement - Other 1'!N8+'Income Statement - Other 2'!N8+'Income Statement - Other 3'!N8-'Budget Summary 1'!R149 -> 17555314.15 | O8: ='Income Statement - General'!O8+'Income Statement - Water'!O8+'Income Statement - Sewer'!O8+'Income Statement - Other 1'!O8+'Income Statement - Other 2'!O8+'Income Statement - Other 3'!O8-'Budget Summary 1'!S149 -> 18415972.61 | P8: ='Income Statement - General'!P8+'Income Statement - Water'!P8+'Income Statement - Sewer'!P8+'Income Statement - Other 1'!P8+'Income Statement - Other 2'!P8+'Income Statement - Other 3'!P8-'Budget Summary 1'!T149 -> 19010947.36 | Q8: ='Income Statement - General'!Q8+'Income Statement - Water'!Q8+'Income Statement - Sewer'!Q8+'Income Statement - Other 1'!Q8+'Income Statement - Other 2'!Q8+'Income Statement - Other 3'!Q8-'Budget Summary 1'!U149 -> 19604680.47
A9: =B9 -> User Charges & Fees | B9: User Charges & Fees | D9: ='Income Statement - General'!D9+'Income Statement - Water'!D9+'Income Statement - Sewer'!D9+'Income Statement - Other 1'!D9+'Income Statement - Other 2'!D9+'Income Statement - Other 3'!D9 -> 6696000 | F9: ='Income Statement - General'!F9+'Income Statement - Water'!F9+'Income Statement - Sewer'!F9+'Income Statement - Other 1'!F9+'Income Statement - Other 2'!F9+'Income Statement - Other 3'!F9-'Budget Summary 1'!J150 -> 6085007.87 | H9: ='Income Statement - General'!H9+'Income Statement - Water'!H9+'Income Statement - Sewer'!H9+'Income Statement - Other 1'!H9+'Income Statement - Other 2'!H9+'Income Statement - Other 3'!H9-'Budget Summary 1'!L150 -> 6218204.13 | I9: ='Income Statement - General'!I9+'Income Statement - Water'!I9+'Income Statement - Sewer'!I9+'Income Statement - Other 1'!I9+'Income Statement - Other 2'!I9+'Income Statement - Other 3'!I9-'Budget Summary 1'!M150 -> 6413552.96 | J9: ='Income Statement - General'!J9+'Income Statement - Water'!J9+'Income Statement - Sewer'!J9+'Income Statement - Other 1'!J9+'Income Statement - Other 2'!J9+'Income Statement - Other 3'!J9-'Budget Summary 1'!N150 -> 6615070.32 | K9: ='Income Statement - General'!K9+'Income Statement - Water'!K9+'Income Statement - Sewer'!K9+'Income Statement - Other 1'!K9+'Income Statement - Other 2'!K9+'Income Statement - Other 3'!K9-'Budget Summary 1'!O150 -> 6822952.1 | L9: ='Income Statement - General'!L9+'Income Statement - Water'!L9+'Income Statement - Sewer'!L9+'Income Statement - Other 1'!L9+'Income Statement - Other 2'!L9+'Income Statement - Other 3'!L9-'Budget Summary 1'!P150 -> 7037400.33 | M9: ='Income Statement - General'!M9+'Income Statement - Water'!M9+'Income Statement - Sewer'!M9+'Income Statement - Other 1'!M9+'Income Statement - Other 2'!M9+'Income Statement - Other 3'!M9-'Budget Summary 1'!Q150 -> 7258623.63 | N9: ='Income Statement - General'!N9+'Income Statement - Water'!N9+'Income Statement - Sewer'!N9+'Income Statement - Other 1'!N9+'Income Statement - Other 2'!N9+'Income Statement - Other 3'!N9-'Budget Summary 1'!R150 -> 7486837.15 | O9: ='Income Statement - General'!O9+'Income Statement - Water'!O9+'Income Statement - Sewer'!O9+'Income Statement - Other 1'!O9+'Income Statement - Other 2'!O9+'Income Statement - Other 3'!O9-'Budget Summary 1'!S150 -> 7722263.02 | P9: ='Income Statement - General'!P9+'Income Statement - Water'!P9+'Income Statement - Sewer'!P9+'Income Statement - Other 1'!P9+'Income Statement - Other 2'!P9+'Income Statement - Other 3'!P9-'Budget Summary 1'!T150 -> 7965130.37 | Q9: ='Income Statement - General'!Q9+'Income Statement - Water'!Q9+'Income Statement - Sewer'!Q9+'Income Statement - Other 1'!Q9+'Income Statement - Other 2'!Q9+'Income Statement - Other 3'!Q9-'Budget Summary 1'!U150 -> 8204084.29
A10: =IF(R10="","Interest & Investment Revenues - Other","Interest & Investment Revenue") -> Interest & Investment Revenue | B10: Interest & Investment Revenue | D10: ='Income Statement - General'!D10+'Income Statement - Water'!D10+'Income Statement - Sewer'!D10+'Income Statement - Other 1'!D10+'Income Statement - Other 2'!D10+'Income Statement - Other 3'!D10 -> 1209000 | F10: ='Income Statement - General'!F10+'Income Statement - Water'!F10+'Income Statement - Sewer'!F10+'Income Statement - Other 1'!F10+'Income Statement - Other 2'!F10+'Income Statement - Other 3'!F10-F47+IF(F49>0,F49,0)-'Budget Summary 1'!J151 -> 996140.67 | H10: ='Income Statement - General'!H10+'Income Statement - Water'!H10+'Income Statement - Sewer'!H10+'Income Statement - Other 1'!H10+'Income Statement - Other 2'!H10+'Income Statement - Other 3'!H10-H47+IF(H49>0,H49,0)-'Budget Summary 1'!L151 -> 1068006.98 | I10: ='Income Statement - General'!I10+'Income Statement - Water'!I10+'Income Statement - Sewer'!I10+'Income Statement - Other 1'!I10+'Income Statement - Other 2'!I10+'Income Statement - Other 3'!I10-I47+IF(I49>0,I49,0)-'Budget Summary 1'!M151 -> 1062872.15 | J10: ='Income Statement - General'!J10+'Income Statement - Water'!J10+'Income Statement - Sewer'!J10+'Income Statement - Other 1'!J10+'Income Statement - Other 2'!J10+'Income Statement - Other 3'!J10-J47+IF(J49>0,J49,0)-'Budget Summary 1'!N151 -> 1222769.33 | K10: ='Income Statement - General'!K10+'Income Statement - Water'!K10+'Income Statement - Sewer'!K10+'Income Statement - Other 1'!K10+'Income Statement - Other 2'!K10+'Income Statement - Other 3'!K10-K47+IF(K49>0,K49,0)-'Budget Summary 1'!O151 -> 1251730.94 | L10: ='Income Statement - General'!L10+'Income Statement - Water'!L10+'Income Statement - Sewer'!L10+'Income Statement - Other 1'!L10+'Income Statement - Other 2'!L10+'Income Statement - Other 3'!L10-L47+IF(L49>0,L49,0)-'Budget Summary 1'!P151 -> 1163755.42 | M10: ='Income Statement - General'!M10+'Income Statement - Water'!M10+'Income Statement - Sewer'!M10+'Income Statement - Other 1'!M10+'Income Statement - Other 2'!M10+'Income Statement - Other 3'!M10-M47+IF(M49>0,M49,0)-'Budget Summary 1'!Q151 -> 1194775.22 | N10: ='Income Statement - General'!N10+'Income Statement - Water'!N10+'Income Statement - Sewer'!N10+'Income Statement - Other 1'!N10+'Income Statement - Other 2'!N10+'Income Statement - Other 3'!N10-N47+IF(N49>0,N49,0)-'Budget Summary 1'!R151 -> 1235847.75 | O10: ='Income Statement - General'!O10+'Income Statement - Water'!O10+'Income Statement - Sewer'!O10+'Income Statement - Other 1'!O10+'Income Statement - Other 2'!O10+'Income Statement - Other 3'!O10-O47+IF(O49>0,O49,0)-'Budget Summary 1'!S151 -> 1317983.47 | P10: ='Income Statement - General'!P10+'Income Statement - Water'!P10+'Income Statement - Sewer'!P10+'Income Statement - Other 1'!P10+'Income Statement - Other 2'!P10+'Income Statement - Other 3'!P10-P47+IF(P49>0,P49,0)-'Budget Summary 1'!T151 -> 1379168.88 | Q10: ='Income Statement - General'!Q10+'Income Statement - Water'!Q10+'Income Statement - Sewer'!Q10+'Income Statement - Other 1'!Q10+'Income Statement - Other 2'!Q10+'Income Statement - Other 3'!Q10-Q47+IF(Q49>0,Q49,0)-'Budget Summary 1'!U151 -> 1445346.83 | R10: rc
A11: =B11 -> Other Revenues | B11: Other Revenues | D11: ='Income Statement - General'!D11+'Income Statement - Water'!D11+'Income Statement - Sewer'!D11+'Income Statement - Other 1'!D11+'Income Statement - Other 2'!D11+'Income Statement - Other 3'!D11 -> 511000 | F11: ='Income Statement - General'!F11+'Income Statement - Water'!F11+'Income Statement - Sewer'!F11+'Income Statement - Other 1'!F11+'Income Statement - Other 2'!F11+'Income Statement - Other 3'!F11-'Budget Summary 1'!J152 -> 491637.06 | H11: ='Income Statement - General'!H11+'Income Statement - Water'!H11+'Income Statement - Sewer'!H11+'Income Statement - Other 1'!H11+'Income Statement - Other 2'!H11+'Income Statement - Other 3'!H11-'Budget Summary 1'!L152 -> 506142.18 | I11: ='Income Statement - General'!I11+'Income Statement - Water'!I11+'Income Statement - Sewer'!I11+'Income Statement - Other 1'!I11+'Income Statement - Other 2'!I11+'Income Statement - Other 3'!I11-'Budget Summary 1'!M152 -> 521326.44 | J11: ='Income Statement - General'!J11+'Income Statement - Water'!J11+'Income Statement - Sewer'!J11+'Income Statement - Other 1'!J11+'Income Statement - Other 2'!J11+'Income Statement - Other 3'!J11-'Budget Summary 1'!N152 -> 536966.22 | K11: ='Income Statement - General'!K11+'Income Statement - Water'!K11+'Income Statement - Sewer'!K11+'Income Statement - Other 1'!K11+'Income Statement - Other 2'!K11+'Income Statement - Other 3'!K11-'Budget Summary 1'!O152 -> 553075.21 | L11: ='Income Statement - General'!L11+'Income Statement - Water'!L11+'Income Statement - Sewer'!L11+'Income Statement - Other 1'!L11+'Income Statement - Other 2'!L11+'Income Statement - Other 3'!L11-'Budget Summary 1'!P152 -> 569667.46 | M11: ='Income Statement - General'!M11+'Income Statement - Water'!M11+'Income Statement - Sewer'!M11+'Income Statement - Other 1'!M11+'Income Statement - Other 2'!M11+'Income Statement - Other 3'!M11-'Budget Summary 1'!Q152 -> 586757.48 | N11: ='Income Statement - General'!N11+'Income Statement - Water'!N11+'Income Statement - Sewer'!N11+'Income Statement - Other 1'!N11+'Income Statement - Other 2'!N11+'Income Statement - Other 3'!N11-'Budget Summary 1'!R152 -> 604360.21 | O11: ='Income Statement - General'!O11+'Income Statement - Water'!O11+'Income Statement - Sewer'!O11+'Income Statement - Other 1'!O11+'Income Statement - Other 2'!O11+'Income Statement - Other 3'!O11-'Budget Summary 1'!S152 -> 622491.01 | P11: ='Income Statement - General'!P11+'Income Statement - Water'!P11+'Income Statement - Sewer'!P11+'Income Statement - Other 1'!P11+'Income Statement - Other 2'!P11+'Income Statement - Other 3'!P11-'Budget Summary 1'!T152 -> 641165.75 | Q11: ='Income Statement - General'!Q11+'Income Statement - Water'!Q11+'Income Statement - Sewer'!Q11+'Income Statement - Other 1'!Q11+'Income Statement - Other 2'!Q11+'Income Statement - Other 3'!Q11-'Budget Summary 1'!U152 -> 660400.72
A12: =B12 -> Grants & Contributions provided for Operating Purposes | B12: Grants & Contributions provided for Operating Purposes | D12: ='Income Statement - General'!D12+'Income Statement - Water'!D12+'Income Statement - Sewer'!D12+'Income Statement - Other 1'!D12+'Income Statement - Other 2'!D12+'Income Statement - Other 3'!D12 -> 5377000 | F12: ='Income Statement - General'!F12+'Income Statement - Water'!F12+'Income Statement - Sewer'!F12+'Income Statement - Other 1'!F12+'Income Statement - Other 2'!F12+'Income Statement - Other 3'!F12-'Budget Summary 1'!J153 -> 5815616.02 | H12: ='Income Statement - General'!H12+'Income Statement - Water'!H12+'Income Statement - Sewer'!H12+'Income Statement - Other 1'!H12+'Income Statement - Other 2'!H12+'Income Statement - Other 3'!H12-'Budget Summary 1'!L153 -> 6760195.02 | I12: ='Income Statement - General'!I12+'Income Statement - Water'!I12+'Income Statement - Sewer'!I12+'Income Statement - Other 1'!I12+'Income Statement - Other 2'!I12+'Income Statement - Other 3'!I12-'Budget Summary 1'!M153 -> 5851516.38 | J12: ='Income Statement - General'!J12+'Income Statement - Water'!J12+'Income Statement - Sewer'!J12+'Income Statement - Other 1'!J12+'Income Statement - Other 2'!J12+'Income Statement - Other 3'!J12-'Budget Summary 1'!N153 -> 5996555.7 | K12: ='Income Statement - General'!K12+'Income Statement - Water'!K12+'Income Statement - Sewer'!K12+'Income Statement - Other 1'!K12+'Income Statement - Other 2'!K12+'Income Statement - Other 3'!K12-'Budget Summary 1'!O153 -> 6986440.5 | L12: ='Income Statement - General'!L12+'Income Statement - Water'!L12+'Income Statement - Sewer'!L12+'Income Statement - Other 1'!L12+'Income Statement - Other 2'!L12+'Income Statement - Other 3'!L12-'Budget Summary 1'!P153 -> 7140193.2 | M12: ='Income Statement - General'!M12+'Income Statement - Water'!M12+'Income Statement - Sewer'!M12+'Income Statement - Other 1'!M12+'Income Statement - Other 2'!M12+'Income Statement - Other 3'!M12-'Budget Summary 1'!Q153 -> 6497613.44 | N12: ='Income Statement - General'!N12+'Income Statement - Water'!N12+'Income Statement - Sewer'!N12+'Income Statement - Other 1'!N12+'Income Statement - Other 2'!N12+'Income Statement - Other 3'!N12-'Budget Summary 1'!R153 -> 6660275.16 | O12: ='Income Statement - General'!O12+'Income Statement - Water'!O12+'Income Statement - Sewer'!O12+'Income Statement - Other 1'!O12+'Income Statement - Other 2'!O12+'Income Statement - Other 3'!O12-'Budget Summary 1'!S153 -> 7672194.75 | P12: ='Income Statement - General'!P12+'Income Statement - Water'!P12+'Income Statement - Sewer'!P12+'Income Statement - Other 1'!P12+'Income Statement - Other 2'!P12+'Income Statement - Other 3'!P12-'Budget Summary 1'!T153 -> 7844320.15 | Q12: ='Income Statement - General'!Q12+'Income Statement - Water'!Q12+'Income Statement - Sewer'!Q12+'Income Statement - Other 1'!Q12+'Income Statement - Other 2'!Q12+'Income Statement - Other 3'!Q12-'Budget Summary 1'!U153 -> 7229840.1
A13: =B13 -> Grants & Contributions provided for Capital Purposes | B13: Grants & Contributions provided for Capital Purposes | D13: ='Income Statement - General'!D13+'Income Statement - Water'!D13+'Income Statement - Sewer'!D13+'Income Statement - Other 1'!D13+'Income Statement - Other 2'!D13+'Income Statement - Other 3'!D13 -> 6320000 | F13: ='Income Statement - General'!F13+'Income Statement - Water'!F13+'Income Statement - Sewer'!F13+'Income Statement - Other 1'!F13+'Income Statement - Other 2'!F13+'Income Statement - Other 3'!F13-'Budget Summary 1'!J154 -> 2283969 | H13: ='Income Statement - General'!H13+'Income Statement - Water'!H13+'Income Statement - Sewer'!H13+'Income Statement - Other 1'!H13+'Income Statement - Other 2'!H13+'Income Statement - Other 3'!H13-'Budget Summary 1'!L154 -> 12877724.88 | I13: ='Income Statement - General'!I13+'Income Statement - Water'!I13+'Income Statement - Sewer'!I13+'Income Statement - Other 1'!I13+'Income Statement - Other 2'!I13+'Income Statement - Other 3'!I13-'Budget Summary 1'!M154 -> 2489042.55 | J13: ='Income Statement - General'!J13+'Income Statement - Water'!J13+'Income Statement - Sewer'!J13+'Income Statement - Other 1'!J13+'Income Statement - Other 2'!J13+'Income Statement - Other 3'!J13-'Budget Summary 1'!N154 -> 2159926.47 | K13: ='Income Statement - General'!K13+'Income Statement - Water'!K13+'Income Statement - Sewer'!K13+'Income Statement - Other 1'!K13+'Income Statement - Other 2'!K13+'Income Statement - Other 3'!K13-'Budget Summary 1'!O154 -> 1466443.36 | L13: ='Income Statement - General'!L13+'Income Statement - Water'!L13+'Income Statement - Sewer'!L13+'Income Statement - Other 1'!L13+'Income Statement - Other 2'!L13+'Income Statement - Other 3'!L13-'Budget Summary 1'!P154 -> 1486908.4 | M13: ='Income Statement - General'!M13+'Income Statement - Water'!M13+'Income Statement - Sewer'!M13+'Income Statement - Other 1'!M13+'Income Statement - Other 2'!M13+'Income Statement - Other 3'!M13-'Budget Summary 1'!Q154 -> 1507885.06 | N13: ='Income Statement - General'!N13+'Income Statement - Water'!N13+'Income Statement - Sewer'!N13+'Income Statement - Other 1'!N13+'Income Statement - Other 2'!N13+'Income Statement - Other 3'!N13-'Budget Summary 1'!R154 -> 1529386.15 | O13: ='Income Statement - General'!O13+'Income Statement - Water'!O13+'Income Statement - Sewer'!O13+'Income Statement - Other 1'!O13+'Income Statement - Other 2'!O13+'Income Statement - Other 3'!O13-'Budget Summary 1'!S154 -> 1551424.74 | P13: ='Income Statement - General'!P13+'Income Statement - Water'!P13+'Income Statement - Sewer'!P13+'Income Statement - Other 1'!P13+'Income Statement - Other 2'!P13+'Income Statement - Other 3'!P13-'Budget Summary 1'!T154 -> 1574014.32 | Q13: ='Income Statement - General'!Q13+'Income Statement - Water'!Q13+'Income Statement - Sewer'!Q13+'Income Statement - Other 1'!Q13+'Income Statement - Other 2'!Q13+'Income Statement - Other 3'!Q13-'Budget Summary 1'!U154 -> 1597168.65
B14: Other Income:
A15: =B15 -> Net gains from the disposal of assets | B15: Net gains from the disposal of assets | D15: ='Income Statement - General'!D15+'Income Statement - Water'!D15+'Income Statement - Sewer'!D15+'Income Statement - Other 1'!D15+'Income Statement - Other 2'!D15+'Income Statement - Other 3'!D15 -> 143000 | F15: ='Income Statement - General'!F15+'Income Statement - Water'!F15+'Income Statement - Sewer'!F15+'Income Statement - Other 1'!F15+'Income Statement - Other 2'!F15+'Income Statement - Other 3'!F15 -> 0 | H15: ='Income Statement - General'!H15+'Income Statement - Water'!H15+'Income Statement - Sewer'!H15+'Income Statement - Other 1'!H15+'Income Statement - Other 2'!H15+'Income Statement - Other 3'!H15 -> 0 | I15: ='Income Statement - General'!I15+'Income Statement - Water'!I15+'Income Statement - Sewer'!I15+'Income Statement - Other 1'!I15+'Income Statement - Other 2'!I15+'Income Statement - Other 3'!I15 -> 0 | J15: ='Income Statement - General'!J15+'Income Statement - Water'!J15+'Income Statement - Sewer'!J15+'Income Statement - Other 1'!J15+'Income Statement - Other 2'!J15+'Income Statement - Other 3'!J15 -> 0 | K15: ='Income Statement - General'!K15+'Income Statement - Water'!K15+'Income Statement - Sewer'!K15+'Income Statement - Other 1'!K15+'Income Statement - Other 2'!K15+'Income Statement - Other 3'!K15 -> 0 | L15: ='Income Statement - General'!L15+'Income Statement - Water'!L15+'Income Statement - Sewer'!L15+'Income Statement - Other 1'!L15+'Income Statement - Other 2'!L15+'Income Statement - Other 3'!L15 -> 0 | M15: ='Income Statement - General'!M15+'Income Statement - Water'!M15+'Income Statement - Sewer'!M15+'Income Statement - Other 1'!M15+'Income Statement - Other 2'!M15+'Income Statement - Other 3'!M15 -> 0 | N15: ='Income Statement - General'!N15+'Income Statement - Water'!N15+'Income Statement - Sewer'!N15+'Income Statement - Other 1'!N15+'Income Statement - Other 2'!N15+'Income Statement - Other 3'!N15 -> 0 | O15: ='Income Statement - General'!O15+'Income Statement - Water'!O15+'Income Statement - Sewer'!O15+'Income Statement - Other 1'!O15+'Income Statement - Other 2'!O15+'Income Statement - Other 3'!O15 -> 0 | P15: ='Income Statement - General'!P15+'Income Statement - Water'!P15+'Income Statement - Sewer'!P15+'Income Statement - Other 1'!P15+'Income Statement - Other 2'!P15+'Income Statement - Other 3'!P15 -> 0 | Q15: ='Income Statement - General'!Q15+'Income Statement - Water'!Q15+'Income Statement - Sewer'!Q15+'Income Statement - Other 1'!Q15+'Income Statement - Other 2'!Q15+'Income Statement - Other 3'!Q15 -> 0
A16: =B16&" - Gain" -> Joint Ventures & Associated Entities - Gain | B16: Joint Ventures & Associated Entities | D16: ='Income Statement - General'!D16+'Income Statement - Water'!D16+'Income Statement - Sewer'!D16+'Income Statement - Other 1'!D16+'Income Statement - Other 2'!D16+'Income Statement - Other 3'!D16 -> 0 | F16: ='Income Statement - General'!F16+'Income Statement - Water'!F16+'Income Statement - Sewer'!F16+'Income Statement - Other 1'!F16+'Income Statement - Other 2'!F16+'Income Statement - Other 3'!F16 -> 0 | H16: ='Income Statement - General'!H16+'Income Statement - Water'!H16+'Income Statement - Sewer'!H16+'Income Statement - Other 1'!H16+'Income Statement - Other 2'!H16+'Income Statement - Other 3'!H16 -> 0 | I16: ='Income Statement - General'!I16+'Income Statement - Water'!I16+'Income Statement - Sewer'!I16+'Income Statement - Other 1'!I16+'Income Statement - Other 2'!I16+'Income Statement - Other 3'!I16 -> 0 | J16: ='Income Statement - General'!J16+'Income Statement - Water'!J16+'Income Statement - Sewer'!J16+'Income Statement - Other 1'!J16+'Income Statement - Other 2'!J16+'Income Statement - Other 3'!J16 -> 0 | K16: ='Income Statement - General'!K16+'Income Statement - Water'!K16+'Income Statement - Sewer'!K16+'Income Statement - Other 1'!K16+'Income Statement - Other 2'!K16+'Income Statement - Other 3'!K16 -> 0 | L16: ='Income Statement - General'!L16+'Income Statement - Water'!L16+'Income Statement - Sewer'!L16+'Income Statement - Other 1'!L16+'Income Statement - Other 2'!L16+'Income Statement - Other 3'!L16 -> 0 | M16: ='Income Statement - General'!M16+'Income Statement - Water'!M16+'Income Statement - Sewer'!M16+'Income Statement - Other 1'!M16+'Income Statement - Other 2'!M16+'Income Statement - Other 3'!M16 -> 0 | N16: ='Income Statement - General'!N16+'Income Statement - Water'!N16+'Income Statement - Sewer'!N16+'Income Statement - Other 1'!N16+'Income Statement - Other 2'!N16+'Income Statement - Other 3'!N16 -> 0 | O16: ='Income Statement - General'!O16+'Income Statement - Water'!O16+'Income Statement - Sewer'!O16+'Income Statement - Other 1'!O16+'Income Statement - Other 2'!O16+'Income Statement - Other 3'!O16 -> 0 | P16: ='Income Statement - General'!P16+'Income Statement - Water'!P16+'Income Statement - Sewer'!P16+'Income Statement - Other 1'!P16+'Income Statement - Other 2'!P16+'Income Statement - Other 3'!P16 -> 0 | Q16: ='Income Statement - General'!Q16+'Income Statement - Water'!Q16+'Income Statement - Sewer'!Q16+'Income Statement - Other 1'!Q16+'Income Statement - Other 2'!Q16+'Income Statement - Other 3'!Q16 -> 0
B17: Total Income from Continuing Operations | D17: =SUM(D7:D16) -> 32500000 | F17: =SUM(F7:F16) -> 28528638.14 | H17: 40655025.96 | I17: 30185862.93 | J17: =SUM(J7:J16) -> 31047739.4 | K17: 32300403.46 | L17: 33357269.92 | M17: 33782824.86 | N17: 35072020.57 | O17: 37302329.6 | P17: 38414746.83 | Q17: 38741521.06
B19: Expenses from Continuing Operations
A20: =B20 -> Employee Benefits & On-Costs | B20: Employee Benefits & On-Costs | D20: ='Income Statement - General'!D20+'Income Statement - Water'!D20+'Income Statement - Sewer'!D20+'Income Statement - Other 1'!D20+'Income Statement - Other 2'!D20+'Income Statement - Other 3'!D20 -> 9774000 | F20: ='Income Statement - General'!F20+'Income Statement - Water'!F20+'Income Statement - Sewer'!F20+'Income Statement - Other 1'!F20+'Income Statement - Other 2'!F20+'Income Statement - Other 3'!F20-'Budget Summary 1'!J164 -> 10665431.44 | H20: ='Income Statement - General'!H20+'Income Statement - Water'!H20+'Income Statement - Sewer'!H20+'Income Statement - Other 1'!H20+'Income Statement - Other 2'!H20+'Income Statement - Other 3'!H20-'Budget Summary 1'!L164 -> 10469048 | I20: ='Income Statement - General'!I20+'Income Statement - Water'!I20+'Income Statement - Sewer'!I20+'Income Statement - Other 1'!I20+'Income Statement - Other 2'!I20+'Income Statement - Other 3'!I20-'Budget Summary 1'!M164 -> 10390876.76 | J20: ='Income Statement - General'!J20+'Income Statement - Water'!J20+'Income Statement - Sewer'!J20+'Income Statement - Other 1'!J20+'Income Statement - Other 2'!J20+'Income Statement - Other 3'!J20-'Budget Summary 1'!N164 -> 10623553.54 | K20: ='Income Statement - General'!K20+'Income Statement - Water'!K20+'Income Statement - Sewer'!K20+'Income Statement - Other 1'!K20+'Income Statement - Other 2'!K20+'Income Statement - Other 3'!K20-'Budget Summary 1'!O164 -> 10933035.32 | L20: ='Income Statement - General'!L20+'Income Statement - Water'!L20+'Income Statement - Sewer'!L20+'Income Statement - Other 1'!L20+'Income Statement - Other 2'!L20+'Income Statement - Other 3'!L20-'Budget Summary 1'!P164 -> 11251621.86 | M20: ='Income Statement - General'!M20+'Income Statement - Water'!M20+'Income Statement - Sewer'!M20+'Income Statement - Other 1'!M20+'Income Statement - Other 2'!M20+'Income Statement - Other 3'!M20-'Budget Summary 1'!Q164 -> 11565235.95 | N20: ='Income Statement - General'!N20+'Income Statement - Water'!N20+'Income Statement - Sewer'!N20+'Income Statement - Other 1'!N20+'Income Statement - Other 2'!N20+'Income Statement - Other 3'!N20-'Budget Summary 1'!R164 -> 11958111.17 | O20: ='Income Statement - General'!O20+'Income Statement - Water'!O20+'Income Statement - Sewer'!O20+'Income Statement - Other 1'!O20+'Income Statement - Other 2'!O20+'Income Statement - Other 3'!O20-'Budget Summary 1'!S164 -> 12362578.27 | P20: ='Income Statement - General'!P20+'Income Statement - Water'!P20+'Income Statement - Sewer'!P20+'Income Statement - Other 1'!P20+'Income Statement - Other 2'!P20+'Income Statement - Other 3'!P20-'Budget Summary 1'!T164 -> 12778980.45 | Q20: ='Income Statement - General'!Q20+'Income Statement - Water'!Q20+'Income Statement - Sewer'!Q20+'Income Statement - Other 1'!Q20+'Income Statement - Other 2'!Q20+'Income Statement - Other 3'!Q20-'Budget Summary 1'!U164 -> 13207672.57
A21: =B21 -> Borrowing Costs | B21: Borrowing Costs | D21: ='Income Statement - General'!D21+'Income Statement - Water'!D21+'Income Statement - Sewer'!D21+'Income Statement - Other 1'!D21+'Income Statement - Other 2'!D21+'Income Statement - Other 3'!D21 -> 486000 | F21: ='Income Statement - General'!F21+'Income Statement - Water'!F21+'Income Statement - Sewer'!F21+'Income Statement - Other 1'!F21+'Income Statement - Other 2'!F21+'Income Statement - Other 3'!F21-F48+IF(F49<0,-F49,0)-'Budget Summary 1'!J165 -> 597514 | H21: ='Income Statement - General'!H21+'Income Statement - Water'!H21+'Income Statement - Sewer'!H21+'Income Statement - Other 1'!H21+'Income Statement - Other 2'!H21+'Income Statement - Other 3'!H21-H48+IF(H49<0,-H49,0)-'Budget Summary 1'!L165 -> 557037 | I21: ='Income Statement - General'!I21+'Income Statement - Water'!I21+'Income Statement - Sewer'!I21+'Income Statement - Other 1'!I21+'Income Statement - Other 2'!I21+'Income Statement - Other 3'!I21-I48+IF(I49<0,-I49,0)-'Budget Summary 1'!M165 -> 559755.5732 | J21: ='Income Statement - General'!J21+'Income Statement - Water'!J21+'Income Statement - Sewer'!J21+'Income Statement - Other 1'!J21+'Income Statement - Other 2'!J21+'Income Statement - Other 3'!J21-J48+IF(J49<0,-J49,0)-'Budget Summary 1'!N165 -> 581006.9031 | K21: ='Income Statement - General'!K21+'Income Statement - Water'!K21+'Income Statement - Sewer'!K21+'Income Statement - Other 1'!K21+'Income Statement - Other 2'!K21+'Income Statement - Other 3'!K21-K48+IF(K49<0,-K49,0)-'Budget Summary 1'!O165 -> 619613.4549 | L21: ='Income Statement - General'!L21+'Income Statement - Water'!L21+'Income Statement - Sewer'!L21+'Income Statement - Other 1'!L21+'Income Statement - Other 2'!L21+'Income Statement - Other 3'!L21-L48+IF(L49<0,-L49,0)-'Budget Summary 1'!P165 -> 630246.3769 | M21: ='Income Statement - General'!M21+'Income Statement - Water'!M21+'Income Statement - Sewer'!M21+'Income Statement - Other 1'!M21+'Income Statement - Other 2'!M21+'Income Statement - Other 3'!M21-M48+IF(M49<0,-M49,0)-'Budget Summary 1'!Q165 -> 625970.3006 | N21: ='Income Statement - General'!N21+'Income Statement - Water'!N21+'Income Statement - Sewer'!N21+'Income Statement - Other 1'!N21+'Income Statement - Other 2'!N21+'Income Statement - Other 3'!N21-N48+IF(N49<0,-N49,0)-'Budget Summary 1'!R165 -> 618064.4329 | O21: ='Income Statement - General'!O21+'Income Statement - Water'!O21+'Income Statement - Sewer'!O21+'Income Statement - Other 1'!O21+'Income Statement - Other 2'!O21+'Income Statement - Other 3'!O21-O48+IF(O49<0,-O49,0)-'Budget Summary 1'!S165 -> 606135.9156 | P21: ='Income Statement - General'!P21+'Income Statement - Water'!P21+'Income Statement - Sewer'!P21+'Income Statement - Other 1'!P21+'Income Statement - Other 2'!P21+'Income Statement - Other 3'!P21-P48+IF(P49<0,-P49,0)-'Budget Summary 1'!T165 -> 549273.9526 | Q21: ='Income Statement - General'!Q21+'Income Statement - Water'!Q21+'Income Statement - Sewer'!Q21+'Income Statement - Other 1'!Q21+'Income Statement - Other 2'!Q21+'Income Statement - Other 3'!Q21-Q48+IF(Q49<0,-Q49,0)-'Budget Summary 1'!U165 -> 496539.1884
A22: Materials & Contracts | B22: Materials & Contracts | D22: ='Income Statement - General'!D22+'Income Statement - Water'!D22+'Income Statement - Sewer'!D22+'Income Statement - Other 1'!D22+'Income Statement - Other 2'!D22+'Income Statement - Other 3'!D22 -> 9471000 | F22: ='Income Statement - General'!F22+'Income Statement - Water'!F22+'Income Statement - Sewer'!F22+'Income Statement - Other 1'!F22+'Income Statement - Other 2'!F22+'Income Statement - Other 3'!F22-'Budget Summary 1'!J149-'Budget Summary 1'!J150-'Budget Summary 1'!J151-'Budget Summary 1'!J152-'Budget Summary 1'!J153-'Budget Summary 1'!J154+'Budget Summary 1'!J164+'Budget Summary 1'!J165+'Budget Summary 1'!J167+'Budget Summary 1'!J168+'Budget Summary 1'!J169 -> 8054715.42 | H22: ='Income Statement - General'!H22+'Income Statement - Water'!H22+'Income Statement - Sewer'!H22+'Income Statement - Other 1'!H22+'Income Statement - Other 2'!H22+'Income Statement - Other 3'!H22-'Budget Summary 1'!L149-'Budget Summary 1'!L150-'Budget Summary 1'!L151-'Budget Summary 1'!L152-'Budget Summary 1'!L153-'Budget Summary 1'!L154+'Budget Summary 1'!L164+'Budget Summary 1'!L165+'Budget Summary 1'!L167+'Budget Summary 1'!L168+'Budget Summary 1'!L169 -> 8662755.42 | I22: ='Income Statement - General'!I22+'Income Statement - Water'!I22+'Income Statement - Sewer'!I22+'Income Statement - Other 1'!I22+'Income Statement - Other 2'!I22+'Income Statement - Other 3'!I22-'Budget Summary 1'!M149-'Budget Summary 1'!M150-'Budget Summary 1'!M151-'Budget Summary 1'!M152-'Budget Summary 1'!M153-'Budget Summary 1'!M154+'Budget Summary 1'!M164+'Budget Summary 1'!M165+'Budget Summary 1'!M167+'Budget Summary 1'!M168+'Budget Summary 1'!M169 -> 8599803.41 | J22: ='Income Statement - General'!J22+'Income Statement - Water'!J22+'Income Statement - Sewer'!J22+'Income Statement - Other 1'!J22+'Income Statement - Other 2'!J22+'Income Statement - Other 3'!J22-'Budget Summary 1'!N149-'Budget Summary 1'!N150-'Budget Summary 1'!N151-'Budget Summary 1'!N152-'Budget Summary 1'!N153-'Budget Summary 1'!N154+'Budget Summary 1'!N164+'Budget Summary 1'!N165+'Budget Summary 1'!N167+'Budget Summary 1'!N168+'Budget Summary 1'!N169 -> 8769065.74 | K22: ='Income Statement - General'!K22+'Income Statement - Water'!K22+'Income Statement - Sewer'!K22+'Income Statement - Other 1'!K22+'Income Statement - Other 2'!K22+'Income Statement - Other 3'!K22-'Budget Summary 1'!O149-'Budget Summary 1'!O150-'Budget Summary 1'!O151-'Budget Summary 1'!O152-'Budget Summary 1'!O153-'Budget Summary 1'!O154+'Budget Summary 1'!O164+'Budget Summary 1'!O165+'Budget Summary 1'!O167+'Budget Summary 1'!O168+'Budget Summary 1'!O169 -> 8998463.55 | L22: ='Income Statement - General'!L22+'Income Statement - Water'!L22+'Income Statement - Sewer'!L22+'Income Statement - Other 1'!L22+'Income Statement - Other 2'!L22+'Income Statement - Other 3'!L22-'Budget Summary 1'!P149-'Budget Summary 1'!P150-'Budget Summary 1'!P151-'Budget Summary 1'!P152-'Budget Summary 1'!P153-'Budget Summary 1'!P154+'Budget Summary 1'!P164+'Budget Summary 1'!P165+'Budget Summary 1'!P167+'Budget Summary 1'!P168+'Budget Summary 1'!P169 -> 9228447.18 | M22: ='Income Statement - General'!M22+'Income Statement - Water'!M22+'Income Statement - Sewer'!M22+'Income Statement - Other 1'!M22+'Income Statement - Other 2'!M22+'Income Statement - Other 3'!M22-'Budget Summary 1'!Q149-'Budget Summary 1'!Q150-'Budget Summary 1'!Q151-'Budget Summary 1'!Q152-'Budget Summary 1'!Q153-'Budget Summary 1'!Q154+'Budget Summary 1'!Q164+'Budget Summary 1'!Q165+'Budget Summary 1'!Q167+'Budget Summary 1'!Q168+'Budget Summary 1'!Q169 -> 9489572.24 | N22: ='Income Statement - General'!N22+'Income Statement - Water'!N22+'Income Statement - Sewer'!N22+'Income Statement - Other 1'!N22+'Income Statement - Other 2'!N22+'Income Statement - Other 3'!N22-'Budget Summary 1'!R149-'Budget Summary 1'!R150-'Budget Summary 1'!R151-'Budget Summary 1'!R152-'Budget Summary 1'!R153-'Budget Summary 1'!R154+'Budget Summary 1'!R164+'Budget Summary 1'!R165+'Budget Summary 1'!R167+'Budget Summary 1'!R168+'Budget Summary 1'!R169 -> 9707018.49 | O22: ='Income Statement - General'!O22+'Income Statement - Water'!O22+'Income Statement - Sewer'!O22+'Income Statement - Other 1'!O22+'Income Statement - Other 2'!O22+'Income Statement - Other 3'!O22-'Budget Summary 1'!S149-'Budget Summary 1'!S150-'Budget Summary 1'!S151-'Budget Summary 1'!S152-'Budget Summary 1'!S153-'Budget Summary 1'!S154+'Budget Summary 1'!S164+'Budget Summary 1'!S165+'Budget Summary 1'!S167+'Budget Summary 1'!S168+'Budget Summary 1'!S169 -> 9955977.1 | P22: ='Income Statement - General'!P22+'Income Statement - Water'!P22+'Income Statement - Sewer'!P22+'Income Statement - Other 1'!P22+'Income Statement - Other 2'!P22+'Income Statement - Other 3'!P22-'Budget Summary 1'!T149-'Budget Summary 1'!T150-'Budget Summary 1'!T151-'Budget Summary 1'!T152-'Budget Summary 1'!T153-'Budget Summary 1'!T154+'Budget Summary 1'!T164+'Budget Summary 1'!T165+'Budget Summary 1'!T167+'Budget Summary 1'!T168+'Budget Summary 1'!T169 -> 10211640.68 | Q22: ='Income Statement - General'!Q22+'Income Statement - Water'!Q22+'Income Statement - Sewer'!Q22+'Income Statement - Other 1'!Q22+'Income Statement - Other 2'!Q22+'Income Statement - Other 3'!Q22-'Budget Summary 1'!U149-'Budget Summary 1'!U150-'Budget Summary 1'!U151-'Budget Summary 1'!U152-'Budget Summary 1'!U153-'Budget Summary 1'!U154+'Budget Summary 1'!U164+'Budget Summary 1'!U165+'Budget Summary 1'!U167+'Budget Summary 1'!U168+'Budget Summary 1'!U169 -> 10466963.35
A23: Depreciation & Amortisation | B23: Depreciation & Amortisation | D23: ='Income Statement - General'!D23+'Income Statement - Water'!D23+'Income Statement - Sewer'!D23+'Income Statement - Other 1'!D23+'Income Statement - Other 2'!D23+'Income Statement - Other 3'!D23 -> 9065000 | F23: ='Income Statement - General'!F23+'Income Statement - Water'!F23+'Income Statement - Sewer'!F23+'Income Statement - Other 1'!F23+'Income Statement - Other 2'!F23+'Income Statement - Other 3'!F23-'Budget Summary 1'!J167 -> 7236292.99 | H23: ='Income Statement - General'!H23+'Income Statement - Water'!H23+'Income Statement - Sewer'!H23+'Income Statement - Other 1'!H23+'Income Statement - Other 2'!H23+'Income Statement - Other 3'!H23-'Budget Summary 1'!L167 -> 7273354.89 | I23: ='Income Statement - General'!I23+'Income Statement - Water'!I23+'Income Statement - Sewer'!I23+'Income Statement - Other 1'!I23+'Income Statement - Other 2'!I23+'Income Statement - Other 3'!I23-'Budget Summary 1'!M167 -> 7382912.66 | J23: ='Income Statement - General'!J23+'Income Statement - Water'!J23+'Income Statement - Sewer'!J23+'Income Statement - Other 1'!J23+'Income Statement - Other 2'!J23+'Income Statement - Other 3'!J23-'Budget Summary 1'!N167 -> 7494120.77 | K23: ='Income Statement - General'!K23+'Income Statement - Water'!K23+'Income Statement - Sewer'!K23+'Income Statement - Other 1'!K23+'Income Statement - Other 2'!K23+'Income Statement - Other 3'!K23-'Budget Summary 1'!O167 -> 7672052.34 | L23: ='Income Statement - General'!L23+'Income Statement - Water'!L23+'Income Statement - Sewer'!L23+'Income Statement - Other 1'!L23+'Income Statement - Other 2'!L23+'Income Statement - Other 3'!L23-'Budget Summary 1'!P167 -> 7799032.93 | M23: ='Income Statement - General'!M23+'Income Statement - Water'!M23+'Income Statement - Sewer'!M23+'Income Statement - Other 1'!M23+'Income Statement - Other 2'!M23+'Income Statement - Other 3'!M23-'Budget Summary 1'!Q167 -> 7831023.26 | N23: ='Income Statement - General'!N23+'Income Statement - Water'!N23+'Income Statement - Sewer'!N23+'Income Statement - Other 1'!N23+'Income Statement - Other 2'!N23+'Income Statement - Other 3'!N23-'Budget Summary 1'!R167 -> 7947312.23 | O23: ='Income Statement - General'!O23+'Income Statement - Water'!O23+'Income Statement - Sewer'!O23+'Income Statement - Other 1'!O23+'Income Statement - Other 2'!O23+'Income Statement - Other 3'!O23-'Budget Summary 1'!S167 -> 8063313.45 | P23: ='Income Statement - General'!P23+'Income Statement - Water'!P23+'Income Statement - Sewer'!P23+'Income Statement - Other 1'!P23+'Income Statement - Other 2'!P23+'Income Statement - Other 3'!P23-'Budget Summary 1'!T167 -> 8182020.52 | Q23: ='Income Statement - General'!Q23+'Income Statement - Water'!Q23+'Income Statement - Sewer'!Q23+'Income Statement - Other 1'!Q23+'Income Statement - Other 2'!Q23+'Income Statement - Other 3'!Q23-'Budget Summary 1'!U167 -> 8263840.7
A24: Impairment | B24: Impairment | D24: ='Income Statement - General'!D24+'Income Statement - Water'!D24+'Income Statement - Sewer'!D24+'Income Statement - Other 1'!D24+'Income Statement - Other 2'!D24+'Income Statement - Other 3'!D24 -> 0 | F24: ='Income Statement - General'!F24+'Income Statement - Water'!F24+'Income Statement - Sewer'!F24+'Income Statement - Other 1'!F24+'Income Statement - Other 2'!F24+'Income Statement - Other 3'!F24-'Budget Summary 1'!J168 -> 0 | H24: ='Income Statement - General'!H24+'Income Statement - Water'!H24+'Income Statement - Sewer'!H24+'Income Statement - Other 1'!H24+'Income Statement - Other 2'!H24+'Income Statement - Other 3'!H24-'Budget Summary 1'!L168 -> 0 | I24: ='Income Statement - General'!I24+'Income Statement - Water'!I24+'Income Statement - Sewer'!I24+'Income Statement - Other 1'!I24+'Income Statement - Other 2'!I24+'Income Statement - Other 3'!I24-'Budget Summary 1'!M168 -> 0 | J24: ='Income Statement - General'!J24+'Income Statement - Water'!J24+'Income Statement - Sewer'!J24+'Income Statement - Other 1'!J24+'Income Statement - Other 2'!J24+'Income Statement - Other 3'!J24-'Budget Summary 1'!N168 -> 0 | K24: ='Income Statement - General'!K24+'Income Statement - Water'!K24+'Income Statement - Sewer'!K24+'Income Statement - Other 1'!K24+'Income Statement - Other 2'!K24+'Income Statement - Other 3'!K24-'Budget Summary 1'!O168 -> 0 | L24: ='Income Statement - General'!L24+'Income Statement - Water'!L24+'Income Statement - Sewer'!L24+'Income Statement - Other 1'!L24+'Income Statement - Other 2'!L24+'Income Statement - Other 3'!L24-'Budget Summary 1'!P168 -> 0 | M24: ='Income Statement - General'!M24+'Income Statement - Water'!M24+'Income Statement - Sewer'!M24+'Income Statement - Other 1'!M24+'Income Statement - Other 2'!M24+'Income Statement - Other 3'!M24-'Budget Summary 1'!Q168 -> 0 | N24: ='Income Statement - General'!N24+'Income Statement - Water'!N24+'Income Statement - Sewer'!N24+'Income Statement - Other 1'!N24+'Income Statement - Other 2'!N24+'Income Statement - Other 3'!N24-'Budget Summary 1'!R168 -> 0 | O24: ='Income Statement - General'!O24+'Income Statement - Water'!O24+'Income Statement - Sewer'!O24+'Income Statement - Other 1'!O24+'Income Statement - Other 2'!O24+'Income Statement - Other 3'!O24-'Budget Summary 1'!S168 -> 0 | P24: ='Income Statement - General'!P24+'Income Statement - Water'!P24+'Income Statement - Sewer'!P24+'Income Statement - Other 1'!P24+'Income Statement - Other 2'!P24+'Income Statement - Other 3'!P24-'Budget Summary 1'!T168 -> 0 | Q24: ='Income Statement - General'!Q24+'Income Statement - Water'!Q24+'Income Statement - Sewer'!Q24+'Income Statement - Other 1'!Q24+'Income Statement - Other 2'!Q24+'Income Statement - Other 3'!Q24-'Budget Summary 1'!U168 -> 0
A25: Other Expenses | B25: Other Expenses | D25: ='Income Statement - General'!D25+'Income Statement - Water'!D25+'Income Statement - Sewer'!D25+'Income Statement - Other 1'!D25+'Income Statement - Other 2'!D25+'Income Statement - Other 3'!D25 -> 2808000 | F25: ='Income Statement - General'!F25+'Income Statement - Water'!F25+'Income Statement - Sewer'!F25+'Income Statement - Other 1'!F25+'Income Statement - Other 2'!F25+'Income Statement - Other 3'!F25-'Budget Summary 1'!J169 -> 3303265.93 | H25: ='Income Statement - General'!H25+'Income Statement - Water'!H25+'Income Statement - Sewer'!H25+'Income Statement - Other 1'!H25+'Income Statement - Other 2'!H25+'Income Statement - Other 3'!H25-'Budget Summary 1'!L169 -> 2887627.72 | I25: ='Income Statement - General'!I25+'Income Statement - Water'!I25+'Income Statement - Sewer'!I25+'Income Statement - Other 1'!I25+'Income Statement - Other 2'!I25+'Income Statement - Other 3'!I25-'Budget Summary 1'!M169 -> 2835865.27 | J25: ='Income Statement - General'!J25+'Income Statement - Water'!J25+'Income Statement - Sewer'!J25+'Income Statement - Other 1'!J25+'Income Statement - Other 2'!J25+'Income Statement - Other 3'!J25-'Budget Summary 1'!N169 -> 2890582.61 | K25: ='Income Statement - General'!K25+'Income Statement - Water'!K25+'Income Statement - Sewer'!K25+'Income Statement - Other 1'!K25+'Income Statement - Other 2'!K25+'Income Statement - Other 3'!K25-'Budget Summary 1'!O169 -> 3019122.19 | L25: ='Income Statement - General'!L25+'Income Statement - Water'!L25+'Income Statement - Sewer'!L25+'Income Statement - Other 1'!L25+'Income Statement - Other 2'!L25+'Income Statement - Other 3'!L25-'Budget Summary 1'!P169 -> 3148229.88 | M25: ='Income Statement - General'!M25+'Income Statement - Water'!M25+'Income Statement - Sewer'!M25+'Income Statement - Other 1'!M25+'Income Statement - Other 2'!M25+'Income Statement - Other 3'!M25-'Budget Summary 1'!Q169 -> 3123853.25 | N25: ='Income Statement - General'!N25+'Income Statement - Water'!N25+'Income Statement - Sewer'!N25+'Income Statement - Other 1'!N25+'Income Statement - Other 2'!N25+'Income Statement - Other 3'!N25-'Budget Summary 1'!R169 -> 3206146.65 | O25: ='Income Statement - General'!O25+'Income Statement - Water'!O25+'Income Statement - Sewer'!O25+'Income Statement - Other 1'!O25+'Income Statement - Other 2'!O25+'Income Statement - Other 3'!O25-'Budget Summary 1'!S169 -> 3300452.16 | P25: ='Income Statement - General'!P25+'Income Statement - Water'!P25+'Income Statement - Sewer'!P25+'Income Statement - Other 1'!P25+'Income Statement - Other 2'!P25+'Income Statement - Other 3'!P25-'Budget Summary 1'!T169 -> 3351822.22 | Q25: ='Income Statement - General'!Q25+'Income Statement - Water'!Q25+'Income Statement - Sewer'!Q25+'Income Statement - Other 1'!Q25+'Income Statement - Other 2'!Q25+'Income Statement - Other 3'!Q25-'Budget Summary 1'!U169 -> 3449044.21
A26: Interest & Investment Losses | B26: Interest & Investment Losses | D26: ='Income Statement - General'!D26+'Income Statement - Water'!D26+'Income Statement - Sewer'!D26+'Income Statement - Other 1'!D26+'Income Statement - Other 2'!D26+'Income Statement - Other 3'!D26 -> 0 | F26: ='Income Statement - General'!F26+'Income Statement - Water'!F26+'Income Statement - Sewer'!F26+'Income Statement - Other 1'!F26+'Income Statement - Other 2'!F26+'Income Statement - Other 3'!F26 -> 0 | H26: ='Income Statement - General'!H26+'Income Statement - Water'!H26+'Income Statement - Sewer'!H26+'Income Statement - Other 1'!H26+'Income Statement - Other 2'!H26+'Income Statement - Other 3'!H26 -> 0 | I26: ='Income Statement - General'!I26+'Income Statement - Water'!I26+'Income Statement - Sewer'!I26+'Income Statement - Other 1'!I26+'Income Statement - Other 2'!I26+'Income Statement - Other 3'!I26 -> 0 | J26: ='Income Statement - General'!J26+'Income Statement - Water'!J26+'Income Statement - Sewer'!J26+'Income Statement - Other 1'!J26+'Income Statement - Other 2'!J26+'Income Statement - Other 3'!J26 -> 0 | K26: ='Income Statement - General'!K26+'Income Statement - Water'!K26+'Income Statement - Sewer'!K26+'Income Statement - Other 1'!K26+'Income Statement - Other 2'!K26+'Income Statement - Other 3'!K26 -> 0 | L26: ='Income Statement - General'!L26+'Income Statement - Water'!L26+'Income Statement - Sewer'!L26+'Income Statement - Other 1'!L26+'Income Statement - Other 2'!L26+'Income Statement - Other 3'!L26 -> 0 | M26: ='Income Statement - General'!M26+'Income Statement - Water'!M26+'Income Statement - Sewer'!M26+'Income Statement - Other 1'!M26+'Income Statement - Other 2'!M26+'Income Statement - Other 3'!M26 -> 0 | N26: ='Income Statement - General'!N26+'Income Statement - Water'!N26+'Income Statement - Sewer'!N26+'Income Statement - Other 1'!N26+'Income Statement - Other 2'!N26+'Income Statement - Other 3'!N26 -> 0 | O26: ='Income Statement - General'!O26+'Income Statement - Water'!O26+'Income Statement - Sewer'!O26+'Income Statement - Other 1'!O26+'Income Statement - Other 2'!O26+'Income Statement - Other 3'!O26 -> 0 | P26: ='Income Statement - General'!P26+'Income Statement - Water'!P26+'Income Statement - Sewer'!P26+'Income Statement - Other 1'!P26+'Income Statement - Other 2'!P26+'Income Statement - Other 3'!P26 -> 0 | Q26: ='Income Statement - General'!Q26+'Income Statement - Water'!Q26+'Income Statement - Sewer'!Q26+'Income Statement - Other 1'!Q26+'Income Statement - Other 2'!Q26+'Income Statement - Other 3'!Q26 -> 0
A27: Net Losses from the Disposal of Assets | B27: Net Losses from the Disposal of Assets | D27: ='Income Statement - General'!D27+'Income Statement - Water'!D27+'Income Statement - Sewer'!D27+'Income Statement - Other 1'!D27+'Income Statement - Other 2'!D27+'Income Statement - Other 3'!D27 -> 14000 | F27: ='Income Statement - General'!F27+'Income Statement - Water'!F27+'Income Statement - Sewer'!F27+'Income Statement - Other 1'!F27+'Income Statement - Other 2'!F27+'Income Statement - Other 3'!F27 -> 0 | H27: ='Income Statement - General'!H27+'Income Statement - Water'!H27+'Income Statement - Sewer'!H27+'Income Statement - Other 1'!H27+'Income Statement - Other 2'!H27+'Income Statement - Other 3'!H27 -> 0 | I27: ='Income Statement - General'!I27+'Income Statement - Water'!I27+'Income Statement - Sewer'!I27+'Income Statement - Other 1'!I27+'Income Statement - Other 2'!I27+'Income Statement - Other 3'!I27 -> 0 | J27: ='Income Statement - General'!J27+'Income Statement - Water'!J27+'Income Statement - Sewer'!J27+'Income Statement - Other 1'!J27+'Income Statement - Other 2'!J27+'Income Statement - Other 3'!J27 -> 0 | K27: ='Income Statement - General'!K27+'Income Statement - Water'!K27+'Income Statement - Sewer'!K27+'Income Statement - Other 1'!K27+'Income Statement - Other 2'!K27+'Income Statement - Other 3'!K27 -> 0 | L27: ='Income Statement - General'!L27+'Income Statement - Water'!L27+'Income Statement - Sewer'!L27+'Income Statement - Other 1'!L27+'Income Statement - Other 2'!L27+'Income Statement - Other 3'!L27 -> 0 | M27: ='Income Statement - General'!M27+'Income Statement - Water'!M27+'Income Statement - Sewer'!M27+'Income Statement - Other 1'!M27+'Income Statement - Other 2'!M27+'Income Statement - Other 3'!M27 -> 0 | N27: ='Income Statement - General'!N27+'Income Statement - Water'!N27+'Income Statement - Sewer'!N27+'Income Statement - Other 1'!N27+'Income Statement - Other 2'!N27+'Income Statement - Other 3'!N27 -> 0 | O27: ='Income Statement - General'!O27+'Income Statement - Water'!O27+'Income Statement - Sewer'!O27+'Income Statement - Other 1'!O27+'Income Statement - Other 2'!O27+'Income Statement - Other 3'!O27 -> 0 | P27: ='Income Statement - General'!P27+'Income Statement - Water'!P27+'Income Statement - Sewer'!P27+'Income Statement - Other 1'!P27+'Income Statement - Other 2'!P27+'Income Statement - Other 3'!P27 -> 0 | Q27: ='Income Statement - General'!Q27+'Income Statement - Water'!Q27+'Income Statement - Sewer'!Q27+'Income Statement - Other 1'!Q27+'Income Statement - Other 2'!Q27+'Income Statement - Other 3'!Q27 -> 0
A28: =B28&" - Loss" -> Joint Ventures & Associated Entities - Loss | B28: Joint Ventures & Associated Entities | D28: ='Income Statement - General'!D28+'Income Statement - Water'!D28+'Income Statement - Sewer'!D28+'Income Statement - Other 1'!D28+'Income Statement - Other 2'!D28+'Income Statement - Other 3'!D28 -> 0 | F28: ='Income Statement - General'!F28+'Income Statement - Water'!F28+'Income Statement - Sewer'!F28+'Income Statement - Other 1'!F28+'Income Statement - Other 2'!F28+'Income Statement - Other 3'!F28 -> 0 | H28: ='Income Statement - General'!H28+'Income Statement - Water'!H28+'Income Statement - Sewer'!H28+'Income Statement - Other 1'!H28+'Income Statement - Other 2'!H28+'Income Statement - Other 3'!H28 -> 0 | I28: ='Income Statement - General'!I28+'Income Statement - Water'!I28+'Income Statement - Sewer'!I28+'Income Statement - Other 1'!I28+'Income Statement - Other 2'!I28+'Income Statement - Other 3'!I28 -> 0 | J28: ='Income Statement - General'!J28+'Income Statement - Water'!J28+'Income Statement - Sewer'!J28+'Income Statement - Other 1'!J28+'Income Statement - Other 2'!J28+'Income Statement - Other 3'!J28 -> 0 | K28: ='Income Statement - General'!K28+'Income Statement - Water'!K28+'Income Statement - Sewer'!K28+'Income Statement - Other 1'!K28+'Income Statement - Other 2'!K28+'Income Statement - Other 3'!K28 -> 0 | L28: ='Income Statement - General'!L28+'Income Statement - Water'!L28+'Income Statement - Sewer'!L28+'Income Statement - Other 1'!L28+'Income Statement - Other 2'!L28+'Income Statement - Other 3'!L28 -> 0 | M28: ='Income Statement - General'!M28+'Income Statement - Water'!M28+'Income Statement - Sewer'!M28+'Income Statement - Other 1'!M28+'Income Statement - Other 2'!M28+'Income Statement - Other 3'!M28 -> 0 | N28: ='Income Statement - General'!N28+'Income Statement - Water'!N28+'Income Statement - Sewer'!N28+'Income Statement - Other 1'!N28+'Income Statement - Other 2'!N28+'Income Statement - Other 3'!N28 -> 0 | O28: ='Income Statement - General'!O28+'Income Statement - Water'!O28+'Income Statement - Sewer'!O28+'Income Statement - Other 1'!O28+'Income Statement - Other 2'!O28+'Income Statement - Other 3'!O28 -> 0 | P28: ='Income Statement - General'!P28+'Income Statement - Water'!P28+'Income Statement - Sewer'!P28+'Income Statement - Other 1'!P28+'Income Statement - Other 2'!P28+'Income Statement - Other 3'!P28 -> 0 | Q28: ='Income Statement - General'!Q28+'Income Statement - Water'!Q28+'Income Statement - Sewer'!Q28+'Income Statement - Other 1'!Q28+'Income Statement - Other 2'!Q28+'Income Statement - Other 3'!Q28 -> 0
B29: Total Expenses from Continuing Operations | D29: =SUM(D20:D28) -> 31618000 | F29: =SUM(F20:F28) -> 29857219.78 | H29: =SUM(H20:H28) -> 29849823.03 | I29: =SUM(I20:I28) -> 29769213.67 | J29: =SUM(J20:J28) -> 30358329.56 | K29: 31242286.85 | L29: 32057578.23 | M29: 32635655 | N29: 33436652.97 | O29: 34288456.9 | P29: 35073737.82 | Q29: 35884060.02
B31: Operating Result from Continuing Operations | D31: =D17-D29 -> 882000 | F31: =F17-F29 -> -1328581.64 | H31: =H17-H29 -> 10805202.93 | I31: =I17-I29 -> 416649.2568 | J31: =J17-J29 -> 689409.8369 | K31: 1058116.605 | L31: 1299691.693 | M31: 1147169.859 | N31: 1635367.597 | O31: 3013872.704 | P31: 3341009.007 | Q31: 2857461.042
B33: Discontinued Operations - Profit/(Loss) | D33: ='Income Statement - General'!D33+'Income Statement - Water'!D33+'Income Statement - Sewer'!D33+'Income Statement - Other 1'!D33+'Income Statement - Other 2'!D33+'Income Statement - Other 3'!D33 -> 0 | F33: ='Income Statement - General'!F33+'Income Statement - Water'!F33+'Income Statement - Sewer'!F33+'Income Statement - Other 1'!F33+'Income Statement - Other 2'!F33+'Income Statement - Other 3'!F33 -> 0 | H33: ='Income Statement - General'!H33+'Income Statement - Water'!H33+'Income Statement - Sewer'!H33+'Income Statement - Other 1'!H33+'Income Statement - Other 2'!H33+'Income Statement - Other 3'!H33 -> 0 | I33: ='Income Statement - General'!I33+'Income Statement - Water'!I33+'Income Statement - Sewer'!I33+'Income Statement - Other 1'!I33+'Income Statement - Other 2'!I33+'Income Statement - Other 3'!I33 -> 0 | J33: ='Income Statement - General'!J33+'Income Statement - Water'!J33+'Income Statement - Sewer'!J33+'Income Statement - Other 1'!J33+'Income Statement - Other 2'!J33+'Income Statement - Other 3'!J33 -> 0 | K33: ='Income Statement - General'!K33+'Income Statement - Water'!K33+'Income Statement - Sewer'!K33+'Income Statement - Other 1'!K33+'Income Statement - Other 2'!K33+'Income Statement - Other 3'!K33 -> 0 | L33: ='Income Statement - General'!L33+'Income Statement - Water'!L33+'Income Statement - Sewer'!L33+'Income Statement - Other 1'!L33+'Income Statement - Other 2'!L33+'Income Statement - Other 3'!L33 -> 0 | M33: ='Income Statement - General'!M33+'Income Statement - Water'!M33+'Income Statement - Sewer'!M33+'Income Statement - Other 1'!M33+'Income Statement - Other 2'!M33+'Income Statement - Other 3'!M33 -> 0 | N33: ='Income Statement - General'!N33+'Income Statement - Water'!N33+'Income Statement - Sewer'!N33+'Income Statement - Other 1'!N33+'Income Statement - Other 2'!N33+'Income Statement - Other 3'!N33 -> 0 | O33: ='Income Statement - General'!O33+'Income Statement - Water'!O33+'Income Statement - Sewer'!O33+'Income Statement - Other 1'!O33+'Income Statement - Other 2'!O33+'Income Statement - Other 3'!O33 -> 0 | P33: ='Income Statement - General'!P33+'Income Statement - Water'!P33+'Income Statement - Sewer'!P33+'Income Statement - Other 1'!P33+'Income Statement - Other 2'!P33+'Income Statement - Other 3'!P33 -> 0 | Q33: ='Income Statement - General'!Q33+'Income Statement - Water'!Q33+'Income Statement - Sewer'!Q33+'Income Statement - Other 1'!Q33+'Income Statement - Other 2'!Q33+'Income Statement - Other 3'!Q33 -> 0
B34: Net Profit/(Loss) from Discontinued Operations | D34: =D33 -> 0 | F34: =F33 -> 0 | H34: =H33 -> 0 | I34: =I33 -> 0 | J34: 0 | K34: 0 | L34: 0 | M34: 0 | N34: 0 | O34: 0 | P34: 0 | Q34: 0
B36: Net Operating Result for the Year | D36: =D34+D31 -> 882000 | F36: =F34+F31 -> -1328581.64 | H36: =H34+H31 -> 10805202.93 | I36: 416649.2568 | J36: 689409.8369 | K36: 1058116.605 | L36: 1299691.693 | M36: 1147169.859 | N36: 1635367.597 | O36: 3013872.704 | P36: 3341009.007 | Q36: 2857461.042
B38: Net Operating Result before Grants and Contributions provided for
B39: Capital Purposes | D39: =D36-D13 -> -5438000 | F39: =F36-F13 -> -3612550.64 | H39: =H36-H13 -> -2072521.95 | I39: -2072393.293 | J39: -1470516.633 | K39: -408326.7549 | L39: -187216.7069 | M39: -360715.2006 | N39: 105981.4471 | O39: 1462447.964 | P39: 1766994.687 | Q39: 1260292.392
B44: Net Internal Surplus | F44: ='Income Statement - General'!F44+'Income Statement - Water'!F44+'Income Statement - Sewer'!F44+'Income Statement - Other 1'!F44+'Income Statement - Other 2'!F44+'Income Statement - Other 3'!F44 -> 1590455.58 | H44: ='Income Statement - General'!H44+'Income Statement - Water'!H44+'Income Statement - Sewer'!H44+'Income Statement - Other 1'!H44+'Income Statement - Other 2'!H44+'Income Statement - Other 3'!H44 -> 1512341.96 | I44: ='Income Statement - General'!I44+'Income Statement - Water'!I44+'Income Statement - Sewer'!I44+'Income Statement - Other 1'!I44+'Income Statement - Other 2'!I44+'Income Statement - Other 3'!I44 -> 1550150.51 | J44: ='Income Statement - General'!J44+'Income Statement - Water'!J44+'Income Statement - Sewer'!J44+'Income Statement - Other 1'!J44+'Income Statement - Other 2'!J44+'Income Statement - Other 3'!J44 -> 1588904.27 | K44: ='Income Statement - General'!K44+'Income Statement - Water'!K44+'Income Statement - Sewer'!K44+'Income Statement - Other 1'!K44+'Income Statement - Other 2'!K44+'Income Statement - Other 3'!K44 -> 1628626.88 | L44: ='Income Statement - General'!L44+'Income Statement - Water'!L44+'Income Statement - Sewer'!L44+'Income Statement - Other 1'!L44+'Income Statement - Other 2'!L44+'Income Statement - Other 3'!L44 -> 1669342.55 | M44: ='Income Statement - General'!M44+'Income Statement - Water'!M44+'Income Statement - Sewer'!M44+'Income Statement - Other 1'!M44+'Income Statement - Other 2'!M44+'Income Statement - Other 3'!M44 -> 1711076.12 | N44: ='Income Statement - General'!N44+'Income Statement - Water'!N44+'Income Statement - Sewer'!N44+'Income Statement - Other 1'!N44+'Income Statement - Other 2'!N44+'Income Statement - Other 3'!N44 -> 1753853.03 | O44: ='Income Statement - General'!O44+'Income Statement - Water'!O44+'Income Statement - Sewer'!O44+'Income Statement - Other 1'!O44+'Income Statement - Other 2'!O44+'Income Statement - Other 3'!O44 -> 1797699.37 | P44: ='Income Statement - General'!P44+'Income Statement - Water'!P44+'Income Statement - Sewer'!P44+'Income Statement - Other 1'!P44+'Income Statement - Other 2'!P44+'Income Statement - Other 3'!P44 -> 1842641.86 | Q44: ='Income Statement - General'!Q44+'Income Statement - Water'!Q44+'Income Statement - Sewer'!Q44+'Income Statement - Other 1'!Q44+'Income Statement - Other 2'!Q44+'Income Statement - Other 3'!Q44 -> 1888707.92
B45: Net Internal Deficit | F45: ='Income Statement - General'!F45+'Income Statement - Water'!F45+'Income Statement - Sewer'!F45+'Income Statement - Other 1'!F45+'Income Statement - Other 2'!F45+'Income Statement - Other 3'!F45 -> 1471479.43 | H45: ='Income Statement - General'!H45+'Income Statement - Water'!H45+'Income Statement - Sewer'!H45+'Income Statement - Other 1'!H45+'Income Statement - Other 2'!H45+'Income Statement - Other 3'!H45 -> 1506690.42 | I45: ='Income Statement - General'!I45+'Income Statement - Water'!I45+'Income Statement - Sewer'!I45+'Income Statement - Other 1'!I45+'Income Statement - Other 2'!I45+'Income Statement - Other 3'!I45 -> 1544357.69 | J45: ='Income Statement - General'!J45+'Income Statement - Water'!J45+'Income Statement - Sewer'!J45+'Income Statement - Other 1'!J45+'Income Statement - Other 2'!J45+'Income Statement - Other 3'!J45 -> 1582966.63 | K45: ='Income Statement - General'!K45+'Income Statement - Water'!K45+'Income Statement - Sewer'!K45+'Income Statement - Other 1'!K45+'Income Statement - Other 2'!K45+'Income Statement - Other 3'!K45 -> 1622540.8 | L45: ='Income Statement - General'!L45+'Income Statement - Water'!L45+'Income Statement - Sewer'!L45+'Income Statement - Other 1'!L45+'Income Statement - Other 2'!L45+'Income Statement - Other 3'!L45 -> 1663104.32 | M45: ='Income Statement - General'!M45+'Income Statement - Water'!M45+'Income Statement - Sewer'!M45+'Income Statement - Other 1'!M45+'Income Statement - Other 2'!M45+'Income Statement - Other 3'!M45 -> 1704681.93 | N45: ='Income Statement - General'!N45+'Income Statement - Water'!N45+'Income Statement - Sewer'!N45+'Income Statement - Other 1'!N45+'Income Statement - Other 2'!N45+'Income Statement - Other 3'!N45 -> 1747298.98 | O45: ='Income Statement - General'!O45+'Income Statement - Water'!O45+'Income Statement - Sewer'!O45+'Income Statement - Other 1'!O45+'Income Statement - Other 2'!O45+'Income Statement - Other 3'!O45 -> 1790981.46 | P45: ='Income Statement - General'!P45+'Income Statement - Water'!P45+'Income Statement - Sewer'!P45+'Income Statement - Other 1'!P45+'Income Statement - Other 2'!P45+'Income Statement - Other 3'!P45 -> 1835756 | Q45: ='Income Statement - General'!Q45+'Income Statement - Water'!Q45+'Income Statement - Sewer'!Q45+'Income Statement - Other 1'!Q45+'Income Statement - Other 2'!Q45+'Income Statement - Other 3'!Q45 -> 1881649.9
B47: Interest receivable on Internal Loans | F47: ='Income Statement - General'!F47+'Income Statement - Water'!F47+'Income Statement - Sewer'!F47+'Income Statement - Other 1'!F47+'Income Statement - Other 2'!F47+'Income Statement - Other 3'!F47 -> 0 | H47: ='Income Statement - General'!H47+'Income Statement - Water'!H47+'Income Statement - Sewer'!H47+'Income Statement - Other 1'!H47+'Income Statement - Other 2'!H47+'Income Statement - Other 3'!H47 -> 0 | I47: ='Income Statement - General'!I47+'Income Statement - Water'!I47+'Income Statement - Sewer'!I47+'Income Statement - Other 1'!I47+'Income Statement - Other 2'!I47+'Income Statement - Other 3'!I47 -> 0 | J47: ='Income Statement - General'!J47+'Income Statement - Water'!J47+'Income Statement - Sewer'!J47+'Income Statement - Other 1'!J47+'Income Statement - Other 2'!J47+'Income Statement - Other 3'!J47 -> 0 | K47: ='Income Statement - General'!K47+'Income Statement - Water'!K47+'Income Statement - Sewer'!K47+'Income Statement - Other 1'!K47+'Income Statement - Other 2'!K47+'Income Statement - Other 3'!K47 -> 0 | L47: ='Income Statement - General'!L47+'Income Statement - Water'!L47+'Income Statement - Sewer'!L47+'Income Statement - Other 1'!L47+'Income Statement - Other 2'!L47+'Income Statement - Other 3'!L47 -> 0 | M47: ='Income Statement - General'!M47+'Income Statement - Water'!M47+'Income Statement - Sewer'!M47+'Income Statement - Other 1'!M47+'Income Statement - Other 2'!M47+'Income Statement - Other 3'!M47 -> 0 | N47: ='Income Statement - General'!N47+'Income Statement - Water'!N47+'Income Statement - Sewer'!N47+'Income Statement - Other 1'!N47+'Income Statement - Other 2'!N47+'Income Statement - Other 3'!N47 -> 0 | O47: ='Income Statement - General'!O47+'Income Statement - Water'!O47+'Income Statement - Sewer'!O47+'Income Statement - Other 1'!O47+'Income Statement - Other 2'!O47+'Income Statement - Other 3'!O47 -> 0 | P47: ='Income Statement - General'!P47+'Income Statement - Water'!P47+'Income Statement - Sewer'!P47+'Income Statement - Other 1'!P47+'Income Statement - Other 2'!P47+'Income Statement - Other 3'!P47 -> 0 | Q47: ='Income Statement - General'!Q47+'Income Statement - Water'!Q47+'Income Statement - Sewer'!Q47+'Income Statement - Other 1'!Q47+'Income Statement - Other 2'!Q47+'Income Statement - Other 3'!Q47 -> 0
B48: Interest payable on Internal Loans | F48: ='Income Statement - General'!F48+'Income Statement - Water'!F48+'Income Statement - Sewer'!F48+'Income Statement - Other 1'!F48+'Income Statement - Other 2'!F48+'Income Statement - Other 3'!F48 -> 0 | H48: ='Income Statement - General'!H48+'Income Statement - Water'!H48+'Income Statement - Sewer'!H48+'Income Statement - Other 1'!H48+'Income Statement - Other 2'!H48+'Income Statement - Other 3'!H48 -> 0 | I48: ='Income Statement - General'!I48+'Income Statement - Water'!I48+'Income Statement - Sewer'!I48+'Income Statement - Other 1'!I48+'Income Statement - Other 2'!I48+'Income Statement - Other 3'!I48 -> 0 | J48: ='Income Statement - General'!J48+'Income Statement - Water'!J48+'Income Statement - Sewer'!J48+'Income Statement - Other 1'!J48+'Income Statement - Other 2'!J48+'Income Statement - Other 3'!J48 -> 0 | K48: ='Income Statement - General'!K48+'Income Statement - Water'!K48+'Income Statement - Sewer'!K48+'Income Statement - Other 1'!K48+'Income Statement - Other 2'!K48+'Income Statement - Other 3'!K48 -> 0 | L48: ='Income Statement - General'!L48+'Income Statement - Water'!L48+'Income Statement - Sewer'!L48+'Income Statement - Other 1'!L48+'Income Statement - Other 2'!L48+'Income Statement - Other 3'!L48 -> 0 | M48: ='Income Statement - General'!M48+'Income Statement - Water'!M48+'Income Statement - Sewer'!M48+'Income Statement - Other 1'!M48+'Income Statement - Other 2'!M48+'Income Statement - Other 3'!M48 -> 0 | N48: ='Income Statement - General'!N48+'Income Statement - Water'!N48+'Income Statement - Sewer'!N48+'Income Statement - Other 1'!N48+'Income Statement - Other 2'!N48+'Income Statement - Other 3'!N48 -> 0 | O48: ='Income Statement - General'!O48+'Income Statement - Water'!O48+'Income Statement - Sewer'!O48+'Income Statement - Other 1'!O48+'Income Statement - Other 2'!O48+'Income Statement - Other 3'!O48 -> 0 | P48: ='Income Statement - General'!P48+'Income Statement - Water'!P48+'Income Statement - Sewer'!P48+'Income Statement - Other 1'!P48+'Income Statement - Other 2'!P48+'Income Statement - Other 3'!P48 -> 0 | Q48: ='Income Statement - General'!Q48+'Income Statement - Water'!Q48+'Income Statement - Sewer'!Q48+'Income Statement - Other 1'!Q48+'Income Statement - Other 2'!Q48+'Income Statement - Other 3'!Q48 -> 0
F49: =F47-F48 -> 0 | H49: =H47-H48 -> 0 | I49: =I47-I48 -> 0 | J49: =J47-J48 -> 0 | K49: 0 | L49: 0 | M49: 0 | N49: 0 | O49: 0 | P49: 0 | Q49: 0

Sheet Income Statement - General
B1: ='Cover Page'!$A$3 -> Bellingen Shire Council
B2: ='Cover Page'!$A$5 -> 10 Year Financial Plan for the Years ending 30 June 2026
B3: ="INCOME STATEMENT - "&UPPER(consol_GF_name) -> INCOME STATEMENT - GENERAL FUND | D3: Actuals | F3: Current Year | H3: Projected Years
B4: ="Scenario: "&consol_scenario_name -> Scenario: Model 1 - Service Levels Maintained | D4: =Starting_year-2&"/"&RIGHT(Starting_year-1,2) -> 2014/15 | F4: =Starting_year-1&"/"&RIGHT(Starting_year,2) -> 2015/16 | H4: =Starting_year&"/"&RIGHT(Starting_year+1,2) -> 2016/17 | I4: =Starting_year+1&"/"&RIGHT(Starting_year+2,2) -> 2017/18 | J4: =Starting_year+2&"/"&RIGHT(Starting_year+3,2) -> 2018/19 | K4: =Starting_year+3&"/"&RIGHT(Starting_year+4,2) -> 2019/20 | L4: =Starting_year+4&"/"&RIGHT(Starting_year+5,2) -> 2020/21 | M4: =Starting_year+5&"/"&RIGHT(Starting_year+6,2) -> 2021/22 | N4: =Starting_year+6&"/"&RIGHT(Starting_year+7,2) -> 2022/23 | O4: =Starting_year+7&"/"&RIGHT(Starting_year+8,2) -> 2023/24 | P4: =Starting_year+8&"/"&RIGHT(Starting_year+9,2) -> 2024/25 | Q4: =Starting_year+9&"/"&RIGHT(Starting_year+10,2) -> 2025/26
D5: =IF('Cover Page'!$K$75=TRUE,"$","$'000") -> $'000 | F5: =IF('Cover Page'!$K$75=TRUE,"$","$'000") -> $'000 | H5: =IF('Cover Page'!$K$75=TRUE,"$","$'000") -> $'000 | I5: =IF('Cover Page'!$K$75=TRUE,"$","$'000") -> $'000 | J5: =IF('Cover Page'!$K$75=TRUE,"$","$'000") -> $'000 | K5: =IF('Cover Page'!$K$75=TRUE,"$","$'000") -> $'000 | L5: =IF('Cover Page'!$K$75=TRUE,"$","$'000") -> $'000 | M5: =IF('Cover Page'!$K$75=TRUE,"$","$'000") -> $'000 | N5: =IF('Cover Page'!$K$75=TRUE,"$","$'000") -> $'000 | O5: =IF('Cover Page'!$K$75=TRUE,"$","$'000") -> $'000 | P5: =IF('Cover Page'!$K$75=TRUE,"$","$'000") -> $'000 | Q5: =IF('Cover Page'!$K$75=TRUE,"$","$'000") -> $'000
B6: Income from Continuing Operations
A7: Code | B7: Revenue:
A8: =B8 -> Rates & Annual Charges | B8: Rates & Annual Charges | D8: ='[1]Income Statement'!D8 -> 8997000 | F8: ='[1]Income Statement'!F8 -> 9421717.52 | H8: ='[1]Income Statement'!H8 -> 9669993.52 | I8: ='[1]Income Statement'!I8 -> 10168376.62 | J8: ='[1]Income Statement'!J8 -> 10708504.38 | K8: ='[1]Income Statement'!K8 -> 11278536.22 | L8: ='[1]Income Statement'!L8 -> 11880177.1 | M8: ='[1]Income Statement'!M8 -> 12515231.14 | N8: ='[1]Income Statement'!N8 -> 13185607.4 | O8: ='[1]Income Statement'!O8 -> 13893326.12 | P8: ='[1]Income Statement'!P8 -> 14330008.23 | Q8: ='[1]Income Statement'!Q8 -> 14759908.47
A9: User Charges & Fees | B9: User Charges & Fees | D9: ='[1]Income Statement'!D9 -> 4915000 | F9: ='[1]Income Statement'!F9 -> 4162529.03 | H9: ='[1]Income Statement'!H9 -> 4241400.92 | I9: ='[1]Income Statement'!I9 -> 4368642.97 | J9: ='[1]Income Statement'!J9 -> 4499702.26 | K9: ='[1]Income Statement'!K9 -> 4634693.34 | L9: ='[1]Income Statement'!L9 -> 4773734.14 | M9: ='[1]Income Statement'!M9 -> 4916946.19 | N9: ='[1]Income Statement'!N9 -> 5064454.56 | O9: ='[1]Income Statement'!O9 -> 5216388.21 | P9: ='[1]Income Statement'!P9 -> 5372879.84 | Q9: ='[1]Income Statement'!Q9 -> 5534066.25
A10: Interest & Investment Revenue | B10: Interest & Investment Revenue | D10: ='[1]Income Statement'!D10 -> 453000 | F10: ='[1]Income Statement'!F10 -> 339000 | H10: ='[1]Income Statement'!H10 -> 440167 | I10: ='[1]Income Statement'!I10 -> 414298.88 | J10: ='[1]Income Statement'!J10 -> 408436.41 | K10: ='[1]Income Statement'!K10 -> 530579.63 | L10: ='[1]Income Statement'!L10 -> 457728.57 | M10: ='[1]Income Statement'!M10 -> 454883.25 | N10: ='[1]Income Statement'!N10 -> 442043.71 | O10: ='[1]Income Statement'!O10 -> 545209.97 | P10: ='[1]Income Statement'!P10 -> 596382.06 | Q10: ='[1]Income Statement'!Q10 -> 683560.01
A11: Other Revenues | B11: Other Revenues | D11: ='[1]Income Statement'!D11 -> 506000 | F11: ='[1]Income Statement'!F11 -> 478268.69 | H11: ='[1]Income Statement'!H11 -> 492495.76 | I11: ='[1]Income Statement'!I11 -> 507270.64 | J11: ='[1]Income Statement'!J11 -> 522488.75 | K11: ='[1]Income Statement'!K11 -> 538163.41 | L11: ='[1]Income Statement'!L11 -> 554308.3 | M11: ='[1]Income Statement'!M11 -> 570937.54 | N11: ='[1]Income Statement'!N11 -> 588065.67 | O11: ='[1]Income Statement'!O11 -> 605707.63 | P11: ='[1]Income Statement'!P11 -> 623878.87 | Q11: ='[1]Income Statement'!Q11 -> 642595.23
A12: Grants & Contributions provided for Operating Purposes | B12: Grants & Contributions provided for Operating Purposes | D12: ='[1]Income Statement'!D12 -> 5288000 | F12: ='[1]Income Statement'!F12 -> 5724181.89 | H12: ='[1]Income Statement'!H12 -> 6666017.87 | I12: ='[1]Income Statement'!I12 -> 5754513.92 | J12: ='[1]Income Statement'!J12 -> 5896643.17 | K12: ='[1]Income Statement'!K12 -> 6883530.6 | L12: ='[1]Income Statement'!L12 -> 7034196 | M12: ='[1]Income Statement'!M12 -> 6388436.32 | N12: ='[1]Income Statement'!N12 -> 6547822.73 | O12: ='[1]Income Statement'!O12 -> 7556368.74 | P12: ='[1]Income Statement'!P12 -> 7725019.36 | Q12: ='[1]Income Statement'!Q12 -> 7106960.29
A13: Grants & Contributions provided for Capital Purposes | B13: Grants & Contributions provided for Capital Purposes | D13: ='[1]Income Statement'!D13 -> 4746000 | F13: ='[1]Income Statement'!F13 -> 1069094 | H13: ='[1]Income Statement'!H13 -> 12769725 | I13: ='[1]Income Statement'!I13 -> 2378342.68 | J13: ='[1]Income Statement'!J13 -> 2046459.1 | K13: ='[1]Income Statement'!K13 -> 1350139.31 | L13: ='[1]Income Statement'!L13 -> 1367696.76 | M13: ='[1]Income Statement'!M13 -> 1385693.13 | N13: ='[1]Income Statement'!N13 -> 1404139.41 | O13: ='[1]Income Statement'!O13 -> 1423046.85 | P13: ='[1]Income Statement'!P13 -> 1442426.98 | Q13: ='[1]Income Statement'!Q13 -> 1462291.62
B14: Other Income:
A15: =B15 -> Net gains from the disposal of assets | B15: Net gains from the disposal of assets | D15: ='[1]Income Statement'!D15 -> 143000 | F15: ='[1]Income Statement'!F15 -> 0 | H15: ='[1]Income Statement'!H15 -> 0 | I15: ='[1]Income Statement'!I15 -> 0 | J15: ='[1]Income Statement'!J15 -> 0 | K15: ='[1]Income Statement'!K15 -> 0 | L15: ='[1]Income Statement'!L15 -> 0 | M15: ='[1]Income Statement'!M15 -> 0 | N15: ='[1]Income Statement'!N15 -> 0 | O15: ='[1]Income Statement'!O15 -> 0 | P15: ='[1]Income Statement'!P15 -> 0 | Q15: ='[1]Income Statement'!Q15 -> 0
A16: =B16&" - Gain" -> Joint Ventures & Associated Entities - Gain | B16: Joint Ventures & Associated Entities | D16: ='[1]Income Statement'!D16 -> 0 | F16: ='[1]Income Statement'!F16 -> 0 | H16: ='[1]Income Statement'!H16 -> 0 | I16: ='[1]Income Statement'!I16 -> 0 | J16: ='[1]Income Statement'!J16 -> 0 | K16: ='[1]Income Statement'!K16 -> 0 | L16: ='[1]Income Statement'!L16 -> 0 | M16: ='[1]Income Statement'!M16 -> 0 | N16: ='[1]Income Statement'!N16 -> 0 | O16: ='[1]Income Statement'!O16 -> 0 | P16: ='[1]Income Statement'!P16 -> 0 | Q16: ='[1]Income Statement'!Q16 -> 0
B17: Total Income from Continuing Operations | D17: =SUM(D7:D16) -> 25048000 | F17: 21194791.13 | H17: 34279800.07 | I17: 23591445.71 | J17: 24082234.07 | K17: 25215642.51 | L17: 26067840.87 | M17: 26232127.57 | N17: 27232133.48 | O17: 29240047.52 | P17: 30090595.34 | Q17: 30189381.87
B19: Expenses from Continuing Operations
A20: =B20 -> Employee Benefits & On-Costs | B20: Employee Benefits & On-Costs | D20: ='[1]Income Statement'!D20 -> 7568000 | F20: ='[1]Income Statement'!F20 -> 8239458.3 | H20: ='[1]Income Statement'!H20 -> 8106856.66 | I20: ='[1]Income Statement'!I20 -> 7957819.68 | J20: ='[1]Income Statement'!J20 -> 8117504.74 | K20: ='[1]Income Statement'!K20 -> 8351805.06 | L20: ='[1]Income Statement'!L20 -> 8592954.7 | M20: ='[1]Income Statement'!M20 -> 8826808.77 | N20: ='[1]Income Statement'!N20 -> 9137531.17 | O20: ='[1]Income Statement'!O20 -> 9457380.87 | P20: ='[1]Income Statement'!P20 -> 9786627.13 | Q20: ='[1]Income Statement'!Q20 -> 10125548.64
A21: =B21 -> Borrowing Costs | B21: Borrowing Costs | D21: ='[1]Income Statement'!D21 -> 486000 | F21: ='[1]Income Statement'!F21 -> 597514 | H21: ='[1]Income Statement'!H21 -> 557037 | I21: ='[1]Income Statement'!I21 -> 559755.5732 | J21: ='[1]Income Statement'!J21 -> 581006.9031 | K21: ='[1]Income Statement'!K21 -> 619613.4549 | L21: ='[1]Income Statement'!L21 -> 630246.3769 | M21: ='[1]Income Statement'!M21 -> 625970.3006 | N21: ='[1]Income Statement'!N21 -> 618064.4329 | O21: ='[1]Income Statement'!O21 -> 606135.9156 | P21: ='[1]Income Statement'!P21 -> 549273.9526 | Q21: ='[1]Income Statement'!Q21 -> 496539.1884
A22: Materials & Contracts | B22: Materials & Contracts | D22: ='[1]Income Statement'!D22 -> 8504000 | F22: ='[1]Income Statement'!F22 -> 6986129.67 | H22: ='[1]Income Statement'!H22 -> 7667131.45 | I22: ='[1]Income Statement'!I22 -> 7589732.26 | J22: ='[1]Income Statement'!J22 -> 7744304.77 | K22: ='[1]Income Statement'!K22 -> 7958750.07 | L22: ='[1]Income Statement'!L22 -> 8173503.24 | M22: ='[1]Income Statement'!M22 -> 8419098.78 | N22: ='[1]Income Statement'!N22 -> 8620696.99 | O22: ='[1]Income Statement'!O22 -> 8853462.46 | P22: ='[1]Income Statement'!P22 -> 9092564.55 | Q22: ='[1]Income Statement'!Q22 -> 9319910.31
A23: Depreciation & Amortisation | B23: Depreciation & Amortisation | D23: ='[1]Income Statement'!D23 -> 7355000 | F23: ='[1]Income Statement'!F23 -> 5214991.85 | H23: ='[1]Income Statement'!H23 -> 5267141.74 | I23: ='[1]Income Statement'!I23 -> 5319813.13 | J23: ='[1]Income Statement'!J23 -> 5373011.26 | K23: ='[1]Income Statement'!K23 -> 5426741.38 | L23: ='[1]Income Statement'!L23 -> 5481008.79 | M23: ='[1]Income Statement'!M23 -> 5535818.88 | N23: ='[1]Income Statement'!N23 -> 5591177.06 | O23: ='[1]Income Statement'!O23 -> 5647088.82 | P23: ='[1]Income Statement'!P23 -> 5703559.69 | Q23: ='[1]Income Statement'!Q23 -> 5760595.27
A24: Impairment | B24: Impairment | D24: ='[1]Income Statement'!D24 -> 0 | F24: ='[1]Income Statement'!F24 -> 0 | H24: ='[1]Income Statement'!H24 -> 0 | I24: ='[1]Income Statement'!I24 -> 0 | J24: ='[1]Income Statement'!J24 -> 0 | K24: ='[1]Income Statement'!K24 -> 0 | L24: ='[1]Income Statement'!L24 -> 0 | M24: ='[1]Income Statement'!M24 -> 0 | N24: ='[1]Income Statement'!N24 -> 0 | O24: ='[1]Income Statement'!O24 -> 0 | P24: ='[1]Income Statement'!P24 -> 0 | Q24: ='[1]Income Statement'!Q24 -> 0
A25: Other Expenses | B25: Other Expenses | D25: ='[1]Income Statement'!D25 -> 2176000 | F25: ='[1]Income Statement'!F25 -> 2563309.37 | H25: ='[1]Income Statement'!H25 -> 2286300.24 | I25: ='[1]Income Statement'!I25 -> 2219504.6 | J25: ='[1]Income Statement'!J25 -> 2258812.92 | K25: ='[1]Income Statement'!K25 -> 2371558.27 | L25: ='[1]Income Statement'!L25 -> 2484476.85 | M25: ='[1]Income Statement'!M25 -> 2443506.38 | N25: ='[1]Income Statement'!N25 -> 2508791.08 | O25: ='[1]Income Statement'!O25 -> 2585662.71 | P25: ='[1]Income Statement'!P25 -> 2619163.04 | Q25: ='[1]Income Statement'!Q25 -> 2698068.54
A26: Interest & Investment Losses | B26: Interest & Investment Losses | D26: ='[1]Income Statement'!D26 -> 0 | F26: ='[1]Income Statement'!F26 -> 0 | H26: ='[1]Income Statement'!H26 -> 0 | I26: ='[1]Income Statement'!I26 -> 0 | J26: ='[1]Income Statement'!J26 -> 0 | K26: ='[1]Income Statement'!K26 -> 0 | L26: ='[1]Income Statement'!L26 -> 0 | M26: ='[1]Income Statement'!M26 -> 0 | N26: ='[1]Income Statement'!N26 -> 0 | O26: ='[1]Income Statement'!O26 -> 0 | P26: ='[1]Income Statement'!P26 -> 0 | Q26: ='[1]Income Statement'!Q26 -> 0
A27: Net Losses from the Disposal of Assets | B27: Net Losses from the Disposal of Assets | D27: ='[1]Income Statement'!D27 -> 0 | F27: ='[1]Income Statement'!F27 -> 0 | H27: ='[1]Income Statement'!H27 -> 0 | I27: ='[1]Income Statement'!I27 -> 0 | J27: ='[1]Income Statement'!J27 -> 0 | K27: ='[1]Income Statement'!K27 -> 0 | L27: ='[1]Income Statement'!L27 -> 0 | M27: ='[1]Income Statement'!M27 -> 0 | N27: ='[1]Income Statement'!N27 -> 0 | O27: ='[1]Income Statement'!O27 -> 0 | P27: ='[1]Income Statement'!P27 -> 0 | Q27: ='[1]Income Statement'!Q27 -> 0
A28: =B28&" - Loss" -> Joint Ventures & Associated Entities - Loss | B28: Joint Ventures & Associated Entities | D28: ='[1]Income Statement'!D28 -> 0 | F28: ='[1]Income Statement'!F28 -> 0 | H28: ='[1]Income Statement'!H28 -> 0 | I28: ='[1]Income Statement'!I28 -> 0 | J28: ='[1]Income Statement'!J28 -> 0 | K28: ='[1]Income Statement'!K28 -> 0 | L28: ='[1]Income Statement'!L28 -> 0 | M28: ='[1]Income Statement'!M28 -> 0 | N28: ='[1]Income Statement'!N28 -> 0 | O28: ='[1]Income Statement'!O28 -> 0 | P28: ='[1]Income Statement'!P28 -> 0 | Q28: ='[1]Income Statement'!Q28 -> 0
B29: Total Expenses from Continuing Operations | D29: =SUM(D20:D28) -> 26089000 | F29: =SUM(F20:F28) -> 23601403.19 | H29: =SUM(H20:H28) -> 23884467.09 | I29: =SUM(I20:I28) -> 23646625.24 | J29: =SUM(J20:J28) -> 24074640.59 | K29: 24728468.23 | L29: 25362189.96 | M29: 25851203.11 | N29: 26476260.73 | O29: 27149730.78 | P29: 27751188.36 | Q29: 28400661.95
B31: Operating Result from Continuing Operations | D31: =D17-D29 -> -1041000 | F31: =F17-F29 -> -2406612.06 | H31: =H17-H29 -> 10395332.98 | I31: -55179.53323 | J31: 7593.47692 | K31: 487174.2751 | L31: 705650.9131 | M31: 380924.4594 | N31: 755872.7471 | O31: 2090316.744 | P31: 2339406.977 | Q31: 1788719.922
B33: Discontinued Operations - Profit/(Loss) | D33: ='[1]Income Statement'!D33 -> 0 | F33: ='[1]Income Statement'!F33 -> 0 | H33: ='[1]Income Statement'!H33 -> 0 | I33: ='[1]Income Statement'!I33 -> 0 | J33: ='[1]Income Statement'!J33 -> 0 | K33: ='[1]Income Statement'!K33 -> 0 | L33: ='[1]Income Statement'!L33 -> 0 | M33: ='[1]Income Statement'!M33 -> 0 | N33: ='[1]Income Statement'!N33 -> 0 | O33: ='[1]Income Statement'!O33 -> 0 | P33: ='[1]Income Statement'!P33 -> 0 | Q33: ='[1]Income Statement'!Q33 -> 0
B34: Net Profit/(Loss) from Discontinued Operations | D34: =D33 -> 0 | F34: =F33 -> 0 | H34: =H33 -> 0 | I34: =I33 -> 0 | J34: 0 | K34: 0 | L34: 0 | M34: 0 | N34: 0 | O34: 0 | P34: 0 | Q34: 0
B36: Net Operating Result for the Year | D36: =D34+D31 -> -1041000 | F36: =F34+F31 -> -2406612.06 | H36: =H34+H31 -> 10395332.98 | I36: -55179.53323 | J36: 7593.47692 | K36: 487174.2751 | L36: 705650.9131 | M36: 380924.4594 | N36: 755872.7471 | O36: 2090316.744 | P36: 2339406.977 | Q36: 1788719.922
B38: Net Operating Result before Grants and Contributions provided for
B39: Capital Purposes | D39: =D36-D13 -> -5787000 | F39: =F36-F13 -> -3475706.06 | H39: =H36-H13 -> -2374392.02 | I39: -2433522.213 | J39: -2038865.623 | K39: -862965.0349 | L39: -662045.8469 | M39: -1004768.671 | N39: -648266.6629 | O39: 667269.8944 | P39: 896979.9974 | Q39: 326428.3016
B44: Net Internal Surplus | F44: ='[1]Income Statement'!F44 -> 1590455.58 | H44: ='[1]Income Statement'!H44 -> 1512341.96 | I44: ='[1]Income Statement'!I44 -> 1550150.51 | J44: ='[1]Income Statement'!J44 -> 1588904.27 | K44: ='[1]Income Statement'!K44 -> 1628626.88 | L44: ='[1]Income Statement'!L44 -> 1669342.55 | M44: ='[1]Income Statement'!M44 -> 1711076.12 | N44: ='[1]Income Statement'!N44 -> 1753853.03 | O44: ='[1]Income Statement'!O44 -> 1797699.37 | P44: ='[1]Income Statement'!P44 -> 1842641.86 | Q44: ='[1]Income Statement'!Q44 -> 1888707.92
B45: Net Internal Deficit | F45: ='[1]Income Statement'!F45 -> 0 | H45: ='[1]Income Statement'!H45 -> 0 | I45: ='[1]Income Statement'!I45 -> 0 | J45: ='[1]Income Statement'!J45 -> 0 | K45: ='[1]Income Statement'!K45 -> 0 | L45: ='[1]Income Statement'!L45 -> 0 | M45: ='[1]Income Statement'!M45 -> 0 | N45: ='[1]Income Statement'!N45 -> 0 | O45: ='[1]Income Statement'!O45 -> 0 | P45: ='[1]Income Statement'!P45 -> 0 | Q45: ='[1]Income Statement'!Q45 -> 0
B47: Interest receivable on Internal Loans | F47: ='[1]Income Statement'!F47 -> 0 | H47: ='[1]Income Statement'!H47 -> 0 | I47: ='[1]Income Statement'!I47 -> 0 | J47: ='[1]Income Statement'!J47 -> 0 | K47: ='[1]Income Statement'!K47 -> 0 | L47: ='[1]Income Statement'!L47 -> 0 | M47: ='[1]Income Statement'!M47 -> 0 | N47: ='[1]Income Statement'!N47 -> 0 | O47: ='[1]Income Statement'!O47 -> 0 | P47: ='[1]Income Statement'!P47 -> 0 | Q47: ='[1]Income Statement'!Q47 -> 0
B48: Interest payable on Internal Loans | F48: ='[1]Income Statement'!F48 -> 0 | H48: ='[1]Income Statement'!H48 -> 0 | I48: ='[1]Income Statement'!I48 -> 0 | J48: ='[1]Income Statement'!J48 -> 0 | K48: ='[1]Income Statement'!K48 -> 0 | L48: ='[1]Income Statement'!L48 -> 0 | M48: ='[1]Income Statement'!M48 -> 0 | N48: ='[1]Income Statement'!N48 -> 0 | O48: ='[1]Income Statement'!O48 -> 0 | P48: ='[1]Income Statement'!P48 -> 0 | Q48: ='[1]Income Statement'!Q48 -> 0

Sheet Income Statement - Water
B1: ='Cover Page'!$A$3 -> Bellingen Shire Council
B2: ='Cover Page'!$A$5 -> 10 Year Financial Plan for the Years ending 30 June 2026
B3: ="INCOME STATEMENT - "&UPPER(consol_WF_name) -> INCOME STATEMENT - WATER FUND | D3: Actuals | F3: Current Year | H3: Projected Years
B4: ="Scenario: "&consol_scenario_name -> Scenario: Model 1 - Service Levels Maintained | D4: =Starting_year-2&"/"&RIGHT(Starting_year-1,2) -> 2014/15 | F4: =Starting_year-1&"/"&RIGHT(Starting_year,2) -> 2015/16 | H4: =Starting_year&"/"&RIGHT(Starting_year+1,2) -> 2016/17 | I4: =Starting_year+1&"/"&RIGHT(Starting_year+2,2) -> 2017/18 | J4: =Starting_year+2&"/"&RIGHT(Starting_year+3,2) -> 2018/19 | K4: =Starting_year+3&"/"&RIGHT(Starting_year+4,2) -> 2019/20 | L4: =Starting_year+4&"/"&RIGHT(Starting_year+5,2) -> 2020/21 | M4: =Starting_year+5&"/"&RIGHT(Starting_year+6,2) -> 2021/22 | N4: =Starting_year+6&"/"&RIGHT(Starting_year+7,2) -> 2022/23 | O4: =Starting_year+7&"/"&RIGHT(Starting_year+8,2) -> 2023/24 | P4: =Starting_year+8&"/"&RIGHT(Starting_year+9,2) -> 2024/25 | Q4: =Starting_year+9&"/"&RIGHT(Starting_year+10,2) -> 2025/26
D5: =IF('Cover Page'!$K$75=TRUE,"$","$'000") -> $'000 | F5: =IF('Cover Page'!$K$75=TRUE,"$","$'000") -> $'000 | H5: =IF('Cover Page'!$K$75=TRUE,"$","$'000") -> $'000 | I5: =IF('Cover Page'!$K$75=TRUE,"$","$'000") -> $'000 | J5: =IF('Cover Page'!$K$75=TRUE,"$","$'000") -> $'000 | K5: =IF('Cover Page'!$K$75=TRUE,"$","$'000") -> $'000 | L5: =IF('Cover Page'!$K$75=TRUE,"$","$'000") -> $'000 | M5: =IF('Cover Page'!$K$75=TRUE,"$","$'000") -> $'000 | N5: =IF('Cover Page'!$K$75=TRUE,"$","$'000") -> $'000 | O5: =IF('Cover Page'!$K$75=TRUE,"$","$'000") -> $'000 | P5: =IF('Cover Page'!$K$75=TRUE,"$","$'000") -> $'000 | Q5: =IF('Cover Page'!$K$75=TRUE,"$","$'000") -> $'000
B6: Income from Continuing Operations
A7: Code | B7: Revenue:
A8: =B8 -> Rates & Annual Charges | B8: Rates & Annual Charges | D8: ='[2]Income Statement'!D8 -> 435000 | F8: ='[2]Income Statement'!F8 -> 485100 | H8: ='[2]Income Statement'!H8 -> 502078.5 | I8: ='[2]Income Statement'!I8 -> 519651.25 | J8: ='[2]Income Statement'!J8 -> 537839.04 | K8: ='[2]Income Statement'!K8 -> 556663.41 | L8: ='[2]Income Statement'!L8 -> 576146.63 | M8: ='[2]Income Statement'!M8 -> 596311.76 | N8: ='[2]Income Statement'!N8 -> 617182.67 | O8: ='[2]Income Statement'!O8 -> 638784.06 | P8: ='[2]Income Statement'!P8 -> 661141.51 | Q8: ='[2]Income Statement'!Q8 -> 684281.46
A9: User Charges & Fees | B9: User Charges & Fees | D9: ='[2]Income Statement'!D9 -> 1599000 | F9: ='[2]Income Statement'!F9 -> 1722218 | H9: ='[2]Income Statement'!H9 -> 1770534.54 | I9: ='[2]Income Statement'!I9 -> 1832453.26 | J9: ='[2]Income Statement'!J9 -> 1896537.63 | K9: ='[2]Income Statement'!K9 -> 1962863.41 | L9: ='[2]Income Statement'!L9 -> 2031508.99 | M9: ='[2]Income Statement'!M9 -> 2102555.53 | N9: ='[2]Income Statement'!N9 -> 2176087.02 | O9: ='[2]Income Statement'!O9 -> 2252190.37 | P9: ='[2]Income Statement'!P9 -> 2330955.55 | Q9: ='[2]Income Statement'!Q9 -> 2400884.21
A10: Interest & Investment Revenue | B10: Interest & Investment Revenue | D10: ='[2]Income Statement'!D10 -> 510000 | F10: ='[2]Income Statement'!F10 -> 552165.76 | H10: ='[2]Income Statement'!H10 -> 554475.82 | I10: ='[2]Income Statement'!I10 -> 568808.19 | J10: ='[2]Income Statement'!J10 -> 705154.89 | K10: ='[2]Income Statement'!K10 -> 594547.94 | L10: ='[2]Income Statement'!L10 -> 570985.38 | M10: ='[2]Income Statement'!M10 -> 604399.26 | N10: ='[2]Income Statement'!N10 -> 647846.55 | O10: ='[2]Income Statement'!O10 -> 677337.29 | P10: ='[2]Income Statement'!P10 -> 717857.52 | Q10: ='[2]Income Statement'!Q10 -> 672857.52
A11: Other Revenues | B11: Other Revenues | D11: ='[2]Income Statement'!D11 -> 3000 | F11: ='[2]Income Statement'!F11 -> 12853.37 | H11: ='[2]Income Statement'!H11 -> 13115.97 | I11: ='[2]Income Statement'!I11 -> 13509.44 | J11: ='[2]Income Statement'!J11 -> 13914.72 | K11: ='[2]Income Statement'!K11 -> 14332.17 | L11: ='[2]Income Statement'!L11 -> 14762.14 | M11: ='[2]Income Statement'!M11 -> 15205.01 | N11: ='[2]Income Statement'!N11 -> 15661.16 | O11: ='[2]Income Statement'!O11 -> 16131 | P11: ='[2]Income Statement'!P11 -> 16614.93 | Q11: ='[2]Income Statement'!Q11 -> 17113.38
A12: Grants & Contributions provided for Operating Purposes | B12: Grants & Contributions provided for Operating Purposes | D12: ='[2]Income Statement'!D12 -> 48000 | F12: ='[2]Income Statement'!F12 -> 49089.8 | H12: ='[2]Income Statement'!H12 -> 50562.49 | I12: ='[2]Income Statement'!I12 -> 52079.36 | J12: ='[2]Income Statement'!J12 -> 53641.74 | K12: ='[2]Income Statement'!K12 -> 55250.99 | L12: ='[2]Income Statement'!L12 -> 56908.52 | M12: ='[2]Income Statement'!M12 -> 58615.78 | N12: ='[2]Income Statement'!N12 -> 60374.25 | O12: ='[2]Income Statement'!O12 -> 62185.48 | P12: ='[2]Income Statement'!P12 -> 64051.04 | Q12: ='[2]Income Statement'!Q12 -> 65972.57
A13: Grants & Contributions provided for Capital Purposes | B13: Grants & Contributions provided for Capital Purposes | D13: ='[2]Income Statement'!D13 -> 94000 | F13: ='[2]Income Statement'!F13 -> 152750 | H13: ='[2]Income Statement'!H13 -> 77999.75 | I13: ='[2]Income Statement'!I13 -> 79949.74 | J13: ='[2]Income Statement'!J13 -> 81948.48 | K13: ='[2]Income Statement'!K13 -> 83997.18 | L13: ='[2]Income Statement'!L13 -> 86097.1 | M13: ='[2]Income Statement'!M13 -> 88249.52 | N13: ='[2]Income Statement'!N13 -> 90455.76 | O13: ='[2]Income Statement'!O13 -> 92717.14 | P13: ='[2]Income Statement'!P13 -> 95035.06 | Q13: ='[2]Income Statement'!Q13 -> 97410.94
B14: Other Income:
A15: =B15 -> Net gains from the disposal of assets | B15: Net gains from the disposal of assets | D15: ='[2]Income Statement'!D15 -> 0 | F15: ='[2]Income Statement'!F15 -> 0 | H15: ='[2]Income Statement'!H15 -> 0 | I15: ='[2]Income Statement'!I15 -> 0 | J15: ='[2]Income Statement'!J15 -> 0 | K15: ='[2]Income Statement'!K15 -> 0 | L15: ='[2]Income Statement'!L15 -> 0 | M15: ='[2]Income Statement'!M15 -> 0 | N15: ='[2]Income Statement'!N15 -> 0 | O15: ='[2]Income Statement'!O15 -> 0 | P15: ='[2]Income Statement'!P15 -> 0 | Q15: ='[2]Income Statement'!Q15 -> 0
A16: =B16&" - Gain" -> Joint Ventures & Associated Entities - Gain | B16: Joint Ventures & Associated Entities | D16: ='[2]Income Statement'!D16 -> 0 | F16: ='[2]Income Statement'!F16 -> 0 | H16: ='[2]Income Statement'!H16 -> 0 | I16: ='[2]Income Statement'!I16 -> 0 | J16: ='[2]Income Statement'!J16 -> 0 | K16: ='[2]Income Statement'!K16 -> 0 | L16: ='[2]Income Statement'!L16 -> 0 | M16: ='[2]Income Statement'!M16 -> 0 | N16: ='[2]Income Statement'!N16 -> 0 | O16: ='[2]Income Statement'!O16 -> 0 | P16: ='[2]Income Statement'!P16 -> 0 | Q16: ='[2]Income Statement'!Q16 -> 0
B17: Total Income from Continuing Operations | D17: =SUM(D7:D16) -> 2689000 | F17: =SUM(F7:F16) -> 2974176.93 | H17: 2968767.07 | I17: =SUM(I7:I16) -> 3066451.24 | J17: 3289036.5 | K17: 3267655.1 | L17: 3336408.76 | M17: 3465336.86 | N17: 3607607.41 | O17: 3739345.34 | P17: 3885655.61 | Q17: 3938520.08
H18: =+H17-H13 -> 2890767.32
B19: Expenses from Continuing Operations
A20: =B20 -> Employee Benefits & On-Costs | B20: Employee Benefits & On-Costs | D20: ='[2]Income Statement'!D20 -> 1034000 | F20: ='[2]Income Statement'!F20 -> 1141534 | H20: ='[2]Income Statement'!H20 -> 1073322.03 | I20: ='[2]Income Statement'!I20 -> 1105521.69 | J20: ='[2]Income Statement'!J20 -> 1138687.35 | K20: ='[2]Income Statement'!K20 -> 1172847.97 | L20: ='[2]Income Statement'!L20 -> 1208033.41 | M20: ='[2]Income Statement'!M20 -> 1244274.42 | N20: ='[2]Income Statement'!N20 -> 1281602.65 | O20: ='[2]Income Statement'!O20 -> 1320050.73 | P20: ='[2]Income Statement'!P20 -> 1359652.25 | Q20: ='[2]Income Statement'!Q20 -> 1400441.83
A21: =B21 -> Borrowing Costs | B21: Borrowing Costs | D21: ='[2]Income Statement'!D21 -> 0 | F21: ='[2]Income Statement'!F21 -> 0 | H21: ='[2]Income Statement'!H21 -> 0 | I21: ='[2]Income Statement'!I21 -> 0 | J21: ='[2]Income Statement'!J21 -> 0 | K21: ='[2]Income Statement'!K21 -> 0 | L21: ='[2]Income Statement'!L21 -> 0 | M21: ='[2]Income Statement'!M21 -> 0 | N21: ='[2]Income Statement'!N21 -> 0 | O21: ='[2]Income Statement'!O21 -> 0 | P21: ='[2]Income Statement'!P21 -> 0 | Q21: ='[2]Income Statement'!Q21 -> 0
A22: Materials & Contracts | B22: Materials & Contracts | D22: ='[2]Income Statement'!D22 -> 325000 | F22: ='[2]Income Statement'!F22 -> 362852.39 | H22: ='[2]Income Statement'!H22 -> 355055.63 | I22: ='[2]Income Statement'!I22 -> 359210.4 | J22: ='[2]Income Statement'!J22 -> 363327.39 | K22: ='[2]Income Statement'!K22 -> 367401.37 | L22: ='[2]Income Statement'!L22 -> 371426.96 | M22: ='[2]Income Statement'!M22 -> 375398.41 | N22: ='[2]Income Statement'!N22 -> 379309.69 | O22: ='[2]Income Statement'!O22 -> 383154.52 | P22: ='[2]Income Statement'!P22 -> 386926.38 | Q22: ='[2]Income Statement'!Q22 -> 396599.54
A23: Depreciation & Amortisation | B23: Depreciation & Amortisation | D23: ='[2]Income Statement'!D23 -> 727000 | F23: ='[2]Income Statement'!F23 -> 862586.95 | H23: ='[2]Income Statement'!H23 -> 891212.82 | I23: ='[2]Income Statement'!I23 -> 918949.2 | J23: ='[2]Income Statement'!J23 -> 949517.68 | K23: ='[2]Income Statement'!K23 -> 1013003.21 | L23: ='[2]Income Statement'!L23 -> 1054393.31 | M23: ='[2]Income Statement'!M23 -> 1048937.24 | N23: ='[2]Income Statement'!N23 -> 1076405.36 | O23: ='[2]Income Statement'!O23 -> 1103697.52 | P23: ='[2]Income Statement'!P23 -> 1131808.45 | Q23: ='[2]Income Statement'!Q23 -> 1143126.53
A24: Impairment | B24: Impairment | D24: ='[2]Income Statement'!D24 -> 0 | F24: ='[2]Income Statement'!F24 -> 0 | H24: ='[2]Income Statement'!H24 -> 0 | I24: ='[2]Income Statement'!I24 -> 0 | J24: ='[2]Income Statement'!J24 -> 0 | K24: ='[2]Income Statement'!K24 -> 0 | L24: ='[2]Income Statement'!L24 -> 0 | M24: ='[2]Income Statement'!M24 -> 0 | N24: ='[2]Income Statement'!N24 -> 0 | O24: ='[2]Income Statement'!O24 -> 0 | P24: ='[2]Income Statement'!P24 -> 0 | Q24: ='[2]Income Statement'!Q24 -> 0
A25: Other Expenses | B25: Other Expenses | D25: ='[2]Income Statement'!D25 -> 365000 | F25: ='[2]Income Statement'!F25 -> 420128.9 | H25: ='[2]Income Statement'!H25 -> 287849.12 | I25: ='[2]Income Statement'!I25 -> 295045.35 | J25: ='[2]Income Statement'!J25 -> 302421.49 | K25: ='[2]Income Statement'!K25 -> 309982.03 | L25: ='[2]Income Statement'!L25 -> 317731.59 | M25: ='[2]Income Statement'!M25 -> 325674.89 | N25: ='[2]Income Statement'!N25 -> 333816.78 | O25: ='[2]Income Statement'!O25 -> 342162.2 | P25: ='[2]Income Statement'!P25 -> 350716.26 | Q25: ='[2]Income Statement'!Q25 -> 359484.17
A26: Interest & Investment Losses | B26: Interest & Investment Losses | D26: ='[2]Income Statement'!D26 -> 0 | F26: ='[2]Income Statement'!F26 -> 0 | H26: ='[2]Income Statement'!H26 -> 0 | I26: ='[2]Income Statement'!I26 -> 0 | J26: ='[2]Income Statement'!J26 -> 0 | K26: ='[2]Income Statement'!K26 -> 0 | L26: ='[2]Income Statement'!L26 -> 0 | M26: ='[2]Income Statement'!M26 -> 0 | N26: ='[2]Income Statement'!N26 -> 0 | O26: ='[2]Income Statement'!O26 -> 0 | P26: ='[2]Income Statement'!P26 -> 0 | Q26: ='[2]Income Statement'!Q26 -> 0
A27: Net Losses from the Disposal of Assets | B27: Net Losses from the Disposal of Assets | D27: ='[2]Income Statement'!D27 -> 0 | F27: ='[2]Income Statement'!F27 -> 0 | H27: ='[2]Income Statement'!H27 -> 0 | I27: ='[2]Income Statement'!I27 -> 0 | J27: ='[2]Income Statement'!J27 -> 0 | K27: ='[2]Income Statement'!K27 -> 0 | L27: ='[2]Income Statement'!L27 -> 0 | M27: ='[2]Income Statement'!M27 -> 0 | N27: ='[2]Income Statement'!N27 -> 0 | O27: ='[2]Income Statement'!O27 -> 0 | P27: ='[2]Income Statement'!P27 -> 0 | Q27: ='[2]Income Statement'!Q27 -> 0
A28: =B28&" - Loss" -> Joint Ventures & Associated Entities - Loss | B28: Joint Ventures & Associated Entities | D28: ='[2]Income Statement'!D28 -> 0 | F28: ='[2]Income Statement'!F28 -> 0 | H28: ='[2]Income Statement'!H28 -> 0 | I28: ='[2]Income Statement'!I28 -> 0 | J28: ='[2]Income Statement'!J28 -> 0 | K28: ='[2]Income Statement'!K28 -> 0 | L28: ='[2]Income Statement'!L28 -> 0 | M28: ='[2]Income Statement'!M28 -> 0 | N28: ='[2]Income Statement'!N28 -> 0 | O28: ='[2]Income Statement'!O28 -> 0 | P28: ='[2]Income Statement'!P28 -> 0 | Q28: ='[2]Income Statement'!Q28 -> 0
B29: Total Expenses from Continuing Operations | D29: =SUM(D20:D28) -> 2451000 | F29: =SUM(F20:F28) -> 2787102.24 | H29: =SUM(H20:H28) -> 2607439.6 | I29: =SUM(I20:I28) -> 2678726.64 | J29: 2753953.91 | K29: 2863234.58 | L29: 2951585.27 | M29: 2994284.96 | N29: 3071134.48 | O29: 3149064.97 | P29: 3229103.34 | Q29: 3299652.07
B31: Operating Result from Continuing Operations | D31: =D17-D29 -> 238000 | F31: =F17-F29 -> 187074.69 | H31: =H17-H29 -> 361327.47 | I31: 387724.6 | J31: 535082.59 | K31: 404420.52 | L31: 384823.49 | M31: 471051.9 | N31: 536472.93 | O31: 590280.37 | P31: 656552.27 | Q31: 638868.01
B33: Discontinued Operations - Profit/(Loss) | D33: ='[2]Income Statement'!D33 -> 0 | F33: ='[2]Income Statement'!F33 -> 0 | H33: ='[2]Income Statement'!H33 -> 0 | I33: ='[2]Income Statement'!I33 -> 0 | J33: ='[2]Income Statement'!J33 -> 0 | K33: ='[2]Income Statement'!K33 -> 0 | L33: ='[2]Income Statement'!L33 -> 0 | M33: ='[2]Income Statement'!M33 -> 0 | N33: ='[2]Income Statement'!N33 -> 0 | O33: ='[2]Income Statement'!O33 -> 0 | P33: ='[2]Income Statement'!P33 -> 0 | Q33: ='[2]Income Statement'!Q33 -> 0
B34: Net Profit/(Loss) from Discontinued Operations | D34: =D33 -> 0 | F34: =F33 -> 0 | H34: =H33 -> 0 | I34: =I33 -> 0 | J34: 0 | K34: 0 | L34: 0 | M34: 0 | N34: 0 | O34: 0 | P34: 0 | Q34: 0
B36: Net Operating Result for the Year | D36: =D34+D31 -> 238000 | F36: =F34+F31 -> 187074.69 | H36: =H34+H31 -> 361327.47 | I36: 387724.6 | J36: 535082.59 | K36: 404420.52 | L36: 384823.49 | M36: 471051.9 | N36: 536472.93 | O36: 590280.37 | P36: 656552.27 | Q36: 638868.01
B38: Net Operating Result before Grants and Contributions provided for
B39: Capital Purposes | D39: =D36-D13 -> 144000 | F39: =F36-F13 -> 34324.69 | H39: =H36-H13 -> 283327.72 | I39: 307774.86 | J39: 453134.11 | K39: 320423.34 | L39: 298726.39 | M39: 382802.38 | N39: 446017.17 | O39: 497563.23 | P39: 561517.21 | Q39: 541457.07
B44: Net Internal Surplus | F44: ='[2]Income Statement'!F44 -> 0 | H44: ='[2]Income Statement'!H44 -> 0 | I44: ='[2]Income Statement'!I44 -> 0 | J44: ='[2]Income Statement'!J44 -> 0 | K44: ='[2]Income Statement'!K44 -> 0 | L44: ='[2]Income Statement'!L44 -> 0 | M44: ='[2]Income Statement'!M44 -> 0 | N44: ='[2]Income Statement'!N44 -> 0 | O44: ='[2]Income Statement'!O44 -> 0 | P44: ='[2]Income Statement'!P44 -> 0 | Q44: ='[2]Income Statement'!Q44 -> 0
B45: Net Internal Deficit | F45: ='[2]Income Statement'!F45 -> 813721.55 | H45: ='[2]Income Statement'!H45 -> 834064.59 | I45: ='[2]Income Statement'!I45 -> 854916.21 | J45: ='[2]Income Statement'!J45 -> 876289.11 | K45: ='[2]Income Statement'!K45 -> 898196.34 | L45: ='[2]Income Statement'!L45 -> 920651.25 | M45: ='[2]Income Statement'!M45 -> 943667.53 | N45: ='[2]Income Statement'!N45 -> 967259.22 | O45: ='[2]Income Statement'!O45 -> 991440.7 | P45: ='[2]Income Statement'!P45 -> 1016226.72 | Q45: ='[2]Income Statement'!Q45 -> 1041632.39
B47: Interest receivable on Internal Loans | F47: ='[2]Income Statement'!F47 -> 0 | H47: ='[2]Income Statement'!H47 -> 0 | I47: ='[2]Income Statement'!I47 -> 0 | J47: ='[2]Income Statement'!J47 -> 0 | K47: ='[2]Income Statement'!K47 -> 0 | L47: ='[2]Income Statement'!L47 -> 0 | M47: ='[2]Income Statement'!M47 -> 0 | N47: ='[2]Income Statement'!N47 -> 0 | O47: ='[2]Income Statement'!O47 -> 0 | P47: ='[2]Income Statement'!P47 -> 0 | Q47: ='[2]Income Statement'!Q47 -> 0
B48: Interest payable on Internal Loans | F48: ='[2]Income Statement'!F48 -> 0 | H48: ='[2]Income Statement'!H48 -> 0 | I48: ='[2]Income Statement'!I48 -> 0 | J48: ='[2]Income Statement'!J48 -> 0 | K48: ='[2]Income Statement'!K48 -> 0 | L48: ='[2]Income Statement'!L48 -> 0 | M48: ='[2]Income Statement'!M48 -> 0 | N48: ='[2]Income Statement'!N48 -> 0 | O48: ='[2]Income Statement'!O48 -> 0 | P48: ='[2]Income Statement'!P48 -> 0 | Q48: ='[2]Income Statement'!Q48 -> 0

Sheet Income Statement - Sewer
B1: ='Cover Page'!$A$3 -> Bellingen Shire Council
B2: ='Cover Page'!$A$5 -> 10 Year Financial Plan for the Years ending 30 June 2026
B3: ="INCOME STATEMENT - "&UPPER(consol_SF_name) -> INCOME STATEMENT - SEWER FUND | D3: Actuals | F3: Current Year | H3: Projected Years
B4: ="Scenario: "&consol_scenario_name -> Scenario: Model 1 - Service Levels Maintained | D4: =Starting_year-2&"/"&RIGHT(Starting_year-1,2) -> 2014/15 | F4: =Starting_year-1&"/"&RIGHT(Starting_year,2) -> 2015/16 | H4: =Starting_year&"/"&RIGHT(Starting_year+1,2) -> 2016/17 | I4: =Starting_year+1&"/"&RIGHT(Starting_year+2,2) -> 2017/18 | J4: =Starting_year+2&"/"&RIGHT(Starting_year+3,2) -> 2018/19 | K4: =Starting_year+3&"/"&RIGHT(Starting_year+4,2) -> 2019/20 | L4: =Starting_year+4&"/"&RIGHT(Starting_year+5,2) -> 2020/21 | M4: =Starting_year+5&"/"&RIGHT(Starting_year+6,2) -> 2021/22 | N4: =Starting_year+6&"/"&RIGHT(Starting_year+7,2) -> 2022/23 | O4: =Starting_year+7&"/"&RIGHT(Starting_year+8,2) -> 2023/24 | P4: =Starting_year+8&"/"&RIGHT(Starting_year+9,2) -> 2024/25 | Q4: =Starting_year+9&"/"&RIGHT(Starting_year+10,2) -> 2025/26
D5: =IF('Cover Page'!$K$75=TRUE,"$","$'000") -> $'000 | F5: =IF('Cover Page'!$K$75=TRUE,"$","$'000") -> $'000 | H5: =IF('Cover Page'!$K$75=TRUE,"$","$'000") -> $'000 | I5: =IF('Cover Page'!$K$75=TRUE,"$","$'000") -> $'000 | J5: =IF('Cover Page'!$K$75=TRUE,"$","$'000") -> $'000 | K5: =IF('Cover Page'!$K$75=TRUE,"$","$'000") -> $'000 | L5: =IF('Cover Page'!$K$75=TRUE,"$","$'000") -> $'000 | M5: =IF('Cover Page'!$K$75=TRUE,"$","$'000") -> $'000 | N5: =IF('Cover Page'!$K$75=TRUE,"$","$'000") -> $'000 | O5: =IF('Cover Page'!$K$75=TRUE,"$","$'000") -> $'000 | P5: =IF('Cover Page'!$K$75=TRUE,"$","$'000") -> $'000 | Q5: =IF('Cover Page'!$K$75=TRUE,"$","$'000") -> $'000
B6: Income from Continuing Operations
A7: Code | B7: Revenue:
A8: =B8 -> Rates & Annual Charges | B8: Rates & Annual Charges | D8: ='[3]Income Statement'!D8 -> 2812000 | F8: ='[3]Income Statement'!F8 -> 2949450 | H8: ='[3]Income Statement'!H8 -> 3052680.75 | I8: ='[3]Income Statement'!I8 -> 3159524.58 | J8: ='[3]Income Statement'!J8 -> 3270107.94 | K8: ='[3]Income Statement'!K8 -> 3384561.72 | L8: ='[3]Income Statement'!L8 -> 3503021.38 | M8: ='[3]Income Statement'!M8 -> 3625627.13 | N8: ='[3]Income Statement'!N8 -> 3752524.08 | O8: ='[3]Income Statement'!O8 -> 3883862.43 | P8: ='[3]Income Statement'!P8 -> 4019797.62 | Q8: ='[3]Income Statement'!Q8 -> 4160490.54
A9: User Charges & Fees | B9: User Charges & Fees | D9: ='[3]Income Statement'!D9 -> 182000 | F9: ='[3]Income Statement'!F9 -> 200260.84 | H9: ='[3]Income Statement'!H9 -> 206268.67 | I9: ='[3]Income Statement'!I9 -> 212456.73 | J9: ='[3]Income Statement'!J9 -> 218830.43 | K9: ='[3]Income Statement'!K9 -> 225395.35 | L9: ='[3]Income Statement'!L9 -> 232157.2 | M9: ='[3]Income Statement'!M9 -> 239121.91 | N9: ='[3]Income Statement'!N9 -> 246295.57 | O9: ='[3]Income Statement'!O9 -> 253684.44 | P9: ='[3]Income Statement'!P9 -> 261294.98 | Q9: ='[3]Income Statement'!Q9 -> 269133.83
A10: Interest & Investment Revenue | B10: Interest & Investment Revenue | D10: ='[3]Income Statement'!D10 -> 246000 | F10: ='[3]Income Statement'!F10 -> 104974.91 | H10: ='[3]Income Statement'!H10 -> 73364.16 | I10: ='[3]Income Statement'!I10 -> 79765.08 | J10: ='[3]Income Statement'!J10 -> 109178.03 | K10: ='[3]Income Statement'!K10 -> 126603.37 | L10: ='[3]Income Statement'!L10 -> 135041.47 | M10: ='[3]Income Statement'!M10 -> 135492.71 | N10: ='[3]Income Statement'!N10 -> 145957.49 | O10: ='[3]Income Statement'!O10 -> 95436.21 | P10: ='[3]Income Statement'!P10 -> 64929.3 | Q10: ='[3]Income Statement'!Q10 -> 88929.3
A11: Other Revenues | B11: Other Revenues | D11: ='[3]Income Statement'!D11 -> 2000 | F11: ='[3]Income Statement'!F11 -> 515 | H11: ='[3]Income Statement'!H11 -> 530.45 | I11: ='[3]Income Statement'!I11 -> 546.36 | J11: ='[3]Income Statement'!J11 -> 562.75 | K11: ='[3]Income Statement'!K11 -> 579.63 | L11: ='[3]Income Statement'!L11 -> 597.02 | M11: ='[3]Income Statement'!M11 -> 614.93 | N11: ='[3]Income Statement'!N11 -> 633.38 | O11: ='[3]Income Statement'!O11 -> 652.38 | P11: ='[3]Income Statement'!P11 -> 671.95 | Q11: ='[3]Income Statement'!Q11 -> 692.11
A12: Grants & Contributions provided for Operating Purposes | B12: Grants & Contributions provided for Operating Purposes | D12: ='[3]Income Statement'!D12 -> 41000 | F12: ='[3]Income Statement'!F12 -> 42344.33 | H12: ='[3]Income Statement'!H12 -> 43614.66 | I12: ='[3]Income Statement'!I12 -> 44923.1 | J12: ='[3]Income Statement'!J12 -> 46270.79 | K12: ='[3]Income Statement'!K12 -> 47658.91 | L12: ='[3]Income Statement'!L12 -> 49088.68 | M12: ='[3]Income Statement'!M12 -> 50561.34 | N12: ='[3]Income Statement'!N12 -> 52078.18 | O12: ='[3]Income Statement'!O12 -> 53640.53 | P12: ='[3]Income Statement'!P12 -> 55249.75 | Q12: ='[3]Income Statement'!Q12 -> 56907.24
A13: Grants & Contributions provided for Capital Purposes | B13: Grants & Contributions provided for Capital Purposes | D13: ='[3]Income Statement'!D13 -> 1480000 | F13: ='[3]Income Statement'!F13 -> 1062125 | H13: ='[3]Income Statement'!H13 -> 30000.13 | I13: ='[3]Income Statement'!I13 -> 30750.13 | J13: ='[3]Income Statement'!J13 -> 31518.89 | K13: ='[3]Income Statement'!K13 -> 32306.87 | L13: ='[3]Income Statement'!L13 -> 33114.54 | M13: ='[3]Income Statement'!M13 -> 33942.41 | N13: ='[3]Income Statement'!N13 -> 34790.98 | O13: ='[3]Income Statement'!O13 -> 35660.75 | P13: ='[3]Income Statement'!P13 -> 36552.28 | Q13: ='[3]Income Statement'!Q13 -> 37466.09
B14: Other Income:
A15: =B15 -> Net gains from the disposal of assets | B15: Net gains from the disposal of assets | D15: ='[3]Income Statement'!D15 -> 0 | F15: ='[3]Income Statement'!F15 -> 0 | H15: ='[3]Income Statement'!H15 -> 0 | I15: ='[3]Income Statement'!I15 -> 0 | J15: ='[3]Income Statement'!J15 -> 0 | K15: ='[3]Income Statement'!K15 -> 0 | L15: ='[3]Income Statement'!L15 -> 0 | M15: ='[3]Income Statement'!M15 -> 0 | N15: ='[3]Income Statement'!N15 -> 0 | O15: ='[3]Income Statement'!O15 -> 0 | P15: ='[3]Income Statement'!P15 -> 0 | Q15: ='[3]Income Statement'!Q15 -> 0
A16: =B16&" - Gain" -> Joint Ventures & Associated Entities - Gain | B16: Joint Ventures & Associated Entities | D16: ='[3]Income Statement'!D16 -> 0 | F16: ='[3]Income Statement'!F16 -> 0 | H16: ='[3]Income Statement'!H16 -> 0 | I16: ='[3]Income Statement'!I16 -> 0 | J16: ='[3]Income Statement'!J16 -> 0 | K16: ='[3]Income Statement'!K16 -> 0 | L16: ='[3]Income Statement'!L16 -> 0 | M16: ='[3]Income Statement'!M16 -> 0 | N16: ='[3]Income Statement'!N16 -> 0 | O16: ='[3]Income Statement'!O16 -> 0 | P16: ='[3]Income Statement'!P16 -> 0 | Q16: ='[3]Income Statement'!Q16 -> 0
B17: Total Income from Continuing Operations | D17: =SUM(D7:D16) -> 4763000 | F17: 4359670.08 | H17: =SUM(H7:H16) -> 3406458.82 | I17: 3527965.98 | J17: 3676468.83 | K17: 3817105.85 | L17: 3953020.29 | M17: 4085360.43 | N17: 4232279.68 | O17: 4322936.74 | P17: 4438495.88 | Q17: 4613619.11
B19: Expenses from Continuing Operations
A20: =B20 -> Employee Benefits & On-Costs | B20: Employee Benefits & On-Costs | D20: ='[3]Income Statement'!D20 -> 1172000 | F20: ='[3]Income Statement'!F20 -> 1284439.14 | H20: ='[3]Income Statement'!H20 -> 1288869.31 | I20: ='[3]Income Statement'!I20 -> 1327535.39 | J20: ='[3]Income Statement'!J20 -> 1367361.45 | K20: ='[3]Income Statement'!K20 -> 1408382.29 | L20: ='[3]Income Statement'!L20 -> 1450633.75 | M20: ='[3]Income Statement'!M20 -> 1494152.76 | N20: ='[3]Income Statement'!N20 -> 1538977.35 | O20: ='[3]Income Statement'!O20 -> 1585146.67 | P20: ='[3]Income Statement'!P20 -> 1632701.07 | Q20: ='[3]Income Statement'!Q20 -> 1681682.1
A21: =B21 -> Borrowing Costs | B21: Borrowing Costs | D21: ='[3]Income Statement'!D21 -> 0 | F21: ='[3]Income Statement'!F21 -> 0 | H21: ='[3]Income Statement'!H21 -> 0 | I21: ='[3]Income Statement'!I21 -> 0 | J21: ='[3]Income Statement'!J21 -> 0 | K21: ='[3]Income Statement'!K21 -> 0 | L21: ='[3]Income Statement'!L21 -> 0 | M21: ='[3]Income Statement'!M21 -> 0 | N21: ='[3]Income Statement'!N21 -> 0 | O21: ='[3]Income Statement'!O21 -> 0 | P21: ='[3]Income Statement'!P21 -> 0 | Q21: ='[3]Income Statement'!Q21 -> 0
A22: Materials & Contracts | B22: Materials & Contracts | D22: ='[3]Income Statement'!D22 -> 642000 | F22: ='[3]Income Statement'!F22 -> 705733.36 | H22: ='[3]Income Statement'!H22 -> 640568.34 | I22: ='[3]Income Statement'!I22 -> 650860.75 | J22: ='[3]Income Statement'!J22 -> 661433.58 | K22: ='[3]Income Statement'!K22 -> 672312.11 | L22: ='[3]Income Statement'!L22 -> 683516.98 | M22: ='[3]Income Statement'!M22 -> 695075.05 | N22: ='[3]Income Statement'!N22 -> 707011.81 | O22: ='[3]Income Statement'!O22 -> 719360.12 | P22: ='[3]Income Statement'!P22 -> 732149.75 | Q22: ='[3]Income Statement'!Q22 -> 750453.5
A23: Depreciation & Amortisation | B23: Depreciation & Amortisation | D23: ='[3]Income Statement'!D23 -> 983000 | F23: ='[3]Income Statement'!F23 -> 1158714.19 | H23: ='[3]Income Statement'!H23 -> 1115000.33 | I23: ='[3]Income Statement'!I23 -> 1144150.33 | J23: ='[3]Income Statement'!J23 -> 1171591.83 | K23: ='[3]Income Statement'!K23 -> 1232307.75 | L23: ='[3]Income Statement'!L23 -> 1263630.83 | M23: ='[3]Income Statement'!M23 -> 1246267.14 | N23: ='[3]Income Statement'!N23 -> 1279729.81 | O23: ='[3]Income Statement'!O23 -> 1312527.11 | P23: ='[3]Income Statement'!P23 -> 1346652.38 | Q23: ='[3]Income Statement'!Q23 -> 1360118.9
A24: Impairment | B24: Impairment | D24: ='[3]Income Statement'!D24 -> 0 | F24: ='[3]Income Statement'!F24 -> 0 | H24: ='[3]Income Statement'!H24 -> 0 | I24: ='[3]Income Statement'!I24 -> 0 | J24: ='[3]Income Statement'!J24 -> 0 | K24: ='[3]Income Statement'!K24 -> 0 | L24: ='[3]Income Statement'!L24 -> 0 | M24: ='[3]Income Statement'!M24 -> 0 | N24: ='[3]Income Statement'!N24 -> 0 | O24: ='[3]Income Statement'!O24 -> 0 | P24: ='[3]Income Statement'!P24 -> 0 | Q24: ='[3]Income Statement'!Q24 -> 0
A25: Other Expenses | B25: Other Expenses | D25: ='[3]Income Statement'!D25 -> 267000 | F25: ='[3]Income Statement'!F25 -> 319827.66 | H25: ='[3]Income Statement'!H25 -> 313478.36 | I25: ='[3]Income Statement'!I25 -> 321315.32 | J25: ='[3]Income Statement'!J25 -> 329348.2 | K25: ='[3]Income Statement'!K25 -> 337581.89 | L25: ='[3]Income Statement'!L25 -> 346021.44 | M25: ='[3]Income Statement'!M25 -> 354671.98 | N25: ='[3]Income Statement'!N25 -> 363538.79 | O25: ='[3]Income Statement'!O25 -> 372627.25 | P25: ='[3]Income Statement'!P25 -> 381942.92 | Q25: ='[3]Income Statement'!Q25 -> 391491.5
A26: Interest & Investment Losses | B26: Interest & Investment Losses | D26: ='[3]Income Statement'!D26 -> 0 | F26: ='[3]Income Statement'!F26 -> 0 | H26: ='[3]Income Statement'!H26 -> 0 | I26: ='[3]Income Statement'!I26 -> 0 | J26: ='[3]Income Statement'!J26 -> 0 | K26: ='[3]Income Statement'!K26 -> 0 | L26: ='[3]Income Statement'!L26 -> 0 | M26: ='[3]Income Statement'!M26 -> 0 | N26: ='[3]Income Statement'!N26 -> 0 | O26: ='[3]Income Statement'!O26 -> 0 | P26: ='[3]Income Statement'!P26 -> 0 | Q26: ='[3]Income Statement'!Q26 -> 0
A27: Net Losses from the Disposal of Assets | B27: Net Losses from the Disposal of Assets | D27: ='[3]Income Statement'!D27 -> 14000 | F27: ='[3]Income Statement'!F27 -> 0 | H27: ='[3]Income Statement'!H27 -> 0 | I27: ='[3]Income Statement'!I27 -> 0 | J27: ='[3]Income Statement'!J27 -> 0 | K27: ='[3]Income Statement'!K27 -> 0 | L27: ='[3]Income Statement'!L27 -> 0 | M27: ='[3]Income Statement'!M27 -> 0 | N27: ='[3]Income Statement'!N27 -> 0 | O27: ='[3]Income Statement'!O27 -> 0 | P27: ='[3]Income Statement'!P27 -> 0 | Q27: ='[3]Income Statement'!Q27 -> 0
A28: =B28&" - Loss" -> Joint Ventures & Associated Entities - Loss | B28: Joint Ventures & Associated Entities | D28: ='[3]Income Statement'!D28 -> 0 | F28: ='[3]Income Statement'!F28 -> 0 | H28: ='[3]Income Statement'!H28 -> 0 | I28: ='[3]Income Statement'!I28 -> 0 | J28: ='[3]Income Statement'!J28 -> 0 | K28: ='[3]Income Statement'!K28 -> 0 | L28: ='[3]Income Statement'!L28 -> 0 | M28: ='[3]Income Statement'!M28 -> 0 | N28: ='[3]Income Statement'!N28 -> 0 | O28: ='[3]Income Statement'!O28 -> 0 | P28: ='[3]Income Statement'!P28 -> 0 | Q28: ='[3]Income Statement'!Q28 -> 0
B29: Total Expenses from Continuing Operations | D29: =SUM(D20:D28) -> 3078000 | F29: =SUM(F20:F28) -> 3468714.35 | H29: =SUM(H20:H28) -> 3357916.34 | I29: =SUM(I20:I28) -> 3443861.79 | J29: 3529735.06 | K29: 3650584.04 | L29: 3743803 | M29: 3790166.93 | N29: 3889257.76 | O29: 3989661.15 | P29: 4093446.12 | Q29: 4183746
B31: Operating Result from Continuing Operations | D31: =D17-D29 -> 1685000 | F31: =F17-F29 -> 890955.73 | H31: =H17-H29 -> 48542.48 | I31: =I17-I29 -> 84104.19 | J31: 146733.77 | K31: 166521.81 | L31: 209217.29 | M31: 295193.5 | N31: 343021.92 | O31: 333275.59 | P31: 345049.76 | Q31: 429873.11
B33: Discontinued Operations - Profit/(Loss) | D33: ='[3]Income Statement'!D33 -> 0 | F33: ='[3]Income Statement'!F33 -> 0 | H33: ='[3]Income Statement'!H33 -> 0 | I33: ='[3]Income Statement'!I33 -> 0 | J33: ='[3]Income Statement'!J33 -> 0 | K33: ='[3]Income Statement'!K33 -> 0 | L33: ='[3]Income Statement'!L33 -> 0 | M33: ='[3]Income Statement'!M33 -> 0 | N33: ='[3]Income Statement'!N33 -> 0 | O33: ='[3]Income Statement'!O33 -> 0 | P33: ='[3]Income Statement'!P33 -> 0 | Q33: ='[3]Income Statement'!Q33 -> 0
B34: Net Profit/(Loss) from Discontinued Operations | D34: =D33 -> 0 | F34: =F33 -> 0 | H34: =H33 -> 0 | I34: =I33 -> 0 | J34: 0 | K34: 0 | L34: 0 | M34: 0 | N34: 0 | O34: 0 | P34: 0 | Q34: 0
B36: Net Operating Result for the Year | D36: =D34+D31 -> 1685000 | F36: =F34+F31 -> 890955.73 | H36: =H34+H31 -> 48542.48 | I36: 84104.19 | J36: 146733.77 | K36: 166521.81 | L36: 209217.29 | M36: 295193.5 | N36: 343021.92 | O36: 333275.59 | P36: 345049.76 | Q36: 429873.11
B38: Net Operating Result before Grants and Contributions provided for
B39: Capital Purposes | D39: =D36-D13 -> 205000 | F39: =F36-F13 -> -171169.27 | H39: =H36-H13 -> 18542.35 | I39: 53354.06 | J39: 115214.88 | K39: 134214.94 | L39: 176102.75 | M39: 261251.09 | N39: 308230.94 | O39: 297614.84 | P39: 308497.48 | Q39: 392407.02
B44: Net Internal Surplus | F44: ='[3]Income Statement'!F44 -> 0 | H44: ='[3]Income Statement'!H44 -> 0 | I44: ='[3]Income Statement'!I44 -> 0 | J44: ='[3]Income Statement'!J44 -> 0 | K44: ='[3]Income Statement'!K44 -> 0 | L44: ='[3]Income Statement'!L44 -> 0 | M44: ='[3]Income Statement'!M44 -> 0 | N44: ='[3]Income Statement'!N44 -> 0 | O44: ='[3]Income Statement'!O44 -> 0 | P44: ='[3]Income Statement'!P44 -> 0 | Q44: ='[3]Income Statement'!Q44 -> 0
B45: Net Internal Deficit | F45: ='[3]Income Statement'!F45 -> 657757.88 | H45: ='[3]Income Statement'!H45 -> 672625.83 | I45: ='[3]Income Statement'!I45 -> 689441.48 | J45: ='[3]Income Statement'!J45 -> 706677.52 | K45: ='[3]Income Statement'!K45 -> 724344.46 | L45: ='[3]Income Statement'!L45 -> 742453.07 | M45: ='[3]Income Statement'!M45 -> 761014.4 | N45: ='[3]Income Statement'!N45 -> 780039.76 | O45: ='[3]Income Statement'!O45 -> 799540.76 | P45: ='[3]Income Statement'!P45 -> 819529.28 | Q45: ='[3]Income Statement'!Q45 -> 840017.51
B47: Interest receivable on Internal Loans | F47: ='[3]Income Statement'!F47 -> 0 | H47: ='[3]Income Statement'!H47 -> 0 | I47: ='[3]Income Statement'!I47 -> 0 | J47: ='[3]Income Statement'!J47 -> 0 | K47: ='[3]Income Statement'!K47 -> 0 | L47: ='[3]Income Statement'!L47 -> 0 | M47: ='[3]Income Statement'!M47 -> 0 | N47: ='[3]Income Statement'!N47 -> 0 | O47: ='[3]Income Statement'!O47 -> 0 | P47: ='[3]Income Statement'!P47 -> 0 | Q47: ='[3]Income Statement'!Q47 -> 0
B48: Interest payable on Internal Loans | F48: ='[3]Income Statement'!F48 -> 0 | H48: ='[3]Income Statement'!H48 -> 0 | I48: ='[3]Income Statement'!I48 -> 0 | J48: ='[3]Income Statement'!J48 -> 0 | K48: ='[3]Income Statement'!K48 -> 0 | L48: ='[3]Income Statement'!L48 -> 0 | M48: ='[3]Income Statement'!M48 -> 0 | N48: ='[3]Income Statement'!N48 -> 0 | O48: ='[3]Income Statement'!O48 -> 0 | P48: ='[3]Income Statement'!P48 -> 0 | Q48: ='[3]Income Statement'!Q48 -> 0

Sheet Income Statement - Other 1 (hidden)
B1: ='Cover Page'!$A$3 -> Bellingen Shire Council
B2: ='Cover Page'!$A$5 -> 10 Year Financial Plan for the Years ending 30 June 2026
B3: ="INCOME STATEMENT - "&UPPER(consol_Other1_name) -> INCOME STATEMENT - OTHER 1 FUND | D3: Actuals | F3: Current Year | H3: Projected Years
B4: ="Scenario: "&consol_scenario_name -> Scenario: Model 1 - Service Levels Maintained | D4: =Starting_year-2&"/"&RIGHT(Starting_year-1,2) -> 2014/15 | F4: =Starting_year-1&"/"&RIGHT(Starting_year,2) -> 2015/16 | H4: =Starting_year&"/"&RIGHT(Starting_year+1,2) -> 2016/17 | I4: =Starting_year+1&"/"&RIGHT(Starting_year+2,2) -> 2017/18 | J4: =Starting_year+2&"/"&RIGHT(Starting_year+3,2) -> 2018/19 | K4: =Starting_year+3&"/"&RIGHT(Starting_year+4,2) -> 2019/20 | L4: =Starting_year+4&"/"&RIGHT(Starting_year+5,2) -> 2020/21 | M4: =Starting_year+5&"/"&RIGHT(Starting_year+6,2) -> 2021/22 | N4: =Starting_year+6&"/"&RIGHT(Starting_year+7,2) -> 2022/23 | O4: =Starting_year+7&"/"&RIGHT(Starting_year+8,2) -> 2023/24 | P4: =Starting_year+8&"/"&RIGHT(Starting_year+9,2) -> 2024/25 | Q4: =Starting_year+9&"/"&RIGHT(Starting_year+10,2) -> 2025/26
D5: =IF('Cover Page'!$K$75=TRUE,"$","$'000") -> $'000 | F5: =IF('Cover Page'!$K$75=TRUE,"$","$'000") -> $'000 | H5: =IF('Cover Page'!$K$75=TRUE,"$","$'000") -> $'000 | I5: =IF('Cover Page'!$K$75=TRUE,"$","$'000") -> $'000 | J5: =IF('Cover Page'!$K$75=TRUE,"$","$'000") -> $'000 | K5: =IF('Cover Page'!$K$75=TRUE,"$","$'000") -> $'000 | L5: =IF('Cover Page'!$K$75=TRUE,"$","$'000") -> $'000 | M5: =IF('Cover Page'!$K$75=TRUE,"$","$'000") -> $'000 | N5: =IF('Cover Page'!$K$75=TRUE,"$","$'000") -> $'000 | O5: =IF('Cover Page'!$K$75=TRUE,"$","$'000") -> $'000 | P5: =IF('Cover Page'!$K$75=TRUE,"$","$'000") -> $'000 | Q5: =IF('Cover Page'!$K$75=TRUE,"$","$'000") -> $'000
B6: Income from Continuing Operations
A7: Code | B7: Revenue:
A8: =B8 -> Rates & Annual Charges | B8: Rates & Annual Charges | D8: 0 | F8: 0 | H8: 0 | I8: 0 | J8: 0 | K8: 0 | L8: 0 | M8: 0 | N8: 0 | O8: 0 | P8: 0 | Q8: 0
A9: User Charges & Fees | B9: User Charges & Fees | D9: 0 | F9: 0 | H9: 0 | I9: 0 | J9: 0 | K9: 0 | L9: 0 | M9: 0 | N9: 0 | O9: 0 | P9: 0 | Q9: 0
A10: Interest & Investment Revenue | B10: Interest & Investment Revenue | D10: 0 | F10: 0 | H10: 0 | I10: 0 | J10: 0 | K10: 0 | L10: 0 | M10: 0 | N10: 0 | O10: 0 | P10: 0 | Q10: 0
A11: Other Revenues | B11: Other Revenues | D11: 0 | F11: 0 | H11: 0 | I11: 0 | J11: 0 | K11: 0 | L11: 0 | M11: 0 | N11: 0 | O11: 0 | P11: 0 | Q11: 0
A12: Grants & Contributions provided for Operating Purposes | B12: Grants & Contributions provided for Operating Purposes | D12: 0 | F12: 0 | H12: 0 | I12: 0 | J12: 0 | K12: 0 | L12: 0 | M12: 0 | N12: 0 | O12: 0 | P12: 0 | Q12: 0
A13: Grants & Contributions provided for Capital Purposes | B13: Grants & Contributions provided for Capital Purposes | D13: 0 | F13: 0 | H13: 0 | I13: 0 | J13: 0 | K13: 0 | L13: 0 | M13: 0 | N13: 0 | O13: 0 | P13: 0 | Q13: 0
B14: Other Income:
A15: =B15 -> Net gains from the disposal of assets | B15: Net gains from the disposal of assets | D15: 0 | F15: 0 | H15: 0 | I15: 0 | J15: 0 | K15: 0 | L15: 0 | M15: 0 | N15: 0 | O15: 0 | P15: 0 | Q15: 0
A16: =B16&" - Gain" -> Joint Ventures & Associated Entities - Gain | B16: Joint Ventures & Associated Entities | D16: 0 | F16: 0 | H16: 0 | I16: 0 | J16: 0 | K16: 0 | L16: 0 | M16: 0 | N16: 0 | O16: 0 | P16: 0 | Q16: 0
B17: Total Income from Continuing Operations | D17: =SUM(D7:D16) -> 0 | F17: =SUM(F7:F16) -> 0 | H17: 0 | I17: 0 | J17: 0 | K17: 0 | L17: 0 | M17: 0 | N17: 0 | O17: 0 | P17: 0 | Q17: 0
B19: Expenses from Continuing Operations
A20: =B20 -> Employee Benefits & On-Costs | B20: Employee Benefits & On-Costs | D20: 0 | F20: 0 | H20: 0 | I20: 0 | J20: 0 | K20: 0 | L20: 0 | M20: 0 | N20: 0 | O20: 0 | P20: 0 | Q20: 0
A21: =B21 -> Borrowing Costs | B21: Borrowing Costs | D21: 0 | F21: 0 | H21: 0 | I21: 0 | J21: 0 | K21: 0 | L21: 0 | M21: 0 | N21: 0 | O21: 0 | P21: 0 | Q21: 0
A22: Materials & Contracts | B22: Materials & Contracts | D22: 0 | F22: 0 | H22: 0 | I22: 0 | J22: 0 | K22: 0 | L22: 0 | M22: 0 | N22: 0 | O22: 0 | P22: 0 | Q22: 0
A23: Depreciation & Amortisation | B23: Depreciation & Amortisation | D23: 0 | F23: 0 | H23: 0 | I23: 0 | J23: 0 | K23: 0 | L23: 0 | M23: 0 | N23: 0 | O23: 0 | P23: 0 | Q23: 0
A24: Impairment | B24: Impairment | D24: 0 | F24: 0 | H24: 0 | I24: 0 | J24: 0 | K24: 0 | L24: 0 | M24: 0 | N24: 0 | O24: 0 | P24: 0 | Q24: 0
A25: Other Expenses | B25: Other Expenses | D25: 0 | F25: 0 | H25: 0 | I25: 0 | J25: 0 | K25: 0 | L25: 0 | M25: 0 | N25: 0 | O25: 0 | P25: 0 | Q25: 0
A26: Interest & Investment Losses | B26: Interest & Investment Losses | D26: 0 | F26: 0 | H26: 0 | I26: 0 | J26: 0 | K26: 0 | L26: 0 | M26: 0 | N26: 0 | O26: 0 | P26: 0 | Q26: 0
A27: Net Losses from the Disposal of Assets | B27: Net Losses from the Disposal of Assets | D27: 0 | F27: 0 | H27: 0 | I27: 0 | J27: 0 | K27: 0 | L27: 0 | M27: 0 | N27: 0 | O27: 0 | P27: 0 | Q27: 0
A28: =B28&" - Loss" -> Joint Ventures & Associated Entities - Loss | B28: Joint Ventures & Associated Entities | D28: 0 | F28: 0 | H28: 0 | I28: 0 | J28: 0 | K28: 0 | L28: 0 | M28: 0 | N28: 0 | O28: 0 | P28: 0 | Q28: 0
B29: Total Expenses from Continuing Operations | D29: =SUM(D20:D28) -> 0 | F29: =SUM(F20:F28) -> 0 | H29: =SUM(H20:H28) -> 0 | I29: =SUM(I20:I28) -> 0 | J29: 0 | K29: 0 | L29: 0 | M29: 0 | N29: 0 | O29: 0 | P29: 0 | Q29: 0
B31: Operating Result from Continuing Operations | D31: =D17-D29 -> 0 | F31: =F17-F29 -> 0 | H31: =H17-H29 -> 0 | I31: =I17-I29 -> 0 | J31: 0 | K31: 0 | L31: 0 | M31: 0 | N31: 0 | O31: 0 | P31: 0 | Q31: 0
B33: Discontinued Operations - Profit/(Loss) | D33: 0 | F33: 0 | H33: 0 | I33: 0 | J33: 0 | K33: 0 | L33: 0 | M33: 0 | N33: 0 | O33: 0 | P33: 0 | Q33: 0
B34: Net Profit/(Loss) from Discontinued Operations | D34: =D33 -> 0 | F34: =F33 -> 0 | H34: =H33 -> 0 | I34: =I33 -> 0 | J34: 0 | K34: 0 | L34: 0 | M34: 0 | N34: 0 | O34: 0 | P34: 0 | Q34: 0
B36: Net Operating Result for the Year | D36: =D34+D31 -> 0 | F36: =F34+F31 -> 0 | H36: =H34+H31 -> 0 | I36: 0 | J36: 0 | K36: 0 | L36: 0 | M36: 0 | N36: 0 | O36: 0 | P36: 0 | Q36: 0
B38: Net Operating Result before Grants and Contributions provided for
B39: Capital Purposes | D39: =D36-D13 -> 0 | F39: =F36-F13 -> 0 | H39: =H36-H13 -> 0 | I39: 0 | J39: 0 | K39: 0 | L39: 0 | M39: 0 | N39: 0 | O39: 0 | P39: 0 | Q39: 0
B44: Net Internal Surplus | F44: 0 | H44: 0 | I44: 0 | J44: 0 | K44: 0 | L44: 0 | M44: 0 | N44: 0 | O44: 0 | P44: 0 | Q44: 0
B45: Net Internal Deficit | F45: 0 | H45: 0 | I45: 0 | J45: 0 | K45: 0 | L45: 0 | M45: 0 | N45: 0 | O45: 0 | P45: 0 | Q45: 0
B47: Interest receivable on Internal Loans | F47: 0 | H47: 0 | I47: 0 | J47: 0 | K47: 0 | L47: 0 | M47: 0 | N47: 0 | O47: 0 | P47: 0 | Q47: 0
B48: Interest payable on Internal Loans | F48: 0 | H48: 0 | I48: 0 | J48: 0 | K48: 0 | L48: 0 | M48: 0 | N48: 0 | O48: 0 | P48: 0 | Q48: 0

Sheet Income Statement - Other 2 (hidden)
B1: ='Cover Page'!$A$3 -> Bellingen Shire Council
B2: ='Cover Page'!$A$5 -> 10 Year Financial Plan for the Years ending 30 June 2026
B3: ="INCOME STATEMENT - "&UPPER(consol_Other2_name) -> INCOME STATEMENT - OTHER 2 FUND | D3: Actuals | F3: Current Year | H3: Projected Years
B4: ="Scenario: "&consol_scenario_name -> Scenario: Model 1 - Service Levels Maintained | D4: =Starting_year-2&"/"&RIGHT(Starting_year-1,2) -> 2014/15 | F4: =Starting_year-1&"/"&RIGHT(Starting_year,2) -> 2015/16 | H4: =Starting_year&"/"&RIGHT(Starting_year+1,2) -> 2016/17 | I4: =Starting_year+1&"/"&RIGHT(Starting_year+2,2) -> 2017/18 | J4: =Starting_year+2&"/"&RIGHT(Starting_year+3,2) -> 2018/19 | K4: =Starting_year+3&"/"&RIGHT(Starting_year+4,2) -> 2019/20 | L4: =Starting_year+4&"/"&RIGHT(Starting_year+5,2) -> 2020/21 | M4: =Starting_year+5&"/"&RIGHT(Starting_year+6,2) -> 2021/22 | N4: =Starting_year+6&"/"&RIGHT(Starting_year+7,2) -> 2022/23 | O4: =Starting_year+7&"/"&RIGHT(Starting_year+8,2) -> 2023/24 | P4: =Starting_year+8&"/"&RIGHT(Starting_year+9,2) -> 2024/25 | Q4: =Starting_year+9&"/"&RIGHT(Starting_year+10,2) -> 2025/26
D5: =IF('Cover Page'!$K$75=TRUE,"$","$'000") -> $'000 | F5: =IF('Cover Page'!$K$75=TRUE,"$","$'000") -> $'000 | H5: =IF('Cover Page'!$K$75=TRUE,"$","$'000") -> $'000 | I5: =IF('Cover Page'!$K$75=TRUE,"$","$'000") -> $'000 | J5: =IF('Cover Page'!$K$75=TRUE,"$","$'000") -> $'000 | K5: =IF('Cover Page'!$K$75=TRUE,"$","$'000") -> $'000 | L5: =IF('Cover Page'!$K$75=TRUE,"$","$'000") -> $'000 | M5: =IF('Cover Page'!$K$75=TRUE,"$","$'000") -> $'000 | N5: =IF('Cover Page'!$K$75=TRUE,"$","$'000") -> $'000 | O5: =IF('Cover Page'!$K$75=TRUE,"$","$'000") -> $'000 | P5: =IF('Cover Page'!$K$75=TRUE,"$","$'000") -> $'000 | Q5: =IF('Cover Page'!$K$75=TRUE,"$","$'000") -> $'000
B6: Income from Continuing Operations
A7: Code | B7: Revenue:
A8: =B8 -> Rates & Annual Charges | B8: Rates & Annual Charges | D8: 0 | F8: 0 | H8: 0 | I8: 0 | J8: 0 | K8: 0 | L8: 0 | M8: 0 | N8: 0 | O8: 0 | P8: 0 | Q8: 0
A9: User Charges & Fees | B9: User Charges & Fees | D9: 0 | F9: 0 | H9: 0 | I9: 0 | J9: 0 | K9: 0 | L9: 0 | M9: 0 | N9: 0 | O9: 0 | P9: 0 | Q9: 0
A10: Interest & Investment Revenue | B10: Interest & Investment Revenue | D10: 0 | F10: 0 | H10: 0 | I10: 0 | J10: 0 | K10: 0 | L10: 0 | M10: 0 | N10: 0 | O10: 0 | P10: 0 | Q10: 0
A11: Other Revenues | B11: Other Revenues | D11: 0 | F11: 0 | H11: 0 | I11: 0 | J11: 0 | K11: 0 | L11: 0 | M11: 0 | N11: 0 | O11: 0 | P11: 0 | Q11: 0
A12: Grants & Contributions provided for Operating Purposes | B12: Grants & Contributions provided for Operating Purposes | D12: 0 | F12: 0 | H12: 0 | I12: 0 | J12: 0 | K12: 0 | L12: 0 | M12: 0 | N12: 0 | O12: 0 | P12: 0 | Q12: 0
A13: Grants & Contributions provided for Capital Purposes | B13: Grants & Contributions provided for Capital Purposes | D13: 0 | F13: 0 | H13: 0 | I13: 0 | J13: 0 | K13: 0 | L13: 0 | M13: 0 | N13: 0 | O13: 0 | P13: 0 | Q13: 0
B14: Other Income:
A15: =B15 -> Net gains from the disposal of assets | B15: Net gains from the disposal of assets | D15: 0 | F15: 0 | H15: 0 | I15: 0 | J15: 0 | K15: 0 | L15: 0 | M15: 0 | N15: 0 | O15: 0 | P15: 0 | Q15: 0
A16: =B16&" - Gain" -> Joint Ventures & Associated Entities - Gain | B16: Joint Ventures & Associated Entities | D16: 0 | F16: 0 | H16: 0 | I16: 0 | J16: 0 | K16: 0 | L16: 0 | M16: 0 | N16: 0 | O16: 0 | P16: 0 | Q16: 0
B17: Total Income from Continuing Operations | D17: =SUM(D7:D16) -> 0 | F17: 0 | H17: =SUM(H7:H16) -> 0 | I17: 0 | J17: 0 | K17: 0 | L17: 0 | M17: 0 | N17: 0 | O17: 0 | P17: 0 | Q17: 0
B19: Expenses from Continuing Operations
A20: =B20 -> Employee Benefits & On-Costs | B20: Employee Benefits & On-Costs | D20: 0 | F20: 0 | H20: 0 | I20: 0 | J20: 0 | K20: 0 | L20: 0 | M20: 0 | N20: 0 | O20: 0 | P20: 0 | Q20: 0
A21: =B21 -> Borrowing Costs | B21: Borrowing Costs | D21: 0 | F21: 0 | H21: 0 | I21: 0 | J21: 0 | K21: 0 | L21: 0 | M21: 0 | N21: 0 | O21: 0 | P21: 0 | Q21: 0
A22: Materials & Contracts | B22: Materials & Contracts | D22: 0 | F22: 0 | H22: 0 | I22: 0 | J22: 0 | K22: 0 | L22: 0 | M22: 0 | N22: 0 | O22: 0 | P22: 0 | Q22: 0
A23: Depreciation & Amortisation | B23: Depreciation & Amortisation | D23: 0 | F23: 0 | H23: 0 | I23: 0 | J23: 0 | K23: 0 | L23: 0 | M23: 0 | N23: 0 | O23: 0 | P23: 0 | Q23: 0
A24: Impairment | B24: Impairment | D24: 0 | F24: 0 | H24: 0 | I24: 0 | J24: 0 | K24: 0 | L24: 0 | M24: 0 | N24: 0 | O24: 0 | P24: 0 | Q24: 0
A25: Other Expenses | B25: Other Expenses | D25: 0 | F25: 0 | H25: 0 | I25: 0 | J25: 0 | K25: 0 | L25: 0 | M25: 0 | N25: 0 | O25: 0 | P25: 0 | Q25: 0
A26: Interest & Investment Losses | B26: Interest & Investment Losses | D26: 0 | F26: 0 | H26: 0 | I26: 0 | J26: 0 | K26: 0 | L26: 0 | M26: 0 | N26: 0 | O26: 0 | P26: 0 | Q26: 0
A27: Net Losses from the Disposal of Assets | B27: Net Losses from the Disposal of Assets | D27: 0 | F27: 0 | H27: 0 | I27: 0 | J27: 0 | K27: 0 | L27: 0 | M27: 0 | N27: 0 | O27: 0 | P27: 0 | Q27: 0
A28: =B28&" - Loss" -> Joint Ventures & Associated Entities - Loss | B28: Joint Ventures & Associated Entities | D28: 0 | F28: 0 | H28: 0 | I28: 0 | J28: 0 | K28: 0 | L28: 0 | M28: 0 | N28: 0 | O28: 0 | P28: 0 | Q28: 0
B29: Total Expenses from Continuing Operations | D29: =SUM(D20:D28) -> 0 | F29: =SUM(F20:F28) -> 0 | H29: =SUM(H20:H28) -> 0 | I29: =SUM(I20:I28) -> 0 | J29: 0 | K29: 0 | L29: 0 | M29: 0 | N29: 0 | O29: 0 | P29: 0 | Q29: 0
B31: Operating Result from Continuing Operations | D31: =D17-D29 -> 0 | F31: =F17-F29 -> 0 | H31: =H17-H29 -> 0 | I31: =I17-I29 -> 0 | J31: 0 | K31: 0 | L31: 0 | M31: 0 | N31: 0 | O31: 0 | P31: 0 | Q31: 0
B33: Discontinued Operations - Profit/(Loss) | D33: 0 | F33: 0 | H33: 0 | I33: 0 | J33: 0 | K33: 0 | L33: 0 | M33: 0 | N33: 0 | O33: 0 | P33: 0 | Q33: 0
B34: Net Profit/(Loss) from Discontinued Operations | D34: =D33 -> 0 | F34: =F33 -> 0 | H34: =H33 -> 0 | I34: =I33 -> 0 | J34: 0 | K34: 0 | L34: 0 | M34: 0 | N34: 0 | O34: 0 | P34: 0 | Q34: 0
B36: Net Operating Result for the Year | D36: =D34+D31 -> 0 | F36: =F34+F31 -> 0 | H36: =H34+H31 -> 0 | I36: 0 | J36: 0 | K36: 0 | L36: 0 | M36: 0 | N36: 0 | O36: 0 | P36: 0 | Q36: 0
B38: Net Operating Result before Grants and Contributions provided for
B39: Capital Purposes | D39: =D36-D13 -> 0 | F39: =F36-F13 -> 0 | H39: =H36-H13 -> 0 | I39: 0 | J39: 0 | K39: 0 | L39: 0 | M39: 0 | N39: 0 | O39: 0 | P39: 0 | Q39: 0
B44: Net Internal Surplus | F44: 0 | H44: 0 | I44: 0 | J44: 0 | K44: 0 | L44: 0 | M44: 0 | N44: 0 | O44: 0 | P44: 0 | Q44: 0
B45: Net Internal Deficit | F45: 0 | H45: 0 | I45: 0 | J45: 0 | K45: 0 | L45: 0 | M45: 0 | N45: 0 | O45: 0 | P45: 0 | Q45: 0
B47: Interest receivable on Internal Loans | F47: 0 | H47: 0 | I47: 0 | J47: 0 | K47: 0 | L47: 0 | M47: 0 | N47: 0 | O47: 0 | P47: 0 | Q47: 0
B48: Interest payable on Internal Loans | F48: 0 | H48: 0 | I48: 0 | J48: 0 | K48: 0 | L48: 0 | M48: 0 | N48: 0 | O48: 0 | P48: 0 | Q48: 0

Sheet Income Statement - Other 3 (hidden)
B1: ='Cover Page'!$A$3 -> Bellingen Shire Council
B2: ='Cover Page'!$A$5 -> 10 Year Financial Plan for the Years ending 30 June 2026
B3: ="INCOME STATEMENT - "&UPPER(consol_Other3_name) -> INCOME STATEMENT - OTHER 3 FUND | D3: Actuals | F3: Current Year | H3: Projected Years
B4: ="Scenario: "&consol_scenario_name -> Scenario: Model 1 - Service Levels Maintained | D4: =Starting_year-2&"/"&RIGHT(Starting_year-1,2) -> 2014/15 | F4: =Starting_year-1&"/"&RIGHT(Starting_year,2) -> 2015/16 | H4: =Starting_year&"/"&RIGHT(Starting_year+1,2) -> 2016/17 | I4: =Starting_year+1&"/"&RIGHT(Starting_year+2,2) -> 2017/18 | J4: =Starting_year+2&"/"&RIGHT(Starting_year+3,2) -> 2018/19 | K4: =Starting_year+3&"/"&RIGHT(Starting_year+4,2) -> 2019/20 | L4: =Starting_year+4&"/"&RIGHT(Starting_year+5,2) -> 2020/21 | M4: =Starting_year+5&"/"&RIGHT(Starting_year+6,2) -> 2021/22 | N4: =Starting_year+6&"/"&RIGHT(Starting_year+7,2) -> 2022/23 | O4: =Starting_year+7&"/"&RIGHT(Starting_year+8,2) -> 2023/24 | P4: =Starting_year+8&"/"&RIGHT(Starting_year+9,2) -> 2024/25 | Q4: =Starting_year+9&"/"&RIGHT(Starting_year+10,2) -> 2025/26
D5: =IF('Cover Page'!$K$75=TRUE,"$","$'000") -> $'000 | F5: =IF('Cover Page'!$K$75=TRUE,"$","$'000") -> $'000 | H5: =IF('Cover Page'!$K$75=TRUE,"$","$'000") -> $'000 | I5: =IF('Cover Page'!$K$75=TRUE,"$","$'000") -> $'000 | J5: =IF('Cover Page'!$K$75=TRUE,"$","$'000") -> $'000 | K5: =IF('Cover Page'!$K$75=TRUE,"$","$'000") -> $'000 | L5: =IF('Cover Page'!$K$75=TRUE,"$","$'000") -> $'000 | M5: =IF('Cover Page'!$K$75=TRUE,"$","$'000") -> $'000 | N5: =IF('Cover Page'!$K$75=TRUE,"$","$'000") -> $'000 | O5: =IF('Cover Page'!$K$75=TRUE,"$","$'000") -> $'000 | P5: =IF('Cover Page'!$K$75=TRUE,"$","$'000") -> $'000 | Q5: =IF('Cover Page'!$K$75=TRUE,"$","$'000") -> $'000
B6: Income from Continuing Operations
A7: Code | B7: Revenue:
A8: =B8 -> Rates & Annual Charges | B8: Rates & Annual Charges | D8: 0 | F8: 0 | H8: 0 | I8: 0 | J8: 0 | K8: 0 | L8: 0 | M8: 0 | N8: 0 | O8: 0 | P8: 0 | Q8: 0
A9: User Charges & Fees | B9: User Charges & Fees | D9: 0 | F9: 0 | H9: 0 | I9: 0 | J9: 0 | K9: 0 | L9: 0 | M9: 0 | N9: 0 | O9: 0 | P9: 0 | Q9: 0
A10: Interest & Investment Revenue | B10: Interest & Investment Revenue | D10: 0 | F10: 0 | H10: 0 | I10: 0 | J10: 0 | K10: 0 | L10: 0 | M10: 0 | N10: 0 | O10: 0 | P10: 0 | Q10: 0
A11: Other Revenues | B11: Other Revenues | D11: 0 | F11: 0 | H11: 0 | I11: 0 | J11: 0 | K11: 0 | L11: 0 | M11: 0 | N11: 0 | O11: 0 | P11: 0 | Q11: 0
A12: Grants & Contributions provided for Operating Purposes | B12: Grants & Contributions provided for Operating Purposes | D12: 0 | F12: 0 | H12: 0 | I12: 0 | J12: 0 | K12: 0 | L12: 0 | M12: 0 | N12: 0 | O12: 0 | P12: 0 | Q12: 0
A13: Grants & Contributions provided for Capital Purposes | B13: Grants & Contributions provided for Capital Purposes | D13: 0 | F13: 0 | H13: 0 | I13: 0 | J13: 0 | K13: 0 | L13: 0 | M13: 0 | N13: 0 | O13: 0 | P13: 0 | Q13: 0
B14: Other Income:
A15: =B15 -> Net gains from the disposal of assets | B15: Net gains from the disposal of assets | D15: 0 | F15: 0 | H15: 0 | I15: 0 | J15: 0 | K15: 0 | L15: 0 | M15: 0 | N15: 0 | O15: 0 | P15: 0 | Q15: 0
A16: =B16&" - Gain" -> Joint Ventures & Associated Entities - Gain | B16: Joint Ventures & Associated Entities | D16: 0 | F16: 0 | H16: 0 | I16: 0 | J16: 0 | K16: 0 | L16: 0 | M16: 0 | N16: 0 | O16: 0 | P16: 0 | Q16: 0
B17: Total Income from Continuing Operations | D17: =SUM(D7:D16) -> 0 | F17: 0 | H17: =SUM(H7:H16) -> 0 | I17: 0 | J17: =SUM(J7:J16) -> 0 | K17: 0 | L17: 0 | M17: 0 | N17: 0 | O17: 0 | P17: 0 | Q17: 0
B19: Expenses from Continuing Operations
A20: =B20 -> Employee Benefits & On-Costs | B20: Employee Benefits & On-Costs | D20: 0 | F20: 0 | H20: 0 | I20: 0 | J20: 0 | K20: 0 | L20: 0 | M20: 0 | N20: 0 | O20: 0 | P20: 0 | Q20: 0
A21: =B21 -> Borrowing Costs | B21: Borrowing Costs | D21: 0 | F21: 0 | H21: 0 | I21: 0 | J21: 0 | K21: 0 | L21: 0 | M21: 0 | N21: 0 | O21: 0 | P21: 0 | Q21: 0
A22: Materials & Contracts | B22: Materials & Contracts | D22: 0 | F22: 0 | H22: 0 | I22: 0 | J22: 0 | K22: 0 | L22: 0 | M22: 0 | N22: 0 | O22: 0 | P22: 0 | Q22: 0
A23: Depreciation & Amortisation | B23: Depreciation & Amortisation | D23: 0 | F23: 0 | H23: 0 | I23: 0 | J23: 0 | K23: 0 | L23: 0 | M23: 0 | N23: 0 | O23: 0 | P23: 0 | Q23: 0
A24: Impairment | B24: Impairment | D24: 0 | F24: 0 | H24: 0 | I24: 0 | J24: 0 | K24: 0 | L24: 0 | M24: 0 | N24: 0 | O24: 0 | P24: 0 | Q24: 0
A25: Other Expenses | B25: Other Expenses | D25: 0 | F25: 0 | H25: 0 | I25: 0 | J25: 0 | K25: 0 | L25: 0 | M25: 0 | N25: 0 | O25: 0 | P25: 0 | Q25: 0
A26: Interest & Investment Losses | B26: Interest & Investment Losses | D26: 0 | F26: 0 | H26: 0 | I26: 0 | J26: 0 | K26: 0 | L26: 0 | M26: 0 | N26: 0 | O26: 0 | P26: 0 | Q26: 0
A27: Net Losses from the Disposal of Assets | B27: Net Losses from the Disposal of Assets | D27: 0 | F27: 0 | H27: 0 | I27: 0 | J27: 0 | K27: 0 | L27: 0 | M27: 0 | N27: 0 | O27: 0 | P27: 0 | Q27: 0
A28: =B28&" - Loss" -> Joint Ventures & Associated Entities - Loss | B28: Joint Ventures & Associated Entities | D28: 0 | F28: 0 | H28: 0 | I28: 0 | J28: 0 | K28: 0 | L28: 0 | M28: 0 | N28: 0 | O28: 0 | P28: 0 | Q28: 0
B29: Total Expenses from Continuing Operations | D29: =SUM(D20:D28) -> 0 | F29: =SUM(F20:F28) -> 0 | H29: =SUM(H20:H28) -> 0 | I29: =SUM(I20:I28) -> 0 | J29: =SUM(J20:J28) -> 0 | K29: 0 | L29: 0 | M29: 0 | N29: 0 | O29: 0 | P29: 0 | Q29: 0
B31: Operating Result from Continuing Operations | D31: =D17-D29 -> 0 | F31: =F17-F29 -> 0 | H31: =H17-H29 -> 0 | I31: =I17-I29 -> 0 | J31: =J17-J29 -> 0 | K31: 0 | L31: 0 | M31: 0 | N31: 0 | O31: 0 | P31: 0 | Q31: 0
B33: Discontinued Operations - Profit/(Loss) | D33: 0 | F33: 0 | H33: 0 | I33: 0 | J33: 0 | K33: 0 | L33: 0 | M33: 0 | N33: 0 | O33: 0 | P33: 0 | Q33: 0
B34: Net Profit/(Loss) from Discontinued Operations | D34: =D33 -> 0 | F34: =F33 -> 0 | H34: =H33 -> 0 | I34: =I33 -> 0 | J34: 0 | K34: 0 | L34: 0 | M34: 0 | N34: 0 | O34: 0 | P34: 0 | Q34: 0
B36: Net Operating Result for the Year | D36: =D34+D31 -> 0 | F36: =F34+F31 -> 0 | H36: =H34+H31 -> 0 | I36: 0 | J36: 0 | K36: 0 | L36: 0 | M36: 0 | N36: 0 | O36: 0 | P36: 0 | Q36: 0
B38: Net Operating Result before Grants and Contributions provided for
B39: Capital Purposes | D39: =D36-D13 -> 0 | F39: =F36-F13 -> 0 | H39: =H36-H13 -> 0 | I39: 0 | J39: 0 | K39: 0 | L39: 0 | M39: 0 | N39: 0 | O39: 0 | P39: 0 | Q39: 0
B44: Net Internal Surplus | F44: 0 | H44: 0 | I44: 0 | J44: 0 | K44: 0 | L44: 0 | M44: 0 | N44: 0 | O44: 0 | P44: 0 | Q44: 0
B45: Net Internal Deficit | F45: 0 | H45: 0 | I45: 0 | J45: 0 | K45: 0 | L45: 0 | M45: 0 | N45: 0 | O45: 0 | P45: 0 | Q45: 0
B47: Interest receivable on Internal Loans | F47: 0 | H47: 0 | I47: 0 | J47: 0 | K47: 0 | L47: 0 | M47: 0 | N47: 0 | O47: 0 | P47: 0 | Q47: 0
B48: Interest payable on Internal Loans | F48: 0 | H48: 0 | I48: 0 | J48: 0 | K48: 0 | L48: 0 | M48: 0 | N48: 0 | O48: 0 | P48: 0 | Q48: 0

Sheet Balance Sheet
A1: ='Cover Page'!$A$3 -> Bellingen Shire Council
A2: ='Cover Page'!$A$5 -> 10 Year Financial Plan for the Years ending 30 June 2026
A3: BALANCE SHEET - CONSOLIDATED | C3: Actuals | E3: Current Year | G3: Projected Years
A4: ="Scenario: "&consol_scenario_name -> Scenario: Model 1 - Service Levels Maintained | C4: =Starting_year-2&"/"&RIGHT(Starting_year-1,2) -> 2014/15 | E4: =Starting_year-1&"/"&RIGHT(Starting_year,2) -> 2015/16 | G4: =Starting_year&"/"&RIGHT(Starting_year+1,2) -> 2016/17 | H4: =Starting_year+1&"/"&RIGHT(Starting_year+2,2) -> 2017/18 | I4: =Starting_year+2&"/"&RIGHT(Starting_year+3,2) -> 2018/19 | J4: =Starting_year+3&"/"&RIGHT(Starting_year+4,2) -> 2019/20 | K4: =Starting_year+4&"/"&RIGHT(Starting_year+5,2) -> 2020/21 | L4: =Starting_year+5&"/"&RIGHT(Starting_year+6,2) -> 2021/22 | M4: =Starting_year+6&"/"&RIGHT(Starting_year+7,2) -> 2022/23 | N4: =Starting_year+7&"/"&RIGHT(Starting_year+8,2) -> 2023/24 | O4: =Starting_year+8&"/"&RIGHT(Starting_year+9,2) -> 2024/25 | P4: =Starting_year+9&"/"&RIGHT(Starting_year+10,2) -> 2025/26
C5: =IF('Cover Page'!$K$75=TRUE,"$","$'000") -> $'000 | E5: =IF('Cover Page'!$K$75=TRUE,"$","$'000") -> $'000 | G5: =IF('Cover Page'!$K$75=TRUE,"$","$'000") -> $'000 | H5: =IF('Cover Page'!$K$75=TRUE,"$","$'000") -> $'000 | I5: =IF('Cover Page'!$K$75=TRUE,"$","$'000") -> $'000 | J5: =IF('Cover Page'!$K$75=TRUE,"$","$'000") -> $'000 | K5: =IF('Cover Page'!$K$75=TRUE,"$","$'000") -> $'000 | L5: =IF('Cover Page'!$K$75=TRUE,"$","$'000") -> $'000 | M5: =IF('Cover Page'!$K$75=TRUE,"$","$'000") -> $'000 | N5: =IF('Cover Page'!$K$75=TRUE,"$","$'000") -> $'000 | O5: =IF('Cover Page'!$K$75=TRUE,"$","$'000") -> $'000 | P5: =IF('Cover Page'!$K$75=TRUE,"$","$'000") -> $'000
A6: ASSETS
A7: Current Assets
A8: Cash & Cash Equivalents | C8: ='Balance Sheet - General'!C8+'Balance Sheet - Water'!C8+'Balance Sheet - Sewer'!C8+'Balance Sheet - Other 1'!C8+'Balance Sheet - Other 2'!C8+'Balance Sheet - Other 3'!C8-C75+C78 -> 3149000 | E8: ='Balance Sheet - General'!E8+'Balance Sheet - Water'!E8+'Balance Sheet - Sewer'!E8+'Balance Sheet - Other 1'!E8+'Balance Sheet - Other 2'!E8+'Balance Sheet - Other 3'!E8-E75+E78 -> 5324559.731 | G8: ='Balance Sheet - General'!G8+'Balance Sheet - Water'!G8+'Balance Sheet - Sewer'!G8+'Balance Sheet - Other 1'!G8+'Balance Sheet - Other 2'!G8+'Balance Sheet - Other 3'!G8-G75+G78 -> 1811790.597 | H8: ='Balance Sheet - General'!H8+'Balance Sheet - Water'!H8+'Balance Sheet - Sewer'!H8+'Balance Sheet - Other 1'!H8+'Balance Sheet - Other 2'!H8+'Balance Sheet - Other 3'!H8-H75+H78 -> 2222110.213 | I8: ='Balance Sheet - General'!I8+'Balance Sheet - Water'!I8+'Balance Sheet - Sewer'!I8+'Balance Sheet - Other 1'!I8+'Balance Sheet - Other 2'!I8+'Balance Sheet - Other 3'!I8-I75+I78 -> 2882399.631 | J8: ='Balance Sheet - General'!J8+'Balance Sheet - Water'!J8+'Balance Sheet - Sewer'!J8+'Balance Sheet - Other 1'!J8+'Balance Sheet - Other 2'!J8+'Balance Sheet - Other 3'!J8-J75+J78 -> 3116368.775 | K8: ='Balance Sheet - General'!K8+'Balance Sheet - Water'!K8+'Balance Sheet - Sewer'!K8+'Balance Sheet - Other 1'!K8+'Balance Sheet - Other 2'!K8+'Balance Sheet - Other 3'!K8-K75+K78 -> 3170114.948 | L8: ='Balance Sheet - General'!L8+'Balance Sheet - Water'!L8+'Balance Sheet - Sewer'!L8+'Balance Sheet - Other 1'!L8+'Balance Sheet - Other 2'!L8+'Balance Sheet - Other 3'!L8-L75+L78 -> 4413658.081 | M8: ='Balance Sheet - General'!M8+'Balance Sheet - Water'!M8+'Balance Sheet - Sewer'!M8+'Balance Sheet - Other 1'!M8+'Balance Sheet - Other 2'!M8+'Balance Sheet - Other 3'!M8-M75+M78 -> 6172035.89 | N8: ='Balance Sheet - General'!N8+'Balance Sheet - Water'!N8+'Balance Sheet - Sewer'!N8+'Balance Sheet - Other 1'!N8+'Balance Sheet - Other 2'!N8+'Balance Sheet - Other 3'!N8-N75+N78 -> 4221677.019 | O8: ='Balance Sheet - General'!O8+'Balance Sheet - Water'!O8+'Balance Sheet - Sewer'!O8+'Balance Sheet - Other 1'!O8+'Balance Sheet - Other 2'!O8+'Balance Sheet - Other 3'!O8-O75+O78 -> 5156961.265 | P8: ='Balance Sheet - General'!P8+'Balance Sheet - Water'!P8+'Balance Sheet - Sewer'!P8+'Balance Sheet - Other 1'!P8+'Balance Sheet - Other 2'!P8+'Balance Sheet - Other 3'!P8-P75+P78 -> 8981886.845
A9: Investments | C9: ='Balance Sheet - General'!C9+'Balance Sheet - Water'!C9+'Balance Sheet - Sewer'!C9+'Balance Sheet - Other 1'!C9+'Balance Sheet - Other 2'!C9+'Balance Sheet - Other 3'!C9 -> 31300000 | E9: ='Balance Sheet - General'!E9+'Balance Sheet - Water'!E9+'Balance Sheet - Sewer'!E9+'Balance Sheet - Other 1'!E9+'Balance Sheet - Other 2'!E9+'Balance Sheet - Other 3'!E9 -> 24280160.77 | G9: ='Balance Sheet - General'!G9+'Balance Sheet - Water'!G9+'Balance Sheet - Sewer'!G9+'Balance Sheet - Other 1'!G9+'Balance Sheet - Other 2'!G9+'Balance Sheet - Other 3'!G9 -> 22872704.54 | H9: ='Balance Sheet - General'!H9+'Balance Sheet - Water'!H9+'Balance Sheet - Sewer'!H9+'Balance Sheet - Other 1'!H9+'Balance Sheet - Other 2'!H9+'Balance Sheet - Other 3'!H9 -> 22284613.6 | I9: ='Balance Sheet - General'!I9+'Balance Sheet - Water'!I9+'Balance Sheet - Sewer'!I9+'Balance Sheet - Other 1'!I9+'Balance Sheet - Other 2'!I9+'Balance Sheet - Other 3'!I9 -> 22157852.02 | J9: ='Balance Sheet - General'!J9+'Balance Sheet - Water'!J9+'Balance Sheet - Sewer'!J9+'Balance Sheet - Other 1'!J9+'Balance Sheet - Other 2'!J9+'Balance Sheet - Other 3'!J9 -> 20492107 | K9: ='Balance Sheet - General'!K9+'Balance Sheet - Water'!K9+'Balance Sheet - Sewer'!K9+'Balance Sheet - Other 1'!K9+'Balance Sheet - Other 2'!K9+'Balance Sheet - Other 3'!K9 -> 18763355.12 | L9: ='Balance Sheet - General'!L9+'Balance Sheet - Water'!L9+'Balance Sheet - Sewer'!L9+'Balance Sheet - Other 1'!L9+'Balance Sheet - Other 2'!L9+'Balance Sheet - Other 3'!L9 -> 18715651.05 | M9: ='Balance Sheet - General'!M9+'Balance Sheet - Water'!M9+'Balance Sheet - Sewer'!M9+'Balance Sheet - Other 1'!M9+'Balance Sheet - Other 2'!M9+'Balance Sheet - Other 3'!M9 -> 18505462.33 | N9: ='Balance Sheet - General'!N9+'Balance Sheet - Water'!N9+'Balance Sheet - Sewer'!N9+'Balance Sheet - Other 1'!N9+'Balance Sheet - Other 2'!N9+'Balance Sheet - Other 3'!N9 -> 16737902.48 | O9: ='Balance Sheet - General'!O9+'Balance Sheet - Water'!O9+'Balance Sheet - Sewer'!O9+'Balance Sheet - Other 1'!O9+'Balance Sheet - Other 2'!O9+'Balance Sheet - Other 3'!O9 -> 16737902.48 | P9: ='Balance Sheet - General'!P9+'Balance Sheet - Water'!P9+'Balance Sheet - Sewer'!P9+'Balance Sheet - Other 1'!P9+'Balance Sheet - Other 2'!P9+'Balance Sheet - Other 3'!P9 -> 16737902.48
A10: Receivables | C10: ='Balance Sheet - General'!C10+'Balance Sheet - Water'!C10+'Balance Sheet - Sewer'!C10+'Balance Sheet - Other 1'!C10+'Balance Sheet - Other 2'!C10+'Balance Sheet - Other 3'!C10-C69+IF(C69-C72>0,C69-C72,0) -> 5156000 | E10: ='Balance Sheet - General'!E10+'Balance Sheet - Water'!E10+'Balance Sheet - Sewer'!E10+'Balance Sheet - Other 1'!E10+'Balance Sheet - Other 2'!E10+'Balance Sheet - Other 3'!E10-E69+IF(E69-E72>0,E69-E72,0) -> 2620363.707 | G10: ='Balance Sheet - General'!G10+'Balance Sheet - Water'!G10+'Balance Sheet - Sewer'!G10+'Balance Sheet - Other 1'!G10+'Balance Sheet - Other 2'!G10+'Balance Sheet - Other 3'!G10-G69+IF(G69-G72>0,G69-G72,0) -> 2774647.972 | H10: ='Balance Sheet - General'!H10+'Balance Sheet - Water'!H10+'Balance Sheet - Sewer'!H10+'Balance Sheet - Other 1'!H10+'Balance Sheet - Other 2'!H10+'Balance Sheet - Other 3'!H10-H69+IF(H69-H72>0,H69-H72,0) -> 2684763.454 | I10: ='Balance Sheet - General'!I10+'Balance Sheet - Water'!I10+'Balance Sheet - Sewer'!I10+'Balance Sheet - Other 1'!I10+'Balance Sheet - Other 2'!I10+'Balance Sheet - Other 3'!I10-I69+IF(I69-I72>0,I69-I72,0) -> 2761573.531 | J10: ='Balance Sheet - General'!J10+'Balance Sheet - Water'!J10+'Balance Sheet - Sewer'!J10+'Balance Sheet - Other 1'!J10+'Balance Sheet - Other 2'!J10+'Balance Sheet - Other 3'!J10-J69+IF(J69-J72>0,J69-J72,0) -> 2808633.409 | K10: ='Balance Sheet - General'!K10+'Balance Sheet - Water'!K10+'Balance Sheet - Sewer'!K10+'Balance Sheet - Other 1'!K10+'Balance Sheet - Other 2'!K10+'Balance Sheet - Other 3'!K10-K69+IF(K69-K72>0,K69-K72,0) -> 2832702.107 | L10: ='Balance Sheet - General'!L10+'Balance Sheet - Water'!L10+'Balance Sheet - Sewer'!L10+'Balance Sheet - Other 1'!L10+'Balance Sheet - Other 2'!L10+'Balance Sheet - Other 3'!L10-L69+IF(L69-L72>0,L69-L72,0) -> 2915496.074 | M10: ='Balance Sheet - General'!M10+'Balance Sheet - Water'!M10+'Balance Sheet - Sewer'!M10+'Balance Sheet - Other 1'!M10+'Balance Sheet - Other 2'!M10+'Balance Sheet - Other 3'!M10-M69+IF(M69-M72>0,M69-M72,0) -> 2999289.007 | N10: ='Balance Sheet - General'!N10+'Balance Sheet - Water'!N10+'Balance Sheet - Sewer'!N10+'Balance Sheet - Other 1'!N10+'Balance Sheet - Other 2'!N10+'Balance Sheet - Other 3'!N10-N69+IF(N69-N72>0,N69-N72,0) -> 3100810.637 | O10: ='Balance Sheet - General'!O10+'Balance Sheet - Water'!O10+'Balance Sheet - Sewer'!O10+'Balance Sheet - Other 1'!O10+'Balance Sheet - Other 2'!O10+'Balance Sheet - Other 3'!O10-O69+IF(O69-O72>0,O69-O72,0) -> 3224163.634 | P10: ='Balance Sheet - General'!P10+'Balance Sheet - Water'!P10+'Balance Sheet - Sewer'!P10+'Balance Sheet - Other 1'!P10+'Balance Sheet - Other 2'!P10+'Balance Sheet - Other 3'!P10-P69+IF(P69-P72>0,P69-P72,0) -> 3366198.518
A11: Inventories | C11: ='Balance Sheet - General'!C11+'Balance Sheet - Water'!C11+'Balance Sheet - Sewer'!C11+'Balance Sheet - Other 1'!C11+'Balance Sheet - Other 2'!C11+'Balance Sheet - Other 3'!C11 -> 236000 | E11: ='Balance Sheet - General'!E11+'Balance Sheet - Water'!E11+'Balance Sheet - Sewer'!E11+'Balance Sheet - Other 1'!E11+'Balance Sheet - Other 2'!E11+'Balance Sheet - Other 3'!E11 -> 263630.5497 | G11: ='Balance Sheet - General'!G11+'Balance Sheet - Water'!G11+'Balance Sheet - Sewer'!G11+'Balance Sheet - Other 1'!G11+'Balance Sheet - Other 2'!G11+'Balance Sheet - Other 3'!G11 -> 280726.9958 | H11: ='Balance Sheet - General'!H11+'Balance Sheet - Water'!H11+'Balance Sheet - Sewer'!H11+'Balance Sheet - Other 1'!H11+'Balance Sheet - Other 2'!H11+'Balance Sheet - Other 3'!H11 -> 279761.3047 | I11: ='Balance Sheet - General'!I11+'Balance Sheet - Water'!I11+'Balance Sheet - Sewer'!I11+'Balance Sheet - Other 1'!I11+'Balance Sheet - Other 2'!I11+'Balance Sheet - Other 3'!I11 -> 285528.7681 | J11: ='Balance Sheet - General'!J11+'Balance Sheet - Water'!J11+'Balance Sheet - Sewer'!J11+'Balance Sheet - Other 1'!J11+'Balance Sheet - Other 2'!J11+'Balance Sheet - Other 3'!J11 -> 293053.6114 | K11: ='Balance Sheet - General'!K11+'Balance Sheet - Water'!K11+'Balance Sheet - Sewer'!K11+'Balance Sheet - Other 1'!K11+'Balance Sheet - Other 2'!K11+'Balance Sheet - Other 3'!K11 -> 300613.9854 | L11: ='Balance Sheet - General'!L11+'Balance Sheet - Water'!L11+'Balance Sheet - Sewer'!L11+'Balance Sheet - Other 1'!L11+'Balance Sheet - Other 2'!L11+'Balance Sheet - Other 3'!L11 -> 309093.2643 | M11: ='Balance Sheet - General'!M11+'Balance Sheet - Water'!M11+'Balance Sheet - Sewer'!M11+'Balance Sheet - Other 1'!M11+'Balance Sheet - Other 2'!M11+'Balance Sheet - Other 3'!M11 -> 316327.9371 | N11: ='Balance Sheet - General'!N11+'Balance Sheet - Water'!N11+'Balance Sheet - Sewer'!N11+'Balance Sheet - Other 1'!N11+'Balance Sheet - Other 2'!N11+'Balance Sheet - Other 3'!N11 -> 324491.8684 | O11: ='Balance Sheet - General'!O11+'Balance Sheet - Water'!O11+'Balance Sheet - Sewer'!O11+'Balance Sheet - Other 1'!O11+'Balance Sheet - Other 2'!O11+'Balance Sheet - Other 3'!O11 -> 332867.573 | P11: ='Balance Sheet - General'!P11+'Balance Sheet - Water'!P11+'Balance Sheet - Sewer'!P11+'Balance Sheet - Other 1'!P11+'Balance Sheet - Other 2'!P11+'Balance Sheet - Other 3'!P11 -> 341190.1778
A12: Other | C12: ='Balance Sheet - General'!C12+'Balance Sheet - Water'!C12+'Balance Sheet - Sewer'!C12+'Balance Sheet - Other 1'!C12+'Balance Sheet - Other 2'!C12+'Balance Sheet - Other 3'!C12 -> 0 | E12: ='Balance Sheet - General'!E12+'Balance Sheet - Water'!E12+'Balance Sheet - Sewer'!E12+'Balance Sheet - Other 1'!E12+'Balance Sheet - Other 2'!E12+'Balance Sheet - Other 3'!E12 -> 25797.60227 | G12: ='Balance Sheet - General'!G12+'Balance Sheet - Water'!G12+'Balance Sheet - Sewer'!G12+'Balance Sheet - Other 1'!G12+'Balance Sheet - Other 2'!G12+'Balance Sheet - Other 3'!G12 -> 26552.26808 | H12: ='Balance Sheet - General'!H12+'Balance Sheet - Water'!H12+'Balance Sheet - Sewer'!H12+'Balance Sheet - Other 1'!H12+'Balance Sheet - Other 2'!H12+'Balance Sheet - Other 3'!H12 -> 26305.90032 | I12: ='Balance Sheet - General'!I12+'Balance Sheet - Water'!I12+'Balance Sheet - Sewer'!I12+'Balance Sheet - Other 1'!I12+'Balance Sheet - Other 2'!I12+'Balance Sheet - Other 3'!I12 -> 26844.63204 | J12: ='Balance Sheet - General'!J12+'Balance Sheet - Water'!J12+'Balance Sheet - Sewer'!J12+'Balance Sheet - Other 1'!J12+'Balance Sheet - Other 2'!J12+'Balance Sheet - Other 3'!J12 -> 27694.32431 | K12: ='Balance Sheet - General'!K12+'Balance Sheet - Water'!K12+'Balance Sheet - Sewer'!K12+'Balance Sheet - Other 1'!K12+'Balance Sheet - Other 2'!K12+'Balance Sheet - Other 3'!K12 -> 28547.43042 | L12: ='Balance Sheet - General'!L12+'Balance Sheet - Water'!L12+'Balance Sheet - Sewer'!L12+'Balance Sheet - Other 1'!L12+'Balance Sheet - Other 2'!L12+'Balance Sheet - Other 3'!L12 -> 29117.94409 | M12: ='Balance Sheet - General'!M12+'Balance Sheet - Water'!M12+'Balance Sheet - Sewer'!M12+'Balance Sheet - Other 1'!M12+'Balance Sheet - Other 2'!M12+'Balance Sheet - Other 3'!M12 -> 29835.0497 | N12: ='Balance Sheet - General'!N12+'Balance Sheet - Water'!N12+'Balance Sheet - Sewer'!N12+'Balance Sheet - Other 1'!N12+'Balance Sheet - Other 2'!N12+'Balance Sheet - Other 3'!N12 -> 30653.64139 | O12: ='Balance Sheet - General'!O12+'Balance Sheet - Water'!O12+'Balance Sheet - Sewer'!O12+'Balance Sheet - Other 1'!O12+'Balance Sheet - Other 2'!O12+'Balance Sheet - Other 3'!O12 -> 31389.00717 | P12: ='Balance Sheet - General'!P12+'Balance Sheet - Water'!P12+'Balance Sheet - Sewer'!P12+'Balance Sheet - Other 1'!P12+'Balance Sheet - Other 2'!P12+'Balance Sheet - Other 3'!P12 -> 32204.89838
A13: Non-current assets classified as "held for sale" | C13: ='Balance Sheet - General'!C13+'Balance Sheet - Water'!C13+'Balance Sheet - Sewer'!C13+'Balance Sheet - Other 1'!C13+'Balance Sheet - Other 2'!C13+'Balance Sheet - Other 3'!C13 -> 0 | E13: ='Balance Sheet - General'!E13+'Balance Sheet - Water'!E13+'Balance Sheet - Sewer'!E13+'Balance Sheet - Other 1'!E13+'Balance Sheet - Other 2'!E13+'Balance Sheet - Other 3'!E13 -> 0 | G13: ='Balance Sheet - General'!G13+'Balance Sheet - Water'!G13+'Balance Sheet - Sewer'!G13+'Balance Sheet - Other 1'!G13+'Balance Sheet - Other 2'!G13+'Balance Sheet - Other 3'!G13 -> 0 | H13: ='Balance Sheet - General'!H13+'Balance Sheet - Water'!H13+'Balance Sheet - Sewer'!H13+'Balance Sheet - Other 1'!H13+'Balance Sheet - Other 2'!H13+'Balance Sheet - Other 3'!H13 -> 0 | I13: ='Balance Sheet - General'!I13+'Balance Sheet - Water'!I13+'Balance Sheet - Sewer'!I13+'Balance Sheet - Other 1'!I13+'Balance Sheet - Other 2'!I13+'Balance Sheet - Other 3'!I13 -> 0 | J13: ='Balance Sheet - General'!J13+'Balance Sheet - Water'!J13+'Balance Sheet - Sewer'!J13+'Balance Sheet - Other 1'!J13+'Balance Sheet - Other 2'!J13+'Balance Sheet - Other 3'!J13 -> 0 | K13: ='Balance Sheet - General'!K13+'Balance Sheet - Water'!K13+'Balance Sheet - Sewer'!K13+'Balance Sheet - Other 1'!K13+'Balance Sheet - Other 2'!K13+'Balance Sheet - Other 3'!K13 -> 0 | L13: ='Balance Sheet - General'!L13+'Balance Sheet - Water'!L13+'Balance Sheet - Sewer'!L13+'Balance Sheet - Other 1'!L13+'Balance Sheet - Other 2'!L13+'Balance Sheet - Other 3'!L13 -> 0 | M13: ='Balance Sheet - General'!M13+'Balance Sheet - Water'!M13+'Balance Sheet - Sewer'!M13+'Balance Sheet - Other 1'!M13+'Balance Sheet - Other 2'!M13+'Balance Sheet - Other 3'!M13 -> 0 | N13: ='Balance Sheet - General'!N13+'Balance Sheet - Water'!N13+'Balance Sheet - Sewer'!N13+'Balance Sheet - Other 1'!N13+'Balance Sheet - Other 2'!N13+'Balance Sheet - Other 3'!N13 -> 0 | O13: ='Balance Sheet - General'!O13+'Balance Sheet - Water'!O13+'Balance Sheet - Sewer'!O13+'Balance Sheet - Other 1'!O13+'Balance Sheet - Other 2'!O13+'Balance Sheet - Other 3'!O13 -> 0 | P13: ='Balance Sheet - General'!P13+'Balance Sheet - Water'!P13+'Balance Sheet - Sewer'!P13+'Balance Sheet - Other 1'!P13+'Balance Sheet - Other 2'!P13+'Balance Sheet - Other 3'!P13 -> 0
A14: Rounding adjustment (keep line always hidden!!!!!) | C14: =-C63 -> 0 | E14: =-E63 -> 0 | G14: 0 | H14: 0 | I14: 0 | J14: 0 | K14: 0 | L14: 0 | M14: 0 | N14: 0 | O14: 0 | P14: 0
A15: Total Current Assets | C15: =SUM(C6:C14) -> 39841000 | E15: =SUM(E6:E14) -> 32514512.36 | G15: 27766422.37 | H15: 27497554.47 | I15: 28114198.58 | J15: 26737857.12 | K15: 25095333.59 | L15: 26383016.41 | M15: 28022950.21 | N15: 24415535.65 | O15: 25483283.96 | P15: 29459382.92
A17: Non-Current Assets
A18: Investments | C18: ='Balance Sheet - General'!C18+'Balance Sheet - Water'!C18+'Balance Sheet - Sewer'!C18+'Balance Sheet - Other 1'!C18+'Balance Sheet - Other 2'!C18+'Balance Sheet - Other 3'!C18 -> 0 | E18: ='Balance Sheet - General'!E18+'Balance Sheet - Water'!E18+'Balance Sheet - Sewer'!E18+'Balance Sheet - Other 1'!E18+'Balance Sheet - Other 2'!E18+'Balance Sheet - Other 3'!E18 -> 4687540 | G18: ='Balance Sheet - General'!G18+'Balance Sheet - Water'!G18+'Balance Sheet - Sewer'!G18+'Balance Sheet - Other 1'!G18+'Balance Sheet - Other 2'!G18+'Balance Sheet - Other 3'!G18 -> 4333947.041 | H18: ='Balance Sheet - General'!H18+'Balance Sheet - Water'!H18+'Balance Sheet - Sewer'!H18+'Balance Sheet - Other 1'!H18+'Balance Sheet - Other 2'!H18+'Balance Sheet - Other 3'!H18 -> 4047163.035 | I18: ='Balance Sheet - General'!I18+'Balance Sheet - Water'!I18+'Balance Sheet - Sewer'!I18+'Balance Sheet - Other 1'!I18+'Balance Sheet - Other 2'!I18+'Balance Sheet - Other 3'!I18 -> 3985347.435 | J18: ='Balance Sheet - General'!J18+'Balance Sheet - Water'!J18+'Balance Sheet - Sewer'!J18+'Balance Sheet - Other 1'!J18+'Balance Sheet - Other 2'!J18+'Balance Sheet - Other 3'!J18 -> 3867470.14 | K18: ='Balance Sheet - General'!K18+'Balance Sheet - Water'!K18+'Balance Sheet - Sewer'!K18+'Balance Sheet - Other 1'!K18+'Balance Sheet - Other 2'!K18+'Balance Sheet - Other 3'!K18 -> 3268307.152 | L18: ='Balance Sheet - General'!L18+'Balance Sheet - Water'!L18+'Balance Sheet - Sewer'!L18+'Balance Sheet - Other 1'!L18+'Balance Sheet - Other 2'!L18+'Balance Sheet - Other 3'!L18 -> 3245044.143 | M18: ='Balance Sheet - General'!M18+'Balance Sheet - Water'!M18+'Balance Sheet - Sewer'!M18+'Balance Sheet - Other 1'!M18+'Balance Sheet - Other 2'!M18+'Balance Sheet - Other 3'!M18 -> 3142545.094 | N18: ='Balance Sheet - General'!N18+'Balance Sheet - Water'!N18+'Balance Sheet - Sewer'!N18+'Balance Sheet - Other 1'!N18+'Balance Sheet - Other 2'!N18+'Balance Sheet - Other 3'!N18 -> 3093848.566 | O18: ='Balance Sheet - General'!O18+'Balance Sheet - Water'!O18+'Balance Sheet - Sewer'!O18+'Balance Sheet - Other 1'!O18+'Balance Sheet - Other 2'!O18+'Balance Sheet - Other 3'!O18 -> 3093848.566 | P18: ='Balance Sheet - General'!P18+'Balance Sheet - Water'!P18+'Balance Sheet - Sewer'!P18+'Balance Sheet - Other 1'!P18+'Balance Sheet - Other 2'!P18+'Balance Sheet - Other 3'!P18 -> 3093848.566
A19: Receivables | C19: ='Balance Sheet - General'!C19+'Balance Sheet - Water'!C19+'Balance Sheet - Sewer'!C19+'Balance Sheet - Other 1'!C19+'Balance Sheet - Other 2'!C19+'Balance Sheet - Other 3'!C19-C70+IF(C70-C73>0,C70-C73,0) -> 67000 | E19: ='Balance Sheet - General'!E19+'Balance Sheet - Water'!E19+'Balance Sheet - Sewer'!E19+'Balance Sheet - Other 1'!E19+'Balance Sheet - Other 2'!E19+'Balance Sheet - Other 3'!E19-E70+IF(E70-E73>0,E70-E73,0) -> 101633.5365 | G19: ='Balance Sheet - General'!G19+'Balance Sheet - Water'!G19+'Balance Sheet - Sewer'!G19+'Balance Sheet - Other 1'!G19+'Balance Sheet - Other 2'!G19+'Balance Sheet - Other 3'!G19-G70+IF(G70-G73>0,G70-G73,0) -> 104100.9167 | H19: ='Balance Sheet - General'!H19+'Balance Sheet - Water'!H19+'Balance Sheet - Sewer'!H19+'Balance Sheet - Other 1'!H19+'Balance Sheet - Other 2'!H19+'Balance Sheet - Other 3'!H19-H70+IF(H70-H73>0,H70-H73,0) -> 109053.8748 | I19: ='Balance Sheet - General'!I19+'Balance Sheet - Water'!I19+'Balance Sheet - Sewer'!I19+'Balance Sheet - Other 1'!I19+'Balance Sheet - Other 2'!I19+'Balance Sheet - Other 3'!I19-I70+IF(I70-I73>0,I70-I73,0) -> 114421.6936 | J19: ='Balance Sheet - General'!J19+'Balance Sheet - Water'!J19+'Balance Sheet - Sewer'!J19+'Balance Sheet - Other 1'!J19+'Balance Sheet - Other 2'!J19+'Balance Sheet - Other 3'!J19-J70+IF(J70-J73>0,J70-J73,0) -> 120086.7008 | K19: ='Balance Sheet - General'!K19+'Balance Sheet - Water'!K19+'Balance Sheet - Sewer'!K19+'Balance Sheet - Other 1'!K19+'Balance Sheet - Other 2'!K19+'Balance Sheet - Other 3'!K19-K70+IF(K70-K73>0,K70-K73,0) -> 126065.8403 | L19: ='Balance Sheet - General'!L19+'Balance Sheet - Water'!L19+'Balance Sheet - Sewer'!L19+'Balance Sheet - Other 1'!L19+'Balance Sheet - Other 2'!L19+'Balance Sheet - Other 3'!L19-L70+IF(L70-L73>0,L70-L73,0) -> 132377.0415 | M19: ='Balance Sheet - General'!M19+'Balance Sheet - Water'!M19+'Balance Sheet - Sewer'!M19+'Balance Sheet - Other 1'!M19+'Balance Sheet - Other 2'!M19+'Balance Sheet - Other 3'!M19-M70+IF(M70-M73>0,M70-M73,0) -> 139039.2769 | N19: ='Balance Sheet - General'!N19+'Balance Sheet - Water'!N19+'Balance Sheet - Sewer'!N19+'Balance Sheet - Other 1'!N19+'Balance Sheet - Other 2'!N19+'Balance Sheet - Other 3'!N19-N70+IF(N70-N73>0,N70-N73,0) -> 146072.6237 | O19: ='Balance Sheet - General'!O19+'Balance Sheet - Water'!O19+'Balance Sheet - Sewer'!O19+'Balance Sheet - Other 1'!O19+'Balance Sheet - Other 2'!O19+'Balance Sheet - Other 3'!O19-O70+IF(O70-O73>0,O70-O73,0) -> 150412.394 | P19: ='Balance Sheet - General'!P19+'Balance Sheet - Water'!P19+'Balance Sheet - Sewer'!P19+'Balance Sheet - Other 1'!P19+'Balance Sheet - Other 2'!P19+'Balance Sheet - Other 3'!P19-P70+IF(P70-P73>0,P70-P73,0) -> 154684.7658
A20: Inventories | C20: ='Balance Sheet - General'!C20+'Balance Sheet - Water'!C20+'Balance Sheet - Sewer'!C20+'Balance Sheet - Other 1'!C20+'Balance Sheet - Other 2'!C20+'Balance Sheet - Other 3'!C20 -> 0 | E20: ='Balance Sheet - General'!E20+'Balance Sheet - Water'!E20+'Balance Sheet - Sewer'!E20+'Balance Sheet - Other 1'!E20+'Balance Sheet - Other 2'!E20+'Balance Sheet - Other 3'!E20 -> 0 | G20: ='Balance Sheet - General'!G20+'Balance Sheet - Water'!G20+'Balance Sheet - Sewer'!G20+'Balance Sheet - Other 1'!G20+'Balance Sheet - Other 2'!G20+'Balance Sheet - Other 3'!G20 -> 0 | H20: ='Balance Sheet - General'!H20+'Balance Sheet - Water'!H20+'Balance Sheet - Sewer'!H20+'Balance Sheet - Other 1'!H20+'Balance Sheet - Other 2'!H20+'Balance Sheet - Other 3'!H20 -> 0 | I20: ='Balance Sheet - General'!I20+'Balance Sheet - Water'!I20+'Balance Sheet - Sewer'!I20+'Balance Sheet - Other 1'!I20+'Balance Sheet - Other 2'!I20+'Balance Sheet - Other 3'!I20 -> 0 | J20: ='Balance Sheet - General'!J20+'Balance Sheet - Water'!J20+'Balance Sheet - Sewer'!J20+'Balance Sheet - Other 1'!J20+'Balance Sheet - Other 2'!J20+'Balance Sheet - Other 3'!J20 -> 0 | K20: ='Balance Sheet - General'!K20+'Balance Sheet - Water'!K20+'Balance Sheet - Sewer'!K20+'Balance Sheet - Other 1'!K20+'Balance Sheet - Other 2'!K20+'Balance Sheet - Other 3'!K20 -> 0 | L20: ='Balance Sheet - General'!L20+'Balance Sheet - Water'!L20+'Balance Sheet - Sewer'!L20+'Balance Sheet - Other 1'!L20+'Balance Sheet - Other 2'!L20+'Balance Sheet - Other 3'!L20 -> 0 | M20: ='Balance Sheet - General'!M20+'Balance Sheet - Water'!M20+'Balance Sheet - Sewer'!M20+'Balance Sheet - Other 1'!M20+'Balance Sheet - Other 2'!M20+'Balance Sheet - Other 3'!M20 -> 0 | N20: ='Balance Sheet - General'!N20+'Balance Sheet - Water'!N20+'Balance Sheet - Sewer'!N20+'Balance Sheet - Other 1'!N20+'Balance Sheet - Other 2'!N20+'Balance Sheet - Other 3'!N20 -> 0 | O20: ='Balance Sheet - General'!O20+'Balance Sheet - Water'!O20+'Balance Sheet - Sewer'!O20+'Balance Sheet - Other 1'!O20+'Balance Sheet - Other 2'!O20+'Balance Sheet - Other 3'!O20 -> 0 | P20: ='Balance Sheet - General'!P20+'Balance Sheet - Water'!P20+'Balance Sheet - Sewer'!P20+'Balance Sheet - Other 1'!P20+'Balance Sheet - Other 2'!P20+'Balance Sheet - Other 3'!P20 -> 0
A21: Infrastructure, Property, Plant & Equipment | C21: ='Balance Sheet - General'!C21+'Balance Sheet - Water'!C21+'Balance Sheet - Sewer'!C21+'Balance Sheet - Other 1'!C21+'Balance Sheet - Other 2'!C21+'Balance Sheet - Other 3'!C21 -> 423814000 | E21: ='Balance Sheet - General'!E21+'Balance Sheet - Water'!E21+'Balance Sheet - Sewer'!E21+'Balance Sheet - Other 1'!E21+'Balance Sheet - Other 2'!E21+'Balance Sheet - Other 3'!E21 -> 424359517 | G21: ='Balance Sheet - General'!G21+'Balance Sheet - Water'!G21+'Balance Sheet - Sewer'!G21+'Balance Sheet - Other 1'!G21+'Balance Sheet - Other 2'!G21+'Balance Sheet - Other 3'!G21 -> 440684452.6 | H21: ='Balance Sheet - General'!H21+'Balance Sheet - Water'!H21+'Balance Sheet - Sewer'!H21+'Balance Sheet - Other 1'!H21+'Balance Sheet - Other 2'!H21+'Balance Sheet - Other 3'!H21 -> 442183609.8 | I21: ='Balance Sheet - General'!I21+'Balance Sheet - Water'!I21+'Balance Sheet - Sewer'!I21+'Balance Sheet - Other 1'!I21+'Balance Sheet - Other 2'!I21+'Balance Sheet - Other 3'!I21 -> 443596908.5 | J21: ='Balance Sheet - General'!J21+'Balance Sheet - Water'!J21+'Balance Sheet - Sewer'!J21+'Balance Sheet - Other 1'!J21+'Balance Sheet - Other 2'!J21+'Balance Sheet - Other 3'!J21 -> 446835618.5 | K21: ='Balance Sheet - General'!K21+'Balance Sheet - Water'!K21+'Balance Sheet - Sewer'!K21+'Balance Sheet - Other 1'!K21+'Balance Sheet - Other 2'!K21+'Balance Sheet - Other 3'!K21 -> 450455605.4 | L21: ='Balance Sheet - General'!L21+'Balance Sheet - Water'!L21+'Balance Sheet - Sewer'!L21+'Balance Sheet - Other 1'!L21+'Balance Sheet - Other 2'!L21+'Balance Sheet - Other 3'!L21 -> 450311449.9 | M21: ='Balance Sheet - General'!M21+'Balance Sheet - Water'!M21+'Balance Sheet - Sewer'!M21+'Balance Sheet - Other 1'!M21+'Balance Sheet - Other 2'!M21+'Balance Sheet - Other 3'!M21 -> 450306974.2 | N21: ='Balance Sheet - General'!N21+'Balance Sheet - Water'!N21+'Balance Sheet - Sewer'!N21+'Balance Sheet - Other 1'!N21+'Balance Sheet - Other 2'!N21+'Balance Sheet - Other 3'!N21 -> 455911327.1 | O21: ='Balance Sheet - General'!O21+'Balance Sheet - Water'!O21+'Balance Sheet - Sewer'!O21+'Balance Sheet - Other 1'!O21+'Balance Sheet - Other 2'!O21+'Balance Sheet - Other 3'!O21 -> 457054608 | P21: ='Balance Sheet - General'!P21+'Balance Sheet - Water'!P21+'Balance Sheet - Sewer'!P21+'Balance Sheet - Other 1'!P21+'Balance Sheet - Other 2'!P21+'Balance Sheet - Other 3'!P21 -> 455352283.2
A22: Investments Accounted for using the equity method | C22: ='Balance Sheet - General'!C22+'Balance Sheet - Water'!C22+'Balance Sheet - Sewer'!C22+'Balance Sheet - Other 1'!C22+'Balance Sheet - Other 2'!C22+'Balance Sheet - Other 3'!C22 -> 0 | E22: ='Balance Sheet - General'!E22+'Balance Sheet - Water'!E22+'Balance Sheet - Sewer'!E22+'Balance Sheet - Other 1'!E22+'Balance Sheet - Other 2'!E22+'Balance Sheet - Other 3'!E22 -> 0 | G22: ='Balance Sheet - General'!G22+'Balance Sheet - Water'!G22+'Balance Sheet - Sewer'!G22+'Balance Sheet - Other 1'!G22+'Balance Sheet - Other 2'!G22+'Balance Sheet - Other 3'!G22 -> 0 | H22: ='Balance Sheet - General'!H22+'Balance Sheet - Water'!H22+'Balance Sheet - Sewer'!H22+'Balance Sheet - Other 1'!H22+'Balance Sheet - Other 2'!H22+'Balance Sheet - Other 3'!H22 -> 0 | I22: ='Balance Sheet - General'!I22+'Balance Sheet - Water'!I22+'Balance Sheet - Sewer'!I22+'Balance Sheet - Other 1'!I22+'Balance Sheet - Other 2'!I22+'Balance Sheet - Other 3'!I22 -> 0 | J22: ='Balance Sheet - General'!J22+'Balance Sheet - Water'!J22+'Balance Sheet - Sewer'!J22+'Balance Sheet - Other 1'!J22+'Balance Sheet - Other 2'!J22+'Balance Sheet - Other 3'!J22 -> 0 | K22: ='Balance Sheet - General'!K22+'Balance Sheet - Water'!K22+'Balance Sheet - Sewer'!K22+'Balance Sheet - Other 1'!K22+'Balance Sheet - Other 2'!K22+'Balance Sheet - Other 3'!K22 -> 0 | L22: ='Balance Sheet - General'!L22+'Balance Sheet - Water'!L22+'Balance Sheet - Sewer'!L22+'Balance Sheet - Other 1'!L22+'Balance Sheet - Other 2'!L22+'Balance Sheet - Other 3'!L22 -> 0 | M22: ='Balance Sheet - General'!M22+'Balance Sheet - Water'!M22+'Balance Sheet - Sewer'!M22+'Balance Sheet - Other 1'!M22+'Balance Sheet - Other 2'!M22+'Balance Sheet - Other 3'!M22 -> 0 | N22: ='Balance Sheet - General'!N22+'Balance Sheet - Water'!N22+'Balance Sheet - Sewer'!N22+'Balance Sheet - Other 1'!N22+'Balance Sheet - Other 2'!N22+'Balance Sheet - Other 3'!N22 -> 0 | O22: ='Balance Sheet - General'!O22+'Balance Sheet - Water'!O22+'Balance Sheet - Sewer'!O22+'Balance Sheet - Other 1'!O22+'Balance Sheet - Other 2'!O22+'Balance Sheet - Other 3'!O22 -> 0 | P22: ='Balance Sheet - General'!P22+'Balance Sheet - Water'!P22+'Balance Sheet - Sewer'!P22+'Balance Sheet - Other 1'!P22+'Balance Sheet - Other 2'!P22+'Balance Sheet - Other 3'!P22 -> 0
A23: Investment Property | C23: ='Balance Sheet - General'!C23+'Balance Sheet - Water'!C23+'Balance Sheet - Sewer'!C23+'Balance Sheet - Other 1'!C23+'Balance Sheet - Other 2'!C23+'Balance Sheet - Other 3'!C23 -> 1924000 | E23: ='Balance Sheet - General'!E23+'Balance Sheet - Water'!E23+'Balance Sheet - Sewer'!E23+'Balance Sheet - Other 1'!E23+'Balance Sheet - Other 2'!E23+'Balance Sheet - Other 3'!E23 -> 1924000 | G23: ='Balance Sheet - General'!G23+'Balance Sheet - Water'!G23+'Balance Sheet - Sewer'!G23+'Balance Sheet - Other 1'!G23+'Balance Sheet - Other 2'!G23+'Balance Sheet - Other 3'!G23 -> 1924000 | H23: ='Balance Sheet - General'!H23+'Balance Sheet - Water'!H23+'Balance Sheet - Sewer'!H23+'Balance Sheet - Other 1'!H23+'Balance Sheet - Other 2'!H23+'Balance Sheet - Other 3'!H23 -> 1924000 | I23: ='Balance Sheet - General'!I23+'Balance Sheet - Water'!I23+'Balance Sheet - Sewer'!I23+'Balance Sheet - Other 1'!I23+'Balance Sheet - Other 2'!I23+'Balance Sheet - Other 3'!I23 -> 1924000 | J23: ='Balance Sheet - General'!J23+'Balance Sheet - Water'!J23+'Balance Sheet - Sewer'!J23+'Balance Sheet - Other 1'!J23+'Balance Sheet - Other 2'!J23+'Balance Sheet - Other 3'!J23 -> 1924000 | K23: ='Balance Sheet - General'!K23+'Balance Sheet - Water'!K23+'Balance Sheet - Sewer'!K23+'Balance Sheet - Other 1'!K23+'Balance Sheet - Other 2'!K23+'Balance Sheet - Other 3'!K23 -> 1924000 | L23: ='Balance Sheet - General'!L23+'Balance Sheet - Water'!L23+'Balance Sheet - Sewer'!L23+'Balance Sheet - Other 1'!L23+'Balance Sheet - Other 2'!L23+'Balance Sheet - Other 3'!L23 -> 1924000 | M23: ='Balance Sheet - General'!M23+'Balance Sheet - Water'!M23+'Balance Sheet - Sewer'!M23+'Balance Sheet - Other 1'!M23+'Balance Sheet - Other 2'!M23+'Balance Sheet - Other 3'!M23 -> 1924000 | N23: ='Balance Sheet - General'!N23+'Balance Sheet - Water'!N23+'Balance Sheet - Sewer'!N23+'Balance Sheet - Other 1'!N23+'Balance Sheet - Other 2'!N23+'Balance Sheet - Other 3'!N23 -> 1924000 | O23: ='Balance Sheet - General'!O23+'Balance Sheet - Water'!O23+'Balance Sheet - Sewer'!O23+'Balance Sheet - Other 1'!O23+'Balance Sheet - Other 2'!O23+'Balance Sheet - Other 3'!O23 -> 1924000 | P23: ='Balance Sheet - General'!P23+'Balance Sheet - Water'!P23+'Balance Sheet - Sewer'!P23+'Balance Sheet - Other 1'!P23+'Balance Sheet - Other 2'!P23+'Balance Sheet - Other 3'!P23 -> 1924000
A24: Intangible Assets | C24: ='Balance Sheet - General'!C24+'Balance Sheet - Water'!C24+'Balance Sheet - Sewer'!C24+'Balance Sheet - Other 1'!C24+'Balance Sheet - Other 2'!C24+'Balance Sheet - Other 3'!C24 -> 0 | E24: ='Balance Sheet - General'!E24+'Balance Sheet - Water'!E24+'Balance Sheet - Sewer'!E24+'Balance Sheet - Other 1'!E24+'Balance Sheet - Other 2'!E24+'Balance Sheet - Other 3'!E24 -> 0 | G24: ='Balance Sheet - General'!G24+'Balance Sheet - Water'!G24+'Balance Sheet - Sewer'!G24+'Balance Sheet - Other 1'!G24+'Balance Sheet - Other 2'!G24+'Balance Sheet - Other 3'!G24 -> 0 | H24: ='Balance Sheet - General'!H24+'Balance Sheet - Water'!H24+'Balance Sheet - Sewer'!H24+'Balance Sheet - Other 1'!H24+'Balance Sheet - Other 2'!H24+'Balance Sheet - Other 3'!H24 -> 0 | I24: ='Balance Sheet - General'!I24+'Balance Sheet - Water'!I24+'Balance Sheet - Sewer'!I24+'Balance Sheet - Other 1'!I24+'Balance Sheet - Other 2'!I24+'Balance Sheet - Other 3'!I24 -> 0 | J24: ='Balance Sheet - General'!J24+'Balance Sheet - Water'!J24+'Balance Sheet - Sewer'!J24+'Balance Sheet - Other 1'!J24+'Balance Sheet - Other 2'!J24+'Balance Sheet - Other 3'!J24 -> 0 | K24: ='Balance Sheet - General'!K24+'Balance Sheet - Water'!K24+'Balance Sheet - Sewer'!K24+'Balance Sheet - Other 1'!K24+'Balance Sheet - Other 2'!K24+'Balance Sheet - Other 3'!K24 -> 0 | L24: ='Balance Sheet - General'!L24+'Balance Sheet - Water'!L24+'Balance Sheet - Sewer'!L24+'Balance Sheet - Other 1'!L24+'Balance Sheet - Other 2'!L24+'Balance Sheet - Other 3'!L24 -> 0 | M24: ='Balance Sheet - General'!M24+'Balance Sheet - Water'!M24+'Balance Sheet - Sewer'!M24+'Balance Sheet - Other 1'!M24+'Balance Sheet - Other 2'!M24+'Balance Sheet - Other 3'!M24 -> 0 | N24: ='Balance Sheet - General'!N24+'Balance Sheet - Water'!N24+'Balance Sheet - Sewer'!N24+'Balance Sheet - Other 1'!N24+'Balance Sheet - Other 2'!N24+'Balance Sheet - Other 3'!N24 -> 0 | O24: ='Balance Sheet - General'!O24+'Balance Sheet - Water'!O24+'Balance Sheet - Sewer'!O24+'Balance Sheet - Other 1'!O24+'Balance Sheet - Other 2'!O24+'Balance Sheet - Other 3'!O24 -> 0 | P24: ='Balance Sheet - General'!P24+'Balance Sheet - Water'!P24+'Balance Sheet - Sewer'!P24+'Balance Sheet - Other 1'!P24+'Balance Sheet - Other 2'!P24+'Balance Sheet - Other 3'!P24 -> 0
A25: Non-current assets classified as "held for sale" | C25: ='Balance Sheet - General'!C25+'Balance Sheet - Water'!C25+'Balance Sheet - Sewer'!C25+'Balance Sheet - Other 1'!C25+'Balance Sheet - Other 2'!C25+'Balance Sheet - Other 3'!C25 -> 0 | E25: ='Balance Sheet - General'!E25+'Balance Sheet - Water'!E25+'Balance Sheet - Sewer'!E25+'Balance Sheet - Other 1'!E25+'Balance Sheet - Other 2'!E25+'Balance Sheet - Other 3'!E25 -> 0 | G25: ='Balance Sheet - General'!G25+'Balance Sheet - Water'!G25+'Balance Sheet - Sewer'!G25+'Balance Sheet - Other 1'!G25+'Balance Sheet - Other 2'!G25+'Balance Sheet - Other 3'!G25 -> 0 | H25: ='Balance Sheet - General'!H25+'Balance Sheet - Water'!H25+'Balance Sheet - Sewer'!H25+'Balance Sheet - Other 1'!H25+'Balance Sheet - Other 2'!H25+'Balance Sheet - Other 3'!H25 -> 0 | I25: ='Balance Sheet - General'!I25+'Balance Sheet - Water'!I25+'Balance Sheet - Sewer'!I25+'Balance Sheet - Other 1'!I25+'Balance Sheet - Other 2'!I25+'Balance Sheet - Other 3'!I25 -> 0 | J25: ='Balance Sheet - General'!J25+'Balance Sheet - Water'!J25+'Balance Sheet - Sewer'!J25+'Balance Sheet - Other 1'!J25+'Balance Sheet - Other 2'!J25+'Balance Sheet - Other 3'!J25 -> 0 | K25: ='Balance Sheet - General'!K25+'Balance Sheet - Water'!K25+'Balance Sheet - Sewer'!K25+'Balance Sheet - Other 1'!K25+'Balance Sheet - Other 2'!K25+'Balance Sheet - Other 3'!K25 -> 0 | L25: ='Balance Sheet - General'!L25+'Balance Sheet - Water'!L25+'Balance Sheet - Sewer'!L25+'Balance Sheet - Other 1'!L25+'Balance Sheet - Other 2'!L25+'Balance Sheet - Other 3'!L25 -> 0 | M25: ='Balance Sheet - General'!M25+'Balance Sheet - Water'!M25+'Balance Sheet - Sewer'!M25+'Balance Sheet - Other 1'!M25+'Balance Sheet - Other 2'!M25+'Balance Sheet - Other 3'!M25 -> 0 | N25: ='Balance Sheet - General'!N25+'Balance Sheet - Water'!N25+'Balance Sheet - Sewer'!N25+'Balance Sheet - Other 1'!N25+'Balance Sheet - Other 2'!N25+'Balance Sheet - Other 3'!N25 -> 0 | O25: ='Balance Sheet - General'!O25+'Balance Sheet - Water'!O25+'Balance Sheet - Sewer'!O25+'Balance Sheet - Other 1'!O25+'Balance Sheet - Other 2'!O25+'Balance Sheet - Other 3'!O25 -> 0 | P25: ='Balance Sheet - General'!P25+'Balance Sheet - Water'!P25+'Balance Sheet - Sewer'!P25+'Balance Sheet - Other 1'!P25+'Balance Sheet - Other 2'!P25+'Balance Sheet - Other 3'!P25 -> 0
A26: Other | C26: ='Balance Sheet - General'!C26+'Balance Sheet - Water'!C26+'Balance Sheet - Sewer'!C26+'Balance Sheet - Other 1'!C26+'Balance Sheet - Other 2'!C26+'Balance Sheet - Other 3'!C26 -> 0 | E26: ='Balance Sheet - General'!E26+'Balance Sheet - Water'!E26+'Balance Sheet - Sewer'!E26+'Balance Sheet - Other 1'!E26+'Balance Sheet - Other 2'!E26+'Balance Sheet - Other 3'!E26 -> 0 | G26: ='Balance Sheet - General'!G26+'Balance Sheet - Water'!G26+'Balance Sheet - Sewer'!G26+'Balance Sheet - Other 1'!G26+'Balance Sheet - Other 2'!G26+'Balance Sheet - Other 3'!G26 -> 0 | H26: ='Balance Sheet - General'!H26+'Balance Sheet - Water'!H26+'Balance Sheet - Sewer'!H26+'Balance Sheet - Other 1'!H26+'Balance Sheet - Other 2'!H26+'Balance Sheet - Other 3'!H26 -> 0 | I26: ='Balance Sheet - General'!I26+'Balance Sheet - Water'!I26+'Balance Sheet - Sewer'!I26+'Balance Sheet - Other 1'!I26+'Balance Sheet - Other 2'!I26+'Balance Sheet - Other 3'!I26 -> 0 | J26: ='Balance Sheet - General'!J26+'Balance Sheet - Water'!J26+'Balance Sheet - Sewer'!J26+'Balance Sheet - Other 1'!J26+'Balance Sheet - Other 2'!J26+'Balance Sheet - Other 3'!J26 -> 0 | K26: ='Balance Sheet - General'!K26+'Balance Sheet - Water'!K26+'Balance Sheet - Sewer'!K26+'Balance Sheet - Other 1'!K26+'Balance Sheet - Other 2'!K26+'Balance Sheet - Other 3'!K26 -> 0 | L26: ='Balance Sheet - General'!L26+'Balance Sheet - Water'!L26+'Balance Sheet - Sewer'!L26+'Balance Sheet - Other 1'!L26+'Balance Sheet - Other 2'!L26+'Balance Sheet - Other 3'!L26 -> 0 | M26: ='Balance Sheet - General'!M26+'Balance Sheet - Water'!M26+'Balance Sheet - Sewer'!M26+'Balance Sheet - Other 1'!M26+'Balance Sheet - Other 2'!M26+'Balance Sheet - Other 3'!M26 -> 0 | N26: ='Balance Sheet - General'!N26+'Balance Sheet - Water'!N26+'Balance Sheet - Sewer'!N26+'Balance Sheet - Other 1'!N26+'Balance Sheet - Other 2'!N26+'Balance Sheet - Other 3'!N26 -> 0 | O26: ='Balance Sheet - General'!O26+'Balance Sheet - Water'!O26+'Balance Sheet - Sewer'!O26+'Balance Sheet - Other 1'!O26+'Balance Sheet - Other 2'!O26+'Balance Sheet - Other 3'!O26 -> 0 | P26: ='Balance Sheet - General'!P26+'Balance Sheet - Water'!P26+'Balance Sheet - Sewer'!P26+'Balance Sheet - Other 1'!P26+'Balance Sheet - Other 2'!P26+'Balance Sheet - Other 3'!P26 -> 0
A27: Total Non-Current Assets | C27: =SUM(C17:C26) -> 425805000 | E27: =SUM(E17:E26) -> 431072690.5 | G27: =SUM(G17:G26) -> 447046500.6 | H27: 448263826.7 | I27: 449620677.6 | J27: 452747175.4 | K27: 455773978.4 | L27: 455612871.1 | M27: 455512558.6 | N27: 461075248.3 | O27: 462222868.9 | P27: 460524816.6
A28: TOTAL ASSETS | C28: =C27+C15 -> 465646000 | E28: =E27+E15 -> 463587202.9 | G28: =G27+G15 -> 474812922.9 | H28: 475761381.1 | I28: 477734876.2 | J28: 479485032.5 | K28: 480869312 | L28: 481995887.5 | M28: 483535508.8 | N28: 485490783.9 | O28: 487706152.9 | P28: 489984199.5
A30: LIABILITIES
A31: Current Liabilities
A32: Bank Overdraft | C32: ='Balance Sheet - General'!C32+'Balance Sheet - Water'!C32+'Balance Sheet - Sewer'!C32+'Balance Sheet - Other 1'!C32+'Balance Sheet - Other 2'!C32+'Balance Sheet - Other 3'!C32-C76+C79 -> 0 | E32: ='Balance Sheet - General'!E32+'Balance Sheet - Water'!E32+'Balance Sheet - Sewer'!E32+'Balance Sheet - Other 1'!E32+'Balance Sheet - Other 2'!E32+'Balance Sheet - Other 3'!E32-E76+E79 -> 0 | G32: ='Balance Sheet - General'!G32+'Balance Sheet - Water'!G32+'Balance Sheet - Sewer'!G32+'Balance Sheet - Other 1'!G32+'Balance Sheet - Other 2'!G32+'Balance Sheet - Other 3'!G32-G76+G79 -> 0 | H32: ='Balance Sheet - General'!H32+'Balance Sheet - Water'!H32+'Balance Sheet - Sewer'!H32+'Balance Sheet - Other 1'!H32+'Balance Sheet - Other 2'!H32+'Balance Sheet - Other 3'!H32-H76+H79 -> 0 | I32: ='Balance Sheet - General'!I32+'Balance Sheet - Water'!I32+'Balance Sheet - Sewer'!I32+'Balance Sheet - Other 1'!I32+'Balance Sheet - Other 2'!I32+'Balance Sheet - Other 3'!I32-I76+I79 -> 0 | J32: ='Balance Sheet - General'!J32+'Balance Sheet - Water'!J32+'Balance Sheet - Sewer'!J32+'Balance Sheet - Other 1'!J32+'Balance Sheet - Other 2'!J32+'Balance Sheet - Other 3'!J32-J76+J79 -> 0 | K32: ='Balance Sheet - General'!K32+'Balance Sheet - Water'!K32+'Balance Sheet - Sewer'!K32+'Balance Sheet - Other 1'!K32+'Balance Sheet - Other 2'!K32+'Balance Sheet - Other 3'!K32-K76+K79 -> 0 | L32: ='Balance Sheet - General'!L32+'Balance Sheet - Water'!L32+'Balance Sheet - Sewer'!L32+'Balance Sheet - Other 1'!L32+'Balance Sheet - Other 2'!L32+'Balance Sheet - Other 3'!L32-L76+L79 -> 0 | M32: ='Balance Sheet - General'!M32+'Balance Sheet - Water'!M32+'Balance Sheet - Sewer'!M32+'Balance Sheet - Other 1'!M32+'Balance Sheet - Other 2'!M32+'Balance Sheet - Other 3'!M32-M76+M79 -> 0 | N32: ='Balance Sheet - General'!N32+'Balance Sheet - Water'!N32+'Balance Sheet - Sewer'!N32+'Balance Sheet - Other 1'!N32+'Balance Sheet - Other 2'!N32+'Balance Sheet - Other 3'!N32-N76+N79 -> 0 | O32: ='Balance Sheet - General'!O32+'Balance Sheet - Water'!O32+'Balance Sheet - Sewer'!O32+'Balance Sheet - Other 1'!O32+'Balance Sheet - Other 2'!O32+'Balance Sheet - Other 3'!O32-O76+O79 -> 0 | P32: ='Balance Sheet - General'!P32+'Balance Sheet - Water'!P32+'Balance Sheet - Sewer'!P32+'Balance Sheet - Other 1'!P32+'Balance Sheet - Other 2'!P32+'Balance Sheet - Other 3'!P32-P76+P79 -> 0
A33: Payables | C33: ='Balance Sheet - General'!C33+'Balance Sheet - Water'!C33+'Balance Sheet - Sewer'!C33+'Balance Sheet - Other 1'!C33+'Balance Sheet - Other 2'!C33+'Balance Sheet - Other 3'!C33 -> 3047000 | E33: ='Balance Sheet - General'!E33+'Balance Sheet - Water'!E33+'Balance Sheet - Sewer'!E33+'Balance Sheet - Other 1'!E33+'Balance Sheet - Other 2'!E33+'Balance Sheet - Other 3'!E33 -> 2910719.086 | G33: ='Balance Sheet - General'!G33+'Balance Sheet - Water'!G33+'Balance Sheet - Sewer'!G33+'Balance Sheet - Other 1'!G33+'Balance Sheet - Other 2'!G33+'Balance Sheet - Other 3'!G33 -> 2961862.137 | H33: ='Balance Sheet - General'!H33+'Balance Sheet - Water'!H33+'Balance Sheet - Sewer'!H33+'Balance Sheet - Other 1'!H33+'Balance Sheet - Other 2'!H33+'Balance Sheet - Other 3'!H33 -> 2698901.414 | I33: ='Balance Sheet - General'!I33+'Balance Sheet - Water'!I33+'Balance Sheet - Sewer'!I33+'Balance Sheet - Other 1'!I33+'Balance Sheet - Other 2'!I33+'Balance Sheet - Other 3'!I33 -> 2771758.255 | J33: ='Balance Sheet - General'!J33+'Balance Sheet - Water'!J33+'Balance Sheet - Sewer'!J33+'Balance Sheet - Other 1'!J33+'Balance Sheet - Other 2'!J33+'Balance Sheet - Other 3'!J33 -> 2859713.782 | K33: ='Balance Sheet - General'!K33+'Balance Sheet - Water'!K33+'Balance Sheet - Sewer'!K33+'Balance Sheet - Other 1'!K33+'Balance Sheet - Other 2'!K33+'Balance Sheet - Other 3'!K33 -> 2938897.607 | L33: ='Balance Sheet - General'!L33+'Balance Sheet - Water'!L33+'Balance Sheet - Sewer'!L33+'Balance Sheet - Other 1'!L33+'Balance Sheet - Other 2'!L33+'Balance Sheet - Other 3'!L33 -> 2996560.428 | M33: ='Balance Sheet - General'!M33+'Balance Sheet - Water'!M33+'Balance Sheet - Sewer'!M33+'Balance Sheet - Other 1'!M33+'Balance Sheet - Other 2'!M33+'Balance Sheet - Other 3'!M33 -> 3066363.335 | N33: ='Balance Sheet - General'!N33+'Balance Sheet - Water'!N33+'Balance Sheet - Sewer'!N33+'Balance Sheet - Other 1'!N33+'Balance Sheet - Other 2'!N33+'Balance Sheet - Other 3'!N33 -> 3128735.527 | O33: ='Balance Sheet - General'!O33+'Balance Sheet - Water'!O33+'Balance Sheet - Sewer'!O33+'Balance Sheet - Other 1'!O33+'Balance Sheet - Other 2'!O33+'Balance Sheet - Other 3'!O33 -> 3180927.22 | P33: ='Balance Sheet - General'!P33+'Balance Sheet - Water'!P33+'Balance Sheet - Sewer'!P33+'Balance Sheet - Other 1'!P33+'Balance Sheet - Other 2'!P33+'Balance Sheet - Other 3'!P33 -> 3248041.284
A34: Borrowings | C34: ='Balance Sheet - General'!C34+'Balance Sheet - Water'!C34+'Balance Sheet - Sewer'!C34+'Balance Sheet - Other 1'!C34+'Balance Sheet - Other 2'!C34+'Balance Sheet - Other 3'!C34-C72+IF(C72-C69>0,C72-C69,0) -> 595000 | E34: ='Balance Sheet - General'!E34+'Balance Sheet - Water'!E34+'Balance Sheet - Sewer'!E34+'Balance Sheet - Other 1'!E34+'Balance Sheet - Other 2'!E34+'Balance Sheet - Other 3'!E34-E72+IF(E72-E69>0,E72-E69,0) -> 630552 | G34: ='Balance Sheet - General'!G34+'Balance Sheet - Water'!G34+'Balance Sheet - Sewer'!G34+'Balance Sheet - Other 1'!G34+'Balance Sheet - Other 2'!G34+'Balance Sheet - Other 3'!G34-G72+IF(G72-G69>0,G72-G69,0) -> 700709.8272 | H34: ='Balance Sheet - General'!H34+'Balance Sheet - Water'!H34+'Balance Sheet - Sewer'!H34+'Balance Sheet - Other 1'!H34+'Balance Sheet - Other 2'!H34+'Balance Sheet - Other 3'!H34-H72+IF(H72-H69>0,H72-H69,0) -> 788771.598 | I34: ='Balance Sheet - General'!I34+'Balance Sheet - Water'!I34+'Balance Sheet - Sewer'!I34+'Balance Sheet - Other 1'!I34+'Balance Sheet - Other 2'!I34+'Balance Sheet - Other 3'!I34-I72+IF(I72-I69>0,I72-I69,0) -> 895915.8471 | J34: ='Balance Sheet - General'!J34+'Balance Sheet - Water'!J34+'Balance Sheet - Sewer'!J34+'Balance Sheet - Other 1'!J34+'Balance Sheet - Other 2'!J34+'Balance Sheet - Other 3'!J34-J72+IF(J72-J69>0,J72-J69,0) -> 994596.0258 | K34: ='Balance Sheet - General'!K34+'Balance Sheet - Water'!K34+'Balance Sheet - Sewer'!K34+'Balance Sheet - Other 1'!K34+'Balance Sheet - Other 2'!K34+'Balance Sheet - Other 3'!K34-K72+IF(K72-K69>0,K72-K69,0) -> 1078257.198 | L34: ='Balance Sheet - General'!L34+'Balance Sheet - Water'!L34+'Balance Sheet - Sewer'!L34+'Balance Sheet - Other 1'!L34+'Balance Sheet - Other 2'!L34+'Balance Sheet - Other 3'!L34-L72+IF(L72-L69>0,L72-L69,0) -> 1165549.162 | M34: ='Balance Sheet - General'!M34+'Balance Sheet - Water'!M34+'Balance Sheet - Sewer'!M34+'Balance Sheet - Other 1'!M34+'Balance Sheet - Other 2'!M34+'Balance Sheet - Other 3'!M34-M72+IF(M72-M69>0,M72-M69,0) -> 1120969.775 | N34: ='Balance Sheet - General'!N34+'Balance Sheet - Water'!N34+'Balance Sheet - Sewer'!N34+'Balance Sheet - Other 1'!N34+'Balance Sheet - Other 2'!N34+'Balance Sheet - Other 3'!N34-N72+IF(N72-N69>0,N72-N69,0) -> 1177831.738 | O34: ='Balance Sheet - General'!O34+'Balance Sheet - Water'!O34+'Balance Sheet - Sewer'!O34+'Balance Sheet - Other 1'!O34+'Balance Sheet - Other 2'!O34+'Balance Sheet - Other 3'!O34-O72+IF(O72-O69>0,O72-O69,0) -> 646528.5026 | P34: ='Balance Sheet - General'!P34+'Balance Sheet - Water'!P34+'Balance Sheet - Sewer'!P34+'Balance Sheet - Other 1'!P34+'Balance Sheet - Other 2'!P34+'Balance Sheet - Other 3'!P34-P72+IF(P72-P69>0,P72-P69,0) -> 681792.5013
A35: Provisions | C35: ='Balance Sheet - General'!C35+'Balance Sheet - Water'!C35+'Balance Sheet - Sewer'!C35+'Balance Sheet - Other 1'!C35+'Balance Sheet - Other 2'!C35+'Balance Sheet - Other 3'!C35 -> 2943000 | E35: ='Balance Sheet - General'!E35+'Balance Sheet - Water'!E35+'Balance Sheet - Sewer'!E35+'Balance Sheet - Other 1'!E35+'Balance Sheet - Other 2'!E35+'Balance Sheet - Other 3'!E35 -> 2938321.402 | G35: ='Balance Sheet - General'!G35+'Balance Sheet - Water'!G35+'Balance Sheet - Sewer'!G35+'Balance Sheet - Other 1'!G35+'Balance Sheet - Other 2'!G35+'Balance Sheet - Other 3'!G35 -> 2938321.402 | H35: ='Balance Sheet - General'!H35+'Balance Sheet - Water'!H35+'Balance Sheet - Sewer'!H35+'Balance Sheet - Other 1'!H35+'Balance Sheet - Other 2'!H35+'Balance Sheet - Other 3'!H35 -> 2938321.402 | I35: ='Balance Sheet - General'!I35+'Balance Sheet - Water'!I35+'Balance Sheet - Sewer'!I35+'Balance Sheet - Other 1'!I35+'Balance Sheet - Other 2'!I35+'Balance Sheet - Other 3'!I35 -> 2938321.402 | J35: ='Balance Sheet - General'!J35+'Balance Sheet - Water'!J35+'Balance Sheet - Sewer'!J35+'Balance Sheet - Other 1'!J35+'Balance Sheet - Other 2'!J35+'Balance Sheet - Other 3'!J35 -> 2938321.402 | K35: ='Balance Sheet - General'!K35+'Balance Sheet - Water'!K35+'Balance Sheet - Sewer'!K35+'Balance Sheet - Other 1'!K35+'Balance Sheet - Other 2'!K35+'Balance Sheet - Other 3'!K35 -> 2938321.402 | L35: ='Balance Sheet - General'!L35+'Balance Sheet - Water'!L35+'Balance Sheet - Sewer'!L35+'Balance Sheet - Other 1'!L35+'Balance Sheet - Other 2'!L35+'Balance Sheet - Other 3'!L35 -> 2938321.402 | M35: ='Balance Sheet - General'!M35+'Balance Sheet - Water'!M35+'Balance Sheet - Sewer'!M35+'Balance Sheet - Other 1'!M35+'Balance Sheet - Other 2'!M35+'Balance Sheet - Other 3'!M35 -> 2938321.402 | N35: ='Balance Sheet - General'!N35+'Balance Sheet - Water'!N35+'Balance Sheet - Sewer'!N35+'Balance Sheet - Other 1'!N35+'Balance Sheet - Other 2'!N35+'Balance Sheet - Other 3'!N35 -> 2938321.402 | O35: ='Balance Sheet - General'!O35+'Balance Sheet - Water'!O35+'Balance Sheet - Sewer'!O35+'Balance Sheet - Other 1'!O35+'Balance Sheet - Other 2'!O35+'Balance Sheet - Other 3'!O35 -> 2938321.402 | P35: ='Balance Sheet - General'!P35+'Balance Sheet - Water'!P35+'Balance Sheet - Sewer'!P35+'Balance Sheet - Other 1'!P35+'Balance Sheet - Other 2'!P35+'Balance Sheet - Other 3'!P35 -> 2938321.402
A36: Liabilities associated with assets classified as "held for sale" | C36: ='Balance Sheet - General'!C36+'Balance Sheet - Water'!C36+'Balance Sheet - Sewer'!C36+'Balance Sheet - Other 1'!C36+'Balance Sheet - Other 2'!C36+'Balance Sheet - Other 3'!C36 -> 0 | E36: ='Balance Sheet - General'!E36+'Balance Sheet - Water'!E36+'Balance Sheet - Sewer'!E36+'Balance Sheet - Other 1'!E36+'Balance Sheet - Other 2'!E36+'Balance Sheet - Other 3'!E36 -> 0 | G36: ='Balance Sheet - General'!G36+'Balance Sheet - Water'!G36+'Balance Sheet - Sewer'!G36+'Balance Sheet - Other 1'!G36+'Balance Sheet - Other 2'!G36+'Balance Sheet - Other 3'!G36 -> 0 | H36: ='Balance Sheet - General'!H36+'Balance Sheet - Water'!H36+'Balance Sheet - Sewer'!H36+'Balance Sheet - Other 1'!H36+'Balance Sheet - Other 2'!H36+'Balance Sheet - Other 3'!H36 -> 0 | I36: ='Balance Sheet - General'!I36+'Balance Sheet - Water'!I36+'Balance Sheet - Sewer'!I36+'Balance Sheet - Other 1'!I36+'Balance Sheet - Other 2'!I36+'Balance Sheet - Other 3'!I36 -> 0 | J36: ='Balance Sheet - General'!J36+'Balance Sheet - Water'!J36+'Balance Sheet - Sewer'!J36+'Balance Sheet - Other 1'!J36+'Balance Sheet - Other 2'!J36+'Balance Sheet - Other 3'!J36 -> 0 | K36: ='Balance Sheet - General'!K36+'Balance Sheet - Water'!K36+'Balance Sheet - Sewer'!K36+'Balance Sheet - Other 1'!K36+'Balance Sheet - Other 2'!K36+'Balance Sheet - Other 3'!K36 -> 0 | L36: ='Balance Sheet - General'!L36+'Balance Sheet - Water'!L36+'Balance Sheet - Sewer'!L36+'Balance Sheet - Other 1'!L36+'Balance Sheet - Other 2'!L36+'Balance Sheet - Other 3'!L36 -> 0 | M36: ='Balance Sheet - General'!M36+'Balance Sheet - Water'!M36+'Balance Sheet - Sewer'!M36+'Balance Sheet - Other 1'!M36+'Balance Sheet - Other 2'!M36+'Balance Sheet - Other 3'!M36 -> 0 | N36: ='Balance Sheet - General'!N36+'Balance Sheet - Water'!N36+'Balance Sheet - Sewer'!N36+'Balance Sheet - Other 1'!N36+'Balance Sheet - Other 2'!N36+'Balance Sheet - Other 3'!N36 -> 0 | O36: ='Balance Sheet - General'!O36+'Balance Sheet - Water'!O36+'Balance Sheet - Sewer'!O36+'Balance Sheet - Other 1'!O36+'Balance Sheet - Other 2'!O36+'Balance Sheet - Other 3'!O36 -> 0 | P36: ='Balance Sheet - General'!P36+'Balance Sheet - Water'!P36+'Balance Sheet - Sewer'!P36+'Balance Sheet - Other 1'!P36+'Balance Sheet - Other 2'!P36+'Balance Sheet - Other 3'!P36 -> 0
A37: Total Current Liabilities | C37: =SUM(C30:C36) -> 6585000 | E37: =SUM(E30:E36) -> 6479592.488 | G37: 6600893.366 | H37: 6425994.414 | I37: 6605995.504 | J37: 6792631.209 | K37: 6955476.207 | L37: 7100430.992 | M37: 7125654.512 | N37: 7244888.667 | O37: 6765777.125 | P37: 6868155.187
A39: Non-Current Liabilities
A40: Payables | C40: ='Balance Sheet - General'!C40+'Balance Sheet - Water'!C40+'Balance Sheet - Sewer'!C40+'Balance Sheet - Other 1'!C40+'Balance Sheet - Other 2'!C40+'Balance Sheet - Other 3'!C40 -> 8000 | E40: ='Balance Sheet - General'!E40+'Balance Sheet - Water'!E40+'Balance Sheet - Sewer'!E40+'Balance Sheet - Other 1'!E40+'Balance Sheet - Other 2'!E40+'Balance Sheet - Other 3'!E40 -> 4594.461686 | G40: ='Balance Sheet - General'!G40+'Balance Sheet - Water'!G40+'Balance Sheet - Sewer'!G40+'Balance Sheet - Other 1'!G40+'Balance Sheet - Other 2'!G40+'Balance Sheet - Other 3'!G40 -> 4520.520763 | H40: ='Balance Sheet - General'!H40+'Balance Sheet - Water'!H40+'Balance Sheet - Sewer'!H40+'Balance Sheet - Other 1'!H40+'Balance Sheet - Other 2'!H40+'Balance Sheet - Other 3'!H40 -> 0 | I40: ='Balance Sheet - General'!I40+'Balance Sheet - Water'!I40+'Balance Sheet - Sewer'!I40+'Balance Sheet - Other 1'!I40+'Balance Sheet - Other 2'!I40+'Balance Sheet - Other 3'!I40 -> 0 | J40: ='Balance Sheet - General'!J40+'Balance Sheet - Water'!J40+'Balance Sheet - Sewer'!J40+'Balance Sheet - Other 1'!J40+'Balance Sheet - Other 2'!J40+'Balance Sheet - Other 3'!J40 -> 0 | K40: ='Balance Sheet - General'!K40+'Balance Sheet - Water'!K40+'Balance Sheet - Sewer'!K40+'Balance Sheet - Other 1'!K40+'Balance Sheet - Other 2'!K40+'Balance Sheet - Other 3'!K40 -> 0 | L40: ='Balance Sheet - General'!L40+'Balance Sheet - Water'!L40+'Balance Sheet - Sewer'!L40+'Balance Sheet - Other 1'!L40+'Balance Sheet - Other 2'!L40+'Balance Sheet - Other 3'!L40 -> 0 | M40: ='Balance Sheet - General'!M40+'Balance Sheet - Water'!M40+'Balance Sheet - Sewer'!M40+'Balance Sheet - Other 1'!M40+'Balance Sheet - Other 2'!M40+'Balance Sheet - Other 3'!M40 -> 0 | N40: ='Balance Sheet - General'!N40+'Balance Sheet - Water'!N40+'Balance Sheet - Sewer'!N40+'Balance Sheet - Other 1'!N40+'Balance Sheet - Other 2'!N40+'Balance Sheet - Other 3'!N40 -> 0 | O40: ='Balance Sheet - General'!O40+'Balance Sheet - Water'!O40+'Balance Sheet - Sewer'!O40+'Balance Sheet - Other 1'!O40+'Balance Sheet - Other 2'!O40+'Balance Sheet - Other 3'!O40 -> 0 | P40: ='Balance Sheet - General'!P40+'Balance Sheet - Water'!P40+'Balance Sheet - Sewer'!P40+'Balance Sheet - Other 1'!P40+'Balance Sheet - Other 2'!P40+'Balance Sheet - Other 3'!P40 -> 0
A41: Borrowings | C41: ='Balance Sheet - General'!C41+'Balance Sheet - Water'!C41+'Balance Sheet - Sewer'!C41+'Balance Sheet - Other 1'!C41+'Balance Sheet - Other 2'!C41+'Balance Sheet - Other 3'!C41-C73+IF(C73-C70>0,C73-C70,0) -> 9032000 | E41: ='Balance Sheet - General'!E41+'Balance Sheet - Water'!E41+'Balance Sheet - Sewer'!E41+'Balance Sheet - Other 1'!E41+'Balance Sheet - Other 2'!E41+'Balance Sheet - Other 3'!E41-E73+IF(E73-E70>0,E73-E70,0) -> 8405919 | G41: ='Balance Sheet - General'!G41+'Balance Sheet - Water'!G41+'Balance Sheet - Sewer'!G41+'Balance Sheet - Other 1'!G41+'Balance Sheet - Other 2'!G41+'Balance Sheet - Other 3'!G41-G73+IF(G73-G70>0,G73-G70,0) -> 8705209.173 | H41: ='Balance Sheet - General'!H41+'Balance Sheet - Water'!H41+'Balance Sheet - Sewer'!H41+'Balance Sheet - Other 1'!H41+'Balance Sheet - Other 2'!H41+'Balance Sheet - Other 3'!H41-H73+IF(H73-H70>0,H73-H70,0) -> 9416437.575 | I41: ='Balance Sheet - General'!I41+'Balance Sheet - Water'!I41+'Balance Sheet - Sewer'!I41+'Balance Sheet - Other 1'!I41+'Balance Sheet - Other 2'!I41+'Balance Sheet - Other 3'!I41-I73+IF(I73-I70>0,I73-I70,0) -> 10520521.73 | J41: ='Balance Sheet - General'!J41+'Balance Sheet - Water'!J41+'Balance Sheet - Sewer'!J41+'Balance Sheet - Other 1'!J41+'Balance Sheet - Other 2'!J41+'Balance Sheet - Other 3'!J41-J73+IF(J73-J70>0,J73-J70,0) -> 11025925.7 | K41: ='Balance Sheet - General'!K41+'Balance Sheet - Water'!K41+'Balance Sheet - Sewer'!K41+'Balance Sheet - Other 1'!K41+'Balance Sheet - Other 2'!K41+'Balance Sheet - Other 3'!K41-K73+IF(K73-K70>0,K73-K70,0) -> 10947668.5 | L41: ='Balance Sheet - General'!L41+'Balance Sheet - Water'!L41+'Balance Sheet - Sewer'!L41+'Balance Sheet - Other 1'!L41+'Balance Sheet - Other 2'!L41+'Balance Sheet - Other 3'!L41-L73+IF(L73-L70>0,L73-L70,0) -> 10782119.34 | M41: ='Balance Sheet - General'!M41+'Balance Sheet - Water'!M41+'Balance Sheet - Sewer'!M41+'Balance Sheet - Other 1'!M41+'Balance Sheet - Other 2'!M41+'Balance Sheet - Other 3'!M41-M73+IF(M73-M70>0,M73-M70,0) -> 10661149.57 | N41: ='Balance Sheet - General'!N41+'Balance Sheet - Water'!N41+'Balance Sheet - Sewer'!N41+'Balance Sheet - Other 1'!N41+'Balance Sheet - Other 2'!N41+'Balance Sheet - Other 3'!N41-N73+IF(N73-N70>0,N73-N70,0) -> 9483317.828 | O41: ='Balance Sheet - General'!O41+'Balance Sheet - Water'!O41+'Balance Sheet - Sewer'!O41+'Balance Sheet - Other 1'!O41+'Balance Sheet - Other 2'!O41+'Balance Sheet - Other 3'!O41-O73+IF(O73-O70>0,O73-O70,0) -> 8836789.325 | P41: ='Balance Sheet - General'!P41+'Balance Sheet - Water'!P41+'Balance Sheet - Sewer'!P41+'Balance Sheet - Other 1'!P41+'Balance Sheet - Other 2'!P41+'Balance Sheet - Other 3'!P41-P73+IF(P73-P70>0,P73-P70,0) -> 8154996.824
A42: Provisions | C42: ='Balance Sheet - General'!C42+'Balance Sheet - Water'!C42+'Balance Sheet - Sewer'!C42+'Balance Sheet - Other 1'!C42+'Balance Sheet - Other 2'!C42+'Balance Sheet - Other 3'!C42 -> 731000 | E42: ='Balance Sheet - General'!E42+'Balance Sheet - Water'!E42+'Balance Sheet - Sewer'!E42+'Balance Sheet - Other 1'!E42+'Balance Sheet - Other 2'!E42+'Balance Sheet - Other 3'!E42 -> 735678.5983 | G42: ='Balance Sheet - General'!G42+'Balance Sheet - Water'!G42+'Balance Sheet - Sewer'!G42+'Balance Sheet - Other 1'!G42+'Balance Sheet - Other 2'!G42+'Balance Sheet - Other 3'!G42 -> 735678.5983 | H42: ='Balance Sheet - General'!H42+'Balance Sheet - Water'!H42+'Balance Sheet - Sewer'!H42+'Balance Sheet - Other 1'!H42+'Balance Sheet - Other 2'!H42+'Balance Sheet - Other 3'!H42 -> 735678.5983 | I42: ='Balance Sheet - General'!I42+'Balance Sheet - Water'!I42+'Balance Sheet - Sewer'!I42+'Balance Sheet - Other 1'!I42+'Balance Sheet - Other 2'!I42+'Balance Sheet - Other 3'!I42 -> 735678.5983 | J42: ='Balance Sheet - General'!J42+'Balance Sheet - Water'!J42+'Balance Sheet - Sewer'!J42+'Balance Sheet - Other 1'!J42+'Balance Sheet - Other 2'!J42+'Balance Sheet - Other 3'!J42 -> 735678.5983 | K42: ='Balance Sheet - General'!K42+'Balance Sheet - Water'!K42+'Balance Sheet - Sewer'!K42+'Balance Sheet - Other 1'!K42+'Balance Sheet - Other 2'!K42+'Balance Sheet - Other 3'!K42 -> 735678.5983 | L42: ='Balance Sheet - General'!L42+'Balance Sheet - Water'!L42+'Balance Sheet - Sewer'!L42+'Balance Sheet - Other 1'!L42+'Balance Sheet - Other 2'!L42+'Balance Sheet - Other 3'!L42 -> 735678.5983 | M42: ='Balance Sheet - General'!M42+'Balance Sheet - Water'!M42+'Balance Sheet - Sewer'!M42+'Balance Sheet - Other 1'!M42+'Balance Sheet - Other 2'!M42+'Balance Sheet - Other 3'!M42 -> 735678.5983 | N42: ='Balance Sheet - General'!N42+'Balance Sheet - Water'!N42+'Balance Sheet - Sewer'!N42+'Balance Sheet - Other 1'!N42+'Balance Sheet - Other 2'!N42+'Balance Sheet - Other 3'!N42 -> 735678.5983 | O42: ='Balance Sheet - General'!O42+'Balance Sheet - Water'!O42+'Balance Sheet - Sewer'!O42+'Balance Sheet - Other 1'!O42+'Balance Sheet - Other 2'!O42+'Balance Sheet - Other 3'!O42 -> 735678.5983 | P42: ='Balance Sheet - General'!P42+'Balance Sheet - Water'!P42+'Balance Sheet - Sewer'!P42+'Balance Sheet - Other 1'!P42+'Balance Sheet - Other 2'!P42+'Balance Sheet - Other 3'!P42 -> 735678.5983
A43: Investments Accounted for using the equity method | C43: ='Balance Sheet - General'!C43+'Balance Sheet - Water'!C43+'Balance Sheet - Sewer'!C43+'Balance Sheet - Other 1'!C43+'Balance Sheet - Other 2'!C43+'Balance Sheet - Other 3'!C43 -> 0 | E43: ='Balance Sheet - General'!E43+'Balance Sheet - Water'!E43+'Balance Sheet - Sewer'!E43+'Balance Sheet - Other 1'!E43+'Balance Sheet - Other 2'!E43+'Balance Sheet - Other 3'!E43 -> 0 | G43: ='Balance Sheet - General'!G43+'Balance Sheet - Water'!G43+'Balance Sheet - Sewer'!G43+'Balance Sheet - Other 1'!G43+'Balance Sheet - Other 2'!G43+'Balance Sheet - Other 3'!G43 -> 0 | H43: ='Balance Sheet - General'!H43+'Balance Sheet - Water'!H43+'Balance Sheet - Sewer'!H43+'Balance Sheet - Other 1'!H43+'Balance Sheet - Other 2'!H43+'Balance Sheet - Other 3'!H43 -> 0 | I43: ='Balance Sheet - General'!I43+'Balance Sheet - Water'!I43+'Balance Sheet - Sewer'!I43+'Balance Sheet - Other 1'!I43+'Balance Sheet - Other 2'!I43+'Balance Sheet - Other 3'!I43 -> 0 | J43: ='Balance Sheet - General'!J43+'Balance Sheet - Water'!J43+'Balance Sheet - Sewer'!J43+'Balance Sheet - Other 1'!J43+'Balance Sheet - Other 2'!J43+'Balance Sheet - Other 3'!J43 -> 0 | K43: ='Balance Sheet - General'!K43+'Balance Sheet - Water'!K43+'Balance Sheet - Sewer'!K43+'Balance Sheet - Other 1'!K43+'Balance Sheet - Other 2'!K43+'Balance Sheet - Other 3'!K43 -> 0 | L43: ='Balance Sheet - General'!L43+'Balance Sheet - Water'!L43+'Balance Sheet - Sewer'!L43+'Balance Sheet - Other 1'!L43+'Balance Sheet - Other 2'!L43+'Balance Sheet - Other 3'!L43 -> 0 | M43: ='Balance Sheet - General'!M43+'Balance Sheet - Water'!M43+'Balance Sheet - Sewer'!M43+'Balance Sheet - Other 1'!M43+'Balance Sheet - Other 2'!M43+'Balance Sheet - Other 3'!M43 -> 0 | N43: ='Balance Sheet - General'!N43+'Balance Sheet - Water'!N43+'Balance Sheet - Sewer'!N43+'Balance Sheet - Other 1'!N43+'Balance Sheet - Other 2'!N43+'Balance Sheet - Other 3'!N43 -> 0 | O43: ='Balance Sheet - General'!O43+'Balance Sheet - Water'!O43+'Balance Sheet - Sewer'!O43+'Balance Sheet - Other 1'!O43+'Balance Sheet - Other 2'!O43+'Balance Sheet - Other 3'!O43 -> 0 | P43: ='Balance Sheet - General'!P43+'Balance Sheet - Water'!P43+'Balance Sheet - Sewer'!P43+'Balance Sheet - Other 1'!P43+'Balance Sheet - Other 2'!P43+'Balance Sheet - Other 3'!P43 -> 0
A44: Liabilities associated with assets classified as "held for sale" | C44: ='Balance Sheet - General'!C44+'Balance Sheet - Water'!C44+'Balance Sheet - Sewer'!C44+'Balance Sheet - Other 1'!C44+'Balance Sheet - Other 2'!C44+'Balance Sheet - Other 3'!C44 -> 0 | E44: ='Balance Sheet - General'!E44+'Balance Sheet - Water'!E44+'Balance Sheet - Sewer'!E44+'Balance Sheet - Other 1'!E44+'Balance Sheet - Other 2'!E44+'Balance Sheet - Other 3'!E44 -> 0 | G44: ='Balance Sheet - General'!G44+'Balance Sheet - Water'!G44+'Balance Sheet - Sewer'!G44+'Balance Sheet - Other 1'!G44+'Balance Sheet - Other 2'!G44+'Balance Sheet - Other 3'!G44 -> 0 | H44: ='Balance Sheet - General'!H44+'Balance Sheet - Water'!H44+'Balance Sheet - Sewer'!H44+'Balance Sheet - Other 1'!H44+'Balance Sheet - Other 2'!H44+'Balance Sheet - Other 3'!H44 -> 0 | I44: ='Balance Sheet - General'!I44+'Balance Sheet - Water'!I44+'Balance Sheet - Sewer'!I44+'Balance Sheet - Other 1'!I44+'Balance Sheet - Other 2'!I44+'Balance Sheet - Other 3'!I44 -> 0 | J44: ='Balance Sheet - General'!J44+'Balance Sheet - Water'!J44+'Balance Sheet - Sewer'!J44+'Balance Sheet - Other 1'!J44+'Balance Sheet - Other 2'!J44+'Balance Sheet - Other 3'!J44 -> 0 | K44: ='Balance Sheet - General'!K44+'Balance Sheet - Water'!K44+'Balance Sheet - Sewer'!K44+'Balance Sheet - Other 1'!K44+'Balance Sheet - Other 2'!K44+'Balance Sheet - Other 3'!K44 -> 0 | L44: ='Balance Sheet - General'!L44+'Balance Sheet - Water'!L44+'Balance Sheet - Sewer'!L44+'Balance Sheet - Other 1'!L44+'Balance Sheet - Other 2'!L44+'Balance Sheet - Other 3'!L44 -> 0 | M44: ='Balance Sheet - General'!M44+'Balance Sheet - Water'!M44+'Balance Sheet - Sewer'!M44+'Balance Sheet - Other 1'!M44+'Balance Sheet - Other 2'!M44+'Balance Sheet - Other 3'!M44 -> 0 | N44: ='Balance Sheet - General'!N44+'Balance Sheet - Water'!N44+'Balance Sheet - Sewer'!N44+'Balance Sheet - Other 1'!N44+'Balance Sheet - Other 2'!N44+'Balance Sheet - Other 3'!N44 -> 0 | O44: ='Balance Sheet - General'!O44+'Balance Sheet - Water'!O44+'Balance Sheet - Sewer'!O44+'Balance Sheet - Other 1'!O44+'Balance Sheet - Other 2'!O44+'Balance Sheet - Other 3'!O44 -> 0 | P44: ='Balance Sheet - General'!P44+'Balance Sheet - Water'!P44+'Balance Sheet - Sewer'!P44+'Balance Sheet - Other 1'!P44+'Balance Sheet - Other 2'!P44+'Balance Sheet - Other 3'!P44 -> 0
A45: Total Non-Current Liabilities | C45: =SUM(C39:C44) -> 9771000 | E45: =SUM(E39:E44) -> 9146192.06 | G45: =SUM(G39:G44) -> 9445408.292 | H45: 10152116.17 | I45: 11256200.33 | J45: 11761604.3 | K45: 11683347.1 | L45: 11517797.94 | M45: 11396828.16 | N45: 10218996.43 | O45: 9572467.923 | P45: 8890675.422
A46: TOTAL LIABILITIES | C46: =C45+C37 -> 16356000 | E46: =E45+E37 -> 15625784.55 | G46: =G45+G37 -> 16046301.66 | H46: 16578110.59 | I46: 17862195.83 | J46: 18554235.51 | K46: 18638823.31 | L46: 18618228.93 | M46: 18522482.68 | N46: 17463885.09 | O46: 16338245.05 | P46: 15758830.61
A47: Net Assets | C47: =C28-C46 -> 449290000 | E47: =E28-E46 -> 447961418.4 | G47: =G28-G46 -> 458766621.3 | H47: 459183270.5 | I47: 459872680.4 | J47: 460930797 | K47: 462230488.7 | L47: 463377658.5 | M47: 465013026.1 | N47: 468026898.8 | O47: 471367907.9 | P47: 474225368.9
A49: EQUITY
A50: Retained Earnings | C50: ='Balance Sheet - General'!C50+'Balance Sheet - Water'!C50+'Balance Sheet - Sewer'!C50+'Balance Sheet - Other 1'!C50+'Balance Sheet - Other 2'!C50+'Balance Sheet - Other 3'!C50 -> 263581000 | E50: ='Balance Sheet - General'!E50+'Balance Sheet - Water'!E50+'Balance Sheet - Sewer'!E50+'Balance Sheet - Other 1'!E50+'Balance Sheet - Other 2'!E50+'Balance Sheet - Other 3'!E50 -> 262252418.4 | G50: ='Balance Sheet - General'!G50+'Balance Sheet - Water'!G50+'Balance Sheet - Sewer'!G50+'Balance Sheet - Other 1'!G50+'Balance Sheet - Other 2'!G50+'Balance Sheet - Other 3'!G50 -> 273057621.3 | H50: ='Balance Sheet - General'!H50+'Balance Sheet - Water'!H50+'Balance Sheet - Sewer'!H50+'Balance Sheet - Other 1'!H50+'Balance Sheet - Other 2'!H50+'Balance Sheet - Other 3'!H50 -> 273474270.5 | I50: ='Balance Sheet - General'!I50+'Balance Sheet - Water'!I50+'Balance Sheet - Sewer'!I50+'Balance Sheet - Other 1'!I50+'Balance Sheet - Other 2'!I50+'Balance Sheet - Other 3'!I50 -> 274163680.4 | J50: ='Balance Sheet - General'!J50+'Balance Sheet - Water'!J50+'Balance Sheet - Sewer'!J50+'Balance Sheet - Other 1'!J50+'Balance Sheet - Other 2'!J50+'Balance Sheet - Other 3'!J50 -> 275221797 | K50: ='Balance Sheet - General'!K50+'Balance Sheet - Water'!K50+'Balance Sheet - Sewer'!K50+'Balance Sheet - Other 1'!K50+'Balance Sheet - Other 2'!K50+'Balance Sheet - Other 3'!K50 -> 276521488.7 | L50: ='Balance Sheet - General'!L50+'Balance Sheet - Water'!L50+'Balance Sheet - Sewer'!L50+'Balance Sheet - Other 1'!L50+'Balance Sheet - Other 2'!L50+'Balance Sheet - Other 3'!L50 -> 277668658.5 | M50: ='Balance Sheet - General'!M50+'Balance Sheet - Water'!M50+'Balance Sheet - Sewer'!M50+'Balance Sheet - Other 1'!M50+'Balance Sheet - Other 2'!M50+'Balance Sheet - Other 3'!M50 -> 279304026.1 | N50: ='Balance Sheet - General'!N50+'Balance Sheet - Water'!N50+'Balance Sheet - Sewer'!N50+'Balance Sheet - Other 1'!N50+'Balance Sheet - Other 2'!N50+'Balance Sheet - Other 3'!N50 -> 282317898.8 | O50: ='Balance Sheet - General'!O50+'Balance Sheet - Water'!O50+'Balance Sheet - Sewer'!O50+'Balance Sheet - Other 1'!O50+'Balance Sheet - Other 2'!O50+'Balance Sheet - Other 3'!O50 -> 285658907.9 | P50: ='Balance Sheet - General'!P50+'Balance Sheet - Water'!P50+'Balance Sheet - Sewer'!P50+'Balance Sheet - Other 1'!P50+'Balance Sheet - Other 2'!P50+'Balance Sheet - Other 3'!P50 -> 288516368.9
A51: Revaluation Reserves | C51: ='Balance Sheet - General'!C51+'Balance Sheet - Water'!C51+'Balance Sheet - Sewer'!C51+'Balance Sheet - Other 1'!C51+'Balance Sheet - Other 2'!C51+'Balance Sheet - Other 3'!C51 -> 185709000 | E51: ='Balance Sheet - General'!E51+'Balance Sheet - Water'!E51+'Balance Sheet - Sewer'!E51+'Balance Sheet - Other 1'!E51+'Balance Sheet - Other 2'!E51+'Balance Sheet - Other 3'!E51 -> 185709000 | G51: ='Balance Sheet - General'!G51+'Balance Sheet - Water'!G51+'Balance Sheet - Sewer'!G51+'Balance Sheet - Other 1'!G51+'Balance Sheet - Other 2'!G51+'Balance Sheet - Other 3'!G51 -> 185709000 | H51: ='Balance Sheet - General'!H51+'Balance Sheet - Water'!H51+'Balance Sheet - Sewer'!H51+'Balance Sheet - Other 1'!H51+'Balance Sheet - Other 2'!H51+'Balance Sheet - Other 3'!H51 -> 185709000 | I51: ='Balance Sheet - General'!I51+'Balance Sheet - Water'!I51+'Balance Sheet - Sewer'!I51+'Balance Sheet - Other 1'!I51+'Balance Sheet - Other 2'!I51+'Balance Sheet - Other 3'!I51 -> 185709000 | J51: ='Balance Sheet - General'!J51+'Balance Sheet - Water'!J51+'Balance Sheet - Sewer'!J51+'Balance Sheet - Other 1'!J51+'Balance Sheet - Other 2'!J51+'Balance Sheet - Other 3'!J51 -> 185709000 | K51: ='Balance Sheet - General'!K51+'Balance Sheet - Water'!K51+'Balance Sheet - Sewer'!K51+'Balance Sheet - Other 1'!K51+'Balance Sheet - Other 2'!K51+'Balance Sheet - Other 3'!K51 -> 185709000 | L51: ='Balance Sheet - General'!L51+'Balance Sheet - Water'!L51+'Balance Sheet - Sewer'!L51+'Balance Sheet - Other 1'!L51+'Balance Sheet - Other 2'!L51+'Balance Sheet - Other 3'!L51 -> 185709000 | M51: ='Balance Sheet - General'!M51+'Balance Sheet - Water'!M51+'Balance Sheet - Sewer'!M51+'Balance Sheet - Other 1'!M51+'Balance Sheet - Other 2'!M51+'Balance Sheet - Other 3'!M51 -> 185709000 | N51: ='Balance Sheet - General'!N51+'Balance Sheet - Water'!N51+'Balance Sheet - Sewer'!N51+'Balance Sheet - Other 1'!N51+'Balance Sheet - Other 2'!N51+'Balance Sheet - Other 3'!N51 -> 185709000 | O51: ='Balance Sheet - General'!O51+'Balance Sheet - Water'!O51+'Balance Sheet - Sewer'!O51+'Balance Sheet - Other 1'!O51+'Balance Sheet - Other 2'!O51+'Balance Sheet - Other 3'!O51 -> 185709000 | P51: ='Balance Sheet - General'!P51+'Balance Sheet - Water'!P51+'Balance Sheet - Sewer'!P51+'Balance Sheet - Other 1'!P51+'Balance Sheet - Other 2'!P51+'Balance Sheet - Other 3'!P51 -> 185709000
A52: Council Equity Interest | C52: ='Historical Data'!C706*1000 -> 449290000 | E52: =SUM(E50:E51) -> 447961418.4 | G52: =SUM(G50:G51) -> 458766621.3 | H52: 459183270.5 | I52: 459872680.4 | J52: 460930797 | K52: 462230488.7 | L52: 463377658.5 | M52: 465013026.1 | N52: 468026898.8 | O52: 471367907.9 | P52: 474225368.9
A53: Minority Equity Interest | C53: ='Balance Sheet - General'!C53+'Balance Sheet - Water'!C53+'Balance Sheet - Sewer'!C53+'Balance Sheet - Other 1'!C53+'Balance Sheet - Other 2'!C53+'Balance Sheet - Other 3'!C53 -> 0 | E53: ='Balance Sheet - General'!E53+'Balance Sheet - Water'!E53+'Balance Sheet - Sewer'!E53+'Balance Sheet - Other 1'!E53+'Balance Sheet - Other 2'!E53+'Balance Sheet - Other 3'!E53 -> 0 | G53: ='Balance Sheet - General'!G53+'Balance Sheet - Water'!G53+'Balance Sheet - Sewer'!G53+'Balance Sheet - Other 1'!G53+'Balance Sheet - Other 2'!G53+'Balance Sheet - Other 3'!G53 -> 0 | H53: ='Balance Sheet - General'!H53+'Balance Sheet - Water'!H53+'Balance Sheet - Sewer'!H53+'Balance Sheet - Other 1'!H53+'Balance Sheet - Other 2'!H53+'Balance Sheet - Other 3'!H53 -> 0 | I53: ='Balance Sheet - General'!I53+'Balance Sheet - Water'!I53+'Balance Sheet - Sewer'!I53+'Balance Sheet - Other 1'!I53+'Balance Sheet - Other 2'!I53+'Balance Sheet - Other 3'!I53 -> 0 | J53: ='Balance Sheet - General'!J53+'Balance Sheet - Water'!J53+'Balance Sheet - Sewer'!J53+'Balance Sheet - Other 1'!J53+'Balance Sheet - Other 2'!J53+'Balance Sheet - Other 3'!J53 -> 0 | K53: ='Balance Sheet - General'!K53+'Balance Sheet - Water'!K53+'Balance Sheet - Sewer'!K53+'Balance Sheet - Other 1'!K53+'Balance Sheet - Other 2'!K53+'Balance Sheet - Other 3'!K53 -> 0 | L53: ='Balance Sheet - General'!L53+'Balance Sheet - Water'!L53+'Balance Sheet - Sewer'!L53+'Balance Sheet - Other 1'!L53+'Balance Sheet - Other 2'!L53+'Balance Sheet - Other 3'!L53 -> 0 | M53: ='Balance Sheet - General'!M53+'Balance Sheet - Water'!M53+'Balance Sheet - Sewer'!M53+'Balance Sheet - Other 1'!M53+'Balance Sheet - Other 2'!M53+'Balance Sheet - Other 3'!M53 -> 0 | N53: ='Balance Sheet - General'!N53+'Balance Sheet - Water'!N53+'Balance Sheet - Sewer'!N53+'Balance Sheet - Other 1'!N53+'Balance Sheet - Other 2'!N53+'Balance Sheet - Other 3'!N53 -> 0 | O53: ='Balance Sheet - General'!O53+'Balance Sheet - Water'!O53+'Balance Sheet - Sewer'!O53+'Balance Sheet - Other 1'!O53+'Balance Sheet - Other 2'!O53+'Balance Sheet - Other 3'!O53 -> 0 | P53: ='Balance Sheet - General'!P53+'Balance Sheet - Water'!P53+'Balance Sheet - Sewer'!P53+'Balance Sheet - Other 1'!P53+'Balance Sheet - Other 2'!P53+'Balance Sheet - Other 3'!P53 -> 0
A54: Total Equity | C54: =C50+C51+C53 -> 449290000 | E54: =E50+E51+E53 -> 447961418.4 | G54: 458766621.3 | H54: 459183270.5 | I54: 459872680.4 | J54: 460930797 | K54: 462230488.7 | L54: 463377658.5 | M54: 465013026.1 | N54: 468026898.8 | O54: 471367907.9 | P54: 474225368.9
A57: Variance Net assets to Total Equity | C57: =ROUND(C47,0)-ROUND(C54,0) -> 0 | E57: =ROUND(E47,0)-ROUND(E54,0) -> 0 | G57: 0 | H57: 0 | I57: 0 | J57: 0 | K57: 0 | L57: 0 | M57: 0 | N57: 0 | O57: 0 | P57: 0
A58: Check that variance above is NIL | C58: =IF(C57<>0,C4,"") ->  | E58: =IF(E57<>0,IF(C58="",E$4,C58&", "&E$4),C58) ->  | G58: =IF(G57<>0,IF(E58="",G$4,E58&", "&G$4),E58) ->  | H58: =IF(H57<>0,IF(G58="",H$4,G58&", "&H$4),G58) -> 
E60: 1 | G60: =E60+1 -> 2 | H60: =G60+1 -> 3 | I60: 4 | J60: 5 | K60: 6 | L60: 7 | M60: 8 | N60: 9 | O60: 10 | P60: 11
A62: Variance Net assets to Total Equity (excluding rounding adjustment) | C62: =ROUND(SUM(C8:C13)+C27-C46,0)-ROUND(C54,0) -> 0 | E62: =ROUND(SUM(E8:E13)+E27-E46,0)-ROUND(E54,0) -> 0 | G62: 0 | H62: 0 | I62: 0 | J62: 0 | K62: 0 | L62: 0 | M62: 0 | N62: 0 | O62: 0 | P62: 0
A63: Rounding adjustment required | C63: =IF(AND(ABS(C62)>0,OR(ABS(C62)<1,ABS(C62)=1)),SUM(C8:C13)+C27-C46-C54,0) -> 0 | E63: =IF(AND(ABS(E62)>0,OR(ABS(E62)<1,ABS(E62)=1)),SUM(E8:E13)+E27-E46-E54,0) -> 0 | G63: 0 | H63: 0 | I63: 0 | J63: 0 | K63: 0 | L63: 0 | M63: 0 | N63: 0 | O63: 0 | P63: 0
